Workbook

Sheet Accueil

Sheet Planning_général
B2: Année | C2: 2019
E4: 1 | F4: 2 | G4: 3 | H4: 4 | I4: 5 | J4: 6 | K4: 7 | L4: 8 | M4: 9 | N4: 10 | O4: 11 | P4: 12 | Q4: 13 | R4: 14 | S4: 15 | T4: 16 | U4: 17 | V4: 18 | W4: 19 | X4: 20 | Y4: 21 | Z4: 22 | AA4: 23 | AB4: 24 | AC4: 25 | AD4: 26 | AE4: 27 | AF4: 28 | AG4: 29 | AH4: 30 | AI4: 31 | AJ4: 32 | AK4: 33 | AL4: 34 | AM4: 35 | AN4: 36 | AO4: 37 | AP4: 38 | AQ4: 39 | AR4: 40 | AS4: 41 | AT4: 42 | AU4: 43 | AV4: 44 | AW4: 45 | AX4: 46 | AY4: 47 | AZ4: 48 | BA4: 49 | BB4: 50 | BC4: 51 | BD4: 52 | BE4: 53 | BF4: 54 | BG4: 55 | BH4: 56 | BI4: 57 | BJ4: 58 | BK4: 59 | BL4: 60 | BM4: 61 | BN4: 62 | BO4: 63 | BP4: 64 | BQ4: 65 | BR4: 66 | BS4: 67 | BT4: 68 | BU4: 69 | BV4: 70 | BW4: 71 | BX4: 72 | BY4: 73 | BZ4: 74 | CA4: 75 | CB4: 76 | CC4: 77 | CD4: 78 | CE4: 79 | CF4: 80 | CG4: 81 | CH4: 82 | CI4: 83 | CJ4: 84 | CK4: 85 | CL4: 86 | CM4: 87 | CN4: 88 | CO4: 89 | CP4: 90 | CQ4: 91 | CR4: 92 | CS4: 93 | CT4: 94 | CU4: 95 | CV4: 96 | CW4: 97 | CX4: 98 | CY4: 99 | CZ4: 100 | DA4: 101 | DB4: 102 | DC4: 103 | DD4: 104 | DE4: 105 | DF4: 106 | DG4: 107 | DH4: 108 | DI4: 109 | DJ4: 110 | DK4: 111 | DL4: 112 | DM4: 113 | DN4: 114 | DO4: 115 | DP4: 116 | DQ4: 117 | DR4: 118 | DS4: 119 | DT4: 120 | DU4: 121 | DV4: 122 | DW4: 123 | DX4: 124 | DY4: 125 | DZ4: 126 | EA4: 127 | EB4: 128 | EC4: 129 | ED4: 130 | EE4: 131 | EF4: 132 | EG4: 133 | EH4: 134 | EI4: 135 | EJ4: 136 | EK4: 137 | EL4: 138 | EM4: 139 | EN4: 140 | EO4: 141 | EP4: 142 | EQ4: 143 | ER4: 144 | ES4: 145 | ET4: 146 | EU4: 147 | EV4: 148 | EW4: 149 | EX4: 150 | EY4: 151 | EZ4: 152 | FA4: 153 | FB4: 154 | FC4: 155 | FD4: 156 | FE4: 157 | FF4: 158 | FG4: 159 | FH4: 160 | FI4: 161 | FJ4: 162 | FK4: 163 | FL4: 164 | FM4: 165 | FN4: 166 | FO4: 167 | FP4: 168 | FQ4: 169 | FR4: 170 | FS4: 171 | FT4: 172 | FU4: 173 | FV4: 174 | FW4: 175 | FX4: 176 | FY4: 177 | FZ4: 178 | GA4: 179 | GB4: 180 | GC4: 181 | GD4: 182 | GE4: 183 | GF4: 184 | GG4: 185 | GH4: 186 | GI4: 187 | GJ4: 188 | GK4: 189 | GL4: 190 | GM4: 191 | GN4: 192 | GO4: 193 | GP4: 194 | GQ4: 195 | GR4: 196 | GS4: 197 | GT4: 198 | GU4: 199 | GV4: 200 | GW4: 201 | GX4: 202 | GY4: 203 | GZ4: 204 | HA4: 205 | HB4: 206 | HC4: 207 | HD4: 208 | HE4: 209 | HF4: 210 | HG4: 211 | HH4: 212 | HI4: 213 | HJ4: 214 | HK4: 215 | HL4: 216 | HM4: 217 | HN4: 218 | HO4: 219 | HP4: 220 | HQ4: 221 | HR4: 222 | HS4: 223 | HT4: 224 | HU4: 225 | HV4: 226 | HW4: 227 | HX4: 228 | HY4: 229 | HZ4: 230 | IA4: 231 | IB4: 232 | IC4: 233 | ID4: 234 | IE4: 235 | IF4: 236 | IG4: 237 | IH4: 238 | II4: 239 | IJ4: 240 | IK4: 241 | IL4: 242 | IM4: 243 | IN4: 244 | IO4: 245 | IP4: 246 | IQ4: 247 | IR4: 248 | IS4: 249 | IT4: 250 | IU4: 251 | IV4: 252 | IW4: 253 | IX4: 254 | IY4: 255 | IZ4: 256 | JA4: 257 | JB4: 258 | JC4: 259 | JD4: 260 | JE4: 261 | JF4: 262 | JG4: 263 | JH4: 264 | JI4: 265 | JJ4: 266 | JK4: 267 | JL4: 268 | JM4: 269 | JN4: 270 | JO4: 271 | JP4: 272 | JQ4: 273 | JR4: 274 | JS4: 275 | JT4: 276 | JU4: 277 | JV4: 278 | JW4: 279 | JX4: 280 | JY4: 281 | JZ4: 282 | KA4: 283 | KB4: 284 | KC4: 285 | KD4: 286 | KE4: 287 | KF4: 288 | KG4: 289 | KH4: 290 | KI4: 291 | KJ4: 292 | KK4: 293 | KL4: 294 | KM4: 295 | KN4: 296 | KO4: 297 | KP4: 298 | KQ4: 299 | KR4: 300 | KS4: 301 | KT4: 302 | KU4: 303 | KV4: 304 | KW4: 305 | KX4: 306 | KY4: 307 | KZ4: 308 | LA4: 309 | LB4: 310 | LC4: 311 | LD4: 312 | LE4: 313 | LF4: 314 | LG4: 315 | LH4: 316 | LI4: 317 | LJ4: 318 | LK4: 319 | LL4: 320 | LM4: 321 | LN4: 322 | LO4: 323 | LP4: 324 | LQ4: 325 | LR4: 326 | LS4: 327 | LT4: 328 | LU4: 329 | LV4: 330 | LW4: 331 | LX4: 332 | LY4: 333 | LZ4: 334 | MA4: 335 | MB4: 336 | MC4: 337 | MD4: 338 | ME4: 339 | MF4: 340 | MG4: 341 | MH4: 342 | MI4: 343 | MJ4: 344 | MK4: 345 | ML4: 346 | MM4: 347 | MN4: 348 | MO4: 349 | MP4: 350 | MQ4: 351 | MR4: 352 | MS4: 353 | MT4: 354 | MU4: 355 | MV4: 356 | MW4: 357 | MX4: 358 | MY4: 359 | MZ4: 360 | NA4: 361 | NB4: 362 | NC4: 363 | ND4: 364 | NE4: 365 | NF4: 366 | NG4: 367 | NH4: 368 | NI4: 369 | NJ4: 370 | NK4: 371 | NL4: 372 | NM4: 373
G5: =DATE(C2,1,1) -> 2019-01-01 | H5: =G5+1 -> 2019-01-02 | I5: =H5+1 -> 2019-01-03 | J5: 2019-01-04 | K5: 2019-01-05 | L5: 2019-01-06 | M5: 2019-01-07 | N5: 2019-01-08 | O5: 2019-01-09 | P5: 2019-01-10 | Q5: 2019-01-11 | R5: 2019-01-12 | S5: 2019-01-13 | T5: 2019-01-14 | U5: 2019-01-15 | V5: 2019-01-16 | W5: 2019-01-17 | X5: 2019-01-18 | Y5: 2019-01-19 | Z5: 2019-01-20 | AA5: 2019-01-21 | AB5: 2019-01-22 | AC5: 2019-01-23 | AD5: 2019-01-24 | AE5: 2019-01-25 | AF5: 2019-01-26 | AG5: 2019-01-27 | AH5: 2019-01-28 | AI5: 2019-01-29 | AJ5: 2019-01-30 | AK5: 2019-01-31 | AL5: 2019-02-01 | AM5: 2019-02-02 | AN5: 2019-02-03 | AO5: 2019-02-04 | AP5: 2019-02-05 | AQ5: 2019-02-06 | AR5: 2019-02-07 | AS5: 2019-02-08 | AT5: 2019-02-09 | AU5: 2019-02-10 | AV5: 2019-02-11 | AW5: =AV5+1 -> 2019-02-12 | AX5: 2019-02-13 | AY5: 2019-02-14 | AZ5: 2019-02-15 | BA5: 2019-02-16 | BB5: 2019-02-17 | BC5: 2019-02-18 | BD5: 2019-02-19 | BE5: 2019-02-20 | BF5: 2019-02-21 | BG5: 2019-02-22 | BH5: 2019-02-23 | BI5: 2019-02-24 | BJ5: 2019-02-25 | BK5: 2019-02-26 | BL5: 2019-02-27 | BM5: 2019-02-28 | BN5: =BM5+1 -> 2019-03-01 | BO5: =BN5+1 -> 2019-03-02 | BP5: =BO5+1 -> 2019-03-03 | BQ5: =BP5+1 -> 2019-03-04 | BR5: =BQ5+1 -> 2019-03-05 | BS5: =BR5+1 -> 2019-03-06 | BT5: =BS5+1 -> 2019-03-07 | BU5: =BT5+1 -> 2019-03-08 | BV5: =BU5+1 -> 2019-03-09 | BW5: =BV5+1 -> 2019-03-10 | BX5: =BW5+1 -> 2019-03-11 | BY5: =BX5+1 -> 2019-03-12 | BZ5: 2019-03-13 | CA5: 2019-03-14 | CB5: 2019-03-15 | CC5: 2019-03-16 | CD5: 2019-03-17 | CE5: 2019-03-18 | CF5: 2019-03-19 | CG5: 2019-03-20 | CH5: 2019-03-21 | CI5: 2019-03-22 | CJ5: 2019-03-23 | CK5: 2019-03-24 | CL5: 2019-03-25 | CM5: 2019-03-26 | CN5: 2019-03-27 | CO5: 2019-03-28 | CP5: 2019-03-29 | CQ5: 2019-03-30 | CR5: 2019-03-31 | CS5: 2019-04-01 | CT5: 2019-04-02 | CU5: 2019-04-03 | CV5: 2019-04-04 | CW5: 2019-04-05 | CX5: 2019-04-06 | CY5: 2019-04-07 | CZ5: 2019-04-08 | DA5: 2019-04-09 | DB5: 2019-04-10 | DC5: 2019-04-11 | DD5: 2019-04-12 | DE5: 2019-04-13 | DF5: 2019-04-14 | DG5: 2019-04-15 | DH5: 2019-04-16 | DI5: =DH5+1 -> 2019-04-17 | DJ5: 2019-04-18 | DK5: 2019-04-19 | DL5: 2019-04-20 | DM5: 2019-04-21 | DN5: 2019-04-22 | DO5: 2019-04-23 | DP5: 2019-04-24 | DQ5: 2019-04-25 | DR5: 2019-04-26 | DS5: 2019-04-27 | DT5: 2019-04-28 | DU5: 2019-04-29 | DV5: 2019-04-30 | DW5: 2019-05-01 | DX5: 2019-05-02 | DY5: 2019-05-03 | DZ5: 2019-05-04 | EA5: 2019-05-05 | EB5: 2019-05-06 | EC5: 2019-05-07 | ED5: 2019-05-08 | EE5: 2019-05-09 | EF5: 2019-05-10 | EG5: 2019-05-11 | EH5: 2019-05-12 | EI5: 2019-05-13 | EJ5: 2019-05-14 | EK5: 2019-05-15 | EL5: 2019-05-16 | EM5: 2019-05-17 | EN5: 2019-05-18 | EO5: 2019-05-19 | EP5: 2019-05-20 | EQ5: 2019-05-21 | ER5: 2019-05-22 | ES5: 2019-05-23 | ET5: 2019-05-24 | EU5: 2019-05-25 | EV5: 2019-05-26 | EW5: 2019-05-27 | EX5: =EW5+1 -> 2019-05-28 | EY5: 2019-05-29 | EZ5: 2019-05-30 | FA5: 2019-05-31 | FB5: 2019-06-01 | FC5: 2019-06-02 | FD5: 2019-06-03 | FE5: 2019-06-04 | FF5: 2019-06-05 | FG5: 2019-06-06 | FH5: 2019-06-07 | FI5: 2019-06-08 | FJ5: 2019-06-09 | FK5: 2019-06-10 | FL5: 2019-06-11 | FM5: 2019-06-12 | FN5: 2019-06-13 | FO5: 2019-06-14 | FP5: 2019-06-15 | FQ5: 2019-06-16 | FR5: 2019-06-17 | FS5: =FR5+1 -> 2019-06-18 | FT5: 2019-06-19 | FU5: 2019-06-20 | FV5: 2019-06-21 | FW5: 2019-06-22 | FX5: 2019-06-23 | FY5: 2019-06-24 | FZ5: 2019-06-25 | GA5: 2019-06-26 | GB5: 2019-06-27 | GC5: 2019-06-28 | GD5: 2019-06-29 | GE5: 2019-06-30 | GF5: 2019-07-01 | GG5: 2019-07-02 | GH5: 2019-07-03 | GI5: 2019-07-04 | GJ5: 2019-07-05 | GK5: 2019-07-06 | GL5: 2019-07-07 | GM5: 2019-07-08 | GN5: 2019-07-09 | GO5: 2019-07-10 | GP5: 2019-07-11 | GQ5: 2019-07-12 | GR5: 2019-07-13 | GS5: 2019-07-14 | GT5: 2019-07-15 | GU5: 2019-07-16 | GV5: 2019-07-17 | GW5: 2019-07-18 | GX5: 2019-07-19 | GY5: 2019-07-20 | GZ5: 2019-07-21 | HA5: 2019-07-22 | HB5: 2019-07-23 | HC5: 2019-07-24 | HD5: 2019-07-25 | HE5: 2019-07-26 | HF5: 2019-07-27 | HG5: 2019-07-28 | HH5: 2019-07-29 | HI5: 2019-07-30 | HJ5: 2019-07-31 | HK5: 2019-08-01 | HL5: 2019-08-02 | HM5: 2019-08-03 | HN5: 2019-08-04 | HO5: 2019-08-05 | HP5: 2019-08-06 | HQ5: 2019-08-07 | HR5: 2019-08-08 | HS5: 2019-08-09 | HT5: 2019-08-10 | HU5: 2019-08-11 | HV5: 2019-08-12 | HW5: 2019-08-13 | HX5: 2019-08-14 | HY5: 2019-08-15 | HZ5: 2019-08-16 | IA5: 2019-08-17 | IB5: 2019-08-18 | IC5: 2019-08-19 | ID5: 2019-08-20 | IE5: =ID5+1 -> 2019-08-21 | IF5: 2019-08-22 | IG5: 2019-08-23 | IH5: 2019-08-24 | II5: 2019-08-25 | IJ5: 2019-08-26 | IK5: 2019-08-27 | IL5: 2019-08-28 | IM5: 2019-08-29 | IN5: 2019-08-30 | IO5: 2019-08-31 | IP5: 2019-09-01 | IQ5: 2019-09-02 | IR5: 2019-09-03 | IS5: 2019-09-04 | IT5: 2019-09-05 | IU5: 2019-09-06 | IV5: 2019-09-07 | IW5: 2019-09-08 | IX5: 2019-09-09 | IY5: 2019-09-10 | IZ5: 2019-09-11 | JA5: 2019-09-12 | JB5: 2019-09-13 | JC5: 2019-09-14 | JD5: 2019-09-15 | JE5: 2019-09-16 | JF5: 2019-09-17 | JG5: 2019-09-18 | JH5: 2019-09-19 | JI5: 2019-09-20 | JJ5: 2019-09-21 | JK5: 2019-09-22 | JL5: 2019-09-23 | JM5: 2019-09-24 | JN5: 2019-09-25 | JO5: 2019-09-26 | JP5: 2019-09-27 | JQ5: 2019-09-28 | JR5: 2019-09-29 | JS5: 2019-09-30 | JT5: 2019-10-01 | JU5: 2019-10-02 | JV5: 2019-10-03 | JW5: 2019-10-04 | JX5: 2019-10-05 | JY5: 2019-10-06 | JZ5: 2019-10-07 | KA5: 2019-10-08 | KB5: 2019-10-09 | KC5: 2019-10-10 | KD5: 2019-10-11 | KE5: 2019-10-12 | KF5: 2019-10-13 | KG5: 2019-10-14 | KH5: 2019-10-15 | KI5: 2019-10-16 | KJ5: 2019-10-17 | KK5: 2019-10-18 | KL5: 2019-10-19 | KM5: 2019-10-20 | KN5: 2019-10-21 | KO5: 2019-10-22 | KP5: 2019-10-23 | KQ5: =KP5+1 -> 2019-10-24 | KR5: 2019-10-25 | KS5: 2019-10-26 | KT5: 2019-10-27 | KU5: 2019-10-28 | KV5: 2019-10-29 | KW5: 2019-10-30 | KX5: 2019-10-31 | KY5: 2019-11-01 | KZ5: 2019-11-02 | LA5: 2019-11-03 | LB5: 2019-11-04 | LC5: 2019-11-05 | LD5: 2019-11-06 | LE5: 2019-11-07 | LF5: 2019-11-08 | LG5: 2019-11-09 | LH5: 2019-11-10 | LI5: 2019-11-11 | LJ5: 2019-11-12 | LK5: 2019-11-13 | LL5: 2019-11-14 | LM5: 2019-11-15 | LN5: 2019-11-16 | LO5: 2019-11-17 | LP5: 2019-11-18 | LQ5: 2019-11-19 | LR5: 2019-11-20 | LS5: 2019-11-21 | LT5: 2019-11-22 | LU5: 2019-11-23 | LV5: 2019-11-24 | LW5: 2019-11-25 | LX5: 2019-11-26 | LY5: 2019-11-27 | LZ5: 2019-11-28 | MA5: 2019-11-29 | MB5: 2019-11-30 | MC5: 2019-12-01 | MD5: 2019-12-02 | ME5: =MD5+1 -> 2019-12-03 | MF5: 2019-12-04 | MG5: 2019-12-05 | MH5: 2019-12-06 | MI5: 2019-12-07 | MJ5: 2019-12-08 | MK5: 2019-12-09 | ML5: 2019-12-10 | MM5: 2019-12-11 | MN5: 2019-12-12 | MO5: 2019-12-13 | MP5: 2019-12-14 | MQ5: 2019-12-15 | MR5: 2019-12-16 | MS5: =MR5+1 -> 2019-12-17 | MT5: 2019-12-18 | MU5: 2019-12-19 | MV5: 2019-12-20 | MW5: 2019-12-21 | MX5: 2019-12-22 | MY5: 2019-12-23 | MZ5: =MY5+1 -> 2019-12-24 | NA5: 2019-12-25 | NB5: 2019-12-26 | NC5: 2019-12-27 | ND5: 2019-12-28 | NE5: 2019-12-29 | NF5: 2019-12-30 | NG5: 2019-12-31 | NH5: 2020-01-01 | NI5: 2020-01-02 | NJ5: 2020-01-03 | NK5: 2020-01-04 | NL5: 2020-01-05 | NM5: 2020-01-06
G6: =WEEKDAY(G5) -> 3 | H6: =WEEKDAY(H5) -> 4 | I6: 5 | J6: 6 | K6: 7 | L6: 1 | M6: 2 | N6: 3 | O6: 4 | P6: 5 | Q6: 6 | R6: 7 | S6: 1 | T6: 2 | U6: 3 | V6: 4 | W6: 5 | X6: 6 | Y6: 7 | Z6: 1 | AA6: 2 | AB6: 3 | AC6: 4 | AD6: 5 | AE6: 6 | AF6: 7 | AG6: 1 | AH6: 2 | AI6: 3 | AJ6: 4 | AK6: 5 | AL6: 6 | AM6: =WEEKDAY(AM5) -> 7 | AN6: 1 | AO6: 2 | AP6: 3 | AQ6: 4 | AR6: 5 | AS6: 6 | AT6: 7 | AU6: 1 | AV6: 2 | AW6: 3 | AX6: 4 | AY6: 5 | AZ6: 6 | BA6: 7 | BB6: 1 | BC6: 2 | BD6: 3 | BE6: 4 | BF6: 5 | BG6: 6 | BH6: 7 | BI6: 1 | BJ6: 2 | BK6: 3 | BL6: 4 | BM6: 5 | BN6: =WEEKDAY(BN5) -> 6 | BO6: 7 | BP6: 1 | BQ6: 2 | BR6: 3 | BS6: 4 | BT6: 5 | BU6: 6 | BV6: 7 | BW6: 1 | BX6: 2 | BY6: 3 | BZ6: 4 | CA6: 5 | CB6: 6 | CC6: 7 | CD6: 1 | CE6: 2 | CF6: 3 | CG6: 4 | CH6: 5 | CI6: 6 | CJ6: 7 | CK6: 1 | CL6: 2 | CM6: 3 | CN6: 4 | CO6: 5 | CP6: 6 | CQ6: 7 | CR6: 1 | CS6: 2 | CT6: 3 | CU6: 4 | CV6: 5 | CW6: 6 | CX6: 7 | CY6: 1 | CZ6: 2 | DA6: 3 | DB6: 4 | DC6: 5 | DD6: 6 | DE6: 7 | DF6: 1 | DG6: 2 | DH6: 3 | DI6: 4 | DJ6: 5 | DK6: 6 | DL6: 7 | DM6: 1 | DN6: 2 | DO6: 3 | DP6: 4 | DQ6: 5 | DR6: 6 | DS6: 7 | DT6: 1 | DU6: 2 | DV6: 3 | DW6: 4 | DX6: 5 | DY6: 6 | DZ6: =WEEKDAY(DZ5) -> 7 | EA6: 1 | EB6: 2 | EC6: 3 | ED6: 4 | EE6: 5 | EF6: 6 | EG6: 7 | EH6: 1 | EI6: 2 | EJ6: 3 | EK6: 4 | EL6: 5 | EM6: 6 | EN6: 7 | EO6: 1 | EP6: 2 | EQ6: 3 | ER6: 4 | ES6: 5 | ET6: 6 | EU6: 7 | EV6: 1 | EW6: 2 | EX6: 3 | EY6: 4 | EZ6: 5 | FA6: 6 | FB6: 7 | FC6: 1 | FD6: 2 | FE6: 3 | FF6: 4 | FG6: 5 | FH6: 6 | FI6: 7 | FJ6: 1 | FK6: 2 | FL6: 3 | FM6: 4 | FN6: 5 | FO6: 6 | FP6: 7 | FQ6: 1 | FR6: 2 | FS6: 3 | FT6: 4 | FU6: 5 | FV6: 6 | FW6: 7 | FX6: 1 | FY6: 2 | FZ6: 3 | GA6: 4 | GB6: 5 | GC6: 6 | GD6: 7 | GE6: 1 | GF6: 2 | GG6: 3 | GH6: 4 | GI6: 5 | GJ6: 6 | GK6: 7 | GL6: =WEEKDAY(GL5) -> 1 | GM6: 2 | GN6: 3 | GO6: 4 | GP6: 5 | GQ6: 6 | GR6: 7 | GS6: 1 | GT6: 2 | GU6: 3 | GV6: 4 | GW6: 5 | GX6: 6 | GY6: 7 | GZ6: 1 | HA6: 2 | HB6: 3 | HC6: 4 | HD6: 5 | HE6: 6 | HF6: 7 | HG6: 1 | HH6: 2 | HI6: 3 | HJ6: 4 | HK6: 5 | HL6: 6 | HM6: 7 | HN6: 1 | HO6: 2 | HP6: 3 | HQ6: 4 | HR6: 5 | HS6: 6 | HT6: 7 | HU6: 1 | HV6: 2 | HW6: 3 | HX6: 4 | HY6: 5 | HZ6: 6 | IA6: 7 | IB6: 1 | IC6: 2 | ID6: 3 | IE6: 4 | IF6: 5 | IG6: 6 | IH6: 7 | II6: 1 | IJ6: 2 | IK6: 3 | IL6: 4 | IM6: 5 | IN6: 6 | IO6: 7 | IP6: 1 | IQ6: 2 | IR6: 3 | IS6: 4 | IT6: 5 | IU6: 6 | IV6: 7 | IW6: 1 | IX6: =WEEKDAY(IX5) -> 2 | IY6: 3 | IZ6: 4 | JA6: 5 | JB6: 6 | JC6: 7 | JD6: 1 | JE6: 2 | JF6: 3 | JG6: 4 | JH6: 5 | JI6: 6 | JJ6: 7 | JK6: 1 | JL6: 2 | JM6: 3 | JN6: 4 | JO6: 5 | JP6: 6 | JQ6: 7 | JR6: 1 | JS6: 2 | JT6: 3 | JU6: 4 | JV6: 5 | JW6: 6 | JX6: 7 | JY6: 1 | JZ6: 2 | KA6: 3 | KB6: 4 | KC6: 5 | KD6: 6 | KE6: 7 | KF6: 1 | KG6: 2 | KH6: 3 | KI6: 4 | KJ6: 5 | KK6: 6 | KL6: 7 | KM6: 1 | KN6: 2 | KO6: 3 | KP6: 4 | KQ6: 5 | KR6: 6 | KS6: 7 | KT6: 1 | KU6: 2 | KV6: 3 | KW6: 4 | KX6: 5 | KY6: 6 | KZ6: 7 | LA6: 1 | LB6: 2 | LC6: 3 | LD6: 4 | LE6: 5 | LF6: 6 | LG6: 7 | LH6: 1 | LI6: 2 | LJ6: =WEEKDAY(LJ5) -> 3 | LK6: 4 | LL6: 5 | LM6: 6 | LN6: 7 | LO6: 1 | LP6: 2 | LQ6: 3 | LR6: 4 | LS6: 5 | LT6: 6 | LU6: 7 | LV6: 1 | LW6: 2 | LX6: 3 | LY6: 4 | LZ6: 5 | MA6: 6 | MB6: 7 | MC6: 1 | MD6: 2 | ME6: 3 | MF6: 4 | MG6: 5 | MH6: 6 | MI6: 7 | MJ6: 1 | MK6: 2 | ML6: 3 | MM6: 4 | MN6: 5 | MO6: 6 | MP6: 7 | MQ6: 1 | MR6: 2 | MS6: 3 | MT6: 4 | MU6: 5 | MV6: 6 | MW6: 7 | MX6: 1 | MY6: 2 | MZ6: 3 | NA6: 4 | NB6: 5 | NC6: 6 | ND6: 7 | NE6: 1 | NF6: 2 | NG6: 3 | NH6: 4 | NI6: 5 | NJ6: 6 | NK6: 7 | NL6: 1 | NM6: 2
G7: Janvier | AL7: Fevrier | BN7: Mars | CT7: Avril | DX7: Mai | FC7: Juin | GG7: Juillet | HL7: Aout | IQ7: Septembre | JU7: Octobre | KZ7: Novembre | MD7: Decembre | NI7: Janvier
G8: ="Sem "& WEEKNUM(G5) -> Sem 1 | N8: ="Sem "& WEEKNUM(N5) -> Sem 2 | U8: ="Sem "& WEEKNUM(U5) -> Sem 3 | AB8: ="Sem "& WEEKNUM(AB5) -> Sem 4 | AI8: ="Sem "& WEEKNUM(AI5) -> Sem 5 | AP8: ="Sem "& WEEKNUM(AP5) -> Sem 6 | AW8: ="Sem "& WEEKNUM(AW5) -> Sem 7 | BD8: ="Sem "& WEEKNUM(BD5) -> Sem 8 | BK8: ="Sem "& WEEKNUM(BK5) -> Sem 9 | BR8: ="Sem "& WEEKNUM(BR5) -> Sem 10 | BY8: ="Sem "& WEEKNUM(BY5) -> Sem 11 | CF8: ="Sem "& WEEKNUM(CF5) -> Sem 12 | CM8: ="Sem "& WEEKNUM(CM5) -> Sem 13 | CT8: ="Sem "& WEEKNUM(CT5) -> Sem 14 | DA8: ="Sem "& WEEKNUM(DA5) -> Sem 15 | DH8: ="Sem "& WEEKNUM(DH5) -> Sem 16 | DO8: ="Sem "& WEEKNUM(DO5) -> Sem 17 | DV8: ="Sem "& WEEKNUM(DV5) -> Sem 18 | EC8: ="Sem "& WEEKNUM(EC5) -> Sem 19 | EJ8: ="Sem "& WEEKNUM(EJ5) -> Sem 20 | EQ8: ="Sem "& WEEKNUM(EQ5) -> Sem 21 | EX8: ="Sem "& WEEKNUM(EX5) -> Sem 22 | FE8: ="Sem "& WEEKNUM(FE5) -> Sem 23 | FL8: ="Sem "& WEEKNUM(FL5) -> Sem 24 | FS8: ="Sem "& WEEKNUM(FS5) -> Sem 25 | FZ8: ="Sem "& WEEKNUM(FZ5) -> Sem 26 | GG8: ="Sem "& WEEKNUM(GG5) -> Sem 27 | GN8: ="Sem "& WEEKNUM(GN5) -> Sem 28 | GU8: ="Sem "& WEEKNUM(GU5) -> Sem 29 | HB8: ="Sem "& WEEKNUM(HB5) -> Sem 30 | HI8: ="Sem "& WEEKNUM(HI5) -> Sem 31 | HP8: ="Sem "& WEEKNUM(HP5) -> Sem 32 | HW8: ="Sem "& WEEKNUM(HW5) -> Sem 33 | ID8: ="Sem "& WEEKNUM(ID5) -> Sem 34 | IK8: ="Sem "& WEEKNUM(IK5) -> Sem 35 | IR8: ="Sem "& WEEKNUM(IR5) -> Sem 36 | IY8: ="Sem "& WEEKNUM(IY5) -> Sem 37 | JF8: ="Sem "& WEEKNUM(JF5) -> Sem 38 | JM8: ="Sem "& WEEKNUM(JM5) -> Sem 39 | JT8: ="Sem "& WEEKNUM(JT5) -> Sem 40 | KA8: ="Sem "& WEEKNUM(KA5) -> Sem 41 | KH8: ="Sem "& WEEKNUM(KH5) -> Sem 42 | KO8: ="Sem "& WEEKNUM(KO5) -> Sem 43 | KV8: ="Sem "& WEEKNUM(KV5) -> Sem 44 | LC8: ="Sem "& WEEKNUM(LC5) -> Sem 45 | LJ8: ="Sem "& WEEKNUM(LJ5) -> Sem 46 | LQ8: ="Sem "& WEEKNUM(LQ5) -> Sem 47 | LX8: ="Sem "& WEEKNUM(LX5) -> Sem 48 | ME8: ="Sem "& WEEKNUM(ME5) -> Sem 49 | ML8: ="Sem "& WEEKNUM(ML5) -> Sem 50 | MS8: ="Sem "& WEEKNUM(MS5) -> Sem 51 | MZ8: ="Sem "& WEEKNUM(MZ5) -> Sem 52 | NG8: ="Sem "& WEEKNUM(NG5) -> Sem 53
G9: =DAY(G5) -> 1 | H9: =DAY(H5) -> 2 | I9: 3 | J9: 4 | K9: 5 | L9: 6 | M9: 7 | N9: 8 | O9: 9 | P9: 10 | Q9: 11 | R9: 12 | S9: 13 | T9: 14 | U9: 15 | V9: 16 | W9: 17 | X9: 18 | Y9: 19 | Z9: 20 | AA9: 21 | AB9: 22 | AC9: 23 | AD9: 24 | AE9: 25 | AF9: 26 | AG9: 27 | AH9: 28 | AI9: 29 | AJ9: 30 | AK9: 31 | AL9: 1 | AM9: 2 | AN9: 3 | AO9: 4 | AP9: 5 | AQ9: 6 | AR9: 7 | AS9: 8 | AT9: 9 | AU9: 10 | AV9: 11 | AW9: 12 | AX9: 13 | AY9: 14 | AZ9: 15 | BA9: 16 | BB9: 17 | BC9: 18 | BD9: 19 | BE9: 20 | BF9: 21 | BG9: 22 | BH9: 23 | BI9: 24 | BJ9: 25 | BK9: 26 | BL9: 27 | BM9: 28 | BN9: 1 | BO9: 2 | BP9: 3 | BQ9: 4 | BR9: 5 | BS9: =DAY(BS5) -> 6 | BT9: 7 | BU9: 8 | BV9: 9 | BW9: 10 | BX9: 11 | BY9: 12 | BZ9: 13 | CA9: 14 | CB9: 15 | CC9: 16 | CD9: 17 | CE9: 18 | CF9: 19 | CG9: 20 | CH9: 21 | CI9: 22 | CJ9: 23 | CK9: 24 | CL9: 25 | CM9: 26 | CN9: 27 | CO9: 28 | CP9: 29 | CQ9: 30 | CR9: 31 | CS9: 1 | CT9: 2 | CU9: 3 | CV9: 4 | CW9: 5 | CX9: 6 | CY9: 7 | CZ9: 8 | DA9: 9 | DB9: 10 | DC9: 11 | DD9: 12 | DE9: 13 | DF9: 14 | DG9: 15 | DH9: 16 | DI9: 17 | DJ9: 18 | DK9: 19 | DL9: 20 | DM9: 21 | DN9: 22 | DO9: 23 | DP9: 24 | DQ9: 25 | DR9: 26 | DS9: 27 | DT9: 28 | DU9: 29 | DV9: 30 | DW9: 1 | DX9: 2 | DY9: 3 | DZ9: 4 | EA9: 5 | EB9: 6 | EC9: 7 | ED9: 8 | EE9: =DAY(EE5) -> 9 | EF9: 10 | EG9: 11 | EH9: 12 | EI9: 13 | EJ9: 14 | EK9: 15 | EL9: 16 | EM9: 17 | EN9: 18 | EO9: 19 | EP9: 20 | EQ9: 21 | ER9: 22 | ES9: 23 | ET9: 24 | EU9: 25 | EV9: 26 | EW9: 27 | EX9: 28 | EY9: 29 | EZ9: 30 | FA9: 31 | FB9: 1 | FC9: 2 | FD9: 3 | FE9: 4 | FF9: 5 | FG9: 6 | FH9: 7 | FI9: 8 | FJ9: 9 | FK9: 10 | FL9: 11 | FM9: 12 | FN9: 13 | FO9: 14 | FP9: 15 | FQ9: 16 | FR9: 17 | FS9: 18 | FT9: 19 | FU9: 20 | FV9: 21 | FW9: 22 | FX9: 23 | FY9: 24 | FZ9: 25 | GA9: 26 | GB9: 27 | GC9: 28 | GD9: 29 | GE9: 30 | GF9: 1 | GG9: 2 | GH9: 3 | GI9: 4 | GJ9: 5 | GK9: 6 | GL9: 7 | GM9: 8 | GN9: 9 | GO9: 10 | GP9: 11 | GQ9: =DAY(GQ5) -> 12 | GR9: 13 | GS9: 14 | GT9: 15 | GU9: 16 | GV9: 17 | GW9: 18 | GX9: 19 | GY9: 20 | GZ9: 21 | HA9: 22 | HB9: 23 | HC9: 24 | HD9: 25 | HE9: 26 | HF9: 27 | HG9: 28 | HH9: 29 | HI9: 30 | HJ9: 31 | HK9: 1 | HL9: 2 | HM9: 3 | HN9: 4 | HO9: 5 | HP9: 6 | HQ9: 7 | HR9: 8 | HS9: 9 | HT9: 10 | HU9: 11 | HV9: 12 | HW9: 13 | HX9: 14 | HY9: 15 | HZ9: 16 | IA9: 17 | IB9: 18 | IC9: 19 | ID9: 20 | IE9: 21 | IF9: 22 | IG9: 23 | IH9: 24 | II9: 25 | IJ9: 26 | IK9: 27 | IL9: 28 | IM9: 29 | IN9: 30 | IO9: 31 | IP9: 1 | IQ9: 2 | IR9: 3 | IS9: 4 | IT9: 5 | IU9: 6 | IV9: 7 | IW9: 8 | IX9: 9 | IY9: 10 | IZ9: 11 | JA9: 12 | JB9: 13 | JC9: =DAY(JC5) -> 14 | JD9: 15 | JE9: 16 | JF9: 17 | JG9: 18 | JH9: 19 | JI9: 20 | JJ9: 21 | JK9: 22 | JL9: 23 | JM9: 24 | JN9: 25 | JO9: 26 | JP9: 27 | JQ9: 28 | JR9: 29 | JS9: 30 | JT9: 1 | JU9: 2 | JV9: 3 | JW9: 4 | JX9: 5 | JY9: 6 | JZ9: 7 | KA9: 8 | KB9: 9 | KC9: 10 | KD9: 11 | KE9: 12 | KF9: 13 | KG9: 14 | KH9: 15 | KI9: 16 | KJ9: 17 | KK9: 18 | KL9: 19 | KM9: 20 | KN9: 21 | KO9: 22 | KP9: 23 | KQ9: 24 | KR9: 25 | KS9: 26 | KT9: 27 | KU9: 28 | KV9: 29 | KW9: 30 | KX9: 31 | KY9: 1 | KZ9: 2 | LA9: 3 | LB9: 4 | LC9: 5 | LD9: 6 | LE9: 7 | LF9: 8 | LG9: 9 | LH9: 10 | LI9: 11 | LJ9: 12 | LK9: 13 | LL9: 14 | LM9: 15 | LN9: 16 | LO9: =DAY(LO5) -> 17 | LP9: 18 | LQ9: 19 | LR9: 20 | LS9: 21 | LT9: 22 | LU9: 23 | LV9: 24 | LW9: 25 | LX9: 26 | LY9: 27 | LZ9: 28 | MA9: 29 | MB9: 30 | MC9: 1 | MD9: 2 | ME9: 3 | MF9: 4 | MG9: 5 | MH9: 6 | MI9: 7 | MJ9: 8 | MK9: 9 | ML9: 10 | MM9: 11 | MN9: 12 | MO9: 13 | MP9: 14 | MQ9: 15 | MR9: 16 | MS9: 17 | MT9: 18 | MU9: 19 | MV9: 20 | MW9: 21 | MX9: 22 | MY9: 23 | MZ9: 24 | NA9: 25 | NB9: 26 | NC9: 27 | ND9: 28 | NE9: 29 | NF9: 30 | NG9: 31 | NH9: 1 | NI9: 2 | NJ9: 3 | NK9: 4 | NL9: 5 | NM9: 6
E10: Personnels | F10: Code | G10: =VLOOKUP(G6,$NT$20:$NV$26,3,0) -> M | H10: =VLOOKUP(H6,$NT$20:$NV$26,3,0) -> Me | I10: J | J10: V | K10: S | L10: D | M10: L | N10: M | O10: Me | P10: J | Q10: V | R10: S | S10: D | T10: L | U10: M | V10: Me | W10: J | X10: V | Y10: S | Z10: D | AA10: L | AB10: M | AC10: Me | AD10: J | AE10: V | AF10: S | AG10: D | AH10: L | AI10: M | AJ10: Me | AK10: J | AL10: V | AM10: S | AN10: D | AO10: L | AP10: M | AQ10: Me | AR10: J | AS10: V | AT10: S | AU10: D | AV10: L | AW10: M | AX10: Me | AY10: J | AZ10: V | BA10: S | BB10: D | BC10: L | BD10: M | BE10: Me | BF10: J | BG10: V | BH10: S | BI10: D | BJ10: L | BK10: M | BL10: Me | BM10: J | BN10: V | BO10: S | BP10: D | BQ10: L | BR10: M | BS10: Me | BT10: =VLOOKUP(BT6,$NT$20:$NV$26,3,0) -> J | BU10: V | BV10: S | BW10: D | BX10: L | BY10: M | BZ10: Me | CA10: J | CB10: V | CC10: S | CD10: D | CE10: L | CF10: M | CG10: Me | CH10: J | CI10: V | CJ10: S | CK10: D | CL10: L | CM10: M | CN10: Me | CO10: J | CP10: V | CQ10: S | CR10: D | CS10: L | CT10: M | CU10: Me | CV10: J | CW10: V | CX10: S | CY10: D | CZ10: L | DA10: M | DB10: Me | DC10: J | DD10: V | DE10: S | DF10: D | DG10: L | DH10: M | DI10: Me | DJ10: J | DK10: V | DL10: S | DM10: D | DN10: L | DO10: M | DP10: Me | DQ10: J | DR10: V | DS10: S | DT10: D | DU10: L | DV10: M | DW10: Me | DX10: J | DY10: V | DZ10: S | EA10: D | EB10: L | EC10: M | ED10: Me | EE10: J | EF10: =VLOOKUP(EF6,$NT$20:$NV$26,3,0) -> V | EG10: S | EH10: D | EI10: L | EJ10: M | EK10: Me | EL10: J | EM10: V | EN10: S | EO10: D | EP10: L | EQ10: M | ER10: Me | ES10: J | ET10: V | EU10: S | EV10: D | EW10: L | EX10: M | EY10: Me | EZ10: J | FA10: V | FB10: S | FC10: D | FD10: L | FE10: M | FF10: Me | FG10: J | FH10: V | FI10: S | FJ10: D | FK10: L | FL10: M | FM10: Me | FN10: J | FO10: V | FP10: S | FQ10: D | FR10: L | FS10: M | FT10: Me | FU10: J | FV10: V | FW10: S | FX10: D | FY10: L | FZ10: M | GA10: Me | GB10: J | GC10: V | GD10: S | GE10: D | GF10: L | GG10: M | GH10: Me | GI10: J | GJ10: V | GK10: S | GL10: D | GM10: L | GN10: M | GO10: Me | GP10: J | GQ10: V | GR10: =VLOOKUP(GR6,$NT$20:$NV$26,3,0) -> S | GS10: D | GT10: L | GU10: M | GV10: Me | GW10: J | GX10: V | GY10: S | GZ10: D | HA10: L | HB10: M | HC10: Me | HD10: J | HE10: V | HF10: S | HG10: D | HH10: L | HI10: M | HJ10: Me | HK10: J | HL10: V | HM10: S | HN10: D | HO10: L | HP10: M | HQ10: Me | HR10: J | HS10: V | HT10: S | HU10: D | HV10: L | HW10: M | HX10: Me | HY10: J | HZ10: V | IA10: S | IB10: D | IC10: L | ID10: M | IE10: Me | IF10: J | IG10: V | IH10: S | II10: D | IJ10: L | IK10: M | IL10: Me | IM10: J | IN10: V | IO10: S | IP10: D | IQ10: L | IR10: M | IS10: Me | IT10: J | IU10: V | IV10: S | IW10: D | IX10: L | IY10: M | IZ10: Me | JA10: J | JB10: V | JC10: S | JD10: =VLOOKUP(JD6,$NT$20:$NV$26,3,0) -> D | JE10: L | JF10: M | JG10: Me | JH10: J | JI10: V | JJ10: S | JK10: D | JL10: L | JM10: M | JN10: Me | JO10: J | JP10: V | JQ10: S | JR10: D | JS10: L | JT10: M | JU10: Me | JV10: J | JW10: V | JX10: S | JY10: D | JZ10: L | KA10: M | KB10: Me | KC10: J | KD10: V | KE10: S | KF10: D | KG10: L | KH10: M | KI10: Me | KJ10: J | KK10: V | KL10: S | KM10: D | KN10: L | KO10: M | KP10: Me | KQ10: J | KR10: V | KS10: S | KT10: D | KU10: L | KV10: M | KW10: Me | KX10: J | KY10: V | KZ10: S | LA10: D | LB10: L | LC10: M | LD10: Me | LE10: J | LF10: V | LG10: S | LH10: D | LI10: L | LJ10: M | LK10: Me | LL10: J | LM10: V | LN10: S | LO10: D | LP10: =VLOOKUP(LP6,$NT$20:$NV$26,3,0) -> L | LQ10: M | LR10: Me | LS10: J | LT10: V | LU10: S | LV10: D | LW10: L | LX10: M | LY10: Me | LZ10: J | MA10: V | MB10: S | MC10: D | MD10: L | ME10: M | MF10: Me | MG10: J | MH10: V | MI10: S | MJ10: D | MK10: L | ML10: M | MM10: Me | MN10: J | MO10: V | MP10: S | MQ10: D | MR10: L | MS10: M | MT10: Me | MU10: J | MV10: V | MW10: S | MX10: D | MY10: L | MZ10: M | NA10: Me | NB10: J | NC10: V | ND10: S | NE10: D | NF10: L | NG10: M | NH10: Me | NI10: J | NJ10: V | NK10: S | NL10: D | NM10: L
D11: Respos | E11: Respo Maintenance
E12: Resp Equipe 1 | F12: =IF(E12="","",VLOOKUP(E12,$E$17:$F$62,$F$4,0)) -> 3646 | G12: =IF($E$12="","",IF(VLOOKUP($E$12,$E$17:$NM$62,G$4,0)=0,"",VLOOKUP($E$12,$E$17:$NM$62,G$4,0))) ->  | H12: =IF($E$12="","",IF(VLOOKUP($E$12,$E$17:$NM$62,H$4,0)=0,"",VLOOKUP($E$12,$E$17:$NM$62,H$4,0))) -> 
E13: Resp Equipe 2 | F13: =IF(E13="","",VLOOKUP(E13,$E$17:$F$62,$F$4,0)) -> 5390 | G13: =IF($E$13="","",IF(VLOOKUP($E$13,$E$17:$NM$62,G$4,0)=0,"",VLOOKUP($E$13,$E$17:$NM$62,G$4,0))) ->  | H13: =IF($E$13="","",IF(VLOOKUP($E$13,$E$17:$NM$62,H$4,0)=0,"",VLOOKUP($E$13,$E$17:$NM$62,H$4,0))) -> 
E14: Resp Equipe 3 | F14: 9329 | G14: =IF($E$14="","",IF(VLOOKUP($E$14,$E$17:$NM$62,G$4,0)=0,"",VLOOKUP($E$14,$E$17:$NM$62,G$4,0))) ->  | H14: =IF($E$14="","",IF(VLOOKUP($E$14,$E$17:$NM$62,H$4,0)=0,"",VLOOKUP($E$14,$E$17:$NM$62,H$4,0))) -> 
E15: Resp Equipe 4 | F15: 5234 | G15: =IF($E$15="","",IF(VLOOKUP($E$15,$E$17:$NM$62,G$4,0)=0,"",VLOOKUP($E$15,$E$17:$NM$62,G$4,0))) ->  | H15: =IF($E$15="","",IF(VLOOKUP($E$15,$E$17:$NM$62,H$4,0)=0,"",VLOOKUP($E$15,$E$17:$NM$62,H$4,0))) -> 
G16: =IF($E$16="","",IF(VLOOKUP($E$16,$E$17:$NM$62,G$4,0)=0,"",VLOOKUP($E$16,$E$17:$NM$62,G$4,0))) ->  | H16: =IF($E$16="","",IF(VLOOKUP($E$16,$E$17:$NM$62,H$4,0)=0,"",VLOOKUP($E$16,$E$17:$NM$62,H$4,0))) -> 
D17: Conditionnement | E17: Resp Equipe 1 | F17: 3646
E18: Equipe 1_Tech 1 | F18: 2837
E19: Equipe 1_Tech 2 | F19: 2960 | NT19: N° | NU19: Jours | NV19: Code_jours | NW19: Colonne1
E20: Equipe 1_Tech 3 | F20: 2183 | NT20: 1 | NU20: Dimanche | NV20: D | NW20: Dimanche
E21: Equipe 1_Tech 4 | F21: 8341 | NT21: 2 | NU21: Lundi | NV21: L | NW21: Lundi
E22: Equipe 1_Tech 5 | F22: 1258 | NT22: 3 | NU22: Mardi | NV22: M | NW22: Mardi
E23: Equipe 1_Tech 6 | F23: 9734 | NT23: 4 | NU23: Mercredi | NV23: Me | NW23: Mercredi
E24: Equipe 1_Tech 7 | F24: 3986 | NT24: 5 | NU24: Jeudi | NV24: J | NW24: Jeudi
E25: Equipe 1_Tech 8 | F25: 6476 | NT25: 6 | NU25: Vendredi | NV25: V | NW25: Vendredi
E26: Equipe 1_Tech 9 | F26: 2844 | NT26: 7 | NU26: Samedi | NV26: S | NW26: Samedi
E27: Equipe 1_Tech 10 | F27: 3985
E28: Equipe 1_Tech 11 | F28: 3984
E29: Equipe 1_Tech 12 | F29: 9878
D32: Abattoir | E32: Resp Equipe 2 | F32: 5390
E33: Equipe 2_Tech 1 | F33: 2908
E34: Equipe 2_Tech 2 | F34: 3553
E35: Equipe 2_Tech 3 | F35: 3737
E36: Equipe 2_Tech 4 | F36: 3546
E37: Equipe 2_Tech 5 | F37: 6742
E38: Equipe 2_Tech 6 | F38: 1136
E39: Equipe 2_Tech 7 | F39: 1410
E40: Equipe 2_Tech 8 | F40: 7202
E41: Equipe 2_Tech 9 | F41: 5885
E42: Equipe 2_Tech 10 | F42: 9353
E43: Equipe 2_Tech 11 | F43: 6746
E44: Equipe 2_Tech 12 | F44: 9600
D47: Energie | E47: Resp Equipe 3 | F47: 9329
E48: Equipe 3_Tech 1 | F48: 7754
E49: Equipe 3_Tech 2 | F49: 3658
E50: Equipe 3_Tech 3 | F50: 8314
D55: Magasin | E55: Resp Equipe 4 | F55: 5234
E56: Equipe 4_Tech 1 | F56: 8638
E57: Equipe 4_Tech 2 | F57: 3575
E58: Equipe 4_Tech 3 | F58: 6793
E59: Equipe 4_Tech 4 | F59: 6647

Sheet Conditionnement
B2: =CONCATENATE("Du ",N11,"/",O11,"/",P11," au ",N12,"/",O12,"/",P12) -> Du 30/9/2019 au 6/10/2019 | I2: Semaine : | J2: 39 | K2: =Planning_général!C2 -> 2019
B3: Équipes | D3: Horaires | G3: Nom et Prénom | J3: Matricul | T3: =Planning_général!E17 -> Resp Equipe 1 | U3: =Planning_général!E18 -> Equipe 1_Tech 1 | V3: =Planning_général!E19 -> Equipe 1_Tech 2 | W3: =Planning_général!E20 -> Equipe 1_Tech 3 | X3: =Planning_général!E21 -> Equipe 1_Tech 4 | Y3: =Planning_général!E22 -> Equipe 1_Tech 5 | Z3: =Planning_général!E23 -> Equipe 1_Tech 6 | AA3: =Planning_général!E24 -> Equipe 1_Tech 7 | AB3: =Planning_général!E25 -> Equipe 1_Tech 8 | AC3: =Planning_général!E26 -> Equipe 1_Tech 9 | AD3: =Planning_général!E27 -> Equipe 1_Tech 10 | AE3: =Planning_général!E28 -> Equipe 1_Tech 11 | AF3: =Planning_général!E29 -> Equipe 1_Tech 12 | AG3: =Planning_général!E30 -> 0 | AH3: =Planning_général!E31 -> 0
B5: JOURNEE | D5: 8h - 12h / 13h - 16h | G5: =IF(O33="","",O33) ->  | J5: =IF(G5="","",IF(VLOOKUP(G5,Planning_général!$E$17:$F$62,2,0)=0,"",VLOOKUP(G5,Planning_général!$E$17:$F$62,2,0))) ->  | M5: Initial | N5: =DATE(K2,1,1) -> 2019-01-01 | O5: =N5 -> 43466
G6: =IF(O34="","",O34) ->  | J6: =IF(G6="","",IF(VLOOKUP(G6,Planning_général!$E$17:$F$62,2,0)=0,"",VLOOKUP(G6,Planning_général!$E$17:$F$62,2,0))) ->  | M6: Du | N6: =(O5)+($J$2)*7-WEEKDAY(N5,2)+1 -> 2019-09-30 | BA6: Semaines
J7: =IF(G7="","",IF(VLOOKUP(G7,Planning_général!$E$17:$F$62,2,0)=0,"",VLOOKUP(G7,Planning_général!$E$17:$F$62,2,0))) ->  | M7: Au | N7: =N6+6 -> 2019-10-06 | BA7: 1
B8: DEMARRAGE | D8: 4 h 30 - 11 h 30 | F8: Pause | G8: =IF(O79="","",O79) ->  | J8: =IF(G8="","",IF(VLOOKUP(G8,Planning_général!$E$17:$F$62,2,0)=0,"",VLOOKUP(G8,Planning_général!$E$17:$F$62,2,0))) ->  | AQ8: Code | BA8: 2
F9: =VLOOKUP(D11,$AN$10:$AO$17,2,0) -> 9 h 20 - 9 h 40 | G9: =IF(O80="","",O80) ->  | J9: =IF(G9="","",IF(VLOOKUP(G9,Planning_général!$E$17:$F$62,2,0)=0,"",VLOOKUP(G9,Planning_général!$E$17:$F$62,2,0))) ->  | S9: Code | T9: =IF(VLOOKUP(T3,Planning_général!$E$17:$F$62,2,0)=0,"Cde abs",VLOOKUP(T3,Planning_général!$E$17:$F$62,2,0)) -> 3646 | U9: =IF(VLOOKUP(U3,Planning_général!$E$17:$F$62,2,0)=0,"Cde abs",VLOOKUP(U3,Planning_général!$E$17:$F$62,2,0)) -> 2837 | V9: =IF(VLOOKUP(V3,Planning_général!$E$17:$F$62,2,0)=0,"Cde abs",VLOOKUP(V3,Planning_général!$E$17:$F$62,2,0)) -> 2960 | W9: =IF(VLOOKUP(W3,Planning_général!$E$17:$F$62,2,0)=0,"Cde abs",VLOOKUP(W3,Planning_général!$E$17:$F$62,2,0)) -> 2183 | X9: =IF(VLOOKUP(X3,Planning_général!$E$17:$F$62,2,0)=0,"Cde abs",VLOOKUP(X3,Planning_général!$E$17:$F$62,2,0)) -> 8341 | Y9: =IF(VLOOKUP(Y3,Planning_général!$E$17:$F$62,2,0)=0,"Cde abs",VLOOKUP(Y3,Planning_général!$E$17:$F$62,2,0)) -> 1258 | Z9: =IF(VLOOKUP(Z3,Planning_général!$E$17:$F$62,2,0)=0,"Cde abs",VLOOKUP(Z3,Planning_général!$E$17:$F$62,2,0)) -> 9734 | AA9: =IF(VLOOKUP(AA3,Planning_général!$E$17:$F$62,2,0)=0,"Cde abs",VLOOKUP(AA3,Planning_général!$E$17:$F$62,2,0)) -> 3986 | AB9: =IF(VLOOKUP(AB3,Planning_général!$E$17:$F$62,2,0)=0,"Cde abs",VLOOKUP(AB3,Planning_général!$E$17:$F$62,2,0)) -> 6476 | AC9: =IF(VLOOKUP(AC3,Planning_général!$E$17:$F$62,2,0)=0,"Cde abs",VLOOKUP(AC3,Planning_général!$E$17:$F$62,2,0)) -> 2844 | AD9: =IF(VLOOKUP(AD3,Planning_général!$E$17:$F$62,2,0)=0,"Cde abs",VLOOKUP(AD3,Planning_général!$E$17:$F$62,2,0)) -> 3985 | AE9: =IF(VLOOKUP(AE3,Planning_général!$E$17:$F$62,2,0)=0,"Cde abs",VLOOKUP(AE3,Planning_général!$E$17:$F$62,2,0)) -> 3984 | AF9: =IF(VLOOKUP(AF3,Planning_général!$E$17:$F$62,2,0)=0,"Cde abs",VLOOKUP(AF3,Planning_général!$E$17:$F$62,2,0)) -> 9878 | AG9: =IF(VLOOKUP(AG3,Planning_général!$E$17:$F$62,2,0)=0,"Cde abs",VLOOKUP(AG3,Planning_général!$E$17:$F$62,2,0)) ->  | AH9: =IF(AH3=0,"",IF(VLOOKUP(AH3,Planning_général!$E$17:$F$62,2,0)=0,"Cde abs",VLOOKUP(AH3,Planning_général!$E$17:$F$62,2,0))) ->  | AL9: Code | AM9: Descriptif | AN9: Horaires | AO9: Pause | AQ9: CP | BA9: 3
J10: =IF(G10="","",IF(VLOOKUP(G10,Planning_général!$E$17:$F$62,2,0)=0,"",VLOOKUP(G10,Planning_général!$E$17:$F$62,2,0))) ->  | R10: =Planning_général!G10 -> M | S10: =VLOOKUP(R10,Planning_général!$NV$20:$NW$26,2,0) -> Mardi | T10: =VLOOKUP(T3,Planning_général!$E$17:$NM$17,((($J$2*7)+2)-6),0) -> 0 | U10: =IF(ISNA(VLOOKUP(U3,Planning_général!$E$18:$NM$18,((($J$2*7)+2)-6),0)),0,VLOOKUP(U3,Planning_général!$E$18:$NM$18,((($J$2*7)+2)-6),0)) -> 0 | V10: =VLOOKUP(V3,Planning_général!$E$19:$NM$19,((($J$2*7)+2)-6),0) -> 0 | W10: =VLOOKUP(W3,Planning_général!$E$20:$NM$20,((($J$2*7)+2)-6),0) -> 0 | X10: =VLOOKUP(X3,Planning_général!$E$21:$NM$21,((($J$2*7)+2)-6),0) -> 0 | Y10: =VLOOKUP(Y3,Planning_général!$E$22:$NM$22,((($J$2*7)+2)-6),0) -> 0 | Z10: =VLOOKUP($Z$3,Planning_général!$E$23:$NM$23,((($J$2*7)+2)-6),0) -> 0 | AA10: =VLOOKUP($AA$3,Planning_général!$E$24:$NM$24,((($J$2*7)+2)-6),0) -> 0 | AB10: =VLOOKUP($AB$3,Planning_général!$E$25:$NM$25,((($J$2*7)+2)-6),0) -> 0 | AC10: =VLOOKUP($AC$3,Planning_général!$E$26:$NM$26,((($J$2*7)+2)-6),0) -> 0 | AD10: =VLOOKUP($AD$3,Planning_général!$E$27:$NM$27,((($J$2*7)+2)-6),0) -> 0 | AE10: =VLOOKUP($AE$3,Planning_général!$E$28:$NM$28,((($J$2*7)+2)-6),0) -> 0 | AF10: =VLOOKUP($AF$3,Planning_général!$E$29:$NM$29,((($J$2*7)+2)-6),0) -> 0 | AG10: =VLOOKUP($AG$3,Planning_général!$E$30:$NM$30,((($J$2*7)+2)-6),0) ->  | AH10: =IF(ISNA(VLOOKUP($AH$3,Planning_général!$E$31:$NM$31,((($J$2*7)+2)-6),0)),0,VLOOKUP($AH$3,Planning_général!$E$31:$NM$31,((($J$2*7)+2)-6),0)) -> 0 | AL10: AM1 | AM10: SAMEDI 1 | AN10: 4 h 30 - 11 h 30 | AO10: 9 h - 9 h 20 | AQ10: Recup | BA10: 4
B11: MATIN | D11: 5 h 30 - 12 h 30 | F11: Pause | G11: =IF(O60="","",O60) ->  | J11: =IF(G11="","",IF(VLOOKUP(G11,Planning_général!$E$17:$F$62,2,0)=0,"",VLOOKUP(G11,Planning_général!$E$17:$F$62,2,0))) ->  | M11: =N6 -> 2019-09-30 | N11: =DAY(M11) -> 30 | O11: =MONTH(M11) -> 9 | P11: =YEAR(M11) -> 2019 | R11: =Planning_général!H10 -> Me | S11: =VLOOKUP(R11,Planning_général!$NV$20:$NW$26,2,0) -> Mercredi | T11: =VLOOKUP($T$3,Planning_général!$E$17:$NM$17,((($J$2*7)+2)-5),0) -> 0 | U11: =VLOOKUP($U$3,Planning_général!$E$18:$NM$18,((($J$2*7)+2)-5),0) -> 0 | V11: =VLOOKUP($V$3,Planning_général!$E$19:$NM$19,((($J$2*7)+2)-5),0) -> 0 | W11: =VLOOKUP($W$3,Planning_général!$E$20:$NM$20,((($J$2*7)+2)-5),0) -> 0 | X11: =VLOOKUP($X$3,Planning_général!$E$21:$NM$21,((($J$2*7)+2)-5),0) -> 0 | Y11: =VLOOKUP($Y$3,Planning_général!$E$22:$NM$22,((($J$2*7)+2)-5),0) -> 0 | Z11: =VLOOKUP($Z$3,Planning_général!$E$23:$NM$23,((($J$2*7)+2)-5),0) -> 0 | AA11: =VLOOKUP($AA$3,Planning_général!$E$24:$NM$24,((($J$2*7)+2)-5),0) -> 0 | AB11: =VLOOKUP($AB$3,Planning_général!$E$25:$NM$25,((($J$2*7)+2)-5),0) -> 0 | AC11: =VLOOKUP($AC$3,Planning_général!$E$26:$NM$26,((($J$2*7)+2)-5),0) -> 0 | AD11: =VLOOKUP($AD$3,Planning_général!$E$27:$NM$27,((($J$2*7)+2)-5),0) -> 0 | AE11: =VLOOKUP($AE$3,Planning_général!$E$28:$NM$28,((($J$2*7)+2)-5),0) -> 0 | AF11: =VLOOKUP($AF$3,Planning_général!$E$29:$NM$29,((($J$2*7)+2)-5),0) -> 0 | AG11: =VLOOKUP($AG$3,Planning_général!$E$30:$NM$30,((($J$2*7)+2)-5),0) ->  | AH11: =IF(ISNA(VLOOKUP($AH$3,Planning_général!$E$31:$NM$31,((($J$2*7)+2)-5),0)),0,VLOOKUP($AH$3,Planning_général!$E$31:$NM$31,((($J$2*7)+2)-5),0)) -> 0 | AL11: M | AM11: Matin | AN11: 5 h 30 - 12 h 30 | AO11: 9 h 20 - 9 h 40 | AQ11: Form | BA11: 5
F12: =VLOOKUP(D11,$AN$10:$AO$17,2,0) -> 9 h 20 - 9 h 40 | G12: =IF(O61="","",O61) ->  | J12: =IF(G12="","",IF(VLOOKUP(G12,Planning_général!$E$17:$F$62,2,0)=0,"",VLOOKUP(G12,Planning_général!$E$17:$F$62,2,0))) ->  | M12: =N7 -> 2019-10-06 | N12: =DAY(M12) -> 6 | O12: =MONTH(M12) -> 10 | P12: =YEAR(M12) -> 2019 | R12: =Planning_général!I10 -> J | S12: =VLOOKUP(R12,Planning_général!$NV$20:$NW$26,2,0) -> Jeudi | T12: =VLOOKUP($T$3,Planning_général!$E$17:$NM$17,((($J$2*7)+2)-4),0) -> 0 | U12: =VLOOKUP($U$3,Planning_général!$E$18:$NM$18,((($J$2*7)+2)-4),0) -> 0 | V12: =VLOOKUP($V$3,Planning_général!$E$19:$NM$19,((($J$2*7)+2)-4),0) -> 0 | W12: =VLOOKUP($W$3,Planning_général!$E$20:$NM$20,((($J$2*7)+2)-4),0) -> 0 | X12: =VLOOKUP($X$3,Planning_général!$E$21:$NM$21,((($J$2*7)+2)-4),0) -> 0 | Y12: =VLOOKUP($Y$3,Planning_général!$E$22:$NM$22,((($J$2*7)+2)-4),0) -> 0 | Z12: =VLOOKUP($Z$3,Planning_général!$E$23:$NM$23,((($J$2*7)+2)-4),0) -> 0 | AA12: =VLOOKUP($AA$3,Planning_général!$E$24:$NM$24,((($J$2*7)+2)-4),0) -> 0 | AB12: =VLOOKUP($AB$3,Planning_général!$E$25:$NM$25,((($J$2*7)+2)-4),0) -> 0 | AC12: =VLOOKUP($AC$3,Planning_général!$E$26:$NM$26,((($J$2*7)+2)-4),0) -> 0 | AD12: =VLOOKUP($AD$3,Planning_général!$E$27:$NM$27,((($J$2*7)+2)-4),0) -> 0 | AE12: =VLOOKUP($AE$3,Planning_général!$E$28:$NM$28,((($J$2*7)+2)-4),0) -> 0 | AF12: =VLOOKUP($AF$3,Planning_général!$E$29:$NM$29,((($J$2*7)+2)-4),0) -> 0 | AG12: =VLOOKUP($AG$3,Planning_général!$E$30:$NM$30,((($J$2*7)+2)-4),0) ->  | AH12: =IF(ISNA(VLOOKUP($AH$3,Planning_général!$E$31:$NM$31,((($J$2*7)+2)-4),0)),0,VLOOKUP($AH$3,Planning_général!$E$31:$NM$31,((($J$2*7)+2)-4),0)) -> 0 | AL12: AM2 | AM12: SAMEDI 2 | AN12: 6 h 00 - 13 h 00 | AO12: 9 h 20 - 9 h 40 | AQ12: Modul | BA12: 6
J13: =IF(G13="","",IF(VLOOKUP(G13,Planning_général!$E$17:$F$62,2,0)=0,"",VLOOKUP(G13,Planning_général!$E$17:$F$62,2,0))) ->  | R13: =Planning_général!J10 -> V | S13: =VLOOKUP(R13,Planning_général!$NV$20:$NW$26,2,0) -> Vendredi | T13: =VLOOKUP($T$3,Planning_général!$E$17:$NM$17,((($J$2*7)+2)-3),0) -> 0 | U13: =VLOOKUP($U$3,Planning_général!$E$18:$NM$18,((($J$2*7)+2)-3),0) -> 0 | V13: =VLOOKUP($V$3,Planning_général!$E$19:$NM$19,((($J$2*7)+2)-3),0) -> 0 | W13: =VLOOKUP($W$3,Planning_général!$E$20:$NM$20,((($J$2*7)+2)-3),0) -> 0 | X13: =VLOOKUP($X$3,Planning_général!$E$21:$NM$21,((($J$2*7)+2)-3),0) -> 0 | Y13: =VLOOKUP($Y$3,Planning_général!$E$22:$NM$22,((($J$2*7)+2)-3),0) -> 0 | Z13: =VLOOKUP($Z$3,Planning_général!$E$23:$NM$23,((($J$2*7)+2)-3),0) -> 0 | AA13: =VLOOKUP($AA$3,Planning_général!$E$24:$NM$24,((($J$2*7)+2)-3),0) -> 0 | AB13: =VLOOKUP($AB$3,Planning_général!$E$25:$NM$25,((($J$2*7)+2)-3),0) -> 0 | AC13: =VLOOKUP($AC$3,Planning_général!$E$26:$NM$26,((($J$2*7)+2)-3),0) -> 0 | AD13: =VLOOKUP($AD$3,Planning_général!$E$27:$NM$27,((($J$2*7)+2)-3),0) -> 0 | AE13: =VLOOKUP($AE$3,Planning_général!$E$28:$NM$28,((($J$2*7)+2)-3),0) -> 0 | AF13: =VLOOKUP($AF$3,Planning_général!$E$29:$NM$29,((($J$2*7)+2)-3),0) -> 0 | AG13: =VLOOKUP($AG$3,Planning_général!$E$30:$NM$30,((($J$2*7)+2)-3),0) ->  | AH13: =IF(ISNA(VLOOKUP($AH$3,Planning_général!$E$31:$NM$31,((($J$2*7)+2)-3),0)),0,VLOOKUP($AH$3,Planning_général!$E$31:$NM$31,((($J$2*7)+2)-3),0)) -> 0 | AL13: J | AM13: Journee | AN13: 7 h 30 - 12 h 30 / 13 h30 - 17 h 30 | AO13: 10 h 20 - 9 h 40 | AQ13: H.R | BA13: 7
B14: APRÈS-MIDI | D14: 12 h 00 - 19 h 00 | F14: Pause | G14: =IF(O65="","",O65) ->  | J14: =IF(G14="","",IF(VLOOKUP(G14,Planning_général!$E$17:$F$62,2,0)=0,"",VLOOKUP(G14,Planning_général!$E$17:$F$62,2,0))) ->  | R14: =Planning_général!K10 -> S | S14: =VLOOKUP(R14,Planning_général!$NV$20:$NW$26,2,0) -> Samedi | T14: =VLOOKUP($T$3,Planning_général!$E$17:$NM$17,((($J$2*7)+2)-2),0) -> 0 | U14: =VLOOKUP($U$3,Planning_général!$E$18:$NM$18,((($J$2*7)+2)-2),0) -> 0 | V14: =VLOOKUP($V$3,Planning_général!$E$19:$NM$19,((($J$2*7)+2)-2),0) -> 0 | W14: =VLOOKUP($W$3,Planning_général!$E$20:$NM$20,((($J$2*7)+2)-2),0) -> 0 | X14: =VLOOKUP($X$3,Planning_général!$E$21:$NM$21,((($J$2*7)+2)-2),0) -> 0 | Y14: =VLOOKUP($Y$3,Planning_général!$E$22:$NM$22,((($J$2*7)+2)-2),0) -> 0 | Z14: =VLOOKUP($Z$3,Planning_général!$E$23:$NM$23,((($J$2*7)+2)-2),0) -> 0 | AA14: =VLOOKUP($AA$3,Planning_général!$E$24:$NM$24,((($J$2*7)+2)-2),0) -> 0 | AB14: =VLOOKUP($AB$3,Planning_général!$E$25:$NM$25,((($J$2*7)+2)-2),0) -> 0 | AC14: =VLOOKUP($AC$3,Planning_général!$E$26:$NM$26,((($J$2*7)+2)-2),0) -> 0 | AD14: =VLOOKUP($AD$3,Planning_général!$E$27:$NM$27,((($J$2*7)+2)-2),0) -> 0 | AE14: =VLOOKUP($AE$3,Planning_général!$E$28:$NM$28,((($J$2*7)+2)-2),0) -> 0 | AF14: =VLOOKUP($AF$3,Planning_général!$E$29:$NM$29,((($J$2*7)+2)-2),0) -> 0 | AG14: =VLOOKUP($AG$3,Planning_général!$E$30:$NM$30,((($J$2*7)+2)-2),0) ->  | AH14: =IF(ISNA(VLOOKUP($AH$3,Planning_général!$E$31:$NM$31,((($J$2*7)+2)-2),0)),0,VLOOKUP($AH$3,Planning_général!$E$31:$NM$31,((($J$2*7)+2)-2),0)) -> 0 | AL14: AM3 | AM14: Samedi 3 | AN14: 7 h 00 - 14 h 00 | AO14: 9 h 40 - 10 h 00 | AQ14: HR Nuit | BA14: 8
F15: =VLOOKUP(D14,$AN$10:$AO$17,2,0) -> 15H30 - 15H50 | G15: =IF(O66="","",O66) ->  | J15: =IF(G15="","",IF(VLOOKUP(G15,Planning_général!$E$17:$F$62,2,0)=0,"",VLOOKUP(G15,Planning_général!$E$17:$F$62,2,0))) ->  | R15: =Planning_général!L10 -> D | S15: =VLOOKUP(R15,Planning_général!$NV$20:$NW$26,2,0) -> Dimanche | T15: =VLOOKUP($T$3,Planning_général!$E$17:$NM$17,((($J$2*7)+2)-1),0) -> 0 | U15: =VLOOKUP($U$3,Planning_général!$E$18:$NM$18,((($J$2*7)+2)-1),0) -> 0 | V15: =VLOOKUP($V$3,Planning_général!$E$19:$NM$19,((($J$2*7)+2)-1),0) -> 0 | W15: =VLOOKUP($W$3,Planning_général!$E$20:$NM$20,((($J$2*7)+2)-1),0) -> 0 | X15: =VLOOKUP($X$3,Planning_général!$E$21:$NM$21,((($J$2*7)+2)-1),0) -> 0 | Y15: =VLOOKUP($Y$3,Planning_général!$E$22:$NM$22,((($J$2*7)+2)-1),0) -> 0 | Z15: =VLOOKUP($Z$3,Planning_général!$E$23:$NM$23,((($J$2*7)+2)-1),0) -> 0 | AA15: =VLOOKUP($AA$3,Planning_général!$E$24:$NM$24,((($J$2*7)+2)-1),0) -> 0 | AB15: =VLOOKUP($AB$3,Planning_général!$E$25:$NM$25,((($J$2*7)+2)-1),0) -> 0 | AC15: =VLOOKUP($AC$3,Planning_général!$E$26:$NM$26,((($J$2*7)+2)-1),0) -> 0 | AD15: =VLOOKUP($AD$3,Planning_général!$E$27:$NM$27,((($J$2*7)+2)-1),0) -> 0 | AE15: =VLOOKUP($AE$3,Planning_général!$E$28:$NM$28,((($J$2*7)+2)-1),0) -> 0 | AF15: =VLOOKUP($AF$3,Planning_général!$E$29:$NM$29,((($J$2*7)+2)-1),0) -> 0 | AG15: =VLOOKUP($AG$3,Planning_général!$E$30:$NM$30,((($J$2*7)+2)-1),0) ->  | AH15: =IF(ISNA(VLOOKUP($AH$3,Planning_général!$E$31:$NM$31,((($J$2*7)+2)-1),0)),0,VLOOKUP($AH$3,Planning_général!$E$31:$NM$31,((($J$2*7)+2)-1),0)) -> 0 | AL15: AP | AM15: Après-midi | AN15: 12 h 00 - 19 h 00 | AO15: 15H30 - 15H50 | AQ15: RTT | BA15: 9
J16: =IF(G16="","",IF(VLOOKUP(G16,Planning_général!$E$17:$F$62,2,0)=0,"",VLOOKUP(G16,Planning_général!$E$17:$F$62,2,0))) ->  | R16: =Planning_général!M10 -> L | S16: =VLOOKUP(R16,Planning_général!$NV$20:$NW$26,2,0) -> Lundi | T16: =VLOOKUP($T$3,Planning_général!$E$17:$NM$17,((($J$2*7)+2)-0),0) -> 0 | U16: =VLOOKUP($U$3,Planning_général!$E$18:$NM$18,((($J$2*7)+2)-0),0) -> 0 | V16: =VLOOKUP($V$3,Planning_général!$E$19:$NM$19,((($J$2*7)+2)-0),0) -> 0 | W16: =VLOOKUP($W$3,Planning_général!$E$20:$NM$20,((($J$2*7)+2)-0),0) -> 0 | X16: =VLOOKUP($X$3,Planning_général!$E$21:$NM$21,((($J$2*7)+2)-0),0) -> 0 | Y16: =VLOOKUP($Y$3,Planning_général!$E$22:$NM$22,((($J$2*7)+2)-0),0) -> 0 | Z16: =VLOOKUP($Z$3,Planning_général!$E$23:$NM$23,((($J$2*7)+2)-0),0) -> 0 | AA16: =VLOOKUP($AA$3,Planning_général!$E$24:$NM$24,((($J$2*7)+2)-0),0) -> 0 | AB16: =VLOOKUP($AB$3,Planning_général!$E$25:$NM$25,((($J$2*7)+2)-0),0) -> 0 | AC16: =VLOOKUP($AC$3,Planning_général!$E$26:$NM$26,((($J$2*7)+2)-0),0) -> 0 | AD16: =VLOOKUP($AD$3,Planning_général!$E$27:$NM$27,((($J$2*7)+2)-0),0) -> 0 | AE16: =VLOOKUP($AE$3,Planning_général!$E$28:$NM$28,((($J$2*7)+2)-0),0) -> 0 | AF16: =VLOOKUP($AF$3,Planning_général!$E$29:$NM$29,((($J$2*7)+2)-0),0) -> 0 | AG16: =VLOOKUP($AG$3,Planning_général!$E$30:$NM$30,((($J$2*7)+2)-0),0) ->  | AH16: =IF(ISNA(VLOOKUP($AH$3,Planning_général!$E$31:$NM$31,((($J$2*7)+2)-0),0)),0,VLOOKUP($AH$3,Planning_général!$E$31:$NM$31,((($J$2*7)+2)-0),0)) -> 0 | AL16: S | AM16: Soir | AN16: 18 h 30 - 01 h 30 | AO16: 21 h 00 - 21 h 20 | AQ16: Mal | BA16: 10
B17: SOIR | D17: 18 h 30 - 01 h 30 | F17: Pause | G17: =IF(O70="","",O70) ->  | J17: =IF(G17="","",IF(VLOOKUP(G17,Planning_général!$E$17:$F$62,2,0)=0,"",VLOOKUP(G17,Planning_général!$E$17:$F$62,2,0))) ->  | AL17: N | AM17: Nuit | AN17: 22 h 00 - 05 h 00 | AO17: 01 h 00 - 01 h 20 | AQ17: J.A | BA17: 11
F18: =VLOOKUP(D17,$AN$10:$AO$17,2,0) -> 21 h 00 - 21 h 20 | G18: =IF(O71="","",O71) ->  | J18: =IF(G18="","",IF(VLOOKUP(G18,Planning_général!$E$17:$F$62,2,0)=0,"",VLOOKUP(G18,Planning_général!$E$17:$F$62,2,0))) ->  | AL18: D | AM18: DEMARRAGE | AN18: 4 h 30 - 11 h 30 | AO18: 9 h - 9 h 20 | AQ18: Ecole | BA18: 12
J19: =IF(G19="","",IF(VLOOKUP(G19,Planning_général!$E$17:$F$62,2,0)=0,"",VLOOKUP(G19,Planning_général!$E$17:$F$62,2,0))) ->  | S19: D | T19: =IF(COUNTIF($T$10:$T$16,$S$19)=0,"",COUNTIF($T$10:$T$16,$S$19)) ->  | U19: =IF(COUNTIF($U$10:$U$16,$S$19)=0,"",COUNTIF($U$10:$U$16,$S$19)) ->  | V19: =IF(COUNTIF($V$10:$V$16,$S$19)=0,"",COUNTIF($V$10:$V$16,$S$19)) ->  | W19: =IF(COUNTIF($W$10:$W$16,$S$19)=0,"",COUNTIF($W$10:$W$16,$S$19)) ->  | X19: =IF(COUNTIF($X$10:$X$16,$S$19)=0,"",COUNTIF($X$10:$X$16,$S$19)) ->  | Y19: =IF(COUNTIF($Y$10:$Y$16,$S$19)=0,"",COUNTIF($Y$10:$Y$16,$S$19)) ->  | Z19: =IF(COUNTIF($Z$10:$Z$16,$S$19)=0,"",COUNTIF($Z$10:$Z$16,$S$19)) ->  | AA19: =IF(COUNTIF($AA$10:$AA$16,$S$19)=0,"",COUNTIF($AA$10:$AA$16,$S$19)) ->  | AB19: =IF(COUNTIF($AB$10:$AB$16,$S$19)=0,"",COUNTIF($AB$10:$AB$16,$S$19)) ->  | AC19: =IF(COUNTIF($AC$10:$AC$16,$S$19)=0,"",COUNTIF($AC$10:$AC$16,$S$19)) ->  | AD19: =IF(COUNTIF($AD$10:$AD$16,$S$19)=0,"",COUNTIF($AD$10:$AD$16,$S$19)) ->  | AE19: =IF(COUNTIF($AE$10:$AE$16,$S$19)=0,"",COUNTIF($AE$10:$AE$16,$S$19)) ->  | AF19: =IF(COUNTIF($AF$10:$AF$16,$S$19)=0,"",COUNTIF($AF$10:$AF$16,$S$19)) ->  | AG19: =IF(COUNTIF($AG$10:$AG$16,$S$19)=0,"",COUNTIF($AG$10:$AG$16,$S$19)) ->  | AH19: =IF(COUNTIF($AH$10:$AH$16,$S$19)=0,"",COUNTIF($AH$10:$AH$16,$S$19)) ->  | BA19: 13
B20: Nuit | D20: 22 h 00 - 05 h 00 | F20: Pause | G20: =IF(O75="","",O75) ->  | J20: =IF(G20="","",IF(VLOOKUP(G20,Planning_général!$E$17:$F$62,2,0)=0,"",VLOOKUP(G20,Planning_général!$E$17:$F$62,2,0))) ->  | S20: =AL10 -> AM1 | T20: =IF(COUNTIF($T$10:$T$16,S20)=0,"",COUNTIF($T$10:$T$16,S20)) ->  | U20: =IF(COUNTIF($U$10:$U$16,S20)=0,"",COUNTIF($U$10:$U$16,S20)) ->  | V20: =IF(COUNTIF($V$10:$V$16,S20)=0,"",COUNTIF($V$10:$V$16,S20)) ->  | W20: =IF(COUNTIF($W$10:$W$16,S20)=0,"",COUNTIF($W$10:$W$16,S20)) ->  | X20: =IF(COUNTIF($X$10:$X$16,S20)=0,"",COUNTIF($X$10:$X$16,S20)) ->  | Y20: =IF(COUNTIF($Y$10:$Y$16,S20)=0,"",COUNTIF($Y$10:$Y$16,S20)) ->  | Z20: =IF(COUNTIF($Z$10:$Z$16,S20)=0,"",COUNTIF($Z$10:$Z$16,S20)) ->  | AA20: =IF(COUNTIF($AA$10:$AA$16,$S$20)=0,"",COUNTIF($AA$10:$AA$16,$S$20)) ->  | AB20: =IF(COUNTIF($AB$10:$AB$16,$S$20)=0,"",COUNTIF($AB$10:$AB$16,$S$20)) ->  | AC20: =IF(COUNTIF($AC$10:$AC$16,$S$20)=0,"",COUNTIF($AC$10:$AC$16,$S$20)) ->  | AD20: =IF(COUNTIF($AD$10:$AD$16,$S$20)=0,"",COUNTIF($AD$10:$AD$16,$S$20)) ->  | AE20: =IF(COUNTIF($AE$10:$AE$16,$S$20)=0,"",COUNTIF($AE$10:$AE$16,$S$20)) ->  | AF20: =IF(COUNTIF($AF$10:$AF$16,$S$20)=0,"",COUNTIF($AF$10:$AF$16,$S$20)) ->  | AG20: =IF(COUNTIF($AG$10:$AG$16,$S$20)=0,"",COUNTIF($AG$10:$AG$16,$S$20)) ->  | AH20: =IF(COUNTIF($AH$10:$AH$16,$S$20)=0,"",COUNTIF($AH$10:$AH$16,$S$20)) ->  | BA20: 16
F21: 00 h 00 - 00 h 20 | G21: =IF(O76="","",O76) ->  | J21: =IF(G21="","",IF(VLOOKUP(G21,Planning_général!$E$17:$F$62,2,0)=0,"",VLOOKUP(G21,Planning_général!$E$17:$F$62,2,0))) ->  | S21: M | T21: =IF(COUNTIF($T$10:$T$16,S21)=0,"",COUNTIF($T$10:$T$16,S21)) ->  | U21: =IF(COUNTIF($U$10:$U$16,S21)=0,"",COUNTIF($U$10:$U$16,S21)) ->  | V21: =IF(COUNTIF($V$10:$V$16,S21)=0,"",COUNTIF($V$10:$V$16,S21)) ->  | W21: =IF(COUNTIF($W$10:$W$16,S21)=0,"",COUNTIF($W$10:$W$16,S21)) ->  | X21: =IF(COUNTIF($X$10:$X$16,S21)=0,"",COUNTIF($X$10:$X$16,S21)) ->  | Y21: =IF(COUNTIF($Y$10:$Y$16,S21)=0,"",COUNTIF($Y$10:$Y$16,S21)) ->  | Z21: =IF(COUNTIF($Z$10:$Z$16,S21)=0,"",COUNTIF($Z$10:$Z$16,S21)) ->  | AA21: =IF(COUNTIF($AA$10:$AA$16,$S$21)=0,"",COUNTIF($AA$10:$AA$16,$S$21)) ->  | AB21: =IF(COUNTIF($AB$10:$AB$16,$S$21)=0,"",COUNTIF($AB$10:$AB$16,$S$21)) ->  | AC21: =IF(COUNTIF($AC$10:$AC$16,$S$21)=0,"",COUNTIF($AC$10:$AC$16,$S$21)) ->  | AD21: =IF(COUNTIF($AD$10:$AD$16,$S$21)=0,"",COUNTIF($AD$10:$AD$16,$S$21)) ->  | AE21: =IF(COUNTIF($AE$10:$AE$16,$S$21)=0,"",COUNTIF($AE$10:$AE$16,$S$21)) ->  | AF21: =IF(COUNTIF($AF$10:$AF$16,$S$21)=0,"",COUNTIF($AF$10:$AF$16,$S$21)) ->  | AG21: =IF(COUNTIF($AG$10:$AG$16,$S$21)=0,"",COUNTIF($AG$10:$AG$16,$S$21)) ->  | AH21: =IF(COUNTIF($AH$10:$AH$16,$S$21)=0,"",COUNTIF($AH$10:$AH$16,$S$21)) ->  | BA21: 17
G22: =IF(O77="","",O77) ->  | J22: =IF(G22="","",IF(VLOOKUP(G22,Planning_général!$E$17:$F$62,2,0)=0,"",VLOOKUP(G22,Planning_général!$E$17:$F$62,2,0))) -> 
S23: =AL12 -> AM2 | Z23: =IF(COUNTIF($Z$10:$Z$16,S23)=0,"",COUNTIF($Z$10:$Z$16,S23)) ->  | AA23: =IF(COUNTIF($AA$10:$AA$16,S23)=0,"",COUNTIF($AA$10:$AA$16,S23)) ->  | AB23: =IF(COUNTIF($AB$10:$AB$16,$S$23)=0,"",COUNTIF($AB$10:$AB$16,$S$23)) ->  | AC23: =IF(COUNTIF($AC$10:$AC$16,$S$23)=0,"",COUNTIF($AC$10:$AC$16,$S$23)) ->  | AD23: =IF(COUNTIF($AD$10:$AD$16,$S$23)=0,"",COUNTIF($AD$10:$AD$16,$S$23)) ->  | AE23: =IF(COUNTIF($AE$10:$AE$16,$S$23)=0,"",COUNTIF($AE$10:$AE$16,$S$23)) ->  | AF23: =IF(COUNTIF($AF$10:$AF$16,$S$23)=0,"",COUNTIF($AF$10:$AF$16,$S$23)) ->  | AG23: =IF(COUNTIF($AG$10:$AG$16,$S$23)=0,"",COUNTIF($AG$10:$AG$16,$S$23)) ->  | AH23: =IF(COUNTIF($AH$10:$AH$16,$S$23)=0,"",COUNTIF($AH$10:$AH$16,$S$23)) ->  | BA23: 18
B24: SAMEDI | D24: 4 h 30 - 11 h 30 | F24: Pause | G24: =IF(O42="","",O42) ->  | J24: =IF(G24="","",IF(VLOOKUP(G24,Planning_général!$E$17:$F$62,2,0)=0,"",VLOOKUP(G24,Planning_général!$E$17:$F$62,2,0))) ->  | S24: J | AA24: =IF(COUNTIF($AA$10:$AA$16,$S$24)=0,"",COUNTIF($AA$10:$AA$16,$S$24)) ->  | AB24: =IF(COUNTIF($AB$10:$AB$16,$S$24)=0,"",COUNTIF($AB$10:$AB$16,$S$24)) ->  | AC24: =IF(COUNTIF($AC$10:$AC$16,$S$24)=0,"",COUNTIF($AC$10:$AC$16,$S$24)) ->  | AD24: =IF(COUNTIF($AD$10:$AD$16,$S$24)=0,"",COUNTIF($AD$10:$AD$16,$S$24)) ->  | AE24: =IF(COUNTIF($AE$10:$AE$16,$S$24)=0,"",COUNTIF($AE$10:$AE$16,$S$24)) ->  | AF24: =IF(COUNTIF($AF$10:$AF$16,$S$24)=0,"",COUNTIF($AF$10:$AF$16,$S$24)) ->  | AG24: =IF(COUNTIF($AG$10:$AG$16,$S$24)=0,"",COUNTIF($AG$10:$AG$16,$S$24)) ->  | AH24: =IF(COUNTIF($AH$10:$AH$16,$S$24)=0,"",COUNTIF($AH$10:$AH$16,$S$24)) ->  | BA24: 19
F25: =VLOOKUP(D24,$AN$10:$AO$17,2,0) -> 9 h - 9 h 20 | J25: =IF(G25="","",IF(VLOOKUP(G25,Planning_général!$E$17:$F$62,2,0)=0,"",VLOOKUP(G25,Planning_général!$E$17:$F$62,2,0))) ->  | S25: AM3 | Z25: =IF(COUNTIF($Z$10:$Z$16,$S$25)=0,"",COUNTIF($Z$10:$Z$16,S25)) ->  | AA25: =IF(COUNTIF($AA$10:$AA$16,$S$25)=0,"",COUNTIF($AA$10:$AA$16,$S$25)) ->  | AB25: =IF(COUNTIF($AB$10:$AB$16,$S$25)=0,"",COUNTIF($AB$10:$AB$16,$S$25)) ->  | AC25: =IF(COUNTIF($AC$10:$AC$16,$S$25)=0,"",COUNTIF($AC$10:$AC$16,$S$25)) ->  | AD25: =IF(COUNTIF($AD$10:$AD$16,$S$25)=0,"",COUNTIF($AD$10:$AD$16,$S$25)) ->  | AE25: =IF(COUNTIF($AE$10:$AE$16,$S$25)=0,"",COUNTIF($AE$10:$AE$16,$S$25)) ->  | AF25: =IF(COUNTIF($AF$10:$AF$16,$S$25)=0,"",COUNTIF($AF$10:$AF$16,$S$25)) ->  | AG25: =IF(COUNTIF($AG$10:$AG$16,$S$25)=0,"",COUNTIF($AG$10:$AG$16,$S$25)) ->  | AH25: =IF(COUNTIF($AH$10:$AH$16,$S$25)=0,"",COUNTIF($AH$10:$AH$16,$S$25)) ->  | BA25: 20
D26: 6 h 00 - 13 h 00 | F26: Pause | J26: =IF(G26="","",IF(VLOOKUP(G26,Planning_général!$E$17:$F$62,2,0)=0,"",VLOOKUP(G26,Planning_général!$E$17:$F$62,2,0))) ->  | S26: AP | Z26: =IF(COUNTIF($Z$10:$Z$16,$S$26)=0,"",COUNTIF($Z$10:$Z$16,S26)) ->  | AA26: =IF(COUNTIF($AA$10:$AA$16,$S$26)=0,"",COUNTIF($AA$10:$AA$16,$S$26)) ->  | AB26: =IF(COUNTIF($AB$10:$AB$16,$S$26)=0,"",COUNTIF($AB$10:$AB$16,$S$26)) ->  | AC26: =IF(COUNTIF($AC$10:$AC$16,$S$26)=0,"",COUNTIF($AC$10:$AC$16,$S$26)) ->  | AD26: =IF(COUNTIF($AD$10:$AD$16,$S$26)=0,"",COUNTIF($AD$10:$AD$16,$S$26)) ->  | AE26: =IF(COUNTIF($AE$10:$AE$16,$S$26)=0,"",COUNTIF($AE$10:$AE$16,$S$26)) ->  | AF26: =IF(COUNTIF($AF$10:$AF$16,$S$26)=0,"",COUNTIF($AF$10:$AF$16,$S$26)) ->  | AG26: =IF(COUNTIF($AG$10:$AG$16,$S$26)=0,"",COUNTIF($AG$10:$AG$16,$S$26)) ->  | AH26: =IF(COUNTIF($AH$10:$AH$16,$S$26)=0,"",COUNTIF($AH$10:$AH$16,$S$26)) ->  | BA26: 21
F27: =VLOOKUP(D26,$AN$10:$AO$17,2,0) -> 9 h 20 - 9 h 40 | G27: =IF(O45="","",O45) ->  | J27: =IF(G27="","",IF(VLOOKUP(G27,Planning_général!$E$17:$F$62,2,0)=0,"",VLOOKUP(G27,Planning_général!$E$17:$F$62,2,0))) ->  | S27: S | Z27: =IF(COUNTIF($Z$10:$Z$16,$S$27)=0,"",COUNTIF($Z$10:$Z$16,S27)) ->  | AA27: =IF(COUNTIF($AA$10:$AA$16,$S$27)=0,"",COUNTIF($AA$10:$AA$16,$S$27)) ->  | AB27: =IF(COUNTIF($AB$10:$AB$16,$S$27)=0,"",COUNTIF($AB$10:$AB$16,$S$27)) ->  | AC27: =IF(COUNTIF($AC$10:$AC$16,$S$27)=0,"",COUNTIF($AC$10:$AC$16,$S$27)) ->  | AD27: =IF(COUNTIF($AD$10:$AD$16,$S$27)=0,"",COUNTIF($AD$10:$AD$16,$S$27)) ->  | AE27: =IF(COUNTIF($AE$10:$AE$16,$S$27)=0,"",COUNTIF($AE$10:$AE$16,$S$27)) ->  | AF27: =IF(COUNTIF($AF$10:$AF$16,$S$27)=0,"",COUNTIF($AF$10:$AF$16,$S$27)) ->  | AG27: =IF(COUNTIF($AG$10:$AG$16,$S$27)=0,"",COUNTIF($AG$10:$AG$16,$S$27)) ->  | AH27: =IF(COUNTIF($AH$10:$AH$16,$S$27)=0,"",COUNTIF($AH$10:$AH$16,$S$27)) ->  | BA27: 22
D28: 7 h 00 - 14 h 00 | F28: Pause | J28: =IF(G28="","",IF(VLOOKUP(G28,Planning_général!$E$17:$F$62,2,0)=0,"",VLOOKUP(G28,Planning_général!$E$17:$F$62,2,0))) ->  | S28: N | AA28: =IF(COUNTIF($AA$10:$AA$16,$S$28)=0,"",COUNTIF($AA$10:$AA$16,$S$28)) ->  | AB28: =IF(COUNTIF($AB$10:$AB$16,$S$28)=0,"",COUNTIF($AB$10:$AB$16,$S$28)) ->  | AC28: =IF(COUNTIF($AC$10:$AC$16,$S$28)=0,"",COUNTIF($AC$10:$AC$16,$S$28)) ->  | AD28: =IF(COUNTIF($AD$10:$AD$16,$S$28)=0,"",COUNTIF($AD$10:$AD$16,$S$28)) ->  | AE28: =IF(COUNTIF($AE$10:$AE$16,$S$28)=0,"",COUNTIF($AE$10:$AE$16,$S$28)) ->  | AF28: =IF(COUNTIF($AF$10:$AF$16,$S$28)=0,"",COUNTIF($AF$10:$AF$16,$S$28)) ->  | AG28: =IF(COUNTIF($AG$10:$AG$16,$S$28)=0,"",COUNTIF($AG$10:$AG$16,$S$28)) ->  | AH28: =IF(COUNTIF($AH$10:$AH$16,$S$28)=0,"",COUNTIF($AH$10:$AH$16,$S$28)) ->  | BA28: 23
F29: =VLOOKUP(D28,$AN$10:$AO$17,2,0) -> 9 h 40 - 10 h 00 | J29: =IF(G29="","",IF(VLOOKUP(G29,Planning_général!$E$17:$F$62,2,0)=0,"",VLOOKUP(G29,Planning_général!$E$17:$F$62,2,0))) ->  | S29: Max | T29: =MAX(T19:T28) -> 0 | U29: =MAX(U19:U28) -> 0 | V29: 0 | W29: 0 | X29: 0 | Y29: 0 | Z29: 0 | AA29: 0 | AB29: 0 | AC29: 0 | AD29: 0 | AE29: 0 | AF29: 0 | AG29: 0 | AH29: =MAX(AH19:AH28) -> 0 | BA29: 24
S30: Mini | T30: =MIN(T20:T28) -> 0 | U30: 0 | V30: 0 | W30: 0 | X30: 0 | Y30: 0 | Z30: 0 | AA30: 0 | AB30: 0 | AC30: 0 | AD30: 0 | AE30: 0 | AF30: 0 | AG30: 0 | AH30: 0 | BA30: 25
B31: Absences (CP/ Modul/ Repos/ Formation) | D31: Lundi | E31: =VLOOKUP(D31,$L$84:$P$90,3,0) ->  | O31: Techniciens | BA31: 26
D32: Mardi | T32: =IF(T29=0,"",IF(T19=T29,$S$19,IF(T20=T29,$S$20,IF(T21=T29,$S$21,IF(T23=T29,$S$23,IF(T24=T29,$S$24,IF(T25=T29,$S$25,IF(T26=T29,$S$26,IF(T27=T29,$S$27,IF(T28=T29,$S$28,"")))))))))) ->  | U32: =IF(U29=0,"",IF(U19=U29,$S$19,IF(U20=U29,$S$20,IF(U21=U29,$S$21,IF(U23=U29,$S$23,IF(U24=U29,$S$24,IF(U25=U29,$S$25,IF(U26=U29,$S$26,IF(U27=U29,$S$27,IF(U28=U29,$S$28,"")))))))))) ->  | V32: =IF(V29=0,"",IF(V19=V29,$S$19,IF(V20=V29,$S$20,IF(V21=V29,$S$21,IF(V23=V29,$S$23,IF(V24=V29,$S$24,IF(V25=V29,$S$25,IF(V26=V29,$S$26,IF(V27=V29,$S$27,IF(V28=V29,$S$28,"")))))))))) ->  | AH32: =IF(AH29=0,"",IF(AH19=AH29,$S$19,IF(AH20=AH29,$S$20,IF(AH21=AH29,$S$21,IF(AH23=AH29,$S$23,IF(AH24=AH29,$S$24,IF(AH25=AH29,$S$25,IF(AH26=AH29,$S$26,IF(AH27=AH29,$S$27,IF(AH28=AH29,$S$28,"")))))))))) ->  | BA32: 27
D33: Mercredi | O33: =IF(T33=1,$T$3,IF(U33=1,$U$3,IF(V33=1,$V$3,IF(W33=1,W3,IF(X33=1,$X$3,IF(Y33=1,$Y$3,IF(Z33=1,$Z$3,IF(AA33=1,$AA$3,IF(AB33=1,$AB$3,IF(AC33=1,$AC$3,IF(AD33=1,$AD$3,IF(AE33=1,AE3,IF(AF33=1,$AF$3,IF(AG33=1,$AG$3,IF(AH33=1,$AH$3,""))))))))))))))) ->  | P33: =IF(R33=1,R$9,IF(S33=1,S$9,IF(T33=1,T$9,IF(U33=1,U$9,IF(V33=1,V$9,IF(W33=1,W$9,IF(X33=1,X$9,IF(Y33=1,Y$9,IF(Z33=1,Z$9,IF(AA33=1,AA$9,IF(AB33=1,AB$9,""))))))))))) ->  | Q33: Jrnée | S33: J | T33: =IF($S$33=T32,1,"") ->  | U33: =IF(AND($S$33=$U$32,T33=""),1,"") ->  | V33: =IF(AND($S$33=$V$32,U33="",T33=""),1,"") ->  | W33: =IF(AND($S$33=W32,T33="",U33="",V33=""),1,"") ->  | X33: =IF(AND($S$33=X32,U33="",V33="",W33="",T33=""),1,"") ->  | Y33: =IF(AND($S$33=Y32,V33="",W33="",X33="",U33="",T33=""),1,"") ->  | Z33: =IF(AND($S$33=Z32,W33="",X33="",Y33="",V33="",U33="",T33=""),1,"") ->  | AA33: =IF(AND($S$33=AA32,X33="",Y33="",Z33="",W33="",V33="",U33="",T33=""),1,"") ->  | AB33: =IF(AND($S$33=AB32,Y33="",Z33="",AA33="",X33="",W33="",V33="",U33="",T33=""),1,"") ->  | AC33: =IF(AND($S$33=AC32,Z33="",AA33="",AB33="",Y33="",X33="",W33="",V33="",U33="",T33=""),1,"") ->  | AD33: =IF(AND($S$33=AD32,AA33="",AB33="",AC33="",Z33="",Y33="",X33="",W33="",V33="",U33="",T33=""),1,"") ->  | AE33: =IF(AND($S$33=AE32,AB33="",AC33="",AD33="",AA33="",Z33="",Y33="",X33="",W33="",V33="",U33="",T33=""),1,"") ->  | AF33: =IF(AND($S$33=AF32,AC33="",AD33="",AE33="",AB33="",AA33="",Z33="",Y33="",X33="",W33="",V33="",U33="",T33=""),1,"") ->  | AG33: =IF(AND($S$33=AG32,AD33="",AE33="",AF33="",AC33="",AB33="",AA33="",Z33="",Y33="",X33="",W33="",V33="",U33="",T33=""),1,"") ->  | AH33: =IF(AND($S$33=AH32,AE33="",AF33="",AG33="",AD33="",AC33="",AB33="",AA33="",Z33="",Y33="",X33="",W33="",V33="",U33="",T33=""),1,"") ->  | BA33: 28
D34: Jeudi | O34: =IF(T34=1,$T$3,IF(U34=1,$U$3,IF(V34=1,$V$3,IF(W34=1,W4,IF(X34=1,$X$3,IF(Y34=1,$Y$3,IF(Z34=1,$Z$3,IF(AA34=1,$AA$3,IF(AB34=1,$AB$3,IF(AC34=1,$AC$3,IF(AD34=1,$AD$3,IF(AE34=1,AE4,IF(AF34=1,$AF$3,IF(AG34=1,$AG$3,IF(AH34=1,$AH$3,""))))))))))))))) ->  | P34: =IF(R34=1,R$9,IF(S34=1,S$9,IF(T34=1,T$9,IF(U34=1,U$9,IF(V34=1,V$9,IF(W34=1,W$9,IF(X34=1,X$9,IF(Y34=1,Y$9,IF(Z34=1,Z$9,IF(AA34=1,AA$9,IF(AB34=1,AB$9,""))))))))))) ->  | S34: J | U34: =IF(AND(U$32=$S$34,T34="",U33=""),1,"") ->  | V34: =IF(AND(V$32=$S$34,U34="",V33=""),1,"") ->  | W34: =IF(AND(W$32=$S$34,V34="",W33=""),1,"") ->  | X34: =IF(AND(X$32=$S$34,X33="",SUM($U$34:W34)=0),1,"") ->  | Y34: =IF(AND(Y$32=$S$34,Y33="",SUM($U$34:X34)=0),1,"") ->  | Z34: =IF(AND(Z$32=$S$34,Z33="",SUM($U$34:Y34)=0),1,"") ->  | AA34: =IF(AND(AA$32=$S$34,AA33="",SUM($U$34:Z34)=0),1,"") ->  | AB34: =IF(AND(AB$32=$S$34,AB33="",SUM($U$34:AA34)=0),1,"") ->  | AC34: =IF(AND(AC$32=$S$34,AC33="",SUM($U$34:AB34)=0),1,"") ->  | AD34: =IF(AND(AD$32=$S$34,AD33="",SUM($U$34:AC34)=0),1,"") ->  | AE34: =IF(AND(AE$32=$S$34,AE33="",SUM($U$34:AD34)=0),1,"") ->  | AF34: =IF(AND(AF$32=$S$34,AF33="",SUM($U$34:AE34)=0),1,"") ->  | AG34: =IF(AND(AG$32=$S$34,AG33="",SUM($U$34:AF34)=0),1,"") ->  | AH34: =IF(AND(AH$32=$S$34,AH33="",SUM($U$34:AG34)=0),1,"") ->  | BA34: 29
D35: Vendredi | O35: =IF(T35=1,$T$3,IF(U35=1,$U$3,IF(V35=1,$V$3,IF(W35=1,W3,IF(X35=1,$X$3,IF(Y35=1,$Y$3,IF(Z35=1,$Z$3,IF(AA35=1,$AA$3,IF(AB35=1,$AB$3,IF(AC35=1,$AC$3,IF(AD35=1,$AD$3,IF(AE35=1,AE3,IF(AF35=1,$AF$3,IF(AG35=1,$AG$3,IF(AH35=1,$AH$3,""))))))))))))))) ->  | P35: =IF(R35=1,R$9,IF(S35=1,S$9,IF(T35=1,T$9,IF(U35=1,U$9,IF(V35=1,V$9,IF(W35=1,W$9,IF(X35=1,X$9,IF(Y35=1,Y$9,IF(Z35=1,Z$9,IF(AA35=1,AA$9,IF(AB35=1,AB$9,""))))))))))) ->  | S35: J | V35: =IF(AND(V$32=S35,U35="",V34="",V33=""),1,"") ->  | W35: =IF(AND(W$32=S35,V35="",W34="",W33=""),1,"") ->  | X35: =IF(AND(X$32=$S$35,X33="",X34="",SUM($V$35:W35)=0),1,"") ->  | Y35: =IF(AND(Y$32=$S$35,Y33="",Y34="",SUM($V$35:X35)=0),1,"") ->  | Z35: =IF(AND(Z$32=$S$35,Z33="",Z34="",SUM($V$35:Y35)=0),1,"") ->  | AA35: =IF(AND(AA$32=$S$35,AA33="",AA34="",SUM($V$35:Z35)=0),1,"") ->  | AB35: =IF(AND(AB$32=$S$35,AB33="",AB34="",SUM($V$35:AA35)=0),1,"") ->  | AC35: =IF(AND(AC$32=$S$35,AC33="",AC34="",SUM($V$35:AB35)=0),1,"") ->  | AD35: =IF(AND(AD$32=$S$35,AD33="",AD34="",SUM($V$35:AC35)=0),1,"") ->  | AE35: =IF(AND(AE$32=$S$35,AE33="",AE34="",SUM($V$35:AD35)=0),1,"") ->  | AF35: =IF(AND(AF$32=$S$35,AF33="",AF34="",SUM($V$35:AE35)=0),1,"") ->  | AG35: =IF(AND(AG$32=$S$35,AG33="",AG34="",SUM($V$35:AF35)=0),1,"") ->  | AH35: =IF(AND(AH$32=$S$35,AH33="",AH34="",SUM($V$35:AG35)=0),1,"") -> 
D36: Samedi
O37: =IF(T37=1,$T$3,IF(U37=1,$U$3,IF(V37=1,$V$3,IF(W37=1,W3,IF(X37=1,$X$3,IF(Y37=1,$Y$3,IF(Z37=1,$Z$3,IF(AA37=1,$AA$3,IF(AB37=1,$AB$3,IF(AC37=1,$AC$3,IF(AD37=1,$AD$3,IF(AE37=1,AE7,IF(AF37=1,$AF$3,IF(AG37=1,$AG$3,IF(AH37=1,$AH$3,""))))))))))))))) ->  | P37: =IF(R37=1,R$9,IF(S37=1,S$9,IF(T37=1,T$9,IF(U37=1,U$9,IF(V37=1,V$9,IF(W37=1,W$9,IF(X37=1,X$9,IF(Y37=1,Y$9,IF(Z37=1,Z$9,IF(AA37=1,AA$9,IF(AB37=1,AB$9,""))))))))))) ->  | Q37: Début | S37: AM1 | T37: =IF($S$37=T32,1,"") ->  | U37: =IF(AND($S$37=$U$32,T37=""),1,"") ->  | V37: =IF(AND($S$37=$V$32,U37="",T37=""),1,"") ->  | W37: =IF(AND($S$37=W32,T37="",U37="",V37=""),1,"") ->  | X37: =IF(AND($S$37=X32,U37="",V37="",W37="",T37=""),1,"") ->  | Y37: =IF(AND($S$37=Y32,V37="",W37="",X37="",U37="",T37=""),1,"") ->  | Z37: =IF(AND($S$37=Z32,W37="",X37="",Y37="",V37="",U37="",T37=""),1,"") ->  | AA37: =IF(AND($S$37=AA32,X37="",Y37="",Z37="",W37="",V37="",U37="",T37=""),1,"") ->  | AB37: =IF(AND($S$37=AB32,Y37="",Z37="",AA37="",X37="",W37="",V37="",U37="",T37=""),1,"") ->  | AC37: =IF(AND($S$37=AC32,Z37="",AA37="",AB37="",Y37="",X37="",W37="",V37="",U37="",T37=""),1,"") ->  | AD37: =IF(AND($S$37=AD36,AA37="",AB37="",AC37="",Z37="",Y37="",X37="",W37="",V37="",U37="",T37=""),1,"") ->  | AE37: =IF(AND($S$37=AE36,AB37="",AC37="",AD37="",AA37="",Z37="",Y37="",X37="",W37="",V37="",U37="",T37=""),1,"") ->  | AF37: =IF(AND($S$37=AF32,AC37="",AD37="",AE37="",AB37="",AA37="",Z37="",Y37="",X37="",W37="",V37="",U37="",T37=""),1,"") ->  | AG37: =IF(AND($S$37=AG36,AD37="",AE37="",AF37="",AC37="",AB37="",AA37="",Z37="",Y37="",X37="",W37="",V37="",U37="",T37=""),1,"") ->  | AH37: =IF(AND($S$37=AH36,AE37="",AF37="",AG37="",AD37="",AC37="",AB37="",AA37="",Z37="",Y37="",X37="",W37="",V37="",U37="",T37=""),1,"") -> 
O38: =IF(T38=1,$T$3,IF(U38=1,$U$3,IF(V38=1,$V$3,IF(W38=1,W3,IF(X38=1,$X$3,IF(Y38=1,$Y$3,IF(Z38=1,$Z$3,IF(AA38=1,$AA$3,IF(AB38=1,$AB$3,IF(AC38=1,$AC$3,IF(AD38=1,$AD$3,IF(AE38=1,AE3,IF(AF38=1,$AF$3,IF(AG38=1,$AG$3,IF(AH38=1,$AH$3,""))))))))))))))) ->  | P38: =IF(R38=1,R$9,IF(S38=1,S$9,IF(T38=1,T$9,IF(U38=1,U$9,IF(V38=1,V$9,IF(W38=1,W$9,IF(X38=1,X$9,IF(Y38=1,Y$9,IF(Z38=1,Z$9,IF(AA38=1,AA$9,IF(AB38=1,AB$9,""))))))))))) ->  | S38: AM1 | U38: =IF(AND(U$32=$S$38,T38="",U37=""),1,"") ->  | V38: =IF(AND(V$32=$S$38,U38="",V37=""),1,"") ->  | W38: =IF(AND(W$32=$S$38,V38="",W37=""),1,"") ->  | X38: =IF(AND(X$32=$S$38,X37="",SUM($U$38:W38)=0),1,"") ->  | Y38: =IF(AND(Y$32=$S$38,Y37="",SUM($U$38:X38)=0),1,"") ->  | Z38: =IF(AND(Z$32=$S$38,Z37="",SUM($U$38:Y38)=0),1,"") ->  | AA38: =IF(AND(AA$32=$S$38,AA37="",SUM($U$38:Z38)=0),1,"") ->  | AB38: =IF(AND(AB$32=$S$38,AB37="",SUM($U$38:AA38)=0),1,"") ->  | AC38: =IF(AND(AC$32=$S$38,AC37="",SUM($U$38:AB38)=0),1,"") ->  | AD38: =IF(AND(AD$32=$S$38,AD37="",SUM($U$38:AC38)=0),1,"") ->  | AE38: =IF(AND(AE$32=$S$38,AE37="",SUM($U$38:AD38)=0),1,"") ->  | AF38: =IF(AND(AF$32=$S$38,AF37="",SUM($U$38:AE38)=0),1,"") ->  | AG38: =IF(AND(AG$32=$S$38,AG37="",SUM($U$38:AF38)=0),1,"") ->  | AH38: =IF(AND(AH$32=$S$38,AH37="",SUM($U$38:AG38)=0),1,"") -> 
O39: =IF(T39=1,$T$3,IF(U39=1,$U$3,IF(V39=1,$V$3,IF(W39=1,$W$3,IF(X39=1,$X$3,IF(Y39=1,$Y$3,IF(Z39=1,$Z$3,IF(AA39=1,$AA$3,IF(AB39=1,$AB$3,IF(AC39=1,$AC$3,IF(AD39=1,$AD$3,IF(AE39=1,$AE$3,IF(AF39=1,$AF$3,IF(AG39=1,$AG$3,IF(AH39=1,$AH$3,""))))))))))))))) ->  | S39: AM1 | V39: =IF(AND(V$32=S39,U39="",V38="",V37=""),1,"") ->  | W39: =IF(AND(W$32=S39,V39="",W38="",W37=""),1,"") ->  | X39: =IF(AND(X$32=$S$39,X37="",X38="",SUM($V$39:W39)=0),1,"") ->  | Y39: =IF(AND(Y$32=$S$39,Y37="",Y38="",SUM($V$39:X39)=0),1,"") ->  | Z39: =IF(AND(Z$32=$S$39,Z37="",Z38="",SUM($V$39:Y39)=0),1,"") ->  | AA39: =IF(AND(AA$32=$S$39,AA37="",AA38="",SUM($V$39:Z39)=0),1,"") ->  | AB39: =IF(AND(AB$32=$S$39,AB37="",AB38="",SUM($V$39:AA39)=0),1,"") ->  | AC39: =IF(AND(AC$32=$S$39,AC37="",AC38="",SUM($V$39:AB39)=0),1,"") ->  | AD39: =IF(AND(AD$32=$S$39,AD37="",AD38="",SUM($V$39:AC39)=0),1,"") ->  | AE39: =IF(AND(AE$32=$S$39,AE37="",AE38="",SUM($V$39:AD39)=0),1,"") ->  | AF39: =IF(AND(AF$32=$S$39,AF37="",AF38="",SUM($V$39:AE39)=0),1,"") ->  | AG39: =IF(AND(AG$32=$S$39,AG37="",AG38="",SUM($V$39:AF39)=0),1,"") ->  | AH39: =IF(AND(AH$32=$S$39,AH37="",AH38="",SUM($V$39:AG39)=0),1,"") ->  | BA39: 30
T41: =IF(T30=0,"",IF(T20=T30,$S$20,IF(T21=T30,$S$21,IF(T23=T30,$S$23,IF(T24=T30,$S$24,IF(T25=T30,$S$25,IF(T26=T30,$S$26,IF(T27=T30,$S$27,IF(T28=T30,$S$28,""))))))))) -> 
O42: =IF(T42=1,$T$3,IF(U42=1,$U$3,IF(V42=1,$V$3,IF(W42=1,W3,IF(X42=1,$X$3,IF(Y42=1,$Y$3,IF(Z42=1,$Z$3,IF(AA42=1,$AA$3,IF(AB42=1,$AB$3,IF(AC42=1,$AC$3,IF(AD42=1,$AD$3,IF(AE42=1,AE3,IF(AF42=1,$AF$3,IF(AG42=1,$AG$3,IF(AH42=1,$AH$3,""))))))))))))))) ->  | S42: AM1 | T42: =IF($S$42=T41,1,"") ->  | U42: =IF(AND($S$42=$U$41,T42=""),1,"") ->  | V42: =IF(AND($S$42=$V$41,U42="",T42=""),1,"") ->  | W42: =IF(AND($S$42=W41,T42="",U42="",V42=""),1,"") ->  | X42: =IF(AND($S$42=X41,U42="",V42="",W42="",T42=""),1,"") ->  | Y42: =IF(AND($S$42=Y41,V42="",W42="",X42="",U42="",T42=""),1,"") ->  | Z42: =IF(AND($S$42=Z41,W42="",X42="",Y42="",V42="",U42="",T42=""),1,"") ->  | AA42: =IF(AND($S$42=AA41,X42="",Y42="",Z42="",W42="",V42="",U42="",T42=""),1,"") ->  | AB42: =IF(AND($S$42=AB41,Y42="",Z42="",AA42="",X42="",W42="",V42="",U42="",T42=""),1,"") ->  | AC42: =IF(AND($S$42=AC41,Z42="",AA42="",AB42="",Y42="",X42="",W42="",V42="",U42="",T42=""),1,"") ->  | AD42: =IF(AND($S$42=AD41,AA42="",AB42="",AC42="",Z42="",Y42="",X42="",W42="",V42="",U42="",T42=""),1,"") ->  | AE42: =IF(AND($S$42=AE41,AB42="",AC42="",AD42="",AA42="",Z42="",Y42="",X42="",W42="",V42="",U42="",T42=""),1,"") ->  | AF42: =IF(AND($S$42=AF41,AC42="",AD42="",AE42="",AB42="",AA42="",Z42="",Y42="",X42="",W42="",V42="",U42="",T42=""),1,"") ->  | AG42: =IF(AND($S$42=AG41,AD42="",AE42="",AF42="",AC42="",AB42="",AA42="",Z42="",Y42="",X42="",W42="",V42="",U42="",T42=""),1,"") ->  | AH42: =IF(AND($S$42=AH41,AE42="",AF42="",AG42="",AD42="",AC42="",AB42="",AA42="",Z42="",Y42="",X42="",W42="",V42="",U42="",T42=""),1,"") -> 
O43: =IF(T43=1,$T$3,IF(U43=1,$U$3,IF(V43=1,$V$3,IF(W43=1,W3,IF(X43=1,$X$3,IF(Y43=1,$Y$3,IF(Z43=1,$Z$3,IF(AA43=1,$AA$3,IF(AB43=1,$AB$3,IF(AC43=1,$AC$3,IF(AD43=1,$AD$3,IF(AE43=1,AE3,IF(AF43=1,$AF$3,IF(AG43=1,$AG$3,IF(AH43=1,$AH$3,""))))))))))))))) ->  | S43: AM1 | T43: =IF($S$43=T41,1,"") ->  | U43: =IF(AND(U$41=$S$43,T43="",U42=""),1,"") ->  | V43: =IF(AND(V$41=$S$43,U43="",V42=""),1,"") ->  | W43: =IF(AND(W$41=$S$43,V43="",W42=""),1,"") ->  | X43: =IF(AND(X$41=$S$43,X42="",SUM($U$43:W43)=0),1,"") ->  | Y43: =IF(AND(Y$41=$S$43,Y42="",SUM($U$43:X43)=0),1,"") ->  | Z43: =IF(AND(Z$41=$S$43,Z42="",SUM($U$43:Y43)=0),1,"") ->  | AA43: =IF(AND(AA$41=$S$43,AA42="",SUM($U$43:Z43)=0),1,"") ->  | AB43: =IF(AND(AB$41=$S$43,AB42="",SUM($U$43:AA43)=0),1,"") ->  | AC43: =IF(AND(AC$41=$S$42,AC42="",SUM($U$43:AB43)=0),1,"") ->  | AD43: =IF(AND(AD$41=$S$43,AD42="",SUM($U$43:AC43)=0),1,"") ->  | AE43: =IF(AND(AE$41=$S$43,AE42="",SUM($U$43:AD43)=0),1,"") ->  | AF43: =IF(AND(AF$41=$S$43,AF42="",SUM($U$43:AE43)=0),1,"") ->  | AG43: =IF(AND(AG$41=$S$43,AG42="",SUM($U$43:AF43)=0),1,"") ->  | AH43: =IF(AND(AH$41=$S$43,AH42="",SUM($U$43:AG43)=0),1,"") -> 
O44: =IF(T44=1,$T$3,IF(U44=1,$U$3,IF(V44=1,$V$3,IF(W44=1,W3,IF(X44=1,$X$3,IF(Y44=1,$Y$3,IF(Z44=1,$Z$3,IF(AA44=1,$AA$3,IF(AB44=1,$AB$3,IF(AC44=1,$AC$3,IF(AD44=1,$AD$3,IF(AE44=1,AE3,IF(AF44=1,$AF$3,IF(AG44=1,$AG$3,IF(AH44=1,$AH$3,""))))))))))))))) ->  | S44: AM2 | T44: =IF($S$44=T41,1,"") ->  | U44: =IF(AND($S$44=$U$41,T44=""),1,"") ->  | V44: =IF(AND($S$44=$V$41,U44="",T44=""),1,"") ->  | W44: =IF(AND($S$44=W41,T44="",U44="",V44=""),1,"") ->  | X44: =IF(AND($S$44=X41,U44="",V44="",W44="",T44=""),1,"") ->  | Y44: =IF(AND($S$44=Y41,V44="",W44="",X44="",U44="",T44=""),1,"") ->  | Z44: =IF(AND($S$44=Z41,W44="",X44="",Y44="",V44="",U44="",T44=""),1,"") ->  | AA44: =IF(AND($S$44=AA41,X44="",Y44="",Z44="",W44="",V44="",U44="",T44=""),1,"") ->  | AB44: =IF(AND($S$44=AB41,Y44="",Z44="",AA44="",X44="",W44="",V44="",U44="",T44=""),1,"") ->  | AC44: =IF(AND($S$44=AC41,Z44="",AA44="",AB44="",Y44="",X44="",W44="",V44="",U44="",T44=""),1,"") ->  | AD44: =IF(AND($S$44=AD41,AA44="",AB44="",AC44="",Z44="",Y44="",X44="",W44="",V44="",U44="",T44=""),1,"") ->  | AE44: =IF(AND($S$44=AE41,AB44="",AC44="",AD44="",AA44="",Z44="",Y44="",X44="",W44="",V44="",U44="",T44=""),1,"") ->  | AF44: =IF(AND($S$44=AF41,AC44="",AD44="",AE44="",AB44="",AA44="",Z44="",Y44="",X44="",W44="",V44="",U44="",T44=""),1,"") ->  | AG44: =IF(AND($S$44=AG41,AD44="",AE44="",AF44="",AC44="",AB44="",AA44="",Z44="",Y44="",X44="",W44="",V44="",U44="",T44=""),1,"") ->  | AH44: =IF(AND($S$44=AH41,AE44="",AF44="",AG44="",AD44="",AC44="",AB44="",AA44="",Z44="",Y44="",X44="",W44="",V44="",U44="",T44=""),1,"") ->  | BA44: 31
O45: =IF(T45=1,$T$3,IF(U45=1,$U$3,IF(V45=1,$V$3,IF(W45=1,W3,IF(X45=1,$X$3,IF(Y45=1,$Y$3,IF(Z45=1,$Z$3,IF(AA45=1,$AA$3,IF(AB45=1,$AB$3,IF(AC45=1,$AC$3,IF(AD45=1,$AD$3,IF(AE45=1,AE3,IF(AF45=1,$AF$3,IF(AG45=1,$AG$3,IF(AH45=1,$AH$3,""))))))))))))))) ->  | S45: AM2 | T45: =IF($S$45=T41,1,"") ->  | U45: =IF(AND(U$41=$S$45,T45="",U44=""),1,"") ->  | V45: =IF(AND(V$41=$S$45,U45="",V44=""),1,"") ->  | W45: =IF(AND(W$41=$S$45,V45="",W44=""),1,"") ->  | X45: =IF(AND(X$41=$S$45,X44="",SUM($U$45:W45)=0),1,"") ->  | Y45: =IF(AND(Y$41=$S$45,Y44="",SUM($U$45:X45)=0),1,"") ->  | Z45: =IF(AND(Z$41=$S$45,Z44="",SUM($U$45:Y45)=0),1,"") ->  | AA45: =IF(AND(AA$41=$S$45,AA44="",SUM($U$45:Z45)=0),1,"") ->  | AB45: =IF(AND(AB$41=$S$45,AB44="",SUM($U$45:AA45)=0),1,"") ->  | AC45: =IF(AND(AC$41=$S$45,AC44="",SUM($U$45:AB45)=0),1,"") ->  | AD45: =IF(AND(AD$41=$S$45,AD44="",SUM($U$45:AC45)=0),1,"") ->  | AE45: =IF(AND(AE$41=$S$45,AE44="",SUM($U$45:AD45)=0),1,"") ->  | AF45: =IF(AND(AF$41=$S$45,AF44="",SUM($U$45:AE45)=0),1,"") ->  | AG45: =IF(AND(AG$41=$S$45,AG44="",SUM($U$45:AF45)=0),1,"") ->  | AH45: =IF(AND(AH$41=$S$45,AH44="",SUM($U$45:AG45)=0),1,"") -> 
O46: =IF(T46=1,$T$3,IF(U46=1,$U$3,IF(V46=1,$V$3,IF(W46=1,W3,IF(X46=1,$X$3,IF(Y46=1,$Y$3,IF(Z46=1,$Z$3,IF(AA46=1,$AA$3,IF(AB46=1,$AB$3,IF(AC46=1,$AC$3,IF(AD46=1,$AD$3,IF(AE46=1,AE3,IF(AF46=1,$AF$3,IF(AG46=1,$AG$3,IF(AH46=1,$AH$3,""))))))))))))))) ->  | S46: AM3 | T46: =IF($S$46=T41,1,"") ->  | U46: =IF(AND($S$46=$U$41,T46=""),1,"") ->  | V46: =IF(AND($S$46=$V$41,U46="",T46=""),1,"") ->  | W46: =IF(AND($S$46=W41,T46="",U46="",V46=""),1,"") ->  | X46: =IF(AND($S$46=X41,U46="",V46="",W46="",T46=""),1,"") ->  | Y46: =IF(AND($S$46=Y41,V46="",W46="",X46="",U46="",T46=""),1,"") ->  | Z46: =IF(AND($S$46=Z41,W46="",X46="",Y46="",V46="",U46="",T46=""),1,"") ->  | AA46: =IF(AND($S$46=AA41,X46="",Y46="",Z46="",W46="",V46="",U46="",T46=""),1,"") ->  | AB46: =IF(AND($S$46=AB41,Y46="",Z46="",AA46="",X46="",W46="",V46="",U46="",T46=""),1,"") ->  | AC46: =IF(AND($S$46=AC41,Z46="",AA46="",AB46="",Y46="",X46="",W46="",V46="",U46="",T46=""),1,"") ->  | AD46: =IF(AND($S$46=AD41,AA46="",AB46="",AC46="",Z46="",Y46="",X46="",W46="",V46="",U46="",T46=""),1,"") ->  | AE46: =IF(AND($S$46=AE41,AB46="",AC46="",AD46="",AA46="",Z46="",Y46="",X46="",W46="",V46="",U46="",T46=""),1,"") ->  | AF46: =IF(AND($S$46=AF41,AC46="",AD46="",AE46="",AB46="",AA46="",Z46="",Y46="",X46="",W46="",V46="",U46="",T46=""),1,"") ->  | AG46: =IF(AND($S$46=AG41,AD46="",AE46="",AF46="",AC46="",AB46="",AA46="",Z46="",Y46="",X46="",W46="",V46="",U46="",T46=""),1,"") ->  | AH46: =IF(AND($S$46=AH41,AE46="",AF46="",AG46="",AD46="",AC46="",AB46="",AA46="",Z46="",Y46="",X46="",W46="",V46="",U46="",T46=""),1,"") -> 
O47: =IF(T47=1,$T$3,IF(U47=1,$U$3,IF(V47=1,$V$3,IF(W47=1,W3,IF(X47=1,$X$3,IF(Y47=1,$Y$3,IF(Z47=1,$Z$3,IF(AA47=1,$AA$3,IF(AB47=1,$AB$3,IF(AC47=1,$AC$3,IF(AD47=1,$AD$3,IF(AE47=1,AE3,IF(AF47=1,$AF$3,IF(AG47=1,$AG$3,IF(AH47=1,$AH$3,""))))))))))))))) ->  | S47: AM3 | T47: =IF($S$47=T41,1,"") ->  | U47: =IF(AND(U$41=$S$47,T47="",U46=""),1,"") ->  | V47: =IF(AND(V$41=$S$47,U47="",V46=""),1,"") ->  | W47: =IF(AND(W$41=$S$47,V47="",W46=""),1,"") ->  | X47: =IF(AND(X$41=$S$47,X46="",SUM($U$47:W47)=0),1,"") ->  | Y47: =IF(AND(Y$41=$S$47,Y46="",SUM($U$47:X47)=0),1,"") ->  | Z47: =IF(AND(Z$41=$S$47,Z46="",SUM($U$47:Y47)=0),1,"") ->  | AA47: =IF(AND(AA$41=$S$47,AA46="",SUM($U$47:Z47)=0),1,"") ->  | AB47: =IF(AND(AB$41=$S$47,AB46="",SUM($U$47:AA47)=0),1,"") ->  | AC47: =IF(AND(AC$41=$S$47,AC46="",SUM($U$47:AB47)=0),1,"") ->  | AD47: =IF(AND(AD$41=$S$47,AD46="",SUM($U$47:AC47)=0),1,"") ->  | AE47: =IF(AND(AE$41=$S$47,AE46="",SUM($U$47:AD47)=0),1,"") ->  | AF47: =IF(AND(AF$41=$S$47,AF46="",SUM($U$47:AE47)=0),1,"") ->  | AG47: =IF(AND(AG$41=$S$47,AG46="",SUM($U$47:AF47)=0),1,"") ->  | AH47: =IF(AND(AH$41=$S$47,AH46="",SUM($U$47:AG47)=0),1,"") -> 
O48: =IF(T48=1,$T$3,IF(U48=1,$U$3,IF(V48=1,$V$3,IF(W48=1,W18,IF(X48=1,$X$3,IF(Y48=1,$Y$3,IF(Z48=1,$Z$3,IF(AA48=1,$AA$3,IF(AB48=1,$AB$3,IF(AC48=1,$AC$3,IF(AD48=1,$AD$3,IF(AE48=1,AE18,IF(AF48=1,$AF$3,IF(AG48=1,$AG$3,IF(AH48=1,$AH$3,""))))))))))))))) -> 
BA49: 35
O50: =IF(T50=1,$T$3,IF(U50=1,$U$3,IF(V50=1,$V$3,IF(W50=1,W3,IF(X50=1,$X$3,IF(Y50=1,$Y$3,IF(Z50=1,$Z$3,IF(AA50=1,$AA$3,IF(AB50=1,$AB$3,IF(AC50=1,$AC$3,IF(AD50=1,$AD$3,IF(AE50=1,AE12,IF(AF50=1,$AF$3,IF(AG50=1,$AG$3,IF(AH50=1,$AH$3,""))))))))))))))) ->  | P50: =IF(R50=1,R$9,IF(S50=1,S$9,IF(T50=1,T$9,IF(U50=1,U$9,IF(V50=1,V$9,IF(W50=1,W$9,IF(X50=1,X$9,IF(Y50=1,Y$9,IF(Z50=1,Z$9,IF(AA50=1,AA$9,IF(AB50=1,AB$9,""))))))))))) ->  | Q50: Début | S50: AM2 | T50: =IF($S$50=$T$32,1,"") ->  | U50: =IF(AND($S$50=$U$32,T50=""),1,"") ->  | V50: =IF(AND($S$50=$V$32,U50="",T50=""),1,"") ->  | W50: =IF(AND($S$50=W32,T50="",U50="",V50=""),1,"") ->  | X50: =IF(AND($S$50=$X$32,U50="",V50="",W50="",T50=""),1,"") ->  | Y50: =IF(AND($S$50=$Y$32,V50="",W50="",X50="",U50="",T50=""),1,"") ->  | Z50: =IF(AND($S$50=Z32,W50="",X50="",Y50="",V50="",U50="",T50=""),1,"") ->  | AA50: =IF(AND($S$50=AA32,X50="",Y50="",Z50="",W50="",V50="",U50="",T50=""),1,"") ->  | AB50: =IF(AND($S$50=$AB$32,Y50="",Z50="",AA50="",X50="",W50="",V50="",U50="",T50=""),1,"") ->  | AC50: =IF(AND($S$50=$AC$32,Z50="",AA50="",AB50="",Y50="",X50="",W50="",V50="",U50="",T50=""),1,"") ->  | AD50: =IF(AND($S$50=$AD$32,AA50="",AB50="",AC50="",Z50="",Y50="",X50="",W50="",V50="",U50="",T50=""),1,"") ->  | AE50: =IF(AND($S$50=$AE$32,AB50="",AC50="",AD50="",AA50="",Z50="",Y50="",X50="",W50="",V50="",U50="",T50=""),1,"") ->  | AF50: =IF(AND($S$50=$AF$32,AC50="",AD50="",AE50="",AB50="",AA50="",Z50="",Y50="",X50="",W50="",V50="",U50="",T50=""),1,"") ->  | AG50: =IF(AND($S$50=$AG$32,AD50="",AE50="",AF50="",AC50="",AB50="",AA50="",Z50="",Y50="",X50="",W50="",V50="",U50="",T50=""),1,"") ->  | AH50: =IF(AND($S$50=$AH$32,AE50="",AF50="",AG50="",AD50="",AC50="",AB50="",AA50="",Z50="",Y50="",X50="",W50="",V50="",U50="",T50=""),1,"") ->  | BA50: 36
O51: =IF(T51=1,$T$3,IF(U51=1,$U$3,IF(V51=1,$V$3,IF(W51=1,$W$3,IF(X51=1,$X$3,IF(Y51=1,$Y$3,IF(Z51=1,$Z$3,IF(AA51=1,$AA$3,IF(AB51=1,$AB$3,IF(AC51=1,$AC$3,IF(AD51=1,$AD$3,IF(AE51=1,$AE$3,IF(AF51=1,$AF$3,IF(AG51=1,$AG$3,IF(AH51=1,$AH$3,""))))))))))))))) ->  | P51: =IF(R51=1,R$9,IF(S51=1,S$9,IF(T51=1,T$9,IF(U51=1,U$9,IF(V51=1,V$9,IF(W51=1,W$9,IF(X51=1,X$9,IF(Y51=1,Y$9,IF(Z51=1,Z$9,IF(AA51=1,AA$9,IF(AB51=1,AB$9,""))))))))))) ->  | S51: AM2 | U51: =IF(AND(U$32=$S$51,T51="",U50=""),1,"") ->  | V51: =IF(AND(V$32=$S$51,U51="",V50=""),1,"") ->  | W51: =IF(AND(W$32=$S$51,V51="",W50=""),1,"") ->  | X51: =IF(AND(X$32=$S$51,X50="",SUM($U$51:W51)=0),1,"") ->  | Y51: =IF(AND(Y$32=$S$51,Y50="",SUM($U$51:X51)=0),1,"") ->  | Z51: =IF(AND(Z$32=$S$51,Z50="",SUM($U$51:Y51)=0),1,"") ->  | AA51: =IF(AND(AA$32=$S$51,AA50="",SUM($U$51:Z51)=0),1,"") ->  | AB51: =IF(AND(AB$32=$S$51,AB50="",SUM($U$51:AA51)=0),1,"") ->  | AC51: =IF(AND(AC$32=$S$51,AC50="",SUM($U$51:AB51)=0),1,"") ->  | AD51: =IF(AND(AD$32=$S$51,AD50="",SUM($U$51:AC51)=0),1,"") ->  | AE51: =IF(AND(AE$32=$S$51,AE50="",SUM($U$51:AD51)=0),1,"") ->  | AF51: =IF(AND(AF$32=$S$51,AF50="",SUM($U$51:AE51)=0),1,"") ->  | AG51: =IF(AND(AG$32=$S$51,AG50="",SUM($U$51:AF51)=0),1,"") ->  | AH51: =IF(AND(AH$32=$S$51,AH50="",SUM($U$51:AG51)=0),1,"") ->  | BA51: 37
O52: =IF(T52=1,$T$3,IF(U52=1,$U$3,IF(V52=1,$V$3,IF(W52=1,W10,IF(X52=1,$X$3,IF(Y52=1,$Y$3,IF(Z52=1,$Z$3,IF(AA52=1,$AA$3,IF(AB52=1,$AB$3,IF(AC52=1,$AC$3,IF(AD52=1,$AD$3,IF(AE52=1,$AE$3,IF(AF52=1,$AF$3,IF(AG52=1,$AG$3,IF(AH52=1,$AH$3,""))))))))))))))) ->  | S52: AM2 | V52: =IF(AND(V$32=S52,U52="",V51="",V50=""),1,"") ->  | W52: =IF(AND(W$32=S52,V52="",W51="",W50=""),1,"") ->  | X52: =IF(AND(X$32=$S$52,X50="",X51="",SUM($V$52:W52)=0),1,"") ->  | Y52: =IF(AND(Y$32=$S$52,Y50="",Y51="",SUM($V$52:X52)=0),1,"") ->  | Z52: =IF(AND(Z$32=$S$52,Z50="",Z51="",SUM($V$52:Y52)=0),1,"") ->  | AA52: =IF(AND(AA$32=$S$52,AA50="",AA51="",SUM($V$52:Z52)=0),1,"") ->  | AB52: =IF(AND(AB$32=$S$52,AB50="",AB51="",SUM($V$52:AA52)=0),1,"") ->  | AC52: =IF(AND(AC$32=$S$52,AC50="",AC51="",SUM($V$52:AB52)=0),1,"") ->  | AD52: =IF(AND(AD$32=$S$52,AD50="",AD51="",SUM($V$52:AC52)=0),1,"") ->  | AE52: =IF(AND(AE$32=$S$52,AE50="",AE51="",SUM($V$52:AD52)=0),1,"") ->  | AF52: =IF(AND(AF$32=$S$52,AF50="",AF51="",SUM($V$52:AE52)=0),1,"") ->  | AG52: =IF(AND(AG$32=$S$52,AG50="",AG51="",SUM($V$52:AF52)=0),1,"") ->  | AH52: =IF(AND(AH$32=$S$52,AH50="",AH51="",SUM($V$52:AG52)=0),1,"") ->  | BA52: 38
BA53: 39
BA54: 40
O55: =IF(T55=1,$T$3,IF(U55=1,$U$3,IF(V55=1,$V$3,IF(W55=1,W8,IF(X55=1,$X$3,IF(Y55=1,$Y$3,IF(Z55=1,$Z$3,IF(AA55=1,$AA$3,IF(AB55=1,$AB$3,IF(AC55=1,$AC$3,IF(AD55=1,$AD$3,IF(AE55=1,AE17,IF(AF55=1,$AF$3,IF(AG55=1,$AG$3,IF(AH55=1,$AH$3,""))))))))))))))) ->  | P55: =IF(R55=1,R$9,IF(S55=1,S$9,IF(T55=1,T$9,IF(U55=1,U$9,IF(V55=1,V$9,IF(W55=1,W$9,IF(X55=1,X$9,IF(Y55=1,Y$9,IF(Z55=1,Z$9,IF(AA55=1,AA$9,IF(AB55=1,AB$9,""))))))))))) ->  | Q55: Matin | S55: AM3 | T55: =IF($S$55=$T$32,1,"") ->  | U55: =IF(AND($S$55=$U$32,T55=""),1,"") ->  | V55: =IF(AND($S$55=$V$32,U55="",T55=""),1,"") ->  | W55: =IF(AND($S$55=W37,T55="",U55="",V55=""),1,"") ->  | X55: =IF(AND($S$55=$X$32,U55="",V55="",W55="",T55=""),1,"") ->  | Y55: =IF(AND($S$55=$Y$32,V55="",W55="",X55="",U55="",T55=""),1,"") ->  | Z55: =IF(AND($S$55=Z37,W55="",X55="",Y55="",V55="",U55="",T55=""),1,"") ->  | AA55: =IF(AND($S$55=AA37,X55="",Y55="",Z55="",W55="",V55="",U55="",T55=""),1,"") ->  | AB55: =IF(AND($S$55=$AB$32,Y55="",Z55="",AA55="",X55="",W55="",V55="",U55="",T55=""),1,"") ->  | AC55: =IF(AND($S$55=$AC$32,Z55="",AA55="",AB55="",Y55="",X55="",W55="",V55="",U55="",T55=""),1,"") ->  | AD55: =IF(AND($S$55=$AD$32,AA55="",AB55="",AC55="",Z55="",Y55="",X55="",W55="",V55="",U55="",T55=""),1,"") ->  | AE55: =IF(AND($S$55=$AE$32,AB55="",AC55="",AD55="",AA55="",Z55="",Y55="",X55="",W55="",V55="",U55="",T55=""),1,"") ->  | AF55: =IF(AND($S$55=$AF$32,AC55="",AD55="",AE55="",AB55="",AA55="",Z55="",Y55="",X55="",W55="",V55="",U55="",T55=""),1,"") ->  | AG55: =IF(AND($S$55=$AG$32,AD55="",AE55="",AF55="",AC55="",AB55="",AA55="",Z55="",Y55="",X55="",W55="",V55="",U55="",T55=""),1,"") ->  | AH55: =IF(AND($S$55=$AH$32,AE55="",AF55="",AG55="",AD55="",AC55="",AB55="",AA55="",Z55="",Y55="",X55="",W55="",V55="",U55="",T55=""),1,"") ->  | BA55: 41
O56: =IF(T56=1,$T$3,IF(U56=1,$U$3,IF(V56=1,$V$3,IF(W56=1,$W$3,IF(X56=1,$X$3,IF(Y56=1,$Y$3,IF(Z56=1,$Z$3,IF(AA56=1,$AA$3,IF(AB56=1,$AB$3,IF(AC56=1,$AC$3,IF(AD56=1,$AD$3,IF(AE56=1,$AE$3,IF(AF56=1,$AF$3,IF(AG56=1,$AG$3,IF(AH56=1,$AH$3,""))))))))))))))) ->  | P56: =IF(R56=1,R$9,IF(S56=1,S$9,IF(T56=1,T$9,IF(U56=1,U$9,IF(V56=1,V$9,IF(W56=1,W$9,IF(X56=1,X$9,IF(Y56=1,Y$9,IF(Z56=1,Z$9,IF(AA56=1,AA$9,IF(AB56=1,AB$9,""))))))))))) ->  | S56: AM3 | U56: =IF(AND(U$32=$S$56,T56="",U55=""),1,"") ->  | V56: =IF(AND(V$32=$S$56,U56="",V55=""),1,"") ->  | W56: =IF(AND(W$32=$S$56,V56="",W55=""),1,"") ->  | X56: =IF(AND(X$32=$S$56,X55="",SUM($U$56:W56)=0),1,"") ->  | Y56: =IF(AND(Y$32=$S$56,Y55="",SUM($U$56:X56)=0),1,"") ->  | Z56: =IF(AND(Z$32=$S$56,Z55="",SUM($U$56:Y56)=0),1,"") ->  | AA56: =IF(AND(AA$32=$S$56,AA55="",SUM($U$56:Z56)=0),1,"") ->  | AB56: =IF(AND(AB$32=$S$56,AB55="",SUM($U$56:AA56)=0),1,"") ->  | AC56: =IF(AND(AC$32=$S$56,AC55="",SUM($U$56:AB56)=0),1,"") ->  | AD56: =IF(AND(AD$32=$S$56,AD55="",SUM($U$56:AC56)=0),1,"") ->  | AE56: =IF(AND(AE$32=$S$56,AE55="",SUM($U$56:AD56)=0),1,"") ->  | AF56: =IF(AND(AF$32=$S$56,AF55="",SUM($U$56:AE56)=0),1,"") ->  | AG56: =IF(AND(AG$32=$S$56,AG55="",SUM($U$56:AF56)=0),1,"") ->  | AH56: =IF(AND(AH$32=$S$56,AH55="",SUM($U$56:AG56)=0),1,"") ->  | BA56: 42
O57: =IF(T57=1,$T$3,IF(U57=1,$U$3,IF(V57=1,$V$3,IF(W57=1,$W$3,IF(X57=1,$X$3,IF(Y57=1,$Y$3,IF(Z57=1,$Z$3,IF(AA57=1,$AA$3,IF(AB57=1,$AB$3,IF(AC57=1,$AC$3,IF(AD57=1,$AD$3,IF(AE57=1,$AE$3,IF(AF57=1,$AF$3,IF(AG57=1,$AG$3,IF(AH57=1,$AH$3,""))))))))))))))) ->  | S57: AM3 | V57: =IF(AND(V$32=S57,U57="",V56="",V55=""),1,"") ->  | W57: =IF(AND(W$32=S57,V57="",W56="",W55=""),1,"") ->  | X57: =IF(AND(X$32=$S$57,X55="",X56="",SUM($V$57:W57)=0),1,"") ->  | Y57: =IF(AND(Y$32=$S$57,Y55="",Y56="",SUM($V$57:X57)=0),1,"") ->  | Z57: =IF(AND(Z$32=$S$57,Z55="",Z56="",SUM($V$57:Y57)=0),1,"") ->  | AA57: =IF(AND(AA$32=$S$57,AA55="",AA56="",SUM($V$57:Z57)=0),1,"") ->  | AB57: =IF(AND(AB$32=$S$57,AB55="",AB56="",SUM($V$57:AA57)=0),1,"") ->  | AC57: =IF(AND(AC$32=$S$57,AC55="",AC56="",SUM($V$57:AB57)=0),1,"") ->  | AD57: =IF(AND(AD$32=$S$57,AD55="",AD56="",SUM($V$57:AC57)=0),1,"") ->  | AE57: =IF(AND(AE$32=$S$57,AE55="",AE56="",SUM($V$57:AD57)=0),1,"") ->  | AF57: =IF(AND(AF$32=$S$57,AF55="",AF56="",SUM($V$57:AE57)=0),1,"") ->  | AG57: =IF(AND(AG$32=$S$57,AG55="",AG56="",SUM($V$57:AF57)=0),1,"") ->  | AH57: =IF(AND(AH$32=$S$57,AH55="",AH56="",SUM($V$57:AG57)=0),1,"") ->  | BA57: 43
BA58: 44
BA59: 45
O60: =IF(T60=1,$T$3,IF(U60=1,$U$3,IF(V60=1,$V$3,IF(W60=1,$W$3,IF(X60=1,$X$3,IF(Y60=1,$Y$3,IF(Z60=1,$Z$3,IF(AA60=1,$AA$3,IF(AB60=1,$AB$3,IF(AC60=1,$AC$3,IF(AD60=1,$AD$3,IF(AE60=1,$AE$3,IF(AF60=1,$AF$3,IF(AG60=1,$AG$3,IF(AH60=1,$AH$3,""))))))))))))))) ->  | P60: =IF(R60=1,R$9,IF(S60=1,S$9,IF(T60=1,T$9,IF(U60=1,U$9,IF(V60=1,V$9,IF(W60=1,W$9,IF(X60=1,X$9,IF(Y60=1,Y$9,IF(Z60=1,Z$9,IF(AA60=1,AA$9,IF(AB60=1,AB$9,""))))))))))) ->  | Q60: Matin | S60: M | T60: =IF($S$60=$T$32,1,"") ->  | U60: =IF(AND($S$60=$U$32,T60=""),1,"") ->  | V60: =IF(AND($S$60=$V$32,U60="",T60=""),1,"") ->  | W60: =IF(AND($S$60=W50,T60="",U60="",V60=""),1,"") ->  | X60: =IF(AND($S$60=$X$32,U60="",V60="",W60="",T60=""),1,"") ->  | Y60: =IF(AND($S$60=$Y$32,V60="",W60="",X60="",U60="",T60=""),1,"") ->  | Z60: =IF(AND($S$60=Z50,W60="",X60="",Y60="",V60="",U60="",T60=""),1,"") ->  | AA60: =IF(AND($S$60=AA50,X60="",Y60="",Z60="",W60="",V60="",U60="",T60=""),1,"") ->  | AB60: =IF(AND($S$60=$AB$32,Y60="",Z60="",AA60="",X60="",W60="",V60="",U60="",T60=""),1,"") ->  | AC60: =IF(AND($S$60=$AC$32,Z60="",AA60="",AB60="",Y60="",X60="",W60="",V60="",U60="",T60=""),1,"") ->  | AD60: =IF(AND($S$60=$AD$32,AA60="",AB60="",AC60="",Z60="",Y60="",X60="",W60="",V60="",U60="",T60=""),1,"") ->  | AE60: =IF(AND($S$60=$AE$32,AB60="",AC60="",AD60="",AA60="",Z60="",Y60="",X60="",W60="",V60="",U60="",T60=""),1,"") ->  | AF60: =IF(AND($S$60=$AF$32,AC60="",AD60="",AE60="",AB60="",AA60="",Z60="",Y60="",X60="",W60="",V60="",U60="",T60=""),1,"") ->  | AG60: =IF(AND($S$60=$AG$32,AD60="",AE60="",AF60="",AC60="",AB60="",AA60="",Z60="",Y60="",X60="",W60="",V60="",U60="",T60=""),1,"") ->  | AH60: =IF(AND($S$60=$AH$32,AE60="",AF60="",AG60="",AD60="",AC60="",AB60="",AA60="",Z60="",Y60="",X60="",W60="",V60="",U60="",T60=""),1,"") ->  | BA60: 46
O61: =IF(T61=1,$T$3,IF(U61=1,$U$3,IF(V61=1,$V$3,IF(W61=1,$W$3,IF(X61=1,$X$3,IF(Y61=1,$Y$3,IF(Z61=1,$Z$3,IF(AA61=1,$AA$3,IF(AB61=1,$AB$3,IF(AC61=1,$AC$3,IF(AD61=1,$AD$3,IF(AE61=1,$AE$3,IF(AF61=1,$AF$3,IF(AG61=1,$AG$3,IF(AH61=1,$AH$3,""))))))))))))))) ->  | P61: =IF(R61=1,R$9,IF(S61=1,S$9,IF(T61=1,T$9,IF(U61=1,U$9,IF(V61=1,V$9,IF(W61=1,W$9,IF(X61=1,X$9,IF(Y61=1,Y$9,IF(Z61=1,Z$9,IF(AA61=1,AA$9,IF(AB61=1,AB$9,""))))))))))) ->  | S61: M | U61: =IF(AND(U$32=$S$61,T61="",U60=""),1,"") ->  | V61: =IF(AND(V$32=$S$61,U61="",V60=""),1,"") ->  | W61: =IF(AND(W$32=$S$61,V61="",W60=""),1,"") ->  | X61: =IF(AND(X$32=$S$61,X60="",SUM($U$61:W61)=0),1,"") ->  | Y61: =IF(AND(Y$32=$S$61,Y60="",SUM($U$61:X61)=0),1,"") ->  | Z61: =IF(AND(Z$32=$S$61,Z60="",SUM($U$61:Y61)=0),1,"") ->  | AA61: =IF(AND(AA$32=$S$61,AA60="",SUM($U$61:Z61)=0),1,"") ->  | AB61: =IF(AND(AB$32=$S$61,AB60="",SUM($U$61:AA61)=0),1,"") ->  | AC61: =IF(AND(AC$32=$S$61,AC60="",SUM($U$61:AB61)=0),1,"") ->  | AD61: =IF(AND(AD$32=$S$61,AD60="",SUM($U$61:AC61)=0),1,"") ->  | AE61: =IF(AND(AE$32=$S$61,AE60="",SUM($U$61:AD61)=0),1,"") ->  | AF61: =IF(AND(AF$32=$S$61,AF60="",SUM($U$61:AE61)=0),1,"") ->  | AG61: =IF(AND(AG$32=$S$61,AG60="",SUM($U$61:AF61)=0),1,"") ->  | AH61: =IF(AND(AH$32=$S$61,AH60="",SUM($U$61:AG61)=0),1,"") ->  | BA61: 47
O62: =IF(T62=1,$T$3,IF(U62=1,$U$3,IF(V62=1,$V$3,IF(W62=1,$W$3,IF(X62=1,$X$3,IF(Y62=1,$Y$3,IF(Z62=1,$Z$3,IF(AA62=1,$AA$3,IF(AB62=1,$AB$3,IF(AC62=1,$AC$3,IF(AD62=1,$AD$3,IF(AE62=1,$AE$3,IF(AF62=1,$AF$3,IF(AG62=1,$AG$3,IF(AH62=1,$AH$3,""))))))))))))))) ->  | S62: M | V62: =IF(AND(V$32=S62,U62="",V61="",V60=""),1,"") ->  | W62: =IF(AND(W$32=S62,V62="",W61="",W60=""),1,"") ->  | X62: =IF(AND(X$32=$S$62,X60="",X61="",SUM($V$62:W62)=0),1,"") ->  | Y62: =IF(AND(Y$32=$S$62,Y60="",Y61="",SUM($V$62:X62)=0),1,"") ->  | Z62: =IF(AND(Z$32=$S$62,Z60="",Z61="",SUM($V$62:Y62)=0),1,"") ->  | AA62: =IF(AND(AA$32=$S$62,AA60="",AA61="",SUM($V$62:Z62)=0),1,"") ->  | AB62: =IF(AND(AB$32=$S$62,AB60="",AB61="",SUM($V$62:AA62)=0),1,"") ->  | AC62: =IF(AND(AC$32=$S$62,AC60="",AC61="",SUM($V$62:AB62)=0),1,"") ->  | AD62: =IF(AND(AD$32=$S$62,AD60="",AD61="",SUM($V$62:AC62)=0),1,"") ->  | AE62: =IF(AND(AE$32=$S$62,AE60="",AE61="",SUM($V$62:AD62)=0),1,"") ->  | AF62: =IF(AND(AF$32=$S$62,AF60="",AF61="",SUM($V$62:AE62)=0),1,"") ->  | AG62: =IF(AND(AG$32=$S$62,AG60="",AG61="",SUM($V$62:AF62)=0),1,"") ->  | AH62: =IF(AND(AH$32=$S$62,AH60="",AH61="",SUM($V$62:AG62)=0),1,"") ->  | BA62: 48
BA63: 49
BA64: 50
O65: =IF(T65=1,$T$3,IF(U65=1,$U$3,IF(V65=1,$V$3,IF(W65=1,$W$3,IF(X65=1,$X$3,IF(Y65=1,$Y$3,IF(Z65=1,$Z$3,IF(AA65=1,$AA$3,IF(AB65=1,$AB$3,IF(AC65=1,$AC$3,IF(AD65=1,$AD$3,IF(AE65=1,$AE$3,IF(AF65=1,$AF$3,IF(AG65=1,$AG$3,IF(AH65=1,$AH$3,""))))))))))))))) ->  | P65: =IF(R65=1,R$9,IF(S65=1,S$9,IF(T65=1,T$9,IF(U65=1,U$9,IF(V65=1,V$9,IF(W65=1,W$9,IF(X65=1,X$9,IF(Y65=1,Y$9,IF(Z65=1,Z$9,IF(AA65=1,AA$9,IF(AB65=1,AB$9,""))))))))))) ->  | Q65: Après-midi | S65: AP | T65: =IF($S$65=$T$32,1,"") ->  | U65: =IF(AND($S$65=$U$32,T65=""),1,"") ->  | V65: =IF(AND($S$65=$V$32,U65="",T65=""),1,"") ->  | W65: =IF(AND($S$65=W32,T65="",U65="",V65=""),1,"") ->  | X65: =IF(AND($S$65=$X$32,U65="",V65="",W65="",T65=""),1,"") ->  | Y65: =IF(AND($S$65=$Y$32,V65="",W65="",X65="",U65="",T65=""),1,"") ->  | Z65: =IF(AND($S$65=Z32,W65="",X65="",Y65="",V65="",U65="",T65=""),1,"") ->  | AA65: =IF(AND($S$65=AA32,X65="",Y65="",Z65="",W65="",V65="",U65="",T65=""),1,"") ->  | AB65: =IF(AND($S$65=$AB$32,Y65="",Z65="",AA65="",X65="",W65="",V65="",U65="",T65=""),1,"") ->  | AC65: =IF(AND($S$65=$AC$32,Z65="",AA65="",AB65="",Y65="",X65="",W65="",V65="",U65="",T65=""),1,"") ->  | AD65: =IF(AND($S$65=$AD$32,AA65="",AB65="",AC65="",Z65="",Y65="",X65="",W65="",V65="",U65="",T65=""),1,"") ->  | AE65: =IF(AND($S$65=$AE$32,AB65="",AC65="",AD65="",AA65="",Z65="",Y65="",X65="",W65="",V65="",U65="",T65=""),1,"") ->  | AF65: =IF(AND($S$65=$AF$32,AC65="",AD65="",AE65="",AB65="",AA65="",Z65="",Y65="",X65="",W65="",V65="",U65="",T65=""),1,"") ->  | AG65: =IF(AND($S$65=$AG$32,AD65="",AE65="",AF65="",AC65="",AB65="",AA65="",Z65="",Y65="",X65="",W65="",V65="",U65="",T65=""),1,"") ->  | AH65: =IF(AND($S$65=$AH$32,AE65="",AF65="",AG65="",AD65="",AC65="",AB65="",AA65="",Z65="",Y65="",X65="",W65="",V65="",U65="",T65=""),1,"") ->  | BA65: 51
O66: =IF(T66=1,$T$3,IF(U66=1,$U$3,IF(V66=1,$V$3,IF(W66=1,$W$3,IF(X66=1,$X$3,IF(Y66=1,$Y$3,IF(Z66=1,$Z$3,IF(AA66=1,$AA$3,IF(AB66=1,$AB$3,IF(AC66=1,$AC$3,IF(AD66=1,$AD$3,IF(AE66=1,$AE$3,IF(AF66=1,$AF$3,IF(AG66=1,$AG$3,IF(AH66=1,$AH$3,""))))))))))))))) ->  | P66: =IF(R66=1,R$9,IF(S66=1,S$9,IF(T66=1,T$9,IF(U66=1,U$9,IF(V66=1,V$9,IF(W66=1,W$9,IF(X66=1,X$9,IF(Y66=1,Y$9,IF(Z66=1,Z$9,IF(AA66=1,AA$9,IF(AB66=1,AB$9,""))))))))))) ->  | S66: AP | U66: =IF(AND(U$32=$S$66,T66="",U65=""),1,"") ->  | V66: =IF(AND(V$32=$S$66,U66="",V65=""),1,"") ->  | W66: =IF(AND(W$32=$S$66,V66="",W65=""),1,"") ->  | X66: =IF(AND(X$32=$S$66,X65="",SUM($U$66:W66)=0),1,"") ->  | Y66: =IF(AND(Y$32=$S$66,Y65="",SUM($U$66:X66)=0),1,"") ->  | Z66: =IF(AND(Z$32=$S$66,Z65="",SUM($U$66:Y66)=0),1,"") ->  | AA66: =IF(AND(AA$32=$S$66,AA65="",SUM($U$66:Z66)=0),1,"") ->  | AB66: =IF(AND(AB$32=$S$66,AB65="",SUM($U$66:AA66)=0),1,"") ->  | AC66: =IF(AND(AC$32=$S$66,AC65="",SUM($U$66:AB66)=0),1,"") ->  | AD66: =IF(AND(AD$32=$S$66,AD65="",SUM($U$66:AC66)=0),1,"") ->  | AE66: =IF(AND(AE$32=$S$66,AE65="",SUM($U$66:AD66)=0),1,"") ->  | AF66: =IF(AND(AF$32=$S$66,AF65="",SUM($U$66:AE66)=0),1,"") ->  | AG66: =IF(AND(AG$32=$S$66,AG65="",SUM($U$66:AF66)=0),1,"") ->  | AH66: =IF(AND(AH$32=$S$66,AH65="",SUM($U$66:AG66)=0),1,"") ->  | BA66: 52
O67: =IF(T67=1,$T$3,IF(U67=1,$U$3,IF(V67=1,$V$3,IF(W67=1,$W$3,IF(X67=1,$X$3,IF(Y67=1,$Y$3,IF(Z67=1,$Z$3,IF(AA67=1,$AA$3,IF(AB67=1,$AB$3,IF(AC67=1,$AC$3,IF(AD67=1,$AD$3,IF(AE67=1,$AE$3,IF(AF67=1,$AF$3,IF(AG67=1,$AG$3,IF(AH67=1,$AH$3,""))))))))))))))) ->  | S67: AP | V67: =IF(AND(V$32=S67,U67="",V66="",V65=""),1,"") ->  | W67: =IF(AND(W$32=S67,V67="",W66="",W65=""),1,"") ->  | X67: =IF(AND(X$32=$S$67,X65="",X66="",SUM($V$62:W67)=0),1,"") ->  | Y67: =IF(AND(Y$32=$S$67,Y65="",Y66="",SUM($V$67:X67)=0),1,"") ->  | Z67: =IF(AND(Z$32=$S$67,Z65="",Z66="",SUM($V$67:Y67)=0),1,"") ->  | AA67: =IF(AND(AA$32=$S$67,AA65="",AA66="",SUM($V$67:Z67)=0),1,"") ->  | AB67: =IF(AND(AB$32=$S$67,AB65="",AB66="",SUM($V$67:AA67)=0),1,"") ->  | AC67: =IF(AND(AC$32=$S$67,AC65="",AC66="",SUM($V$67:AB67)=0),1,"") ->  | AD67: =IF(AND(AD$32=$S$67,AD65="",AD66="",SUM($V$67:AC67)=0),1,"") ->  | AE67: =IF(AND(AE$32=$S$67,AE65="",AE66="",SUM($V$67:AD67)=0),1,"") ->  | AF67: =IF(AND(AF$32=$S$67,AF65="",AF66="",SUM($V$67:AE67)=0),1,"") ->  | AG67: =IF(AND(AG$32=$S$67,AG65="",AG66="",SUM($V$67:AF67)=0),1,"") ->  | AH67: =IF(AND(AH$32=$S$67,AH65="",AH66="",SUM($V$67:AG67)=0),1,"") ->  | BA67: 53
O70: =IF(T70=1,$T$3,IF(U70=1,$U$3,IF(V70=1,$V$3,IF(W70=1,$W$3,IF(X70=1,$X$3,IF(Y70=1,$Y$3,IF(Z70=1,$Z$3,IF(AA70=1,$AA$3,IF(AB70=1,$AB$3,IF(AC70=1,$AC$3,IF(AD70=1,$AD$3,IF(AE70=1,$AE$3,IF(AF70=1,$AF$3,IF(AG70=1,$AG$3,IF(AH70=1,$AH$3,""))))))))))))))) ->  | P70: =IF(R70=1,R$9,IF(S70=1,S$9,IF(T70=1,T$9,IF(U70=1,U$9,IF(V70=1,V$9,IF(W70=1,W$9,IF(X70=1,X$9,IF(Y70=1,Y$9,IF(Z70=1,Z$9,IF(AA70=1,AA$9,IF(AB70=1,AB$9,""))))))))))) ->  | Q70: Soir | S70: S | T70: =IF($S$70=$T$32,1,"") ->  | U70: =IF(AND($S$70=$U$32,T70=""),1,"") ->  | V70: =IF(AND($S$70=$V$32,U70="",T70=""),1,"") ->  | W70: =IF(AND($S$70=$W$32,T70="",U70="",V70=""),1,"") ->  | X70: =IF(AND($S$70=$X$32,U70="",V70="",W70="",T70=""),1,"") ->  | Y70: =IF(AND($S$70=$Y$32,V70="",W70="",X70="",U70="",T70=""),1,"") ->  | Z70: =IF(AND($S$70=Z60,W70="",X70="",Y70="",V70="",U70="",T70=""),1,"") ->  | AA70: =IF(AND($S$70=AA60,X70="",Y70="",Z70="",W70="",V70="",U70="",T70=""),1,"") ->  | AB70: =IF(AND($S$70=$AB$32,Y70="",Z70="",AA70="",X70="",W70="",V70="",U70="",T70=""),1,"") ->  | AC70: =IF(AND($S$70=$AC$32,Z70="",AA70="",AB70="",Y70="",X70="",W70="",V70="",U70="",T70=""),1,"") ->  | AD70: =IF(AND($S$70=$AD$32,AA70="",AB70="",AC70="",Z70="",Y70="",X70="",W70="",V70="",U70="",T70=""),1,"") ->  | AE70: =IF(AND($S$70=$AE$32,AB70="",AC70="",AD70="",AA70="",Z70="",Y70="",X70="",W70="",V70="",U70="",T70=""),1,"") ->  | AF70: =IF(AND($S$70=$AF$32,AC70="",AD70="",AE70="",AB70="",AA70="",Z70="",Y70="",X70="",W70="",V70="",U70="",T70=""),1,"") ->  | AG70: =IF(AND($S$70=$AG$32,AD70="",AE70="",AF70="",AC70="",AB70="",AA70="",Z70="",Y70="",X70="",W70="",V70="",U70="",T70=""),1,"") ->  | AH70: =IF(AND($S$70=$AH$32,AE70="",AF70="",AG70="",AD70="",AC70="",AB70="",AA70="",Z70="",Y70="",X70="",W70="",V70="",U70="",T70=""),1,"") -> 
O71: =IF(T71=1,$T$3,IF(U71=1,$U$3,IF(V71=1,$V$3,IF(W71=1,$W$3,IF(X71=1,$X$3,IF(Y71=1,$Y$3,IF(Z71=1,$Z$3,IF(AA71=1,$AA$3,IF(AB71=1,$AB$3,IF(AC71=1,$AC$3,IF(AD71=1,$AD$3,IF(AE71=1,$AE$3,IF(AF71=1,$AF$3,IF(AG71=1,$AG$3,IF(AH71=1,$AH$3,""))))))))))))))) ->  | P71: =IF(R71=1,R$9,IF(S71=1,S$9,IF(T71=1,T$9,IF(U71=1,U$9,IF(V71=1,V$9,IF(W71=1,W$9,IF(X71=1,X$9,IF(Y71=1,Y$9,IF(Z71=1,Z$9,IF(AA71=1,AA$9,IF(AB71=1,AB$9,""))))))))))) ->  | S71: S | U71: =IF(AND(U$32=$S$71,T71="",U70=""),1,"") ->  | V71: =IF(AND(V$32=$S$71,U71="",V70=""),1,"") ->  | W71: =IF(AND(W$32=$S$71,V71="",W70=""),1,"") ->  | X71: =IF(AND(X$32=$S$71,X70="",SUM($U$71:W71)=0),1,"") ->  | Y71: =IF(AND(Y$32=$S$71,Y70="",SUM($U$71:X71)=0),1,"") ->  | Z71: =IF(AND(Z$32=$S$71,Z70="",SUM($U$71:Y71)=0),1,"") ->  | AA71: =IF(AND(AA$32=$S$71,AA70="",SUM($U$71:Z71)=0),1,"") ->  | AB71: =IF(AND(AB$32=$S$71,AB70="",SUM($U$71:AA71)=0),1,"") ->  | AC71: =IF(AND(AC$32=$S$71,AC70="",SUM($U$71:AB71)=0),1,"") ->  | AD71: =IF(AND(AD$32=$S$71,AD70="",SUM($U$71:AC71)=0),1,"") ->  | AE71: =IF(AND(AE$32=$S$71,AE70="",SUM($U$71:AD71)=0),1,"") ->  | AF71: =IF(AND(AF$32=$S$71,AF70="",SUM($U$71:AE71)=0),1,"") ->  | AG71: =IF(AND(AG$32=$S$71,AG70="",SUM($U$71:AF71)=0),1,"") ->  | AH71: =IF(AND(AH$32=$S$71,AH70="",SUM($U$71:AG71)=0),1,"") -> 
O72: =IF(T72=1,$T$3,IF(U72=1,$U$3,IF(V72=1,$V$3,IF(W72=1,$W$3,IF(X72=1,$X$3,IF(Y72=1,$Y$3,IF(Z72=1,$Z$3,IF(AA72=1,$AA$3,IF(AB72=1,$AB$3,IF(AC72=1,$AC$3,IF(AD72=1,$AD$3,IF(AE72=1,$AE$3,IF(AF72=1,$AF$3,IF(AG72=1,$AG$3,IF(AH72=1,$AH$3,""))))))))))))))) ->  | S72: S | V72: =IF(AND(V$32=S72,U72="",V71="",V70=""),1,"") ->  | W72: =IF(AND(W$32=S72,V72="",W71="",W70=""),1,"") ->  | X72: =IF(AND(X$32=$S$72,X70="",X71="",SUM($V$72:W72)=0),1,"") ->  | Y72: =IF(AND(Y$32=$S$72,Y70="",Y71="",SUM($V$72:X72)=0),1,"") ->  | Z72: =IF(AND(Z$32=$S$72,Z70="",Z71="",SUM($V$72:Y72)=0),1,"") ->  | AA72: =IF(AND(AA$32=$S$72,AA70="",AA71="",SUM($V$72:Z72)=0),1,"") ->  | AB72: =IF(AND(AB$32=$S$72,AB70="",AB71="",SUM($V$72:AA72)=0),1,"") ->  | AC72: =IF(AND(AC$32=$S$72,AC70="",AC71="",SUM($V$72:AB72)=0),1,"") ->  | AD72: =IF(AND(AD$32=$S$72,AD70="",AD71="",SUM($V$72:AC72)=0),1,"") ->  | AE72: =IF(AND(AE$32=$S$72,AE70="",AE71="",SUM($V$72:AD72)=0),1,"") ->  | AF72: =IF(AND(AF$32=$S$72,AF70="",AF71="",SUM($V$72:AE72)=0),1,"") ->  | AG72: =IF(AND(AG$32=$S$72,AG70="",AG71="",SUM($V$72:AF72)=0),1,"") ->  | AH72: =IF(AND(AH$32=$S$72,AH70="",AH71="",SUM($V$72:AG72)=0),1,"") -> 
O75: =IF(T75=1,$T$3,IF(U75=1,$U$3,IF(V75=1,$V$3,IF(W75=1,$W$3,IF(X75=1,$X$3,IF(Y75=1,$Y$3,IF(Z75=1,$Z$3,IF(AA75=1,$AA$3,IF(AB75=1,$AB$3,IF(AC75=1,$AC$3,IF(AD75=1,$AD$3,IF(AE75=1,$AE$3,IF(AF75=1,$AF$3,IF(AG75=1,$AG$3,IF(AH75=1,$AH$3,""))))))))))))))) ->  | P75: =IF(R75=1,R$9,IF(S75=1,S$9,IF(T75=1,T$9,IF(U75=1,U$9,IF(V75=1,V$9,IF(W75=1,W$9,IF(X75=1,X$9,IF(Y75=1,Y$9,IF(Z75=1,Z$9,IF(AA75=1,AA$9,IF(AB75=1,AB$9,""))))))))))) ->  | Q75: Nuit | S75: N | T75: =IF($S$75=$T$32,1,"") ->  | U75: =IF(AND($S$75=$U$32,T75=""),1,"") ->  | V75: =IF(AND($S$75=$V$32,U75="",T75=""),1,"") ->  | W75: =IF(AND($S$75=$W$32,T75="",U75="",V75=""),1,"") ->  | X75: =IF(AND($S$75=$X$32,U75="",V75="",W75="",T75=""),1,"") ->  | Y75: =IF(AND($S$75=$Y$32,V75="",W75="",X75="",U75="",T75=""),1,"") ->  | Z75: =IF(AND($S$75=Z32,W75="",X75="",Y75="",V75="",U75="",T75=""),1,"") ->  | AA75: =IF(AND($S$75=AA32,X75="",Y75="",Z75="",W75="",V75="",U75="",T75=""),1,"") ->  | AB75: =IF(AND($S$75=$AB$32,Y75="",Z75="",AA75="",X75="",W75="",V75="",U75="",T75=""),1,"") ->  | AC75: =IF(AND($S$75=$AC$32,Z75="",AA75="",AB75="",Y75="",X75="",W75="",V75="",U75="",T75=""),1,"") ->  | AD75: =IF(AND($S$75=$AD$32,AA75="",AB75="",AC75="",Z75="",Y75="",X75="",W75="",V75="",U75="",T75=""),1,"") ->  | AE75: =IF(AND($S$75=$AE$32,AB75="",AC75="",AD75="",AA75="",Z75="",Y75="",X75="",W75="",V75="",U75="",T75=""),1,"") ->  | AF75: =IF(AND($S$75=$AF$32,AC75="",AD75="",AE75="",AB75="",AA75="",Z75="",Y75="",X75="",W75="",V75="",U75="",T75=""),1,"") ->  | AG75: =IF(AND($S$75=$AG$32,AD75="",AE75="",AF75="",AC75="",AB75="",AA75="",Z75="",Y75="",X75="",W75="",V75="",U75="",T75=""),1,"") ->  | AH75: =IF(AND($S$75=$AH$32,AE75="",AF75="",AG75="",AD75="",AC75="",AB75="",AA75="",Z75="",Y75="",X75="",W75="",V75="",U75="",T75=""),1,"") -> 
O76: =IF(T76=1,$T$3,IF(U76=1,$U$3,IF(V76=1,$V$3,IF(W76=1,$W$3,IF(X76=1,$X$3,IF(Y76=1,$Y$3,IF(Z76=1,$Z$3,IF(AA76=1,$AA$3,IF(AB76=1,$AB$3,IF(AC76=1,$AC$3,IF(AD76=1,$AD$3,IF(AE76=1,$AE$3,IF(AF76=1,$AF$3,IF(AG76=1,$AG$3,IF(AH76=1,$AH$3,""))))))))))))))) ->  | P76: =IF(R76=1,R$9,IF(S76=1,S$9,IF(T76=1,T$9,IF(U76=1,U$9,IF(V76=1,V$9,IF(W76=1,W$9,IF(X76=1,X$9,IF(Y76=1,Y$9,IF(Z76=1,Z$9,IF(AA76=1,AA$9,IF(AB76=1,AB$9,""))))))))))) ->  | S76: N | U76: =IF(AND(U$32=$S$76,T76="",U75=""),1,"") ->  | V76: =IF(AND(V$32=$S$76,U76="",V75=""),1,"") ->  | W76: =IF(AND(W$32=$S$76,V76="",W75=""),1,"") ->  | X76: =IF(AND(X$32=$S$76,X75="",SUM($U$76:W76)=0),1,"") ->  | Y76: =IF(AND(Y$32=$S$76,Y75="",SUM($U$76:X76)=0),1,"") ->  | Z76: =IF(AND(Z$32=$S$76,Z75="",SUM($U$76:Y76)=0),1,"") ->  | AA76: =IF(AND(AA$32=$S$76,AA75="",SUM($U$76:Z76)=0),1,"") ->  | AB76: =IF(AND(AB$32=$S$76,AB75="",SUM($U$76:AA76)=0),1,"") ->  | AC76: =IF(AND(AC$32=$S$76,AC75="",SUM($U$76:AB76)=0),1,"") ->  | AD76: =IF(AND(AD$32=$S$76,AD75="",SUM($U$76:AC76)=0),1,"") ->  | AE76: =IF(AND(AE$32=$S$76,AE75="",SUM($U$76:AD76)=0),1,"") ->  | AF76: =IF(AND(AF$32=$S$76,AF75="",SUM($U$76:AE76)=0),1,"") ->  | AG76: =IF(AND(AG$32=$S$76,AG75="",SUM($U$76:AF76)=0),1,"") ->  | AH76: =IF(AND(AH$32=$S$76,AH75="",SUM($U$76:AG76)=0),1,"") -> 
O77: =IF(T77=1,$T$3,IF(U77=1,$U$3,IF(V77=1,$V$3,IF(W77=1,$W$3,IF(X77=1,$X$3,IF(Y77=1,$Y$3,IF(Z77=1,$Z$3,IF(AA77=1,$AA$3,IF(AB77=1,$AB$3,IF(AC77=1,$AC$3,IF(AD77=1,$AD$3,IF(AE77=1,$AE$3,IF(AF77=1,$AF$3,IF(AG77=1,$AG$3,IF(AH77=1,$AH$3,""))))))))))))))) ->  | S77: N | V77: =IF(AND(V$32=S77,U77="",V76="",V75=""),1,"") ->  | W77: =IF(AND(W$32=S77,V77="",W76="",W75=""),1,"") ->  | X77: =IF(AND(X$32=$S$77,X75="",X76="",SUM($V$77:W77)=0),1,"") ->  | Y77: =IF(AND(Y$32=$S$77,Y75="",Y76="",SUM($V$77:X77)=0),1,"") ->  | Z77: =IF(AND(Z$32=$S$77,Z75="",Z76="",SUM($V$77:Y77)=0),1,"") ->  | AA77: =IF(AND(AA$32=$S$77,AA75="",AA76="",SUM($V$77:Z77)=0),1,"") ->  | AB77: =IF(AND(AB$32=$S$77,AB75="",AB76="",SUM($V$77:AA77)=0),1,"") ->  | AC77: =IF(AND(AC$32=$S$77,AC75="",AC76="",SUM($V$77:AB77)=0),1,"") ->  | AD77: =IF(AND(AD$32=$S$77,AD75="",AD76="",SUM($V$77:AC77)=0),1,"") ->  | AE77: =IF(AND(AE$32=$S$77,AE75="",AE76="",SUM($V$77:AD77)=0),1,"") ->  | AF77: =IF(AND(AF$32=$S$77,AF75="",AF76="",SUM($V$77:AE77)=0),1,"") ->  | AG77: =IF(AND(AG$32=$S$77,AG75="",AG76="",SUM($V$77:AF77)=0),1,"") ->  | AH77: =IF(AND(AH$32=$S$77,AH75="",AH76="",SUM($V$77:AG77)=0),1,"") -> 
O79: =IF(T79=1,$T$3,IF(U79=1,$U$3,IF(V79=1,$V$3,IF(W79=1,$W$3,IF(X79=1,$X$3,IF(Y79=1,$Y$3,IF(Z79=1,$Z$3,IF(AA79=1,$AA$3,IF(AB79=1,$AB$3,IF(AC79=1,$AC$3,IF(AD79=1,$AD$3,IF(AE79=1,$AE$3,IF(AF79=1,$AF$3,IF(AG79=1,$AG$3,IF(AH79=1,$AH$3,""))))))))))))))) ->  | Q79: Nuit | S79: D | T79: =IF($S$79=$T$32,1,"") ->  | U79: =IF(AND($S$79=$U$32,T79=""),1,"") ->  | V79: =IF(AND($S$79=$V$32,U79="",T79=""),1,"") ->  | W79: =IF(AND($S$79=$W$32,T79="",U79="",V79=""),1,"") ->  | X79: =IF(AND($S$79=$X$32,U79="",V79="",W79="",T79=""),1,"") ->  | Y79: =IF(AND($S$79=$Y$32,V79="",W79="",X79="",U79="",T79=""),1,"") ->  | Z79: =IF(AND($S$79=Z32,W79="",X79="",Y79="",V79="",U79="",T79=""),1,"") ->  | AA79: =IF(AND($S$79=AA32,X79="",Y79="",Z79="",W79="",V79="",U79="",T79=""),1,"") ->  | AB79: =IF(AND($S$79=$AB$32,Y79="",Z79="",AA79="",X79="",W79="",V79="",U79="",T79=""),1,"") ->  | AC79: =IF(AND($S$79=$AC$32,Z79="",AA79="",AB79="",Y79="",X79="",W79="",V79="",U79="",T79=""),1,"") ->  | AD79: =IF(AND($S$79=$AD$32,AA79="",AB79="",AC79="",Z79="",Y79="",X79="",W79="",V79="",U79="",T79=""),1,"") ->  | AE79: =IF(AND($S$79=$AE$32,AB79="",AC79="",AD79="",AA79="",Z79="",Y79="",X79="",W79="",V79="",U79="",T79=""),1,"") ->  | AF79: =IF(AND($S$79=$AF$32,AC79="",AD79="",AE79="",AB79="",AA79="",Z79="",Y79="",X79="",W79="",V79="",U79="",T79=""),1,"") ->  | AG79: =IF(AND($S$79=$AG$32,AD79="",AE79="",AF79="",AC79="",AB79="",AA79="",Z79="",Y79="",X79="",W79="",V79="",U79="",T79=""),1,"") ->  | AH79: =IF(AND($S$79=$AH$32,AE79="",AF79="",AG79="",AD79="",AC79="",AB79="",AA79="",Z79="",Y79="",X79="",W79="",V79="",U79="",T79=""),1,"") -> 
O80: =IF(T80=1,$T$3,IF(U80=1,$U$3,IF(V80=1,$V$3,IF(W80=1,$W$3,IF(X80=1,$X$3,IF(Y80=1,$Y$3,IF(Z80=1,$Z$3,IF(AA80=1,$AA$3,IF(AB80=1,$AB$3,IF(AC80=1,$AC$3,IF(AD80=1,$AD$3,IF(AE80=1,$AE$3,IF(AF80=1,$AF$3,IF(AG80=1,$AG$3,IF(AH80=1,$AH$3,""))))))))))))))) ->  | S80: D | U80: =IF(AND(U$32=$S$80,T80="",U79=""),1,"") ->  | V80: =IF(AND(V$32=$S$80,U80="",V79=""),1,"") ->  | W80: =IF(AND(W$32=$S$80,V80="",W79=""),1,"") ->  | X80: =IF(AND(X$32=$S$80,X79="",SUM($U$80:W80)=0),1,"") ->  | Y80: =IF(AND(Y$32=$S$80,Y79="",SUM($U$80:X80)=0),1,"") ->  | Z80: =IF(AND(Z$32=$S$80,Z79="",SUM($U$80:Y80)=0),1,"") ->  | AA80: =IF(AND(AA$32=$S$80,AA79="",SUM($U$80:Z80)=0),1,"") ->  | AB80: =IF(AND(AB$32=$S$80,AB79="",SUM($U$80:AA80)=0),1,"") ->  | AC80: =IF(AND(AC$32=$S$80,AC79="",SUM($U$80:AB80)=0),1,"") ->  | AD80: =IF(AND(AD$32=$S$80,AD79="",SUM($U$80:AC80)=0),1,"") ->  | AE80: =IF(AND(AE$32=$S$80,AE79="",SUM($U$80:AD80)=0),1,"") ->  | AF80: =IF(AND(AF$32=$S$80,AF79="",SUM($U$80:AE80)=0),1,"") ->  | AG80: =IF(AND(AG$32=$S$80,AG79="",SUM($U$80:AF80)=0),1,"") ->  | AH80: =IF(AND(AH$32=$S$80,AH79="",SUM($U$80:AG80)=0),1,"") -> 
O81: =IF(T81=1,$T$3,IF(U81=1,$U$3,IF(V81=1,$V$3,IF(W81=1,$W$3,IF(X81=1,$X$3,IF(Y81=1,$Y$3,IF(Z81=1,$Z$3,IF(AA81=1,$AA$3,IF(AB81=1,$AB$3,IF(AC81=1,$AC$3,IF(AD81=1,$AD$3,IF(AE81=1,$AE$3,IF(AF81=1,$AF$3,IF(AG81=1,$AG$3,IF(AH81=1,$AH$3,""))))))))))))))) ->  | S81: D | V81: =IF(AND(V$32=S81,U81="",V80="",V79=""),1,"") ->  | W81: =IF(AND(W$32=S81,V81="",W80="",W79=""),1,"") ->  | X81: =IF(AND(X$32=$S$81,X79="",X80="",SUM($V$81:W81)=0),1,"") ->  | Y81: =IF(AND(Y$32=$S$81,Y79="",Y80="",SUM($V$81:X81)=0),1,"") ->  | Z81: =IF(AND(Z$32=$S$81,Z79="",Z80="",SUM($V$81:Y81)=0),1,"") ->  | AA81: =IF(AND(AA$32=$S$81,AA79="",AA80="",SUM($V$81:Z81)=0),1,"") ->  | AB81: =IF(AND(AB$32=$S$81,AB79="",AB80="",SUM($V$81:AA81)=0),1,"") ->  | AC81: =IF(AND(AC$32=$S$81,AC79="",AC80="",SUM($V$81:AB81)=0),1,"") ->  | AD81: =IF(AND(AD$32=$S$81,AD79="",AD80="",SUM($V$81:AC81)=0),1,"") ->  | AE81: =IF(AND(AE$32=$S$81,AE79="",AE80="",SUM($V$81:AD81)=0),1,"") ->  | AF81: =IF(AND(AF$32=$S$81,AF79="",AF80="",SUM($V$81:AE81)=0),1,"") ->  | AG81: =IF(AND(AG$32=$S$81,AG79="",AG80="",SUM($V$81:AF81)=0),1,"") ->  | AH81: =IF(AND(AH$32=$S$81,AH79="",AH80="",SUM($V$81:AG81)=0),1,"") -> 
L84: =S84 -> Mardi | M84: =LEN(N84) -> 0 | N84: =(CONCATENATE(IF(T84=1,CONCATENATE("-",T$3,"(",T10,")"),""),IF(U84=1,CONCATENATE("-",U$3,"(",U10,")"),""),IF(V84=1,CONCATENATE("-",V$3,"(",V10,")"),""),IF(W84=1,CONCATENATE("-",W$3,"(",W10,")"),""),IF(X84=1,CONCATENATE("-",X$3,"(",X10,")"),""),IF(Y84=1,CONCATENATE("-",Y$3,"(",Y10,")"),""),IF(Z84=1,CONCATENATE("-",Z$3,"(",Z10,")"),""),IF(AA84=1,CONCATENATE("-",AA$3,"(",AA10,")"),""),IF(AB84=1,CONCATENATE("-",AB$3,"(",AB10,")"),""),IF(AC84=1,CONCATENATE("-",AC$3,"(",AC10,")"),""),IF(AD84=1,CONCATENATE("-",AD$3,"(",AD10,")"),""),IF(AE84=1,CONCATENATE("-",AE$3,"(",AE10,")"),""),IF(AF84=1,CONCATENATE("-",AF$3,"(",AF10,")"),""),IF(AG84=1,CONCATENATE("-",AG$3,"(",AG10,")"),""),IF(AH84=1,CONCATENATE("-",AH$3,"(",AH10,")"),""))) ->  | S84: =S10 -> Mardi | T84: =IF((COUNTIF(T10,$AJ$84)+COUNTIF(T10,$AJ$85)+COUNTIF(T10,$AJ$86)+COUNTIF(T10,$AJ$87)+COUNTIF(T10,$AJ$88)+COUNTIF(T10,$AJ$89)+COUNTIF(T10,$AJ$90)+COUNTIF(T10,$AJ$91)+COUNTIF(T10,$AJ$92)+COUNTIF(T10,$AJ$93))=0,"",COUNTIF(T10,$AJ$84)+COUNTIF(T10,$AJ$85)+COUNTIF(T10,$AJ$86)+COUNTIF(T10,$AJ$87)+COUNTIF(T10,$AJ$88)+COUNTIF(T10,$AJ$89)+COUNTIF(T10,$AJ$90)+COUNTIF(T10,$AJ$91)+COUNTIF(T10,$AJ$92)+COUNTIF(T10,$AJ$93)) ->  | U84: =IF((COUNTIF(U10,$AJ$84)+COUNTIF(U10,$AJ$85)+COUNTIF(U10,$AJ$86)+COUNTIF(U10,$AJ$87)+COUNTIF(U10,$AJ$88)+COUNTIF(U10,$AJ$89)+COUNTIF(U10,$AJ$90)+COUNTIF(U10,$AJ$91)+COUNTIF(U10,$AJ$92)+COUNTIF(U10,$AJ$93))=0,"",COUNTIF(U10,$AJ$84)+COUNTIF(U10,$AJ$85)+COUNTIF(U10,$AJ$86)+COUNTIF(U10,$AJ$87)+COUNTIF(U10,$AJ$88)+COUNTIF(U10,$AJ$89)+COUNTIF(U10,$AJ$90)+COUNTIF(U10,$AJ$91)+COUNTIF(U10,$AJ$92)+COUNTIF(U10,$AJ$93)) ->  | AJ84: CP
L85: =S85 -> Mercredi | M85: =LEN(N85) -> 0 | S85: Mercredi | T85: =IF((COUNTIF(T11,$AJ$84)+COUNTIF(T11,$AJ$85)+COUNTIF(T11,$AJ$86)+COUNTIF(T11,$AJ$87)+COUNTIF(T11,$AJ$88)+COUNTIF(T11,$AJ$89)+COUNTIF(T11,$AJ$90)+COUNTIF(T11,$AJ$91)+COUNTIF(T11,$AJ$92)+COUNTIF(T11,$AJ$93))=0,"",COUNTIF(T11,$AJ$84)+COUNTIF(T11,$AJ$85)+COUNTIF(T11,$AJ$86)+COUNTIF(T11,$AJ$87)+COUNTIF(T11,$AJ$88)+COUNTIF(T11,$AJ$89)+COUNTIF(T11,$AJ$90)+COUNTIF(T11,$AJ$91)+COUNTIF(T11,$AJ$92)+COUNTIF(T11,$AJ$93)) ->  | AJ85: Recup
L86: Jeudi | M86: 0 | N86: =(CONCATENATE(IF(T86=1,CONCATENATE("-",T$3,"(",T12,")"),""),IF(U86=1,CONCATENATE("-",U$3,"(",U12,")"),""),IF(V86=1,CONCATENATE("-",V$3,"(",V12,")"),""),IF(W86=1,CONCATENATE("-",W$3,"(",W12,")"),""),IF(X86=1,CONCATENATE("-",X$3,"(",X12,")"),""),IF(Y86=1,CONCATENATE("-",Y$3,"(",Y12,")"),""),IF(Z86=1,CONCATENATE("-",Z$3,"(",Z12,")"),""),IF(AA86=1,CONCATENATE("-",AA$3,"(",AA12,")"),""),IF(AB86=1,CONCATENATE("-",AB$3,"(",AB12,")"),""),IF(AC86=1,CONCATENATE("-",AC$3,"(",AC12,")"),""),IF(AD86=1,CONCATENATE("-",AD$3,"(",AD12,")"),""),IF(AE86=1,CONCATENATE("-",AE$3,"(",AE12,")"),""),IF(AF86=1,CONCATENATE("-",AF$3,"(",AF12,")"),""),IF(AG86=1,CONCATENATE("-",AG$3,"(",AG12,")"),""),IF(AH86=1,CONCATENATE("-",AH$3,"(",AH12,")"),""))) ->  | S86: Jeudi | T86: =IF((COUNTIF(T12,$AJ$84)+COUNTIF(T12,$AJ$85)+COUNTIF(T12,$AJ$86)+COUNTIF(T12,$AJ$87)+COUNTIF(T12,$AJ$88)+COUNTIF(T12,$AJ$89)+COUNTIF(T12,$AJ$90)+COUNTIF(T12,$AJ$91)+COUNTIF(T12,$AJ$92)+COUNTIF(T12,$AJ$93))=0,"",COUNTIF(T12,$AJ$84)+COUNTIF(T12,$AJ$85)+COUNTIF(T12,$AJ$86)+COUNTIF(T12,$AJ$87)+COUNTIF(T12,$AJ$88)+COUNTIF(T12,$AJ$89)+COUNTIF(T12,$AJ$90)+COUNTIF(T12,$AJ$91)+COUNTIF(T12,$AJ$92)+COUNTIF(T12,$AJ$93)) ->  | AJ86: Form
L87: Vendredi | M87: 0 | N87: =(CONCATENATE(IF(T87=1,CONCATENATE("-",T$3,"(",T13,")"),""),IF(U87=1,CONCATENATE("-",U$3,"(",U13,")"),""),IF(V87=1,CONCATENATE("-",V$3,"(",V13,")"),""),IF(W87=1,CONCATENATE("-",W$3,"(",W13,")"),""),IF(X87=1,CONCATENATE("-",X$3,"(",X13,")"),""),IF(Y87=1,CONCATENATE("-",Y$3,"(",Y13,")"),""),IF(Z87=1,CONCATENATE("-",Z$3,"(",Z13,")"),""),IF(AA87=1,CONCATENATE("-",AA$3,"(",AA13,")"),""),IF(AB87=1,CONCATENATE("-",AB$3,"(",AB13,")"),""),IF(AC87=1,CONCATENATE("-",AC$3,"(",AC13,")"),""),IF(AD87=1,CONCATENATE("-",AD$3,"(",AD13,")"),""),IF(AE87=1,CONCATENATE("-",AE$3,"(",AE13,")"),""),IF(AF87=1,CONCATENATE("-",AF$3,"(",AF13,")"),""),IF(AG87=1,CONCATENATE("-",AG$3,"(",AG13,")"),""),IF(AH87=1,CONCATENATE("-",AH$3,"(",AH13,")"),""))) ->  | S87: Vendredi | T87: =IF((COUNTIF(T13,$AJ$84)+COUNTIF(T13,$AJ$85)+COUNTIF(T13,$AJ$86)+COUNTIF(T13,$AJ$87)+COUNTIF(T13,$AJ$88)+COUNTIF(T13,$AJ$89)+COUNTIF(T13,$AJ$90)+COUNTIF(T13,$AJ$91)+COUNTIF(T13,$AJ$92)+COUNTIF(T13,$AJ$93))=0,"",COUNTIF(T13,$AJ$84)+COUNTIF(T13,$AJ$85)+COUNTIF(T13,$AJ$86)+COUNTIF(T13,$AJ$87)+COUNTIF(T13,$AJ$88)+COUNTIF(T13,$AJ$89)+COUNTIF(T13,$AJ$90)+COUNTIF(T13,$AJ$91)+COUNTIF(T13,$AJ$92)+COUNTIF(T13,$AJ$93)) ->  | AJ87: Modul
L88: Samedi | M88: 0 | N88: =(CONCATENATE(IF(T88=1,CONCATENATE("-",T$3,"(",T14,")"),""),IF(U88=1,CONCATENATE("-",U$3,"(",U14,")"),""),IF(V88=1,CONCATENATE("-",V$3,"(",V14,")"),""),IF(W88=1,CONCATENATE("-",W$3,"(",W14,")"),""),IF(X88=1,CONCATENATE("-",X$3,"(",X14,")"),""),IF(Y88=1,CONCATENATE("-",Y$3,"(",Y14,")"),""),IF(Z88=1,CONCATENATE("-",Z$3,"(",Z14,")"),""),IF(AA88=1,CONCATENATE("-",AA$3,"(",AA14,")"),""),IF(AB88=1,CONCATENATE("-",AB$3,"(",AB14,")"),""),IF(AC88=1,CONCATENATE("-",AC$3,"(",AC14,")"),""),IF(AD88=1,CONCATENATE("-",AD$3,"(",AD14,")"),""),IF(AE88=1,CONCATENATE("-",AE$3,"(",AE14,")"),""),IF(AF88=1,CONCATENATE("-",AF$3,"(",AF14,")"),""),IF(AG88=1,CONCATENATE("-",AG$3,"(",AG14,")"),""),IF(AH88=1,CONCATENATE("-",AH$3,"(",AH14,")"),""))) ->  | S88: Samedi | T88: =IF((COUNTIF(T14,$AJ$84)+COUNTIF(T14,$AJ$85)+COUNTIF(T14,$AJ$86)+COUNTIF(T14,$AJ$87)+COUNTIF(T14,$AJ$88)+COUNTIF(T14,$AJ$89)+COUNTIF(T14,$AJ$90)+COUNTIF(T14,$AJ$91)+COUNTIF(T14,$AJ$92)+COUNTIF(T14,$AJ$93))=0,"",COUNTIF(T14,$AJ$84)+COUNTIF(T14,$AJ$85)+COUNTIF(T14,$AJ$86)+COUNTIF(T14,$AJ$87)+COUNTIF(T14,$AJ$88)+COUNTIF(T14,$AJ$89)+COUNTIF(T14,$AJ$90)+COUNTIF(T14,$AJ$91)+COUNTIF(T14,$AJ$92)+COUNTIF(T14,$AJ$93)) ->  | AJ88: H.R
L89: Dimanche | M89: 0 | S89: Dimanche | T89: =IF((COUNTIF(T15,$AJ$84)+COUNTIF(T15,$AJ$85)+COUNTIF(T15,$AJ$86)+COUNTIF(T15,$AJ$87)+COUNTIF(T15,$AJ$88)+COUNTIF(T15,$AJ$89)+COUNTIF(T15,$AJ$90)+COUNTIF(T15,$AJ$91)+COUNTIF(T15,$AJ$92)+COUNTIF(T15,$AJ$93))=0,"",COUNTIF(T15,$AJ$84)+COUNTIF(T15,$AJ$85)+COUNTIF(T15,$AJ$86)+COUNTIF(T15,$AJ$87)+COUNTIF(T15,$AJ$88)+COUNTIF(T15,$AJ$89)+COUNTIF(T15,$AJ$90)+COUNTIF(T15,$AJ$91)+COUNTIF(T15,$AJ$92)+COUNTIF(T15,$AJ$93)) ->  | AJ89: HR Nuit
L90: Lundi | M90: 0 | S90: Lundi | T90: =IF((COUNTIF(T16,$AJ$84)+COUNTIF(T16,$AJ$85)+COUNTIF(T16,$AJ$86)+COUNTIF(T16,$AJ$87)+COUNTIF(T16,$AJ$88)+COUNTIF(T16,$AJ$89)+COUNTIF(T16,$AJ$90)+COUNTIF(T16,$AJ$91)+COUNTIF(T16,$AJ$92)+COUNTIF(T16,$AJ$93))=0,"",COUNTIF(T16,$AJ$84)+COUNTIF(T16,$AJ$85)+COUNTIF(T16,$AJ$86)+COUNTIF(T16,$AJ$87)+COUNTIF(T16,$AJ$88)+COUNTIF(T16,$AJ$89)+COUNTIF(T16,$AJ$90)+COUNTIF(T16,$AJ$91)+COUNTIF(T16,$AJ$92)+COUNTIF(T16,$AJ$93)) ->  | AJ90: RTT
AJ91: Mal
AJ92: J.A
AJ93: Ecole

Sheet Energie
B2: =CONCATENATE("Du ",Q11,"/",R11,"/",S11," au ",Q12,"/",R12,"/",S12) -> Du 9/9/2019 au 15/9/2019 | K2: Semaine : | L2: 36 | M2: =Planning_général!C2 -> 2019 | W2: 1 | X2: 2 | Y2: 3 | Z2: 4 | AA2: 5 | AB2: 6 | AC2: 7 | AD2: 8 | AE2: 9
B3: Équipes | E3: Horaires | I3: NOM et Prénom | L3: Matricul | M3: N°POSTE TEL ENTREE | W3: =Planning_général!$E47 -> Resp Equipe 3 | X3: =Planning_général!$E48 -> Equipe 3_Tech 1 | Y3: =Planning_général!$E49 -> Equipe 3_Tech 2 | Z3: =Planning_général!$E50 -> Equipe 3_Tech 3 | AA3: =Planning_général!$E51 -> 0 | AB3: =Planning_général!$E52 -> 0 | AC3: =Planning_général!$E53 -> 0 | AD3: =Planning_général!$E54 -> 0
B5: JOURNEE | D5: J1 | E5: 08 h 00 - 12 h 00 / 13 h00 - 16 h 00 | G5: Pause 10 h 00 -10 h 10 / 15 h 00 -15 h 10 | I5: =IF(R31="","",R31) ->  | L5: =IF(I5="","",VLOOKUP(I5,Planning_général!$E$47:$F$54,2,0)) ->  | P5: Initial | Q5: =DATE(M2,1,1) -> 2019-01-01 | R5: =Q5 -> 43466
I6: =IF(R32="","",R32) ->  | L6: =IF(I6="","",VLOOKUP(I6,Planning_général!$E$47:$F$54,2,0)) ->  | P6: Du | Q6: =(R5)+($L$2)*7-WEEKDAY(Q5,2)+1 -> 2019-09-09 | BD6: Semaines
D7: J2 | E7: 08 h 00 - 12 h 00 / 13 h00 - 16 h 00 | G7: Pause 10h-10h10 / 15h-15h10 | I7: =IF(R35="","",R35) ->  | L7: =IF(I7="","",VLOOKUP(I7,Planning_général!$E$47:$F$54,2,0)) ->  | P7: Au | Q7: =Q6+6 -> 2019-09-15 | BD7: 1
I8: =IF(R36="","",R36) ->  | L8: =IF(I8="","",VLOOKUP(I8,Planning_général!$E$47:$F$54,2,0)) ->  | AT8: Code | BD8: 2
B9: Matin | D9: M1 | E9: 6 h 00 - 13 h 00 | G9: Pause 09 h 00 - 09 h 20 | I9: =IF(R40="","",R40) ->  | L9: =IF(I9="","",VLOOKUP(I9,Planning_général!$E$47:$F$54,2,0)) ->  | V9: Code | W9: =IF(VLOOKUP(W3,Planning_général!$E$17:$F$62,2,0)=0,"Cde abs",VLOOKUP(W3,Planning_général!$E$17:$F$62,2,0)) -> 9329 | X9: =IF(VLOOKUP(X3,Planning_général!$E$17:$F$62,2,0)=0,"Cde abs",VLOOKUP(X3,Planning_général!$E$17:$F$62,2,0)) -> 7754 | Y9: =IF(VLOOKUP(Y3,Planning_général!$E$17:$F$62,2,0)=0,"Cde abs",VLOOKUP(Y3,Planning_général!$E$17:$F$62,2,0)) -> 3658 | Z9: =IF(VLOOKUP(Z3,Planning_général!$E$17:$F$62,2,0)=0,"Cde abs",VLOOKUP(Z3,Planning_général!$E$17:$F$62,2,0)) -> 8314 | AA9: =IF(VLOOKUP(AA3,Planning_général!$E$17:$F$62,2,0)=0,"Cde abs",VLOOKUP(AA3,Planning_général!$E$17:$F$62,2,0)) ->  | AB9: =IF(VLOOKUP(AB3,Planning_général!$E$17:$F$62,2,0)=0,"Cde abs",VLOOKUP(AB3,Planning_général!$E$17:$F$62,2,0)) ->  | AC9: =IF(VLOOKUP(AC3,Planning_général!$E$17:$F$62,2,0)=0,"Cde abs",VLOOKUP(AC3,Planning_général!$E$17:$F$62,2,0)) ->  | AD9: =IF(VLOOKUP(AD3,Planning_général!$E$17:$F$62,2,0)=0,"Cde abs",VLOOKUP(AD3,Planning_général!$E$17:$F$62,2,0)) ->  | AE9: =IF(VLOOKUP(AE3,Planning_général!$E$17:$F$62,2,0)=0,"Cde abs",VLOOKUP(AE3,Planning_général!$E$17:$F$62,2,0)) ->  | AF9: =IF(VLOOKUP(AF3,Planning_général!$E$17:$F$62,2,0)=0,"Cde abs",VLOOKUP(AF3,Planning_général!$E$17:$F$62,2,0)) ->  | AG9: =IF(VLOOKUP(AG3,Planning_général!$E$17:$F$62,2,0)=0,"Cde abs",VLOOKUP(AG3,Planning_général!$E$17:$F$62,2,0)) ->  | AH9: =IF(VLOOKUP(AH3,Planning_général!$E$17:$F$62,2,0)=0,"Cde abs",VLOOKUP(AH3,Planning_général!$E$17:$F$62,2,0)) ->  | AI9: =IF(VLOOKUP(AI3,Planning_général!$E$17:$F$62,2,0)=0,"Cde abs",VLOOKUP(AI3,Planning_général!$E$17:$F$62,2,0)) ->  | AJ9: =IF(VLOOKUP(AJ3,Planning_général!$E$17:$F$62,2,0)=0,"Cde abs",VLOOKUP(AJ3,Planning_général!$E$17:$F$62,2,0)) ->  | AK9: =IF(AK3=0,"",IF(VLOOKUP(AK3,Planning_général!$E$17:$F$62,2,0)=0,"Cde abs",VLOOKUP(AK3,Planning_général!$E$17:$F$62,2,0))) ->  | AO9: Code | AP9: Descriptif | AQ9: Horaires | AR9: Pause | AT9: CP | BD9: 3
I10: =IF(R41="","",R41) ->  | L10: =IF(I10="","",VLOOKUP(I10,Planning_général!$E$47:$F$54,2,0)) ->  | U10: =Planning_général!G10 -> M | V10: =VLOOKUP(U10,Planning_général!$NV$20:$NW$26,2,0) -> Mardi | W10: =VLOOKUP(W3,Planning_général!$E$47:$NM$47,((($L$2*7)+2)-6),0) -> 0 | X10: =IF(ISNA(VLOOKUP(X3,Planning_général!$E$48:$NM$48,((($L$2*7)+2)-6),0)),0,VLOOKUP(X3,Planning_général!$E$48:$NM$48,((($L$2*7)+2)-6),0)) -> 0 | Y10: =VLOOKUP(Y3,Planning_général!$E$49:$NM$49,((($L$2*7)+2)-6),0) -> 0 | Z10: =VLOOKUP(Z3,Planning_général!$E$50:$NM$50,((($L$2*7)+2)-6),0) -> 0 | AA10: =VLOOKUP(AA3,Planning_général!$E$51:$NM$51,((($L$2*7)+2)-6),0) ->  | AB10: =VLOOKUP(AB3,Planning_général!$E$52:$NM$52,((($L$2*7)+2)-6),0) ->  | AC10: =VLOOKUP($AC$3,Planning_général!$E$53:$NM$53,((($L$2*7)+2)-6),0) ->  | AD10: =VLOOKUP($AD$3,Planning_général!$E$54:$NM$54,((($L$2*7)+2)-6),0) ->  | AE10: =VLOOKUP($AE$3,Planning_général!$E$25:$NM$25,((($L$2*7)+2)-6),0) ->  | AF10: =VLOOKUP($AF$3,Planning_général!$E$26:$NM$26,((($L$2*7)+2)-6),0) ->  | AG10: =VLOOKUP($AG$3,Planning_général!$E$27:$NM$27,((($L$2*7)+2)-6),0) ->  | AH10: =VLOOKUP($AH$3,Planning_général!$E$28:$NM$28,((($L$2*7)+2)-6),0) ->  | AI10: =VLOOKUP($AI$3,Planning_général!$E$29:$NM$29,((($L$2*7)+2)-6),0) ->  | AJ10: =VLOOKUP($AJ$3,Planning_général!$E$30:$NM$30,((($L$2*7)+2)-6),0) ->  | AK10: =IF(ISNA(VLOOKUP($AK$3,Planning_général!$E$31:$NM$31,((($L$2*7)+2)-6),0)),0,VLOOKUP($AK$3,Planning_général!$E$31:$NM$31,((($L$2*7)+2)-6),0)) -> 0 | AO10: M1 | AP10: Matin | AQ10: 6 h 00 - 13 h 00 | AR10: 09 h 00 - 09 h 20 | AT10: Recup | BD10: 4
D11: M2 | E11: 6 h 00 - 09 h 00 | G11: Pause 08 h 00 - 08 h 20 | I11: =IF(R45="","",R45) ->  | L11: =IF(I11="","",VLOOKUP(I11,Planning_général!$E$47:$F$54,2,0)) ->  | P11: =Q6 -> 2019-09-09 | Q11: =DAY(P11) -> 9 | R11: =MONTH(P11) -> 9 | S11: =YEAR(P11) -> 2019 | U11: =Planning_général!H10 -> Me | V11: =VLOOKUP(U11,Planning_général!$NV$20:$NW$26,2,0) -> Mercredi | W11: =VLOOKUP($W$3,Planning_général!$E$47:$NM$47,((($L$2*7)+2)-5),0) -> 0 | X11: =VLOOKUP($X$3,Planning_général!$E$48:$NM$48,((($L$2*7)+2)-5),0) -> 0 | Y11: =VLOOKUP($Y$3,Planning_général!$E$49:$NM$49,((($L$2*7)+2)-5),0) -> 0 | Z11: =VLOOKUP($Z$3,Planning_général!$E$50:$NM$50,((($L$2*7)+2)-5),0) -> 0 | AA11: =VLOOKUP($AA$3,Planning_général!$E$51:$NM$51,((($L$2*7)+2)-5),0) ->  | AB11: =VLOOKUP($AB$3,Planning_général!$E$52:$NM$52,((($L$2*7)+2)-5),0) ->  | AC11: =VLOOKUP($AC$3,Planning_général!$E$53:$NM$53,((($L$2*7)+2)-5),0) ->  | AD11: =VLOOKUP($AD$3,Planning_général!$E$54:$NM$54,((($L$2*7)+2)-5),0) ->  | AE11: =VLOOKUP($AE$3,Planning_général!$E$25:$NM$25,((($L$2*7)+2)-5),0) ->  | AF11: =VLOOKUP($AF$3,Planning_général!$E$26:$NM$26,((($L$2*7)+2)-5),0) ->  | AG11: =VLOOKUP($AG$3,Planning_général!$E$27:$NM$27,((($L$2*7)+2)-5),0) ->  | AH11: =VLOOKUP($AH$3,Planning_général!$E$28:$NM$28,((($L$2*7)+2)-5),0) ->  | AI11: =VLOOKUP($AI$3,Planning_général!$E$29:$NM$29,((($L$2*7)+2)-5),0) ->  | AJ11: =VLOOKUP($AJ$3,Planning_général!$E$30:$NM$30,((($L$2*7)+2)-5),0) ->  | AK11: =IF(ISNA(VLOOKUP($AK$3,Planning_général!$E$31:$NM$31,((($L$2*7)+2)-5),0)),0,VLOOKUP($AK$3,Planning_général!$E$31:$NM$31,((($L$2*7)+2)-5),0)) -> 0 | AO11: M2 | AP11: Matin | AQ11: 6 h 00 - 09 h 00 | AR11: 08 h 00 - 08 h 20 | AT11: Form | BD11: 5
I12: =IF(R46="","",R46) ->  | L12: =IF(I12="","",VLOOKUP(I12,Planning_général!$E$47:$F$54,2,0)) ->  | P12: =Q7 -> 2019-09-15 | Q12: =DAY(P12) -> 15 | R12: =MONTH(P12) -> 9 | S12: =YEAR(P12) -> 2019 | U12: =Planning_général!I10 -> J | V12: =VLOOKUP(U12,Planning_général!$NV$20:$NW$26,2,0) -> Jeudi | W12: =VLOOKUP($W$3,Planning_général!$E$47:$NM$47,((($L$2*7)+2)-4),0) -> 0 | X12: =VLOOKUP($X$3,Planning_général!$E$48:$NM$48,((($L$2*7)+2)-4),0) -> 0 | Y12: =VLOOKUP($Y$3,Planning_général!$E$49:$NM$49,((($L$2*7)+2)-4),0) -> 0 | Z12: =VLOOKUP($Z$3,Planning_général!$E$50:$NM$50,((($L$2*7)+2)-4),0) -> 0 | AA12: =VLOOKUP($AA$3,Planning_général!$E$51:$NM$51,((($L$2*7)+2)-4),0) ->  | AB12: =VLOOKUP($AB$3,Planning_général!$E$52:$NM$52,((($L$2*7)+2)-4),0) ->  | AC12: =VLOOKUP($AC$3,Planning_général!$E$53:$NM$53,((($L$2*7)+2)-4),0) ->  | AD12: =VLOOKUP($AD$3,Planning_général!$E$54:$NM$54,((($L$2*7)+2)-4),0) ->  | AE12: =VLOOKUP($AE$3,Planning_général!$E$25:$NM$25,((($L$2*7)+2)-4),0) ->  | AF12: =VLOOKUP($AF$3,Planning_général!$E$26:$NM$26,((($L$2*7)+2)-4),0) ->  | AG12: =VLOOKUP($AG$3,Planning_général!$E$27:$NM$27,((($L$2*7)+2)-4),0) ->  | AH12: =VLOOKUP($AH$3,Planning_général!$E$28:$NM$28,((($L$2*7)+2)-4),0) ->  | AI12: =VLOOKUP($AI$3,Planning_général!$E$29:$NM$29,((($L$2*7)+2)-4),0) ->  | AJ12: =VLOOKUP($AJ$3,Planning_général!$E$30:$NM$30,((($L$2*7)+2)-4),0) ->  | AK12: =IF(ISNA(VLOOKUP($AK$3,Planning_général!$E$31:$NM$31,((($L$2*7)+2)-4),0)),0,VLOOKUP($AK$3,Planning_général!$E$31:$NM$31,((($L$2*7)+2)-4),0)) -> 0 | AO12: M3 | AP12: Matin + Samedi | AQ12: 05 h 00 - 12 h 00 | AR12: - | AT12: Modul | BD12: 6
D13: M3 | E13: 05 h 00 - 12 h 00 | G13: - | U13: =Planning_général!J10 -> V | V13: =VLOOKUP(U13,Planning_général!$NV$20:$NW$26,2,0) -> Vendredi | W13: =VLOOKUP($W$3,Planning_général!$E$47:$NM$47,((($L$2*7)+2)-3),0) -> 0 | X13: =VLOOKUP($X$3,Planning_général!$E$48:$NM$48,((($L$2*7)+2)-3),0) -> 0 | Y13: =VLOOKUP($Y$3,Planning_général!$E$49:$NM$49,((($L$2*7)+2)-3),0) -> 0 | Z13: =VLOOKUP($Z$3,Planning_général!$E$50:$NM$50,((($L$2*7)+2)-3),0) -> 0 | AA13: =VLOOKUP($AA$3,Planning_général!$E$51:$NM$51,((($L$2*7)+2)-3),0) ->  | AB13: =VLOOKUP($AB$3,Planning_général!$E$52:$NM$52,((($L$2*7)+2)-3),0) ->  | AC13: =VLOOKUP($AC$3,Planning_général!$E$53:$NM$53,((($L$2*7)+2)-3),0) ->  | AD13: =VLOOKUP($AD$3,Planning_général!$E$54:$NM$54,((($L$2*7)+2)-3),0) ->  | AE13: =VLOOKUP($AE$3,Planning_général!$E$25:$NM$25,((($L$2*7)+2)-3),0) ->  | AF13: =VLOOKUP($AF$3,Planning_général!$E$26:$NM$26,((($L$2*7)+2)-3),0) ->  | AG13: =VLOOKUP($AG$3,Planning_général!$E$27:$NM$27,((($L$2*7)+2)-3),0) ->  | AH13: =VLOOKUP($AH$3,Planning_général!$E$28:$NM$28,((($L$2*7)+2)-3),0) ->  | AI13: =VLOOKUP($AI$3,Planning_général!$E$29:$NM$29,((($L$2*7)+2)-3),0) ->  | AJ13: =VLOOKUP($AJ$3,Planning_général!$E$30:$NM$30,((($L$2*7)+2)-3),0) ->  | AK13: =IF(ISNA(VLOOKUP($AK$3,Planning_général!$E$31:$NM$31,((($L$2*7)+2)-3),0)),0,VLOOKUP($AK$3,Planning_général!$E$31:$NM$31,((($L$2*7)+2)-3),0)) -> 0 | AO13: J1 | AP13: Journee | AQ13: 08 h 00 - 12 h 00 / 13 h00 - 16 h 00 | AR13: 10 h 00 -10 h 10 / 15 h 00 -15 h 10 | AT13: H.R | BD13: 7
I14: =IF(R51="","",R51) ->  | L14: =IF(I14="","",VLOOKUP(I14,Planning_général!$E$47:$F$54,2,0)) ->  | U14: =Planning_général!K10 -> S | V14: =VLOOKUP(U14,Planning_général!$NV$20:$NW$26,2,0) -> Samedi | W14: =VLOOKUP($W$3,Planning_général!$E$47:$NM$47,((($L$2*7)+2)-2),0) -> 0 | X14: =VLOOKUP($X$3,Planning_général!$E$48:$NM$48,((($L$2*7)+2)-2),0) -> 0 | Y14: =VLOOKUP($Y$3,Planning_général!$E$49:$NM$49,((($L$2*7)+2)-2),0) -> 0 | Z14: =VLOOKUP($Z$3,Planning_général!$E$50:$NM$50,((($L$2*7)+2)-2),0) -> 0 | AA14: =VLOOKUP($AA$3,Planning_général!$E$51:$NM$51,((($L$2*7)+2)-2),0) ->  | AB14: =VLOOKUP($AB$3,Planning_général!$E$52:$NM$52,((($L$2*7)+2)-2),0) ->  | AC14: =VLOOKUP($AC$3,Planning_général!$E$53:$NM$53,((($L$2*7)+2)-2),0) ->  | AD14: =VLOOKUP($AD$3,Planning_général!$E$54:$NM$54,((($L$2*7)+2)-2),0) ->  | AE14: =VLOOKUP($AE$3,Planning_général!$E$25:$NM$25,((($L$2*7)+2)-2),0) ->  | AF14: =VLOOKUP($AF$3,Planning_général!$E$26:$NM$26,((($L$2*7)+2)-2),0) ->  | AG14: =VLOOKUP($AG$3,Planning_général!$E$27:$NM$27,((($L$2*7)+2)-2),0) ->  | AH14: =VLOOKUP($AH$3,Planning_général!$E$28:$NM$28,((($L$2*7)+2)-2),0) ->  | AI14: =VLOOKUP($AI$3,Planning_général!$E$29:$NM$29,((($L$2*7)+2)-2),0) ->  | AJ14: =VLOOKUP($AJ$3,Planning_général!$E$30:$NM$30,((($L$2*7)+2)-2),0) ->  | AK14: =IF(ISNA(VLOOKUP($AK$3,Planning_général!$E$31:$NM$31,((($L$2*7)+2)-2),0)),0,VLOOKUP($AK$3,Planning_général!$E$31:$NM$31,((($L$2*7)+2)-2),0)) -> 0 | AO14: J2 | AP14: Journee + Samedi | AQ14: 08 h 00 - 12 h 00 / 13 h00 - 16 h 00 | AR14: 10h-10h10 / 15h-15h10 | AT14: HR Nuit | BD14: 8
B15: Après-midi | D15: AP1 | E15: 12 h 00 - 19 h 00 | G15: Pause 13 h 30 - 15 h 50 | U15: =Planning_général!L10 -> D | V15: =VLOOKUP(U15,Planning_général!$NV$20:$NW$26,2,0) -> Dimanche | W15: =VLOOKUP($W$3,Planning_général!$E$47:$NM$47,((($L$2*7)+2)-1),0) -> 0 | X15: =VLOOKUP($X$3,Planning_général!$E$48:$NM$48,((($L$2*7)+2)-1),0) -> 0 | Y15: =VLOOKUP($Y$3,Planning_général!$E$49:$NM$49,((($L$2*7)+2)-1),0) -> 0 | Z15: =VLOOKUP($Z$3,Planning_général!$E$50:$NM$50,((($L$2*7)+2)-1),0) -> 0 | AA15: =VLOOKUP($AA$3,Planning_général!$E$51:$NM$51,((($L$2*7)+2)-1),0) ->  | AB15: =VLOOKUP($AB$3,Planning_général!$E$52:$NM$52,((($L$2*7)+2)-1),0) ->  | AC15: =VLOOKUP($AC$3,Planning_général!$E$53:$NM$53,((($L$2*7)+2)-1),0) ->  | AD15: =VLOOKUP($AD$3,Planning_général!$E$54:$NM$54,((($L$2*7)+2)-1),0) ->  | AE15: =VLOOKUP($AE$3,Planning_général!$E$25:$NM$25,((($L$2*7)+2)-1),0) ->  | AF15: =VLOOKUP($AF$3,Planning_général!$E$26:$NM$26,((($L$2*7)+2)-1),0) ->  | AG15: =VLOOKUP($AG$3,Planning_général!$E$27:$NM$27,((($L$2*7)+2)-1),0) ->  | AH15: =VLOOKUP($AH$3,Planning_général!$E$28:$NM$28,((($L$2*7)+2)-1),0) ->  | AI15: =VLOOKUP($AI$3,Planning_général!$E$29:$NM$29,((($L$2*7)+2)-1),0) ->  | AJ15: =VLOOKUP($AJ$3,Planning_général!$E$30:$NM$30,((($L$2*7)+2)-1),0) ->  | AK15: =IF(ISNA(VLOOKUP($AK$3,Planning_général!$E$31:$NM$31,((($L$2*7)+2)-1),0)),0,VLOOKUP($AK$3,Planning_général!$E$31:$NM$31,((($L$2*7)+2)-1),0)) -> 0 | AO15: AP1 | AP15: Après-midi 1 | AQ15: 12 h 00 - 19 h 00 | AR15: 13 h 30 - 15 h 50 | AT15: RTT | BD15: 9
I16: =IF(R56="","",R56) ->  | L16: =IF(I16="","",VLOOKUP(I16,Planning_général!$E$47:$F$54,2,0)) ->  | U16: =Planning_général!M10 -> L | V16: =VLOOKUP(U16,Planning_général!$NV$20:$NW$26,2,0) -> Lundi | W16: =VLOOKUP($W$3,Planning_général!$E$47:$NM$47,((($L$2*7)+2)-0),0) -> 0 | X16: =VLOOKUP($X$3,Planning_général!$E$48:$NM$48,((($L$2*7)+2)-0),0) -> 0 | Y16: =VLOOKUP($Y$3,Planning_général!$E$49:$NM$49,((($L$2*7)+2)-0),0) -> 0 | Z16: =VLOOKUP($Z$3,Planning_général!$E$50:$NM$50,((($L$2*7)+2)-0),0) -> 0 | AA16: =VLOOKUP($AA$3,Planning_général!$E$51:$NM$51,((($L$2*7)+2)-0),0) ->  | AB16: =VLOOKUP($AB$3,Planning_général!$E$52:$NM$52,((($L$2*7)+2)-0),0) ->  | AC16: =VLOOKUP($AC$3,Planning_général!$E$53:$NM$53,((($L$2*7)+2)-0),0) ->  | AD16: =VLOOKUP($AD$3,Planning_général!$E$54:$NM$54,((($L$2*7)+2)-0),0) ->  | AE16: =VLOOKUP($AE$3,Planning_général!$E$25:$NM$25,((($L$2*7)+2)-0),0) ->  | AF16: =VLOOKUP($AF$3,Planning_général!$E$26:$NM$26,((($L$2*7)+2)-0),0) ->  | AG16: =VLOOKUP($AG$3,Planning_général!$E$27:$NM$27,((($L$2*7)+2)-0),0) ->  | AH16: =VLOOKUP($AH$3,Planning_général!$E$28:$NM$28,((($L$2*7)+2)-0),0) ->  | AI16: =VLOOKUP($AI$3,Planning_général!$E$29:$NM$29,((($L$2*7)+2)-0),0) ->  | AJ16: =VLOOKUP($AJ$3,Planning_général!$E$30:$NM$30,((($L$2*7)+2)-0),0) ->  | AK16: =IF(ISNA(VLOOKUP($AK$3,Planning_général!$E$31:$NM$31,((($L$2*7)+2)-0),0)),0,VLOOKUP($AK$3,Planning_général!$E$31:$NM$31,((($L$2*7)+2)-0),0)) -> 0 | AO16: AP2 | AP16: Après-midi 2 | AQ16: 18 h 30 - 01 h 30 | AR16: 21 h 00 - 21 h 20 | AT16: Mal | BD16: 10
D17: AP2 | E17: 18 h 30 - 01 h 30 | G17: Pause 21 h 00 - 21 h 20 | I17: =IF(R60="","",R60) ->  | L17: =IF(I17="","",VLOOKUP(I17,Planning_général!$E$47:$F$54,2,0)) ->  | AT17: J.A | BD17: 11
I18: =IF(R61="","",R61) ->  | L18: =IF(I18="","",VLOOKUP(I18,Planning_général!$E$47:$F$54,2,0)) ->  | AT18: Ecole | BD18: 12
V19: =AO10 -> M1 | W19: =IF(COUNTIF($W$10:$W$16,V19)=0,"",COUNTIF($W$10:$W$16,V19)) ->  | X19: =IF(COUNTIF($X$10:$X$16,V19)=0,"",COUNTIF($X$10:$X$16,V19)) ->  | Y19: =IF(COUNTIF($Y$10:$Y$16,V19)=0,"",COUNTIF($Y$10:$Y$16,V19)) ->  | Z19: =IF(COUNTIF($Z$10:$Z$16,V19)=0,"",COUNTIF($Z$10:$Z$16,V19)) ->  | AA19: =IF(COUNTIF($AA$10:$AA$16,V19)=0,"",COUNTIF($AA$10:$AA$16,V19)) ->  | AB19: =IF(COUNTIF($AB$10:$AB$16,V19)=0,"",COUNTIF($AB$10:$AB$16,V19)) ->  | AC19: =IF(COUNTIF($AC$10:$AC$16,V19)=0,"",COUNTIF($AC$10:$AC$16,V19)) ->  | AD19: =IF(COUNTIF($AD$10:$AD$16,$V$19)=0,"",COUNTIF($AD$10:$AD$16,$V$19)) ->  | AE19: =IF(COUNTIF($AE$10:$AE$16,$V$19)=0,"",COUNTIF($AE$10:$AE$16,$V$19)) ->  | AF19: =IF(COUNTIF($AF$10:$AF$16,$V$19)=0,"",COUNTIF($AF$10:$AF$16,$V$19)) ->  | AG19: =IF(COUNTIF($AG$10:$AG$16,$V$19)=0,"",COUNTIF($AG$10:$AG$16,$V$19)) ->  | AH19: =IF(COUNTIF($AH$10:$AH$16,$V$19)=0,"",COUNTIF($AH$10:$AH$16,$V$19)) ->  | AI19: =IF(COUNTIF($AI$10:$AI$16,$V$19)=0,"",COUNTIF($AI$10:$AI$16,$V$19)) ->  | AJ19: =IF(COUNTIF($AJ$10:$AJ$16,$V$19)=0,"",COUNTIF($AJ$10:$AJ$16,$V$19)) ->  | AK19: =IF(COUNTIF($AK$10:$AK$16,$V$19)=0,"",COUNTIF($AK$10:$AK$16,$V$19)) ->  | BD19: 13
B20: Absences (CP/ Modul/ Repos /Formation) | E20: Lundi | F20: =VLOOKUP(E20,$O$71:$S$77,3,0) ->  | V20: M2 | W20: =IF(COUNTIF($W$10:$W$16,V20)=0,"",COUNTIF($W$10:$W$16,V20)) ->  | X20: =IF(COUNTIF($X$10:$X$16,V20)=0,"",COUNTIF($X$10:$X$16,V20)) ->  | Y20: =IF(COUNTIF($Y$10:$Y$16,V20)=0,"",COUNTIF($Y$10:$Y$16,V20)) ->  | Z20: =IF(COUNTIF($Z$10:$Z$16,V20)=0,"",COUNTIF($Z$10:$Z$16,V20)) ->  | AA20: =IF(COUNTIF($AA$10:$AA$16,V20)=0,"",COUNTIF($AA$10:$AA$16,V20)) ->  | AB20: =IF(COUNTIF($AB$10:$AB$16,V20)=0,"",COUNTIF($AB$10:$AB$16,V20)) ->  | AC20: =IF(COUNTIF($AC$10:$AC$16,V20)=0,"",COUNTIF($AC$10:$AC$16,V20)) ->  | AD20: =IF(COUNTIF($AD$10:$AD$16,$V$20)=0,"",COUNTIF($AD$10:$AD$16,$V$20)) ->  | AE20: =IF(COUNTIF($AE$10:$AE$16,$V$20)=0,"",COUNTIF($AE$10:$AE$16,$V$20)) ->  | AF20: =IF(COUNTIF($AF$10:$AF$16,$V$20)=0,"",COUNTIF($AF$10:$AF$16,$V$20)) ->  | AG20: =IF(COUNTIF($AG$10:$AG$16,$V$20)=0,"",COUNTIF($AG$10:$AG$16,$V$20)) ->  | AH20: =IF(COUNTIF($AH$10:$AH$16,$V$20)=0,"",COUNTIF($AH$10:$AH$16,$V$20)) ->  | AI20: =IF(COUNTIF($AI$10:$AI$16,$V$20)=0,"",COUNTIF($AI$10:$AI$16,$V$20)) ->  | AJ20: =IF(COUNTIF($AJ$10:$AJ$16,$V$20)=0,"",COUNTIF($AJ$10:$AJ$16,$V$20)) ->  | AK20: =IF(COUNTIF($AK$10:$AK$16,$V$20)=0,"",COUNTIF($AK$10:$AK$16,$V$20)) ->  | BD20: 14
E21: Mardi | F21: =VLOOKUP(E21,$O$71:$S$77,3,0) ->  | V21: M3 | AC21: =IF(COUNTIF($AC$10:$AC$16,V21)=0,"",COUNTIF($AC$10:$AC$16,V21)) ->  | AD21: =IF(COUNTIF($AC$10:$AC$16,V21)=0,"",COUNTIF($AC$10:$AC$16,V21)) ->  | AE21: =IF(COUNTIF($AE$10:$AE$16,$V$21)=0,"",COUNTIF($AE$10:$AE$16,$V$21)) ->  | AF21: =IF(COUNTIF($AF$10:$AF$16,$V$21)=0,"",COUNTIF($AF$10:$AF$16,$V$21)) ->  | AG21: =IF(COUNTIF($AG$10:$AG$16,$V$21)=0,"",COUNTIF($AG$10:$AG$16,$V$21)) ->  | AH21: =IF(COUNTIF($AH$10:$AH$16,$V$21)=0,"",COUNTIF($AH$10:$AH$16,$V$21)) ->  | AI21: =IF(COUNTIF($AI$10:$AI$16,$V$21)=0,"",COUNTIF($AI$10:$AI$16,$V$21)) ->  | AJ21: =IF(COUNTIF($AJ$10:$AJ$16,$V$21)=0,"",COUNTIF($AJ$10:$AJ$16,$V$21)) ->  | AK21: =IF(COUNTIF($AK$10:$AK$16,$V$21)=0,"",COUNTIF($AK$10:$AK$16,$V$21)) ->  | BD21: 15
E22: Mercredi | V22: J1 | AD22: =IF(COUNTIF($AD$10:$AD$16,$V$22)=0,"",COUNTIF($AD$10:$AD$16,$V$22)) ->  | AE22: =IF(COUNTIF($AE$10:$AE$16,$V$22)=0,"",COUNTIF($AE$10:$AE$16,$V$22)) ->  | AF22: =IF(COUNTIF($AF$10:$AF$16,$V$22)=0,"",COUNTIF($AF$10:$AF$16,$V$22)) ->  | AG22: =IF(COUNTIF($AG$10:$AG$16,$V$22)=0,"",COUNTIF($AG$10:$AG$16,$V$22)) ->  | AH22: =IF(COUNTIF($AH$10:$AH$16,$V$22)=0,"",COUNTIF($AH$10:$AH$16,$V$22)) ->  | AI22: =IF(COUNTIF($AI$10:$AI$16,$V$22)=0,"",COUNTIF($AI$10:$AI$16,$V$22)) ->  | AJ22: =IF(COUNTIF($AJ$10:$AJ$16,$V$22)=0,"",COUNTIF($AJ$10:$AJ$16,$V$22)) ->  | AK22: =IF(COUNTIF($AK$10:$AK$16,$V$22)=0,"",COUNTIF($AK$10:$AK$16,$V$22)) ->  | BD22: 16
E23: Jeudi | V23: J2 | AC23: =IF(COUNTIF($AC$10:$AC$16,$V$23)=0,"",COUNTIF($AC$10:$AC$16,V23)) ->  | AD23: =IF(COUNTIF($AD$10:$AD$16,$V$23)=0,"",COUNTIF($AD$10:$AD$16,$V$23)) ->  | AE23: =IF(COUNTIF($AE$10:$AE$16,$V$23)=0,"",COUNTIF($AE$10:$AE$16,$V$23)) ->  | AF23: =IF(COUNTIF($AF$10:$AF$16,$V$23)=0,"",COUNTIF($AF$10:$AF$16,$V$23)) ->  | AG23: =IF(COUNTIF($AG$10:$AG$16,$V$23)=0,"",COUNTIF($AG$10:$AG$16,$V$23)) ->  | AH23: =IF(COUNTIF($AH$10:$AH$16,$V$23)=0,"",COUNTIF($AH$10:$AH$16,$V$23)) ->  | AI23: =IF(COUNTIF($AI$10:$AI$16,$V$23)=0,"",COUNTIF($AI$10:$AI$16,$V$23)) ->  | AJ23: =IF(COUNTIF($AJ$10:$AJ$16,$V$23)=0,"",COUNTIF($AJ$10:$AJ$16,$V$23)) ->  | AK23: =IF(COUNTIF($AK$10:$AK$16,$V$23)=0,"",COUNTIF($AK$10:$AK$16,$V$23)) ->  | BD23: 17
E24: Vendredi | V24: AP1 | AC24: =IF(COUNTIF($AC$10:$AC$16,$V$24)=0,"",COUNTIF($AC$10:$AC$16,V24)) ->  | AD24: =IF(COUNTIF($AD$10:$AD$16,$V$24)=0,"",COUNTIF($AD$10:$AD$16,$V$24)) ->  | AE24: =IF(COUNTIF($AE$10:$AE$16,$V$24)=0,"",COUNTIF($AE$10:$AE$16,$V$24)) ->  | AF24: =IF(COUNTIF($AF$10:$AF$16,$V$24)=0,"",COUNTIF($AF$10:$AF$16,$V$24)) ->  | AG24: =IF(COUNTIF($AG$10:$AG$16,$V$24)=0,"",COUNTIF($AG$10:$AG$16,$V$24)) ->  | AH24: =IF(COUNTIF($AH$10:$AH$16,$V$24)=0,"",COUNTIF($AH$10:$AH$16,$V$24)) ->  | AI24: =IF(COUNTIF($AI$10:$AI$16,$V$24)=0,"",COUNTIF($AI$10:$AI$16,$V$24)) ->  | AJ24: =IF(COUNTIF($AJ$10:$AJ$16,$V$24)=0,"",COUNTIF($AJ$10:$AJ$16,$V$24)) ->  | AK24: =IF(COUNTIF($AK$10:$AK$16,$V$24)=0,"",COUNTIF($AK$10:$AK$16,$V$24)) ->  | BD24: 18
E25: Samedi | V25: AP2 | AC25: =IF(COUNTIF($AC$10:$AC$16,$V$25)=0,"",COUNTIF($AC$10:$AC$16,V25)) ->  | AD25: =IF(COUNTIF($AD$10:$AD$16,$V$25)=0,"",COUNTIF($AD$10:$AD$16,$V$25)) ->  | AE25: =IF(COUNTIF($AE$10:$AE$16,$V$25)=0,"",COUNTIF($AE$10:$AE$16,$V$25)) ->  | AF25: =IF(COUNTIF($AF$10:$AF$16,$V$25)=0,"",COUNTIF($AF$10:$AF$16,$V$25)) ->  | AG25: =IF(COUNTIF($AG$10:$AG$16,$V$25)=0,"",COUNTIF($AG$10:$AG$16,$V$25)) ->  | AH25: =IF(COUNTIF($AH$10:$AH$16,$V$25)=0,"",COUNTIF($AH$10:$AH$16,$V$25)) ->  | AI25: =IF(COUNTIF($AI$10:$AI$16,$V$25)=0,"",COUNTIF($AI$10:$AI$16,$V$25)) ->  | AJ25: =IF(COUNTIF($AJ$10:$AJ$16,$V$25)=0,"",COUNTIF($AJ$10:$AJ$16,$V$25)) ->  | AK25: =IF(COUNTIF($AK$10:$AK$16,$V$25)=0,"",COUNTIF($AK$10:$AK$16,$V$25)) ->  | BD25: 19
V26: - | AD26: =IF(COUNTIF($AD$10:$AD$16,$V$26)=0,"",COUNTIF($AD$10:$AD$16,$V$26)) ->  | AE26: =IF(COUNTIF($AE$10:$AE$16,$V$26)=0,"",COUNTIF($AE$10:$AE$16,$V$26)) ->  | AF26: =IF(COUNTIF($AF$10:$AF$16,$V$26)=0,"",COUNTIF($AF$10:$AF$16,$V$26)) ->  | AG26: =IF(COUNTIF($AG$10:$AG$16,$V$26)=0,"",COUNTIF($AG$10:$AG$16,$V$26)) ->  | AH26: =IF(COUNTIF($AH$10:$AH$16,$V$26)=0,"",COUNTIF($AH$10:$AH$16,$V$26)) ->  | AI26: =IF(COUNTIF($AI$10:$AI$16,$V$26)=0,"",COUNTIF($AI$10:$AI$16,$V$26)) ->  | AJ26: =IF(COUNTIF($AJ$10:$AJ$16,$V$26)=0,"",COUNTIF($AJ$10:$AJ$16,$V$26)) ->  | AK26: =IF(COUNTIF($AK$10:$AK$16,$V$26)=0,"",COUNTIF($AK$10:$AK$16,$V$26)) ->  | BD26: 20
V27: Max | W27: =MAX(W19:W25) -> 0 | X27: 0 | Y27: 0 | Z27: 0 | AA27: 0 | AB27: 0 | AC27: 0 | AD27: 0 | AE27: 0 | AF27: 0 | AG27: 0 | AH27: 0 | AI27: 0 | AJ27: 0 | AK27: 0 | BD27: 21
BD28: 22
R29: Techniciens | BD29: 23
W30: =IF(W27=0,"",IF(W19=W27,$V$19,IF(W20=W27,$V$20,IF(W21=W27,$V$21,IF(W22=W27,$V$22,IF(W23=W27,$V$23,IF(W24=W27,$V$24,IF(W25=W27,$V$25,IF(W26=W27,$V$26,""))))))))) ->  | BD30: 24
Q31: =IF(R31="","",VLOOKUP(R31,Planning_général!$E$17:$F$62,2,0)) ->  | R31: =IF(W31=1,$W$3,IF(X31=1,$X$3,IF(Y31=1,$Y$3,IF(Z31=1,Z3,IF(AA31=1,$AA$3,IF(AB31=1,$AB$3,IF(AC31=1,$AC$3,IF(AD31=1,$AD$3,IF(AE31=1,$AE$3,IF(AF31=1,$AF$3,IF(AG31=1,$AG$3,IF(AH31=1,AH3,IF(AI31=1,$AI$3,IF(AJ31=1,$AJ$3,IF(AK31=1,$AK$3,""))))))))))))))) ->  | S31: =IF(U31=1,U$9,IF(V31=1,V$9,IF(W31=1,W$9,IF(X31=1,X$9,IF(Y31=1,Y$9,IF(Z31=1,Z$9,IF(AA31=1,AA$9,IF(AB31=1,AB$9,IF(AC31=1,AC$9,IF(AD31=1,AD$9,IF(AE31=1,AE$9,""))))))))))) ->  | T31: Jrnée | V31: J1 | W31: =IF($V$31=W30,1,"") ->  | X31: =IF(AND($V$31=$X$30,W31=""),1,"") ->  | Y31: =IF(AND($V$31=$Y$30,X31="",W31=""),1,"") ->  | Z31: =IF(AND($V$31=Z30,W31="",X31="",Y31=""),1,"") ->  | AA31: =IF(AND($V$31=AA30,X31="",Y31="",Z31="",W31=""),1,"") ->  | AB31: =IF(AND($V$31=AB30,Y31="",Z31="",AA31="",X31="",W31=""),1,"") ->  | AC31: =IF(AND($V$31=AC30,Z31="",AA31="",AB31="",Y31="",X31="",W31=""),1,"") ->  | AD31: =IF(AND($V$31=AD30,AA31="",AB31="",AC31="",Z31="",Y31="",X31="",W31=""),1,"") ->  | AE31: =IF(AND($V$31=AE30,AB31="",AC31="",AD31="",AA31="",Z31="",Y31="",X31="",W31=""),1,"") ->  | AF31: =IF(AND($V$31=AF30,AC31="",AD31="",AE31="",AB31="",AA31="",Z31="",Y31="",X31="",W31=""),1,"") ->  | AG31: =IF(AND($V$31=AG30,AD31="",AE31="",AF31="",AC31="",AB31="",AA31="",Z31="",Y31="",X31="",W31=""),1,"") ->  | AH31: =IF(AND($V$31=AH30,AE31="",AF31="",AG31="",AD31="",AC31="",AB31="",AA31="",Z31="",Y31="",X31="",W31=""),1,"") ->  | AI31: =IF(AND($V$31=AI30,AF31="",AG31="",AH31="",AE31="",AD31="",AC31="",AB31="",AA31="",Z31="",Y31="",X31="",W31=""),1,"") ->  | AJ31: =IF(AND($V$31=AJ30,AG31="",AH31="",AI31="",AF31="",AE31="",AD31="",AC31="",AB31="",AA31="",Z31="",Y31="",X31="",W31=""),1,"") ->  | AK31: =IF(AND($V$31=AK30,AH31="",AI31="",AJ31="",AG31="",AF31="",AE31="",AD31="",AC31="",AB31="",AA31="",Z31="",Y31="",X31="",W31=""),1,"") ->  | BD31: 25
Q32: =IF(R32="","",VLOOKUP(R32,Planning_général!$E$17:$F$62,2,0)) ->  | R32: =IF(W32=1,$W$3,IF(X32=1,$X$3,IF(Y32=1,$Y$3,IF(Z32=1,Z3,IF(AA32=1,$AA$3,IF(AB32=1,$AB$3,IF(AC32=1,$AC$3,IF(AD32=1,$AD$3,IF(AE32=1,$AE$3,IF(AF32=1,$AF$3,IF(AG32=1,$AG$3,IF(AH32=1,AH3,IF(AI32=1,$AI$3,IF(AJ32=1,$AJ$3,IF(AK32=1,$AK$3,""))))))))))))))) ->  | S32: =IF(U32=1,U$9,IF(V32=1,V$9,IF(W32=1,W$9,IF(X32=1,X$9,IF(Y32=1,Y$9,IF(Z32=1,Z$9,IF(AA32=1,AA$9,IF(AB32=1,AB$9,IF(AC32=1,AC$9,IF(AD32=1,AD$9,IF(AE32=1,AE$9,""))))))))))) ->  | V32: J1 | X32: =IF(AND(X$30=$V$32,W32="",X31=""),1,"") ->  | Y32: =IF(AND(Y$30=$V$32,X32="",Y31=""),1,"") ->  | AA32: =IF(AND(AA$30=$V$32,AA31="",SUM($X$32:Z32)=0),1,"") ->  | AB32: =IF(AND(AB$30=$V$32,AB31="",SUM($X$32:AA32)=0),1,"") ->  | AC32: =IF(AND(AC$30=$V$32,AC31="",SUM($X$32:AB32)=0),1,"") ->  | AD32: =IF(AND(AD$30=$V$32,AD31="",SUM($X$32:AC32)=0),1,"") ->  | AE32: =IF(AND(AE$30=$V$32,AE31="",SUM($X$32:AD32)=0),1,"") ->  | AF32: =IF(AND(AF$30=$V$32,AF31="",SUM($X$32:AE32)=0),1,"") ->  | AG32: =IF(AND(AG$30=$V$32,AG31="",SUM($X$32:AF32)=0),1,"") ->  | AH32: =IF(AND(AH$30=$V$32,AH31="",SUM($X$32:AG32)=0),1,"") ->  | AI32: =IF(AND(AI$30=$V$32,AI31="",SUM($X$32:AH32)=0),1,"") ->  | AJ32: =IF(AND(AJ$30=$V$32,AJ31="",SUM($X$32:AI32)=0),1,"") ->  | AK32: =IF(AND(AK$30=$V$32,AK31="",SUM($X$32:AJ32)=0),1,"") ->  | BD32: 26
Q33: =IF(R33="","",VLOOKUP(R33,Planning_général!$E$17:$F$62,2,0)) ->  | R33: =IF(W33=1,$W$3,IF(X33=1,$X$3,IF(Y33=1,$Y$3,IF(Z33=1,Z3,IF(AA33=1,$AA$3,IF(AB33=1,$AB$3,IF(AC33=1,$AC$3,IF(AD33=1,$AD$3,IF(AE33=1,$AE$3,IF(AF33=1,$AF$3,IF(AG33=1,$AG$3,IF(AH33=1,AH3,IF(AI33=1,$AI$3,IF(AJ33=1,$AJ$3,IF(AK33=1,$AK$3,""))))))))))))))) ->  | S33: =IF(U33=1,U$9,IF(V33=1,V$9,IF(W33=1,W$9,IF(X33=1,X$9,IF(Y33=1,Y$9,IF(Z33=1,Z$9,IF(AA33=1,AA$9,IF(AB33=1,AB$9,IF(AC33=1,AC$9,IF(AD33=1,AD$9,IF(AE33=1,AE$9,""))))))))))) ->  | V33: - | Y33: =IF(AND(Y$30=V33,X33="",Y32="",Y31=""),1,"") ->  | Z33: =IF(AND(Z$30=V33,Y33="",Z32="",Z31=""),1,"") ->  | AA33: =IF(AND(AA$30=$V$33,AA31="",AA32="",SUM($Y$33:Z33)=0),1,"") ->  | AB33: =IF(AND(AB$30=$V$33,AB31="",AB32="",SUM($Y$33:AA33)=0),1,"") ->  | AC33: =IF(AND(AC$30=$V$33,AC31="",AC32="",SUM($Y$33:AB33)=0),1,"") ->  | AD33: =IF(AND(AD$30=$V$33,AD31="",AD32="",SUM($Y$33:AC33)=0),1,"") ->  | AE33: =IF(AND(AE$30=$V$33,AE31="",AE32="",SUM($Y$33:AD33)=0),1,"") ->  | AF33: =IF(AND(AF$30=$V$33,AF31="",AF32="",SUM($Y$33:AE33)=0),1,"") ->  | AG33: =IF(AND(AG$30=$V$33,AG31="",AG32="",SUM($Y$33:AF33)=0),1,"") ->  | AH33: =IF(AND(AH$30=$V$33,AH31="",AH32="",SUM($Y$33:AG33)=0),1,"") ->  | AI33: =IF(AND(AI$30=$V$33,AI31="",AI32="",SUM($Y$33:AH33)=0),1,"") ->  | AJ33: =IF(AND(AJ$30=$V$33,AJ31="",AJ32="",SUM($Y$33:AI33)=0),1,"") ->  | AK33: =IF(AND(AK$30=$V$33,AK31="",AK32="",SUM($Y$33:AJ33)=0),1,"") ->  | BD33: 27
BD34: 28
Q35: =IF(R35="","",VLOOKUP(R35,Planning_général!$E$17:$F$62,2,0)) ->  | R35: =IF(W35=1,$W$3,IF(X35=1,$X$3,IF(Y35=1,$Y$3,IF(Z35=1,Z3,IF(AA35=1,$AA$3,IF(AB35=1,$AB$3,IF(AC35=1,$AC$3,IF(AD35=1,$AD$3,IF(AE35=1,$AE$3,IF(AF35=1,$AF$3,IF(AG35=1,$AG$3,IF(AH35=1,AH7,IF(AI35=1,$AI$3,IF(AJ35=1,$AJ$3,IF(AK35=1,$AK$3,""))))))))))))))) ->  | S35: =IF(U35=1,U$9,IF(V35=1,V$9,IF(W35=1,W$9,IF(X35=1,X$9,IF(Y35=1,Y$9,IF(Z35=1,Z$9,IF(AA35=1,AA$9,IF(AB35=1,AB$9,IF(AC35=1,AC$9,IF(AD35=1,AD$9,IF(AE35=1,AE$9,""))))))))))) ->  | T35: Début | V35: J2 | W35: =IF($V$35=W30,1,"") ->  | X35: =IF(AND($V$35=$X$30,W35=""),1,"") ->  | Y35: =IF(AND($V$35=$Y$30,X35="",W35=""),1,"") ->  | Z35: =IF(AND($V$35=Z30,W35="",X35="",Y35=""),1,"") ->  | AA35: =IF(AND($V$35=AA30,X35="",Y35="",Z35="",W35=""),1,"") ->  | AB35: =IF(AND($V$35=AB30,Y35="",Z35="",AA35="",X35="",W35=""),1,"") ->  | AC35: =IF(AND($V$35=AC30,Z35="",AA35="",AB35="",Y35="",X35="",W35=""),1,"") ->  | AD35: =IF(AND($V$35=AD30,AA35="",AB35="",AC35="",Z35="",Y35="",X35="",W35=""),1,"") ->  | AE35: =IF(AND($V$35=AE30,AB35="",AC35="",AD35="",AA35="",Z35="",Y35="",X35="",W35=""),1,"") ->  | AF35: =IF(AND($V$35=AF30,AC35="",AD35="",AE35="",AB35="",AA35="",Z35="",Y35="",X35="",W35=""),1,"") ->  | AG35: =IF(AND($V$35=AG34,AD35="",AE35="",AF35="",AC35="",AB35="",AA35="",Z35="",Y35="",X35="",W35=""),1,"") ->  | AH35: =IF(AND($V$35=AH34,AE35="",AF35="",AG35="",AD35="",AC35="",AB35="",AA35="",Z35="",Y35="",X35="",W35=""),1,"") ->  | AI35: =IF(AND($V$35=AI30,AF35="",AG35="",AH35="",AE35="",AD35="",AC35="",AB35="",AA35="",Z35="",Y35="",X35="",W35=""),1,"") ->  | AJ35: =IF(AND($V$35=AJ34,AG35="",AH35="",AI35="",AF35="",AE35="",AD35="",AC35="",AB35="",AA35="",Z35="",Y35="",X35="",W35=""),1,"") ->  | AK35: =IF(AND($V$35=AK34,AH35="",AI35="",AJ35="",AG35="",AF35="",AE35="",AD35="",AC35="",AB35="",AA35="",Z35="",Y35="",X35="",W35=""),1,"") ->  | BD35: 29
Q36: =IF(R36="","",VLOOKUP(R36,Planning_général!$E$17:$F$62,2,0)) ->  | R36: =IF(W36=1,$W$3,IF(X36=1,$X$3,IF(Y36=1,$Y$3,IF(Z36=1,Z3,IF(AA36=1,$AA$3,IF(AB36=1,$AB$3,IF(AC36=1,$AC$3,IF(AD36=1,$AD$3,IF(AE36=1,$AE$3,IF(AF36=1,$AF$3,IF(AG36=1,$AG$3,IF(AH36=1,AH3,IF(AI36=1,$AI$3,IF(AJ36=1,$AJ$3,IF(AK36=1,$AK$3,""))))))))))))))) ->  | S36: =IF(U36=1,U$9,IF(V36=1,V$9,IF(W36=1,W$9,IF(X36=1,X$9,IF(Y36=1,Y$9,IF(Z36=1,Z$9,IF(AA36=1,AA$9,IF(AB36=1,AB$9,IF(AC36=1,AC$9,IF(AD36=1,AD$9,IF(AE36=1,AE$9,""))))))))))) ->  | V36: J2 | X36: =IF(AND(X$30=$V$36,W36="",X35=""),1,"") ->  | Y36: =IF(AND(Y$30=$V$36,X36="",Y35=""),1,"") ->  | Z36: =IF(AND(Z$30=$V$36,Y36="",Z35=""),1,"") ->  | AA36: =IF(AND(AA$30=$V$36,AA35="",SUM($X$36:Z36)=0),1,"") ->  | AB36: =IF(AND(AB$30=$V$36,AB35="",SUM($X$36:AA36)=0),1,"") ->  | AC36: =IF(AND(AC$30=$V$36,AC35="",SUM($X$36:AB36)=0),1,"") ->  | AD36: =IF(AND(AD$30=$V$36,AD35="",SUM($X$36:AC36)=0),1,"") ->  | AE36: =IF(AND(AE$30=$V$36,AE35="",SUM($X$36:AD36)=0),1,"") ->  | AF36: =IF(AND(AF$30=$V$36,AF35="",SUM($X$36:AE36)=0),1,"") ->  | AG36: =IF(AND(AG$30=$V$36,AG35="",SUM($X$36:AF36)=0),1,"") ->  | AH36: =IF(AND(AH$30=$V$36,AH35="",SUM($X$36:AG36)=0),1,"") ->  | AI36: =IF(AND(AI$30=$V$36,AI35="",SUM($X$36:AH36)=0),1,"") ->  | AJ36: =IF(AND(AJ$30=$V$36,AJ35="",SUM($X$36:AI36)=0),1,"") ->  | AK36: =IF(AND(AK$30=$V$36,AK35="",SUM($X$36:AJ36)=0),1,"") ->  | BD36: 30
Q37: =IF(R37="","",VLOOKUP(R37,Planning_général!$E$17:$F$62,2,0)) ->  | R37: =IF(W37=1,$W$3,IF(X37=1,$X$3,IF(Y37=1,$Y$3,IF(Z37=1,$Z$3,IF(AA37=1,$AA$3,IF(AB37=1,$AB$3,IF(AC37=1,$AC$3,IF(AD37=1,$AD$3,IF(AE37=1,$AE$3,IF(AF37=1,$AF$3,IF(AG37=1,$AG$3,IF(AH37=1,$AH$3,IF(AI37=1,$AI$3,IF(AJ37=1,$AJ$3,IF(AK37=1,$AK$3,""))))))))))))))) ->  | S37: =IF(U37=1,U$9,IF(V37=1,V$9,IF(W37=1,W$9,IF(X37=1,X$9,IF(Y37=1,Y$9,IF(Z37=1,Z$9,IF(AA37=1,AA$9,IF(AB37=1,AB$9,IF(AC37=1,AC$9,IF(AD37=1,AD$9,IF(AE37=1,AE$9,""))))))))))) ->  | V37: - | Y37: =IF(AND(Y$30=V37,X37="",Y36="",Y35=""),1,"") ->  | Z37: =IF(AND(Z$30=V37,Y37="",Z36="",Z35=""),1,"") ->  | AA37: =IF(AND(AA$30=$V$37,AA35="",AA36="",SUM($Y$37:Z37)=0),1,"") ->  | AB37: =IF(AND(AB$30=$V$37,AB35="",AB36="",SUM($Y$37:AA37)=0),1,"") ->  | AC37: =IF(AND(AC$30=$V$37,AC35="",AC36="",SUM($Y$37:AB37)=0),1,"") ->  | AD37: =IF(AND(AD$30=$V$37,AD35="",AD36="",SUM($Y$37:AC37)=0),1,"") ->  | AE37: =IF(AND(AE$30=$V$37,AE35="",AE36="",SUM($Y$37:AD37)=0),1,"") ->  | AF37: =IF(AND(AF$30=$V$37,AF35="",AF36="",SUM($Y$37:AE37)=0),1,"") ->  | AG37: =IF(AND(AG$30=$V$37,AG35="",AG36="",SUM($Y$37:AF37)=0),1,"") ->  | AH37: =IF(AND(AH$30=$V$37,AH35="",AH36="",SUM($Y$37:AG37)=0),1,"") ->  | AI37: =IF(AND(AI$30=$V$37,AI35="",AI36="",SUM($Y$37:AH37)=0),1,"") ->  | AJ37: =IF(AND(AJ$30=$V$37,AJ35="",AJ36="",SUM($Y$37:AI37)=0),1,"") ->  | AK37: =IF(AND(AK$30=$V$37,AK35="",AK36="",SUM($Y$37:AJ37)=0),1,"") ->  | BD37: 31
BD38: 32
BD39: 33
Q40: =IF(R40="","",VLOOKUP(R40,Planning_général!$E$17:$F$62,2,0)) ->  | R40: =IF(W40=1,$W$3,IF(X40=1,$X$3,IF(Y40=1,$Y$3,IF(Z40=1,Z3,IF(AA40=1,$AA$3,IF(AB40=1,$AB$3,IF(AC40=1,$AC$3,IF(AD40=1,$AD$3,IF(AE40=1,$AE$3,IF(AF40=1,$AF$3,IF(AG40=1,$AG$3,IF(AH40=1,AH12,IF(AI40=1,$AI$3,IF(AJ40=1,$AJ$3,IF(AK40=1,$AK$3,""))))))))))))))) ->  | S40: =IF(U40=1,U$9,IF(V40=1,V$9,IF(W40=1,W$9,IF(X40=1,X$9,IF(Y40=1,Y$9,IF(Z40=1,Z$9,IF(AA40=1,AA$9,IF(AB40=1,AB$9,IF(AC40=1,AC$9,IF(AD40=1,AD$9,IF(AE40=1,AE$9,""))))))))))) ->  | T40: Début | V40: M1 | W40: =IF($V$40=$W$30,1,"") ->  | X40: =IF(AND($V$40=$X$30,W40=""),1,"") ->  | Y40: =IF(AND($V$40=$Y$30,X40="",W40=""),1,"") ->  | Z40: =IF(AND($V$40=Z30,W40="",X40="",Y40=""),1,"") ->  | AA40: =IF(AND($V$40=$AA$30,X40="",Y40="",Z40="",W40=""),1,"") ->  | AB40: =IF(AND($V$40=$AB$30,Y40="",Z40="",AA40="",X40="",W40=""),1,"") ->  | AC40: =IF(AND($V$40=AC30,Z40="",AA40="",AB40="",Y40="",X40="",W40=""),1,"") ->  | AD40: =IF(AND($V$40=AD30,AA40="",AB40="",AC40="",Z40="",Y40="",X40="",W40=""),1,"") ->  | AE40: =IF(AND($V$40=$AE$30,AB40="",AC40="",AD40="",AA40="",Z40="",Y40="",X40="",W40=""),1,"") ->  | AF40: =IF(AND($V$40=$AF$30,AC40="",AD40="",AE40="",AB40="",AA40="",Z40="",Y40="",X40="",W40=""),1,"") ->  | AG40: =IF(AND($V$40=$AG$30,AD40="",AE40="",AF40="",AC40="",AB40="",AA40="",Z40="",Y40="",X40="",W40=""),1,"") ->  | AH40: =IF(AND($V$40=$AH$30,AE40="",AF40="",AG40="",AD40="",AC40="",AB40="",AA40="",Z40="",Y40="",X40="",W40=""),1,"") ->  | AI40: =IF(AND($V$40=$AI$30,AF40="",AG40="",AH40="",AE40="",AD40="",AC40="",AB40="",AA40="",Z40="",Y40="",X40="",W40=""),1,"") ->  | AJ40: =IF(AND($V$40=$AJ$30,AG40="",AH40="",AI40="",AF40="",AE40="",AD40="",AC40="",AB40="",AA40="",Z40="",Y40="",X40="",W40=""),1,"") ->  | AK40: =IF(AND($V$40=$AK$30,AH40="",AI40="",AJ40="",AG40="",AF40="",AE40="",AD40="",AC40="",AB40="",AA40="",Z40="",Y40="",X40="",W40=""),1,"") ->  | BD40: 34
Q41: =IF(R41="","",VLOOKUP(R41,Planning_général!$E$17:$F$62,2,0)) ->  | R41: =IF(W41=1,$W$3,IF(X41=1,$X$3,IF(Y41=1,$Y$3,IF(Z41=1,$Z$3,IF(AA41=1,$AA$3,IF(AB41=1,$AB$3,IF(AC41=1,$AC$3,IF(AD41=1,$AD$3,IF(AE41=1,$AE$3,IF(AF41=1,$AF$3,IF(AG41=1,$AG$3,IF(AH41=1,$AH$3,IF(AI41=1,$AI$3,IF(AJ41=1,$AJ$3,IF(AK41=1,$AK$3,""))))))))))))))) ->  | S41: =IF(U41=1,U$9,IF(V41=1,V$9,IF(W41=1,W$9,IF(X41=1,X$9,IF(Y41=1,Y$9,IF(Z41=1,Z$9,IF(AA41=1,AA$9,IF(AB41=1,AB$9,IF(AC41=1,AC$9,IF(AD41=1,AD$9,IF(AE41=1,AE$9,""))))))))))) ->  | V41: M1 | X41: =IF(AND(X$30=$V$41,W41="",X40=""),1,"") ->  | Y41: =IF(AND(Y$30=$V$41,X41="",Y40=""),1,"") ->  | Z41: =IF(AND(Z$30=$V$41,Y41="",Z40=""),1,"") ->  | AA41: =IF(AND(AA$30=$V$41,AA40="",SUM($X$41:Z41)=0),1,"") ->  | AB41: =IF(AND(AB$30=$V$41,AB40="",SUM($X$41:AA41)=0),1,"") ->  | AC41: =IF(AND(AC$30=$V$41,AC40="",SUM($X$41:AB41)=0),1,"") ->  | AD41: =IF(AND(AD$30=$V$41,AD40="",SUM($X$41:AC41)=0),1,"") ->  | AE41: =IF(AND(AE$30=$V$41,AE40="",SUM($X$41:AD41)=0),1,"") ->  | AF41: =IF(AND(AF$30=$V$41,AF40="",SUM($X$41:AE41)=0),1,"") ->  | AG41: =IF(AND(AG$30=$V$41,AG40="",SUM($X$41:AF41)=0),1,"") ->  | AH41: =IF(AND(AH$30=$V$41,AH40="",SUM($X$41:AG41)=0),1,"") ->  | AI41: =IF(AND(AI$30=$V$41,AI40="",SUM($X$41:AH41)=0),1,"") ->  | AJ41: =IF(AND(AJ$30=$V$41,AJ40="",SUM($X$41:AI41)=0),1,"") ->  | AK41: =IF(AND(AK$30=$V$41,AK40="",SUM($X$41:AJ41)=0),1,"") ->  | BD41: 35
Q42: =IF(R42="","",VLOOKUP(R42,Planning_général!$E$17:$F$62,2,0)) ->  | R42: =IF(W42=1,$W$3,IF(X42=1,$X$3,IF(Y42=1,$Y$3,IF(Z42=1,Z10,IF(AA42=1,$AA$3,IF(AB42=1,$AB$3,IF(AC42=1,$AC$3,IF(AD42=1,$AD$3,IF(AE42=1,$AE$3,IF(AF42=1,$AF$3,IF(AG42=1,$AG$3,IF(AH42=1,$AH$3,IF(AI42=1,$AI$3,IF(AJ42=1,$AJ$3,IF(AK42=1,$AK$3,""))))))))))))))) ->  | S42: =IF(U42=1,U$9,IF(V42=1,V$9,IF(W42=1,W$9,IF(X42=1,X$9,IF(Y42=1,Y$9,IF(Z42=1,Z$9,IF(AA42=1,AA$9,IF(AB42=1,AB$9,IF(AC42=1,AC$9,IF(AD42=1,AD$9,IF(AE42=1,AE$9,""))))))))))) ->  | V42: - | Y42: =IF(AND(Y$30=V42,X42="",Y41="",Y40=""),1,"") ->  | Z42: =IF(AND(Z$30=V42,Y42="",Z41="",Z40=""),1,"") ->  | AA42: =IF(AND(AA$30=$V$42,AA40="",AA41="",SUM($Y$42:Z42)=0),1,"") ->  | AB42: =IF(AND(AB$30=$V$42,AB40="",AB41="",SUM($Y$42:AA42)=0),1,"") ->  | AC42: =IF(AND(AC$30=$V$42,AC40="",AC41="",SUM($Y$42:AB42)=0),1,"") ->  | AD42: =IF(AND(AD$30=$V$42,AD40="",AD41="",SUM($Y$42:AC42)=0),1,"") ->  | AE42: =IF(AND(AE$30=$V$42,AE40="",AE41="",SUM($Y$42:AD42)=0),1,"") ->  | AF42: =IF(AND(AF$30=$V$42,AF40="",AF41="",SUM($Y$42:AE42)=0),1,"") ->  | AG42: =IF(AND(AG$30=$V$42,AG40="",AG41="",SUM($Y$42:AF42)=0),1,"") ->  | AH42: =IF(AND(AH$30=$V$42,AH40="",AH41="",SUM($Y$42:AG42)=0),1,"") ->  | AI42: =IF(AND(AI$30=$V$42,AI40="",AI41="",SUM($Y$42:AH42)=0),1,"") ->  | AJ42: =IF(AND(AJ$30=$V$42,AJ40="",AJ41="",SUM($Y$42:AI42)=0),1,"") ->  | AK42: =IF(AND(AK$30=$V$42,AK40="",AK41="",SUM($Y$42:AJ42)=0),1,"") ->  | BD42: 36
BD43: 37
BD44: 38
Q45: =IF(R45="","",VLOOKUP(R45,Planning_général!$E$17:$F$62,2,0)) ->  | R45: =IF(W45=1,$W$3,IF(X45=1,$X$3,IF(Y45=1,$Y$3,IF(Z45=1,Z3,IF(AA45=1,$AA$3,IF(AB45=1,$AB$3,IF(AC45=1,$AC$3,IF(AD45=1,$AD$3,IF(AE45=1,$AE$3,IF(AF45=1,$AF$3,IF(AG45=1,$AG$3,IF(AH45=1,AH3,IF(AI45=1,$AI$3,IF(AJ45=1,$AJ$3,IF(AK45=1,$AK$3,""))))))))))))))) ->  | S45: =IF(U45=1,U$9,IF(V45=1,V$9,IF(W45=1,W$9,IF(X45=1,X$9,IF(Y45=1,Y$9,IF(Z45=1,Z$9,IF(AA45=1,AA$9,IF(AB45=1,AB$9,IF(AC45=1,AC$9,IF(AD45=1,AD$9,IF(AE45=1,AE$9,""))))))))))) ->  | T45: Matin | V45: M2 | W45: =IF($V$45=$W$30,1,"") ->  | X45: =IF(AND($V$45=$X$30,W45=""),1,"") ->  | Y45: =IF(AND($V$45=$Y$30,X45="",W45=""),1,"") ->  | Z45: =IF(AND($V$45=Z35,W45="",X45="",Y45=""),1,"") ->  | AA45: =IF(AND($V$45=$AA$30,X45="",Y45="",Z45="",W45=""),1,"") ->  | AB45: =IF(AND($V$45=$AB$30,Y45="",Z45="",AA45="",X45="",W45=""),1,"") ->  | AC45: =IF(AND($V$45=AC35,Z45="",AA45="",AB45="",Y45="",X45="",W45=""),1,"") ->  | AD45: =IF(AND($V$45=AD35,AA45="",AB45="",AC45="",Z45="",Y45="",X45="",W45=""),1,"") ->  | AE45: =IF(AND($V$45=$AE$30,AB45="",AC45="",AD45="",AA45="",Z45="",Y45="",X45="",W45=""),1,"") ->  | AF45: =IF(AND($V$45=$AF$30,AC45="",AD45="",AE45="",AB45="",AA45="",Z45="",Y45="",X45="",W45=""),1,"") ->  | AG45: =IF(AND($V$45=$AG$30,AD45="",AE45="",AF45="",AC45="",AB45="",AA45="",Z45="",Y45="",X45="",W45=""),1,"") ->  | AH45: =IF(AND($V$45=$AH$30,AE45="",AF45="",AG45="",AD45="",AC45="",AB45="",AA45="",Z45="",Y45="",X45="",W45=""),1,"") ->  | AI45: =IF(AND($V$45=$AI$30,AF45="",AG45="",AH45="",AE45="",AD45="",AC45="",AB45="",AA45="",Z45="",Y45="",X45="",W45=""),1,"") ->  | AJ45: =IF(AND($V$45=$AJ$30,AG45="",AH45="",AI45="",AF45="",AE45="",AD45="",AC45="",AB45="",AA45="",Z45="",Y45="",X45="",W45=""),1,"") ->  | AK45: =IF(AND($V$45=$AK$30,AH45="",AI45="",AJ45="",AG45="",AF45="",AE45="",AD45="",AC45="",AB45="",AA45="",Z45="",Y45="",X45="",W45=""),1,"") ->  | BD45: 39
Q46: =IF(R46="","",VLOOKUP(R46,Planning_général!$E$17:$F$62,2,0)) ->  | R46: =IF(W46=1,$W$3,IF(X46=1,$X$3,IF(Y46=1,$Y$3,IF(Z46=1,$Z$3,IF(AA46=1,$AA$3,IF(AB46=1,$AB$3,IF(AC46=1,$AC$3,IF(AD46=1,$AD$3,IF(AE46=1,$AE$3,IF(AF46=1,$AF$3,IF(AG46=1,$AG$3,IF(AH46=1,$AH$3,IF(AI46=1,$AI$3,IF(AJ46=1,$AJ$3,IF(AK46=1,$AK$3,""))))))))))))))) ->  | S46: =IF(U46=1,U$9,IF(V46=1,V$9,IF(W46=1,W$9,IF(X46=1,X$9,IF(Y46=1,Y$9,IF(Z46=1,Z$9,IF(AA46=1,AA$9,IF(AB46=1,AB$9,IF(AC46=1,AC$9,IF(AD46=1,AD$9,IF(AE46=1,AE$9,""))))))))))) ->  | V46: M2 | X46: =IF(AND(X$30=$V$46,W46="",X45=""),1,"") ->  | Y46: =IF(AND(Y$30=$V$46,X46="",Y45=""),1,"") ->  | Z46: =IF(AND(Z$30=$V$46,Y46="",Z45=""),1,"") ->  | AA46: =IF(AND(AA$30=$V$46,AA45="",SUM($X$46:Z46)=0),1,"") ->  | AB46: =IF(AND(AB$30=$V$46,AB45="",SUM($X$46:AA46)=0),1,"") ->  | AC46: =IF(AND(AC$30=$V$46,AC45="",SUM($X$46:AB46)=0),1,"") ->  | AD46: =IF(AND(AD$30=$V$46,AD45="",SUM($X$46:AC46)=0),1,"") ->  | AE46: =IF(AND(AE$30=$V$46,AE45="",SUM($X$46:AD46)=0),1,"") ->  | AF46: =IF(AND(AF$30=$V$46,AF45="",SUM($X$46:AE46)=0),1,"") ->  | AG46: =IF(AND(AG$30=$V$46,AG45="",SUM($X$46:AF46)=0),1,"") ->  | AH46: =IF(AND(AH$30=$V$46,AH45="",SUM($X$46:AG46)=0),1,"") ->  | AI46: =IF(AND(AI$30=$V$46,AI45="",SUM($X$46:AH46)=0),1,"") ->  | AJ46: =IF(AND(AJ$30=$V$46,AJ45="",SUM($X$46:AI46)=0),1,"") ->  | AK46: =IF(AND(AK$30=$V$46,AK45="",SUM($X$46:AJ46)=0),1,"") ->  | BD46: 40
Q47: =IF(R47="","",VLOOKUP(R47,Planning_général!$E$17:$F$62,2,0)) ->  | R47: =IF(W47=1,$W$3,IF(X47=1,$X$3,IF(Y47=1,$Y$3,IF(Z47=1,$Z$3,IF(AA47=1,$AA$3,IF(AB47=1,$AB$3,IF(AC47=1,$AC$3,IF(AD47=1,$AD$3,IF(AE47=1,$AE$3,IF(AF47=1,$AF$3,IF(AG47=1,$AG$3,IF(AH47=1,$AH$3,IF(AI47=1,$AI$3,IF(AJ47=1,$AJ$3,IF(AK47=1,$AK$3,""))))))))))))))) ->  | S47: =IF(U47=1,U$9,IF(V47=1,V$9,IF(W47=1,W$9,IF(X47=1,X$9,IF(Y47=1,Y$9,IF(Z47=1,Z$9,IF(AA47=1,AA$9,IF(AB47=1,AB$9,IF(AC47=1,AC$9,IF(AD47=1,AD$9,IF(AE47=1,AE$9,""))))))))))) ->  | V47: - | Y47: =IF(AND(Y$30=V47,X47="",Y46="",Y45=""),1,"") ->  | Z47: =IF(AND(Z$30=V47,Y47="",Z46="",Z45=""),1,"") ->  | AA47: =IF(AND(AA$30=$V$47,AA45="",AA46="",SUM($Y$47:Z47)=0),1,"") ->  | AB47: =IF(AND(AB$30=$V$47,AB45="",AB46="",SUM($Y$47:AA47)=0),1,"") ->  | AC47: =IF(AND(AC$30=$V$47,AC45="",AC46="",SUM($Y$47:AB47)=0),1,"") ->  | AD47: =IF(AND(AD$30=$V$47,AD45="",AD46="",SUM($Y$47:AC47)=0),1,"") ->  | AE47: =IF(AND(AE$30=$V$47,AE45="",AE46="",SUM($Y$47:AD47)=0),1,"") ->  | AF47: =IF(AND(AF$30=$V$47,AF45="",AF46="",SUM($Y$47:AE47)=0),1,"") ->  | AG47: =IF(AND(AG$30=$V$47,AG45="",AG46="",SUM($Y$47:AF47)=0),1,"") ->  | AH47: =IF(AND(AH$30=$V$47,AH45="",AH46="",SUM($Y$47:AG47)=0),1,"") ->  | AI47: =IF(AND(AI$30=$V$47,AI45="",AI46="",SUM($Y$47:AH47)=0),1,"") ->  | AJ47: =IF(AND(AJ$30=$V$47,AJ45="",AJ46="",SUM($Y$47:AI47)=0),1,"") ->  | AK47: =IF(AND(AK$30=$V$47,AK45="",AK46="",SUM($Y$47:AJ47)=0),1,"") ->  | BD47: 41
BD48: 42
BD49: 43
Q50: =IF(R50="","",VLOOKUP(R50,Planning_général!$E$17:$F$62,2,0)) ->  | R50: =IF(W50=1,$W$3,IF(X50=1,$X$3,IF(Y50=1,$Y$3,IF(Z50=1,$Z$3,IF(AA50=1,$AA$3,IF(AB50=1,$AB$3,IF(AC50=1,$AC$3,IF(AD50=1,$AD$3,IF(AE50=1,$AE$3,IF(AF50=1,$AF$3,IF(AG50=1,$AG$3,IF(AH50=1,$AH$3,IF(AI50=1,$AI$3,IF(AJ50=1,$AJ$3,IF(AK50=1,$AK$3,""))))))))))))))) ->  | S50: =IF(U50=1,U$9,IF(V50=1,V$9,IF(W50=1,W$9,IF(X50=1,X$9,IF(Y50=1,Y$9,IF(Z50=1,Z$9,IF(AA50=1,AA$9,IF(AB50=1,AB$9,IF(AC50=1,AC$9,IF(AD50=1,AD$9,IF(AE50=1,AE$9,""))))))))))) ->  | T50: Matin | V50: M3 | W50: =IF($V$50=$W$30,1,"") ->  | X50: =IF(AND($V$50=$X$30,W50=""),1,"") ->  | Y50: =IF(AND($V$50=$Y$30,X50="",W50=""),1,"") ->  | Z50: =IF(AND($V$50=Z40,W50="",X50="",Y50=""),1,"") ->  | AA50: =IF(AND($V$50=$AA$30,X50="",Y50="",Z50="",W50=""),1,"") ->  | AB50: =IF(AND($V$50=$AB$30,Y50="",Z50="",AA50="",X50="",W50=""),1,"") ->  | AC50: =IF(AND($V$50=AC40,Z50="",AA50="",AB50="",Y50="",X50="",W50=""),1,"") ->  | AD50: =IF(AND($V$50=AD40,AA50="",AB50="",AC50="",Z50="",Y50="",X50="",W50=""),1,"") ->  | AE50: =IF(AND($V$50=$AE$30,AB50="",AC50="",AD50="",AA50="",Z50="",Y50="",X50="",W50=""),1,"") ->  | AF50: =IF(AND($V$50=$AF$30,AC50="",AD50="",AE50="",AB50="",AA50="",Z50="",Y50="",X50="",W50=""),1,"") ->  | AG50: =IF(AND($V$50=$AG$30,AD50="",AE50="",AF50="",AC50="",AB50="",AA50="",Z50="",Y50="",X50="",W50=""),1,"") ->  | AH50: =IF(AND($V$50=$AH$30,AE50="",AF50="",AG50="",AD50="",AC50="",AB50="",AA50="",Z50="",Y50="",X50="",W50=""),1,"") ->  | AI50: =IF(AND($V$50=$AI$30,AF50="",AG50="",AH50="",AE50="",AD50="",AC50="",AB50="",AA50="",Z50="",Y50="",X50="",W50=""),1,"") ->  | AJ50: =IF(AND($V$50=$AJ$30,AG50="",AH50="",AI50="",AF50="",AE50="",AD50="",AC50="",AB50="",AA50="",Z50="",Y50="",X50="",W50=""),1,"") ->  | AK50: =IF(AND($V$50=$AK$30,AH50="",AI50="",AJ50="",AG50="",AF50="",AE50="",AD50="",AC50="",AB50="",AA50="",Z50="",Y50="",X50="",W50=""),1,"") ->  | BD50: 44
Q51: =IF(R51="","",VLOOKUP(R51,Planning_général!$E$17:$F$62,2,0)) ->  | R51: =IF(W51=1,$W$3,IF(X51=1,$X$3,IF(Y51=1,$Y$3,IF(Z51=1,$Z$3,IF(AA51=1,$AA$3,IF(AB51=1,$AB$3,IF(AC51=1,$AC$3,IF(AD51=1,$AD$3,IF(AE51=1,$AE$3,IF(AF51=1,$AF$3,IF(AG51=1,$AG$3,IF(AH51=1,$AH$3,IF(AI51=1,$AI$3,IF(AJ51=1,$AJ$3,IF(AK51=1,$AK$3,""))))))))))))))) ->  | S51: =IF(U51=1,U$9,IF(V51=1,V$9,IF(W51=1,W$9,IF(X51=1,X$9,IF(Y51=1,Y$9,IF(Z51=1,Z$9,IF(AA51=1,AA$9,IF(AB51=1,AB$9,IF(AC51=1,AC$9,IF(AD51=1,AD$9,IF(AE51=1,AE$9,""))))))))))) ->  | V51: M3 | X51: =IF(AND(X$30=$V$51,W51="",X50=""),1,"") ->  | Y51: =IF(AND(Y$30=$V$51,X51="",Y50=""),1,"") ->  | Z51: =IF(AND(Z$30=$V$51,Y51="",Z50=""),1,"") ->  | AA51: =IF(AND(AA$30=$V$51,AA50="",SUM($X$51:Z51)=0),1,"") ->  | AB51: =IF(AND(AB$30=$V$51,AB50="",SUM($X$51:AA51)=0),1,"") ->  | AC51: =IF(AND(AC$30=$V$51,AC50="",SUM($X$51:AB51)=0),1,"") ->  | AD51: =IF(AND(AD$30=$V$51,AD50="",SUM($X$51:AC51)=0),1,"") ->  | AE51: =IF(AND(AE$30=$V$51,AE50="",SUM($X$51:AD51)=0),1,"") ->  | AF51: =IF(AND(AF$30=$V$51,AF50="",SUM($X$51:AE51)=0),1,"") ->  | AG51: =IF(AND(AG$30=$V$51,AG50="",SUM($X$51:AF51)=0),1,"") ->  | AH51: =IF(AND(AH$30=$V$51,AH50="",SUM($X$51:AG51)=0),1,"") ->  | AI51: =IF(AND(AI$30=$V$51,AI50="",SUM($X$51:AH51)=0),1,"") ->  | AJ51: =IF(AND(AJ$30=$V$51,AJ50="",SUM($X$51:AI51)=0),1,"") ->  | AK51: =IF(AND(AK$30=$V$51,AK50="",SUM($X$51:AJ51)=0),1,"") ->  | BD51: 45
Q52: =IF(R52="","",VLOOKUP(R52,Planning_général!$E$17:$F$62,2,0)) ->  | R52: =IF(W52=1,$W$3,IF(X52=1,$X$3,IF(Y52=1,$Y$3,IF(Z52=1,$Z$3,IF(AA52=1,$AA$3,IF(AB52=1,$AB$3,IF(AC52=1,$AC$3,IF(AD52=1,$AD$3,IF(AE52=1,$AE$3,IF(AF52=1,$AF$3,IF(AG52=1,$AG$3,IF(AH52=1,$AH$3,IF(AI52=1,$AI$3,IF(AJ52=1,$AJ$3,IF(AK52=1,$AK$3,""))))))))))))))) ->  | S52: =IF(U52=1,U$9,IF(V52=1,V$9,IF(W52=1,W$9,IF(X52=1,X$9,IF(Y52=1,Y$9,IF(Z52=1,Z$9,IF(AA52=1,AA$9,IF(AB52=1,AB$9,IF(AC52=1,AC$9,IF(AD52=1,AD$9,IF(AE52=1,AE$9,""))))))))))) ->  | V52: - | Y52: =IF(AND(Y$30=V52,X52="",Y51="",Y50=""),1,"") ->  | Z52: =IF(AND(Z$30=V52,Y52="",Z51="",Z50=""),1,"") ->  | AA52: =IF(AND(AA$30=$V$52,AA50="",AA51="",SUM($Y$52:Z52)=0),1,"") ->  | AB52: =IF(AND(AB$30=$V$52,AB50="",AB51="",SUM($Y$52:AA52)=0),1,"") ->  | AC52: =IF(AND(AC$30=$V$52,AC50="",AC51="",SUM($Y$52:AB52)=0),1,"") ->  | AD52: =IF(AND(AD$30=$V$52,AD50="",AD51="",SUM($Y$52:AC52)=0),1,"") ->  | AE52: =IF(AND(AE$30=$V$52,AE50="",AE51="",SUM($Y$52:AD52)=0),1,"") ->  | AF52: =IF(AND(AF$30=$V$52,AF50="",AF51="",SUM($Y$52:AE52)=0),1,"") ->  | AG52: =IF(AND(AG$30=$V$52,AG50="",AG51="",SUM($Y$52:AF52)=0),1,"") ->  | AH52: =IF(AND(AH$30=$V$52,AH50="",AH51="",SUM($Y$52:AG52)=0),1,"") ->  | AI52: =IF(AND(AI$30=$V$52,AI50="",AI51="",SUM($Y$52:AH52)=0),1,"") ->  | AJ52: =IF(AND(AJ$30=$V$52,AJ50="",AJ51="",SUM($Y$52:AI52)=0),1,"") ->  | AK52: =IF(AND(AK$30=$V$52,AK50="",AK51="",SUM($Y$52:AJ52)=0),1,"") ->  | BD52: 46
BD53: 47
BD54: 48
Q55: =IF(R55="","",VLOOKUP(R55,Planning_général!$E$17:$F$62,2,0)) ->  | R55: =IF(W55=1,$W$3,IF(X55=1,$X$3,IF(Y55=1,$Y$3,IF(Z55=1,$Z$3,IF(AA55=1,$AA$3,IF(AB55=1,$AB$3,IF(AC55=1,$AC$3,IF(AD55=1,$AD$3,IF(AE55=1,$AE$3,IF(AF55=1,$AF$3,IF(AG55=1,$AG$3,IF(AH55=1,$AH$3,IF(AI55=1,$AI$3,IF(AJ55=1,$AJ$3,IF(AK55=1,$AK$3,""))))))))))))))) ->  | S55: =IF(U55=1,U$9,IF(V55=1,V$9,IF(W55=1,W$9,IF(X55=1,X$9,IF(Y55=1,Y$9,IF(Z55=1,Z$9,IF(AA55=1,AA$9,IF(AB55=1,AB$9,IF(AC55=1,AC$9,IF(AD55=1,AD$9,IF(AE55=1,AE$9,""))))))))))) ->  | T55: Après-midi | V55: AP1 | W55: =IF($V$55=$W$30,1,"") ->  | X55: =IF(AND($V$55=$X$30,W55=""),1,"") ->  | Y55: =IF(AND($V$55=$Y$30,X55="",W55=""),1,"") ->  | Z55: =IF(AND($V$55=Z45,W55="",X55="",Y55=""),1,"") ->  | AA55: =IF(AND($V$55=$AA$30,X55="",Y55="",Z55="",W55=""),1,"") ->  | AB55: =IF(AND($V$55=$AB$30,Y55="",Z55="",AA55="",X55="",W55=""),1,"") ->  | AC55: =IF(AND($V$55=AC45,Z55="",AA55="",AB55="",Y55="",X55="",W55=""),1,"") ->  | AD55: =IF(AND($V$55=AD45,AA55="",AB55="",AC55="",Z55="",Y55="",X55="",W55=""),1,"") ->  | AE55: =IF(AND($V$55=$AE$30,AB55="",AC55="",AD55="",AA55="",Z55="",Y55="",X55="",W55=""),1,"") ->  | AF55: =IF(AND($V$55=$AF$30,AC55="",AD55="",AE55="",AB55="",AA55="",Z55="",Y55="",X55="",W55=""),1,"") ->  | AG55: =IF(AND($V$55=$AG$30,AD55="",AE55="",AF55="",AC55="",AB55="",AA55="",Z55="",Y55="",X55="",W55=""),1,"") ->  | AH55: =IF(AND($V$55=$AH$30,AE55="",AF55="",AG55="",AD55="",AC55="",AB55="",AA55="",Z55="",Y55="",X55="",W55=""),1,"") ->  | AI55: =IF(AND($V$55=$AI$30,AF55="",AG55="",AH55="",AE55="",AD55="",AC55="",AB55="",AA55="",Z55="",Y55="",X55="",W55=""),1,"") ->  | AJ55: =IF(AND($V$55=$AJ$30,AG55="",AH55="",AI55="",AF55="",AE55="",AD55="",AC55="",AB55="",AA55="",Z55="",Y55="",X55="",W55=""),1,"") ->  | AK55: =IF(AND($V$55=$AK$30,AH55="",AI55="",AJ55="",AG55="",AF55="",AE55="",AD55="",AC55="",AB55="",AA55="",Z55="",Y55="",X55="",W55=""),1,"") ->  | BD55: 49
Q56: =IF(R56="","",VLOOKUP(R56,Planning_général!$E$17:$F$62,2,0)) ->  | R56: =IF(W56=1,$W$3,IF(X56=1,$X$3,IF(Y56=1,$Y$3,IF(Z56=1,$Z$3,IF(AA56=1,$AA$3,IF(AB56=1,$AB$3,IF(AC56=1,$AC$3,IF(AD56=1,$AD$3,IF(AE56=1,$AE$3,IF(AF56=1,$AF$3,IF(AG56=1,$AG$3,IF(AH56=1,$AH$3,IF(AI56=1,$AI$3,IF(AJ56=1,$AJ$3,IF(AK56=1,$AK$3,""))))))))))))))) ->  | S56: =IF(U56=1,U$9,IF(V56=1,V$9,IF(W56=1,W$9,IF(X56=1,X$9,IF(Y56=1,Y$9,IF(Z56=1,Z$9,IF(AA56=1,AA$9,IF(AB56=1,AB$9,IF(AC56=1,AC$9,IF(AD56=1,AD$9,IF(AE56=1,AE$9,""))))))))))) ->  | V56: AP1 | X56: =IF(AND(X$30=$V$56,W56="",X55=""),1,"") ->  | Y56: =IF(AND(Y$30=$V$56,X56="",Y55=""),1,"") ->  | Z56: =IF(AND(Z$30=$V$56,Y56="",Z55=""),1,"") ->  | AA56: =IF(AND(AA$30=$V$56,AA55="",SUM($X$56:Z56)=0),1,"") ->  | AB56: =IF(AND(AB$30=$V$56,AB55="",SUM($X$56:AA56)=0),1,"") ->  | AC56: =IF(AND(AC$30=$V$56,AC55="",SUM($X$56:AB56)=0),1,"") ->  | AD56: =IF(AND(AD$30=$V$56,AD55="",SUM($X$56:AC56)=0),1,"") ->  | AE56: =IF(AND(AE$30=$V$56,AE55="",SUM($X$56:AD56)=0),1,"") ->  | AF56: =IF(AND(AF$30=$V$56,AF55="",SUM($X$56:AE56)=0),1,"") ->  | AG56: =IF(AND(AG$30=$V$56,AG55="",SUM($X$56:AF56)=0),1,"") ->  | AH56: =IF(AND(AH$30=$V$56,AH55="",SUM($X$56:AG56)=0),1,"") ->  | AI56: =IF(AND(AI$30=$V$56,AI55="",SUM($X$56:AH56)=0),1,"") ->  | AJ56: =IF(AND(AJ$30=$V$56,AJ55="",SUM($X$56:AI56)=0),1,"") ->  | AK56: =IF(AND(AK$30=$V$56,AK55="",SUM($X$56:AJ56)=0),1,"") ->  | BD56: 50
Q57: =IF(R57="","",VLOOKUP(R57,Planning_général!$E$17:$F$62,2,0)) ->  | R57: =IF(W57=1,$W$3,IF(X57=1,$X$3,IF(Y57=1,$Y$3,IF(Z57=1,$Z$3,IF(AA57=1,$AA$3,IF(AB57=1,$AB$3,IF(AC57=1,$AC$3,IF(AD57=1,$AD$3,IF(AE57=1,$AE$3,IF(AF57=1,$AF$3,IF(AG57=1,$AG$3,IF(AH57=1,$AH$3,IF(AI57=1,$AI$3,IF(AJ57=1,$AJ$3,IF(AK57=1,$AK$3,""))))))))))))))) ->  | S57: =IF(U57=1,U$9,IF(V57=1,V$9,IF(W57=1,W$9,IF(X57=1,X$9,IF(Y57=1,Y$9,IF(Z57=1,Z$9,IF(AA57=1,AA$9,IF(AB57=1,AB$9,IF(AC57=1,AC$9,IF(AD57=1,AD$9,IF(AE57=1,AE$9,""))))))))))) ->  | V57: - | Y57: =IF(AND(Y$30=V57,X57="",Y56="",Y55=""),1,"") ->  | Z57: =IF(AND(Z$30=V57,Y57="",Z56="",Z55=""),1,"") ->  | AA57: =IF(AND(AA$30=$V$57,AA55="",AA56="",SUM($Y$52:Z57)=0),1,"") ->  | AB57: =IF(AND(AB$30=$V$57,AB55="",AB56="",SUM($Y$57:AA57)=0),1,"") ->  | AC57: =IF(AND(AC$30=$V$57,AC55="",AC56="",SUM($Y$57:AB57)=0),1,"") ->  | AD57: =IF(AND(AD$30=$V$57,AD55="",AD56="",SUM($Y$57:AC57)=0),1,"") ->  | AE57: =IF(AND(AE$30=$V$57,AE55="",AE56="",SUM($Y$57:AD57)=0),1,"") ->  | AF57: =IF(AND(AF$30=$V$57,AF55="",AF56="",SUM($Y$57:AE57)=0),1,"") ->  | AG57: =IF(AND(AG$30=$V$57,AG55="",AG56="",SUM($Y$57:AF57)=0),1,"") ->  | AH57: =IF(AND(AH$30=$V$57,AH55="",AH56="",SUM($Y$57:AG57)=0),1,"") ->  | AI57: =IF(AND(AI$30=$V$57,AI55="",AI56="",SUM($Y$57:AH57)=0),1,"") ->  | AJ57: =IF(AND(AJ$30=$V$57,AJ55="",AJ56="",SUM($Y$57:AI57)=0),1,"") ->  | AK57: =IF(AND(AK$30=$V$57,AK55="",AK56="",SUM($Y$57:AJ57)=0),1,"") ->  | BD57: 51
BD58: 52
BD59: 53
Q60: =IF(R60="","",VLOOKUP(R60,Planning_général!$E$17:$F$62,2,0)) ->  | R60: =IF(W60=1,$W$3,IF(X60=1,$X$3,IF(Y60=1,$Y$3,IF(Z60=1,$Z$3,IF(AA60=1,$AA$3,IF(AB60=1,$AB$3,IF(AC60=1,$AC$3,IF(AD60=1,$AD$3,IF(AE60=1,$AE$3,IF(AF60=1,$AF$3,IF(AG60=1,$AG$3,IF(AH60=1,$AH$3,IF(AI60=1,$AI$3,IF(AJ60=1,$AJ$3,IF(AK60=1,$AK$3,""))))))))))))))) ->  | S60: =IF(U60=1,U$9,IF(V60=1,V$9,IF(W60=1,W$9,IF(X60=1,X$9,IF(Y60=1,Y$9,IF(Z60=1,Z$9,IF(AA60=1,AA$9,IF(AB60=1,AB$9,IF(AC60=1,AC$9,IF(AD60=1,AD$9,IF(AE60=1,AE$9,""))))))))))) ->  | T60: Soir | V60: AP2 | W60: =IF($V$60=$W$30,1,"") ->  | X60: =IF(AND($V$60=$X$30,W60=""),1,"") ->  | Y60: =IF(AND($V$60=$Y$30,X60="",W60=""),1,"") ->  | Z60: =IF(AND($V$60=$Z$30,W60="",X60="",Y60=""),1,"") ->  | AA60: =IF(AND($V$60=$AA$30,X60="",Y60="",Z60="",W60=""),1,"") ->  | AB60: =IF(AND($V$60=$AB$30,Y60="",Z60="",AA60="",X60="",W60=""),1,"") ->  | AC60: =IF(AND($V$60=AC50,Z60="",AA60="",AB60="",Y60="",X60="",W60=""),1,"") ->  | AD60: =IF(AND($V$60=AD50,AA60="",AB60="",AC60="",Z60="",Y60="",X60="",W60=""),1,"") ->  | AE60: =IF(AND($V$60=$AE$30,AB60="",AC60="",AD60="",AA60="",Z60="",Y60="",X60="",W60=""),1,"") ->  | AF60: =IF(AND($V$60=$AF$30,AC60="",AD60="",AE60="",AB60="",AA60="",Z60="",Y60="",X60="",W60=""),1,"") ->  | AG60: =IF(AND($V$60=$AG$30,AD60="",AE60="",AF60="",AC60="",AB60="",AA60="",Z60="",Y60="",X60="",W60=""),1,"") ->  | AH60: =IF(AND($V$60=$AH$30,AE60="",AF60="",AG60="",AD60="",AC60="",AB60="",AA60="",Z60="",Y60="",X60="",W60=""),1,"") ->  | AI60: =IF(AND($V$60=$AI$30,AF60="",AG60="",AH60="",AE60="",AD60="",AC60="",AB60="",AA60="",Z60="",Y60="",X60="",W60=""),1,"") ->  | AJ60: =IF(AND($V$60=$AJ$30,AG60="",AH60="",AI60="",AF60="",AE60="",AD60="",AC60="",AB60="",AA60="",Z60="",Y60="",X60="",W60=""),1,"") ->  | AK60: =IF(AND($V$60=$AK$30,AH60="",AI60="",AJ60="",AG60="",AF60="",AE60="",AD60="",AC60="",AB60="",AA60="",Z60="",Y60="",X60="",W60=""),1,"") -> 
Q61: =IF(R61="","",VLOOKUP(R61,Planning_général!$E$17:$F$62,2,0)) ->  | R61: =IF(W61=1,$W$3,IF(X61=1,$X$3,IF(Y61=1,$Y$3,IF(Z61=1,$Z$3,IF(AA61=1,$AA$3,IF(AB61=1,$AB$3,IF(AC61=1,$AC$3,IF(AD61=1,$AD$3,IF(AE61=1,$AE$3,IF(AF61=1,$AF$3,IF(AG61=1,$AG$3,IF(AH61=1,$AH$3,IF(AI61=1,$AI$3,IF(AJ61=1,$AJ$3,IF(AK61=1,$AK$3,""))))))))))))))) ->  | S61: =IF(U61=1,U$9,IF(V61=1,V$9,IF(W61=1,W$9,IF(X61=1,X$9,IF(Y61=1,Y$9,IF(Z61=1,Z$9,IF(AA61=1,AA$9,IF(AB61=1,AB$9,IF(AC61=1,AC$9,IF(AD61=1,AD$9,IF(AE61=1,AE$9,""))))))))))) ->  | V61: AP2 | X61: =IF(AND(X$30=$V$61,W61="",X60=""),1,"") ->  | Y61: =IF(AND(Y$30=$V$61,X61="",Y60=""),1,"") ->  | Z61: =IF(AND(Z$30=$V$61,Y61="",Z60=""),1,"") ->  | AA61: =IF(AND(AA$30=$V$61,AA60="",SUM($X$61:Z61)=0),1,"") ->  | AB61: =IF(AND(AB$30=$V$61,AB60="",SUM($X$61:AA61)=0),1,"") ->  | AC61: =IF(AND(AC$30=$V$61,AC60="",SUM($X$61:AB61)=0),1,"") ->  | AD61: =IF(AND(AD$30=$V$61,AD60="",SUM($X$61:AC61)=0),1,"") ->  | AE61: =IF(AND(AE$30=$V$61,AE60="",SUM($X$61:AD61)=0),1,"") ->  | AF61: =IF(AND(AF$30=$V$61,AF60="",SUM($X$61:AE61)=0),1,"") ->  | AG61: =IF(AND(AG$30=$V$61,AG60="",SUM($X$61:AF61)=0),1,"") ->  | AH61: =IF(AND(AH$30=$V$61,AH60="",SUM($X$61:AG61)=0),1,"") ->  | AI61: =IF(AND(AI$30=$V$61,AI60="",SUM($X$61:AH61)=0),1,"") ->  | AJ61: =IF(AND(AJ$30=$V$61,AJ60="",SUM($X$61:AI61)=0),1,"") ->  | AK61: =IF(AND(AK$30=$V$61,AK60="",SUM($X$61:AJ61)=0),1,"") -> 
Q62: =IF(R62="","",VLOOKUP(R62,Planning_général!$E$17:$F$62,2,0)) ->  | R62: =IF(W62=1,$W$3,IF(X62=1,$X$3,IF(Y62=1,$Y$3,IF(Z62=1,$Z$3,IF(AA62=1,$AA$3,IF(AB62=1,$AB$3,IF(AC62=1,$AC$3,IF(AD62=1,$AD$3,IF(AE62=1,$AE$3,IF(AF62=1,$AF$3,IF(AG62=1,$AG$3,IF(AH62=1,$AH$3,IF(AI62=1,$AI$3,IF(AJ62=1,$AJ$3,IF(AK62=1,$AK$3,""))))))))))))))) ->  | S62: =IF(U62=1,U$9,IF(V62=1,V$9,IF(W62=1,W$9,IF(X62=1,X$9,IF(Y62=1,Y$9,IF(Z62=1,Z$9,IF(AA62=1,AA$9,IF(AB62=1,AB$9,IF(AC62=1,AC$9,IF(AD62=1,AD$9,IF(AE62=1,AE$9,""))))))))))) ->  | V62: - | Y62: =IF(AND(Y$30=V62,X62="",Y61="",Y60=""),1,"") ->  | Z62: =IF(AND(Z$30=V62,Y62="",Z61="",Z60=""),1,"") ->  | AA62: =IF(AND(AA$30=$V$62,AA60="",AA61="",SUM($Y$62:Z62)=0),1,"") ->  | AB62: =IF(AND(AB$30=$V$62,AB60="",AB61="",SUM($Y$62:AA62)=0),1,"") ->  | AC62: =IF(AND(AC$30=$V$62,AC60="",AC61="",SUM($Y$62:AB62)=0),1,"") ->  | AD62: =IF(AND(AD$30=$V$62,AD60="",AD61="",SUM($Y$62:AC62)=0),1,"") ->  | AE62: =IF(AND(AE$30=$V$62,AE60="",AE61="",SUM($Y$62:AD62)=0),1,"") ->  | AF62: =IF(AND(AF$30=$V$62,AF60="",AF61="",SUM($Y$62:AE62)=0),1,"") ->  | AG62: =IF(AND(AG$30=$V$62,AG60="",AG61="",SUM($Y$62:AF62)=0),1,"") ->  | AH62: =IF(AND(AH$30=$V$62,AH60="",AH61="",SUM($Y$62:AG62)=0),1,"") ->  | AI62: =IF(AND(AI$30=$V$62,AI60="",AI61="",SUM($Y$62:AH62)=0),1,"") ->  | AJ62: =IF(AND(AJ$30=$V$62,AJ60="",AJ61="",SUM($Y$62:AI62)=0),1,"") ->  | AK62: =IF(AND(AK$30=$V$62,AK60="",AK61="",SUM($Y$62:AJ62)=0),1,"") -> 
R65: =IF(W65=1,$W$3,IF(X65=1,$X$3,IF(Y65=1,$Y$3,IF(Z65=1,$Z$3,IF(AA65=1,$AA$3,IF(AB65=1,$AB$3,IF(AC65=1,$AC$3,IF(AD65=1,$AD$3,IF(AE65=1,$AE$3,IF(AF65=1,$AF$3,IF(AG65=1,$AG$3,IF(AH65=1,$AH$3,IF(AI65=1,$AI$3,IF(AJ65=1,$AJ$3,IF(AK65=1,$AK$3,""))))))))))))))) ->  | S65: =IF(U65=1,U$9,IF(V65=1,V$9,IF(W65=1,W$9,IF(X65=1,X$9,IF(Y65=1,Y$9,IF(Z65=1,Z$9,IF(AA65=1,AA$9,IF(AB65=1,AB$9,IF(AC65=1,AC$9,IF(AD65=1,AD$9,IF(AE65=1,AE$9,""))))))))))) ->  | T65: Nuit | V65: - | W65: =IF($V$65=$W$30,1,"") ->  | X65: =IF(AND($V$65=$X$30,W65=""),1,"") ->  | Y65: =IF(AND($V$65=$Y$30,X65="",W65=""),1,"") ->  | Z65: =IF(AND($V$65=$Z$30,W65="",X65="",Y65=""),1,"") ->  | AA65: =IF(AND($V$65=$AA$30,X65="",Y65="",Z65="",W65=""),1,"") ->  | AB65: =IF(AND($V$65=$AB$30,Y65="",Z65="",AA65="",X65="",W65=""),1,"") ->  | AC65: =IF(AND($V$65=AC55,Z65="",AA65="",AB65="",Y65="",X65="",W65=""),1,"") ->  | AD65: =IF(AND($V$65=AD30,AA65="",AB65="",AC65="",Z65="",Y65="",X65="",W65=""),1,"") ->  | AE65: =IF(AND($V$65=$AE$30,AB65="",AC65="",AD65="",AA65="",Z65="",Y65="",X65="",W65=""),1,"") ->  | AF65: =IF(AND($V$65=$AF$30,AC65="",AD65="",AE65="",AB65="",AA65="",Z65="",Y65="",X65="",W65=""),1,"") ->  | AG65: =IF(AND($V$65=$AG$30,AD65="",AE65="",AF65="",AC65="",AB65="",AA65="",Z65="",Y65="",X65="",W65=""),1,"") ->  | AH65: =IF(AND($V$65=$AH$30,AE65="",AF65="",AG65="",AD65="",AC65="",AB65="",AA65="",Z65="",Y65="",X65="",W65=""),1,"") ->  | AI65: =IF(AND($V$65=$AI$30,AF65="",AG65="",AH65="",AE65="",AD65="",AC65="",AB65="",AA65="",Z65="",Y65="",X65="",W65=""),1,"") ->  | AJ65: =IF(AND($V$65=$AJ$30,AG65="",AH65="",AI65="",AF65="",AE65="",AD65="",AC65="",AB65="",AA65="",Z65="",Y65="",X65="",W65=""),1,"") ->  | AK65: =IF(AND($V$65=$AK$30,AH65="",AI65="",AJ65="",AG65="",AF65="",AE65="",AD65="",AC65="",AB65="",AA65="",Z65="",Y65="",X65="",W65=""),1,"") -> 
R66: =IF(W66=1,$W$3,IF(X66=1,$X$3,IF(Y66=1,$Y$3,IF(Z66=1,$Z$3,IF(AA66=1,$AA$3,IF(AB66=1,$AB$3,IF(AC66=1,$AC$3,IF(AD66=1,$AD$3,IF(AE66=1,$AE$3,IF(AF66=1,$AF$3,IF(AG66=1,$AG$3,IF(AH66=1,$AH$3,IF(AI66=1,$AI$3,IF(AJ66=1,$AJ$3,IF(AK66=1,$AK$3,""))))))))))))))) ->  | S66: =IF(U66=1,U$9,IF(V66=1,V$9,IF(W66=1,W$9,IF(X66=1,X$9,IF(Y66=1,Y$9,IF(Z66=1,Z$9,IF(AA66=1,AA$9,IF(AB66=1,AB$9,IF(AC66=1,AC$9,IF(AD66=1,AD$9,IF(AE66=1,AE$9,""))))))))))) ->  | V66: - | X66: =IF(AND(X$30=$V$66,W66="",X65=""),1,"") ->  | Y66: =IF(AND(Y$30=$V$66,X66="",Y65=""),1,"") ->  | Z66: =IF(AND(Z$30=$V$66,Y66="",Z65=""),1,"") ->  | AA66: =IF(AND(AA$30=$V$66,AA65="",SUM($X$66:Z66)=0),1,"") ->  | AB66: =IF(AND(AB$30=$V$66,AB65="",SUM($X$66:AA66)=0),1,"") ->  | AC66: =IF(AND(AC$30=$V$66,AC65="",SUM($X$66:AB66)=0),1,"") ->  | AD66: =IF(AND(AD$30=$V$66,AD65="",SUM($X$66:AC66)=0),1,"") ->  | AE66: =IF(AND(AE$30=$V$66,AE65="",SUM($X$66:AD66)=0),1,"") ->  | AF66: =IF(AND(AF$30=$V$66,AF65="",SUM($X$66:AE66)=0),1,"") ->  | AG66: =IF(AND(AG$30=$V$66,AG65="",SUM($X$66:AF66)=0),1,"") ->  | AH66: =IF(AND(AH$30=$V$66,AH65="",SUM($X$66:AG66)=0),1,"") ->  | AI66: =IF(AND(AI$30=$V$66,AI65="",SUM($X$66:AH66)=0),1,"") ->  | AJ66: =IF(AND(AJ$30=$V$66,AJ65="",SUM($X$66:AI66)=0),1,"") ->  | AK66: =IF(AND(AK$30=$V$66,AK65="",SUM($X$66:AJ66)=0),1,"") -> 
R67: =IF(W67=1,$W$3,IF(X67=1,$X$3,IF(Y67=1,$Y$3,IF(Z67=1,$Z$3,IF(AA67=1,$AA$3,IF(AB67=1,$AB$3,IF(AC67=1,$AC$3,IF(AD67=1,$AD$3,IF(AE67=1,$AE$3,IF(AF67=1,$AF$3,IF(AG67=1,$AG$3,IF(AH67=1,$AH$3,IF(AI67=1,$AI$3,IF(AJ67=1,$AJ$3,IF(AK67=1,$AK$3,""))))))))))))))) ->  | S67: =IF(U67=1,U$9,IF(V67=1,V$9,IF(W67=1,W$9,IF(X67=1,X$9,IF(Y67=1,Y$9,IF(Z67=1,Z$9,IF(AA67=1,AA$9,IF(AB67=1,AB$9,IF(AC67=1,AC$9,IF(AD67=1,AD$9,IF(AE67=1,AE$9,""))))))))))) ->  | V67: - | Y67: =IF(AND(Y$30=V67,X67="",Y66="",Y65=""),1,"") ->  | Z67: =IF(AND(Z$30=V67,Y67="",Z66="",Z65=""),1,"") ->  | AA67: =IF(AND(AA$30=$V$67,AA65="",AA66="",SUM($Y$67:Z67)=0),1,"") ->  | AB67: =IF(AND(AB$30=$V$67,AB65="",AB66="",SUM($Y$67:AA67)=0),1,"") ->  | AC67: =IF(AND(AC$30=$V$67,AC65="",AC66="",SUM($Y$67:AB67)=0),1,"") ->  | AD67: =IF(AND(AD$30=$V$67,AD65="",AD66="",SUM($Y$67:AC67)=0),1,"") ->  | AE67: =IF(AND(AE$30=$V$67,AE65="",AE66="",SUM($Y$67:AD67)=0),1,"") ->  | AF67: =IF(AND(AF$30=$V$67,AF65="",AF66="",SUM($Y$67:AE67)=0),1,"") ->  | AG67: =IF(AND(AG$30=$V$67,AG65="",AG66="",SUM($Y$67:AF67)=0),1,"") ->  | AH67: =IF(AND(AH$30=$V$67,AH65="",AH66="",SUM($Y$67:AG67)=0),1,"") ->  | AI67: =IF(AND(AI$30=$V$67,AI65="",AI66="",SUM($Y$67:AH67)=0),1,"") ->  | AJ67: =IF(AND(AJ$30=$V$67,AJ65="",AJ66="",SUM($Y$67:AI67)=0),1,"") ->  | AK67: =IF(AND(AK$30=$V$67,AK65="",AK66="",SUM($Y$67:AJ67)=0),1,"") -> 
O71: =V71 -> Mardi | P71: =LEN(Q71) -> 0 | Q71: =(CONCATENATE(IF(W71=1,CONCATENATE("-",W$3,"(",W10,")"),""),IF(X71=1,CONCATENATE("-",X$3,"(",X10,")"),""),IF(Y71=1,CONCATENATE("-",Y$3,"(",Y10,")"),""),IF(Z71=1,CONCATENATE("-",Z$3,"(",Z10,")"),""),IF(AA71=1,CONCATENATE("-",AA$3,"(",AA10,")"),""),IF(AB71=1,CONCATENATE("-",AB$3,"(",AB10,")"),""),IF(AC71=1,CONCATENATE("-",AC$3,"(",AC10,")"),""),IF(AD71=1,CONCATENATE("-",AD$3,"(",AD10,")"),""),IF(AE71=1,CONCATENATE("-",AE$3,"(",AE10,")"),""),IF(AF71=1,CONCATENATE("-",AF$3,"(",AF10,")"),""),IF(AG71=1,CONCATENATE("-",AG$3,"(",AG10,")"),""),IF(AH71=1,CONCATENATE("-",AH$3,"(",AH10,")"),""),IF(AI71=1,CONCATENATE("-",AI$3,"(",AI10,")"),""),IF(AJ71=1,CONCATENATE("-",AJ$3,"(",AJ10,")"),""),IF(AK71=1,CONCATENATE("-",AK$3,"(",AK10,")"),""))) ->  | V71: =V10 -> Mardi | W71: =IF((COUNTIF(W10,$AM$71)+COUNTIF(W10,$AM$72)+COUNTIF(W10,$AM$73)+COUNTIF(W10,$AM$74)+COUNTIF(W10,$AM$75)+COUNTIF(W10,$AM$76)+COUNTIF(W10,$AM$77)+COUNTIF(W10,$AM$78)+COUNTIF(W10,$AM$79)+COUNTIF(W10,$AM$80)+COUNTIF(W10,$AM$81))=0,"",COUNTIF(W10,$AM$71)+COUNTIF(W10,$AM$72)+COUNTIF(W10,$AM$73)+COUNTIF(W10,$AM$74)+COUNTIF(W10,$AM$75)+COUNTIF(W10,$AM$76)+COUNTIF(W10,$AM$77)+COUNTIF(W10,$AM$78)+COUNTIF(W10,$AM$79)+COUNTIF(W10,$AM$80)+COUNTIF(W10,$AM$81)) ->  | X71: =IF((COUNTIF(X10,$AM$71)+COUNTIF(X10,$AM$72)+COUNTIF(X10,$AM$73)+COUNTIF(X10,$AM$74)+COUNTIF(X10,$AM$75)+COUNTIF(X10,$AM$76)+COUNTIF(X10,$AM$77)+COUNTIF(X10,$AM$78)+COUNTIF(X10,$AM$79)+COUNTIF(X10,$AM$80)+COUNTIF(X10,$AM$81))=0,"",COUNTIF(X10,$AM$71)+COUNTIF(X10,$AM$72)+COUNTIF(X10,$AM$73)+COUNTIF(X10,$AM$74)+COUNTIF(X10,$AM$75)+COUNTIF(X10,$AM$76)+COUNTIF(X10,$AM$77)+COUNTIF(X10,$AM$78)+COUNTIF(X10,$AM$79)+COUNTIF(X10,$AM$80)+COUNTIF(X10,$AM$81)) ->  | AM71: CP
O72: =V72 -> Mercredi | P72: =LEN(Q72) -> 0 | V72: Mercredi | W72: =IF((COUNTIF(W11,$AM$71)+COUNTIF(W11,$AM$72)+COUNTIF(W11,$AM$73)+COUNTIF(W11,$AM$74)+COUNTIF(W11,$AM$75)+COUNTIF(W11,$AM$76)+COUNTIF(W11,$AM$77)+COUNTIF(W11,$AM$78)+COUNTIF(W11,$AM$79)+COUNTIF(W11,$AM$80)+COUNTIF(W11,$AM$81))=0,"",COUNTIF(W11,$AM$71)+COUNTIF(W11,$AM$72)+COUNTIF(W11,$AM$73)+COUNTIF(W11,$AM$74)+COUNTIF(W11,$AM$75)+COUNTIF(W11,$AM$76)+COUNTIF(W11,$AM$77)+COUNTIF(W11,$AM$78)+COUNTIF(W11,$AM$79)+COUNTIF(W11,$AM$80)+COUNTIF(W11,$AM$81)) ->  | AM72: Recup
O73: Jeudi | P73: 0 | V73: Jeudi | W73: =IF((COUNTIF(W12,$AM$71)+COUNTIF(W12,$AM$72)+COUNTIF(W12,$AM$73)+COUNTIF(W12,$AM$74)+COUNTIF(W12,$AM$75)+COUNTIF(W12,$AM$76)+COUNTIF(W12,$AM$77)+COUNTIF(W12,$AM$78)+COUNTIF(W12,$AM$79)+COUNTIF(W12,$AM$80)+COUNTIF(W12,$AM$81))=0,"",COUNTIF(W12,$AM$71)+COUNTIF(W12,$AM$72)+COUNTIF(W12,$AM$73)+COUNTIF(W12,$AM$74)+COUNTIF(W12,$AM$75)+COUNTIF(W12,$AM$76)+COUNTIF(W12,$AM$77)+COUNTIF(W12,$AM$78)+COUNTIF(W12,$AM$79)+COUNTIF(W12,$AM$80)+COUNTIF(W12,$AM$81)) ->  | AM73: Form
O74: Vendredi | P74: 0 | V74: Vendredi | W74: =IF((COUNTIF(W13,$AM$71)+COUNTIF(W13,$AM$72)+COUNTIF(W13,$AM$73)+COUNTIF(W13,$AM$74)+COUNTIF(W13,$AM$75)+COUNTIF(W13,$AM$76)+COUNTIF(W13,$AM$77)+COUNTIF(W13,$AM$78)+COUNTIF(W13,$AM$79)+COUNTIF(W13,$AM$80)+COUNTIF(W13,$AM$81))=0,"",COUNTIF(W13,$AM$71)+COUNTIF(W13,$AM$72)+COUNTIF(W13,$AM$73)+COUNTIF(W13,$AM$74)+COUNTIF(W13,$AM$75)+COUNTIF(W13,$AM$76)+COUNTIF(W13,$AM$77)+COUNTIF(W13,$AM$78)+COUNTIF(W13,$AM$79)+COUNTIF(W13,$AM$80)+COUNTIF(W13,$AM$81)) ->  | AM74: Modul
O75: Samedi | P75: 0 | V75: Samedi | W75: =IF((COUNTIF(W14,$AM$71)+COUNTIF(W14,$AM$72)+COUNTIF(W14,$AM$73)+COUNTIF(W14,$AM$74)+COUNTIF(W14,$AM$75)+COUNTIF(W14,$AM$76)+COUNTIF(W14,$AM$77)+COUNTIF(W14,$AM$78)+COUNTIF(W14,$AM$79)+COUNTIF(W14,$AM$80)+COUNTIF(W14,$AM$81))=0,"",COUNTIF(W14,$AM$71)+COUNTIF(W14,$AM$72)+COUNTIF(W14,$AM$73)+COUNTIF(W14,$AM$74)+COUNTIF(W14,$AM$75)+COUNTIF(W14,$AM$76)+COUNTIF(W14,$AM$77)+COUNTIF(W14,$AM$78)+COUNTIF(W14,$AM$79)+COUNTIF(W14,$AM$80)+COUNTIF(W14,$AM$81)) ->  | AM75: H.R
O76: Dimanche | P76: 0 | V76: Dimanche | W76: =IF((COUNTIF(W15,$AM$71)+COUNTIF(W15,$AM$72)+COUNTIF(W15,$AM$73)+COUNTIF(W15,$AM$74)+COUNTIF(W15,$AM$75)+COUNTIF(W15,$AM$76)+COUNTIF(W15,$AM$77)+COUNTIF(W15,$AM$78)+COUNTIF(W15,$AM$79)+COUNTIF(W15,$AM$80)+COUNTIF(W15,$AM$81))=0,"",COUNTIF(W15,$AM$71)+COUNTIF(W15,$AM$72)+COUNTIF(W15,$AM$73)+COUNTIF(W15,$AM$74)+COUNTIF(W15,$AM$75)+COUNTIF(W15,$AM$76)+COUNTIF(W15,$AM$77)+COUNTIF(W15,$AM$78)+COUNTIF(W15,$AM$79)+COUNTIF(W15,$AM$80)+COUNTIF(W15,$AM$81)) ->  | AM76: HR Nuit
O77: Lundi | P77: 0 | V77: Lundi | W77: =IF((COUNTIF(W16,$AM$71)+COUNTIF(W16,$AM$72)+COUNTIF(W16,$AM$73)+COUNTIF(W16,$AM$74)+COUNTIF(W16,$AM$75)+COUNTIF(W16,$AM$76)+COUNTIF(W16,$AM$77)+COUNTIF(W16,$AM$78)+COUNTIF(W16,$AM$79)+COUNTIF(W16,$AM$80)+COUNTIF(W16,$AM$81))=0,"",COUNTIF(W16,$AM$71)+COUNTIF(W16,$AM$72)+COUNTIF(W16,$AM$73)+COUNTIF(W16,$AM$74)+COUNTIF(W16,$AM$75)+COUNTIF(W16,$AM$76)+COUNTIF(W16,$AM$77)+COUNTIF(W16,$AM$78)+COUNTIF(W16,$AM$79)+COUNTIF(W16,$AM$80)+COUNTIF(W16,$AM$81)) ->  | AM77: RTT
AM78: Malade
AM79: Mal
AM80: J.A
AM81: Ecole

Sheet Abattoir
B2: =CONCATENATE("Du ",Q12,"/",R12,"/",S12," au ",Q13,"/",R13,"/",S13) -> Du 21/10/2019 au 27/10/2019 | I2: Semaine | J2: 42 | K2: =Planning_général!C2 -> 2019
B4: Équipes | D4: Horaires | G4: Nom et Prénom | I4: Matricule | J4: Nom et Prénom | L4: Matricule | W4: =IF(Planning_général!$E32=0,"",Planning_général!$E32) -> Resp Equipe 2 | X4: =IF(Planning_général!$E33=0,"",Planning_général!$E33) -> Equipe 2_Tech 1 | Y4: =IF(Planning_général!$E34=0,"",Planning_général!$E34) -> Equipe 2_Tech 2 | Z4: =IF(Planning_général!$E35=0,"",Planning_général!$E35) -> Equipe 2_Tech 3 | AA4: =IF(Planning_général!$E36=0,"",Planning_général!$E36) -> Equipe 2_Tech 4 | AB4: =IF(Planning_général!$E37=0,"",Planning_général!$E37) -> Equipe 2_Tech 5 | AC4: =IF(Planning_général!$E38=0,"",Planning_général!$E38) -> Equipe 2_Tech 6 | AD4: =IF(Planning_général!$E39=0,"",Planning_général!$E39) -> Equipe 2_Tech 7 | AE4: =IF(Planning_général!#REF!=0,"",Planning_général!#REF!) ->  | AF4: =IF(Planning_général!$E41=0,"",Planning_général!$E41) -> Equipe 2_Tech 9 | AG4: =IF(Planning_général!$E42=0,"",Planning_général!$E42) -> Equipe 2_Tech 10 | AH4: =IF(Planning_général!$E43=0,"",Planning_général!$E43) -> Equipe 2_Tech 11 | AI4: =IF(Planning_général!$E44=0,"",Planning_général!$E44) -> Equipe 2_Tech 12 | AJ4: =IF(Planning_général!$E40=0,"",Planning_général!$E40) -> Equipe 2_Tech 8 | AK4: =IF(Planning_général!$E46=0,"",Planning_général!$E46) -> 
G5: Secteur Abattoir: 6114 | J5: Secteur Découpe: 6167
B6: Matin | D6: 5 h 30 - 12 h 00 sauf le lundi 3 h 00 -12 h 00 | F6: Pause Lun. 9 h 00 à 9 h 30 Semaine de 9 h 00 à 9 h 20 | G6: =IF(R40="","",R40) ->  | I6: =IF(ISERROR(VLOOKUP(G6,Planning_général!$E$32:$F$46,2,0)),"",VLOOKUP(G6,Planning_général!$E$32:$F$46,2,0)) ->  | J6: =IF(R42="","",R42) ->  | L6: =IF(ISERROR(VLOOKUP(J6,Planning_général!$E$32:$F$46,2,0)),"",VLOOKUP(J6,Planning_général!$E$32:$F$46,2,0)) ->  | P6: Initial | Q6: =DATE(K2,1,1) -> 2019-01-01 | R6: =Q6 -> 43466
P7: Du | Q7: =(R6)+($J$2)*7-WEEKDAY(Q6,2)+1 -> 2019-10-21 | BD7: Semaines
G8: =IF(R41="","",R41) ->  | I8: =IF(ISERROR(VLOOKUP(G8,Planning_général!$E$32:$F$46,2,0)),"",VLOOKUP(G8,Planning_général!$E$32:$F$46,2,0)) ->  | J8: =IF(R43="","",R43) ->  | L8: =IF(ISERROR(VLOOKUP(J8,Planning_général!$E$32:$F$46,2,0)),"",VLOOKUP(J8,Planning_général!$E$32:$F$46,2,0)) ->  | P8: Au | Q8: =Q7+6 -> 2019-10-27 | BD8: 1
AT9: Code | BD9: 2
B10: Journée | D10: 7h 00 - 14 h 00 | F10: Pause de 12 h 00 à 12 h 20 | G10: =IF(R37="","",CONCATENATE(R37, " ( ", Q37, " )")) ->  | V10: Code | W10: =IF(VLOOKUP(W4,Planning_général!$E$17:$F$62,2,0)=0,"Cde abs",VLOOKUP(W4,Planning_général!$E$17:$F$62,2,0)) -> 5390 | X10: =IF(VLOOKUP(X4,Planning_général!$E$17:$F$62,2,0)=0,"Cde abs",VLOOKUP(X4,Planning_général!$E$17:$F$62,2,0)) -> 2908 | Y10: =IF(VLOOKUP(Y4,Planning_général!$E$17:$F$62,2,0)=0,"Cde abs",VLOOKUP(Y4,Planning_général!$E$17:$F$62,2,0)) -> 3553 | Z10: =IF(VLOOKUP(Z4,Planning_général!$E$17:$F$62,2,0)=0,"Cde abs",VLOOKUP(Z4,Planning_général!$E$17:$F$62,2,0)) -> 3737 | AA10: =IF(VLOOKUP(AA4,Planning_général!$E$17:$F$62,2,0)=0,"Cde abs",VLOOKUP(AA4,Planning_général!$E$17:$F$62,2,0)) -> 3546 | AB10: =IF(VLOOKUP(AB4,Planning_général!$E$17:$F$62,2,0)=0,"Cde abs",VLOOKUP(AB4,Planning_général!$E$17:$F$62,2,0)) -> 6742 | AC10: =IF(VLOOKUP(AC4,Planning_général!$E$17:$F$62,2,0)=0,"Cde abs",VLOOKUP(AC4,Planning_général!$E$17:$F$62,2,0)) -> 1136 | AD10: =IF(VLOOKUP(AD4,Planning_général!$E$17:$F$62,2,0)=0,"Cde abs",VLOOKUP(AD4,Planning_général!$E$17:$F$62,2,0)) -> 1410 | AE10: =IF(VLOOKUP(AE4,Planning_général!$E$17:$F$62,2,0)=0,"Cde abs",VLOOKUP(AE4,Planning_général!$E$17:$F$62,2,0)) ->  | AF10: =IF(VLOOKUP(AF4,Planning_général!$E$17:$F$62,2,0)=0,"Cde abs",VLOOKUP(AF4,Planning_général!$E$17:$F$62,2,0)) -> 5885 | AG10: =IF(VLOOKUP(AG4,Planning_général!$E$17:$F$62,2,0)=0,"Cde abs",VLOOKUP(AG4,Planning_général!$E$17:$F$62,2,0)) -> 9353 | AH10: =IF(VLOOKUP(AH4,Planning_général!$E$17:$F$62,2,0)=0,"Cde abs",VLOOKUP(AH4,Planning_général!$E$17:$F$62,2,0)) -> 6746 | AI10: =IF(VLOOKUP(AI4,Planning_général!$E$17:$F$62,2,0)=0,"Cde abs",VLOOKUP(AI4,Planning_général!$E$17:$F$62,2,0)) -> 9600 | AJ10: =IF(VLOOKUP(AJ4,Planning_général!$E$17:$F$62,2,0)=0,"Cde abs",VLOOKUP(AJ4,Planning_général!$E$17:$F$62,2,0)) -> 7202 | AK10: =IF(AK4=0,"",IF(VLOOKUP(AK4,Planning_général!$E$17:$F$62,2,0)=0,"Cde abs",VLOOKUP(AK4,Planning_général!$E$17:$F$62,2,0))) ->  | AO10: Code | AP10: Descriptif | AQ10: Horaires | AR10: Pause | BD10: 3
U11: =Planning_général!G10 -> M | V11: =VLOOKUP(U11,Planning_général!$NV$20:$NW$26,2,0) -> Mardi | W11: =VLOOKUP(W4,Planning_général!$E$32:$NM$32,((($J$2*7)+2)-6),0) -> 0 | X11: =IF(ISNA(VLOOKUP(X4,Planning_général!$E$33:$NM$33,((($J$2*7)+2)-6),0)),0,VLOOKUP(X4,Planning_général!$E$33:$NM$33,((($J$2*7)+2)-6),0)) -> 0 | Y11: =VLOOKUP(Y4,Planning_général!$E$34:$NM$34,((($J$2*7)+2)-6),0) -> 0 | Z11: =VLOOKUP(Z4,Planning_général!$E$35:$NM$35,((($J$2*7)+2)-6),0) -> 0 | AA11: =VLOOKUP(AA4,Planning_général!$E$36:$NM$36,((($J$2*7)+2)-6),0) -> 0 | AB11: =VLOOKUP(AB4,Planning_général!$E$37:$NM$37,((($J$2*7)+2)-6),0) -> 0 | AC11: =VLOOKUP($AC$4,Planning_général!$E$38:$NM$38,((($J$2*7)+2)-6),0) -> 0 | AD11: =VLOOKUP($AD$4,Planning_général!$E$39:$NM$39,((($J$2*7)+2)-6),0) -> 0 | AE11: =VLOOKUP($AE$4,Planning_général!#REF!,((($J$2*7)+2)-6),0) ->  | AF11: =VLOOKUP($AF$4,Planning_général!$E$41:$NM$41,((($J$2*7)+2)-6),0) -> 0 | AG11: =VLOOKUP($AG$4,Planning_général!$E$42:$NM$42,((($J$2*7)+2)-6),0) -> 0 | AH11: =VLOOKUP($AH$4,Planning_général!$E$43:$NM$43,((($J$2*7)+2)-6),0) -> 0 | AI11: =VLOOKUP($AI$4,Planning_général!$E$44:$NM$44,((($J$2*7)+2)-6),0) -> 0 | AJ11: =VLOOKUP($AJ$4,Planning_général!$E$40:$NM$40,((($J$2*7)+2)-6),0) -> 0 | AK11: =IF(ISNA(VLOOKUP($AK$4,Planning_général!$E$46:$NM$46,((($J$2*7)+2)-6),0)),0,VLOOKUP($AK$4,Planning_général!$E$46:$NM$46,((($J$2*7)+2)-6),0)) -> 0 | AO11: M.A | AP11: Matin Aba | AQ11: 5 h 30 - 12 h 30 | AR11: 9 h - 9 h 30 | AT11: Recup | BD11: 4
G12: =IF(R38="","",CONCATENATE(R38, " ( ", Q38, " )")) ->  | P12: =Q7 -> 2019-10-21 | Q12: =DAY(P12) -> 21 | R12: =MONTH(P12) -> 10 | S12: =YEAR(P12) -> 2019 | U12: =Planning_général!H10 -> Me | V12: =VLOOKUP(U12,Planning_général!$NV$20:$NW$26,2,0) -> Mercredi | W12: =VLOOKUP($W$4,Planning_général!$E$32:$NM$32,((($J$2*7)+2)-5),0) -> 0 | X12: =VLOOKUP($X$4,Planning_général!$E$33:$NM$33,((($J$2*7)+2)-5),0) -> 0 | Y12: =VLOOKUP($Y$4,Planning_général!$E$34:$NM$34,((($J$2*7)+2)-5),0) -> 0 | Z12: =VLOOKUP($Z$4,Planning_général!$E$35:$NM$35,((($J$2*7)+2)-5),0) -> 0 | AA12: =VLOOKUP($AA$4,Planning_général!$E$36:$NM$36,((($J$2*7)+2)-5),0) -> 0 | AB12: =VLOOKUP($AB$4,Planning_général!$E$37:$NM$37,((($J$2*7)+2)-5),0) -> 0 | AC12: =VLOOKUP($AC$4,Planning_général!$E$38:$NM$38,((($J$2*7)+2)-5),0) -> 0 | AD12: =VLOOKUP($AD$4,Planning_général!$E$39:$NM$39,((($J$2*7)+2)-5),0) -> 0 | AE12: =VLOOKUP($AE$4,Planning_général!#REF!,((($J$2*7)+2)-5),0) ->  | AF12: =VLOOKUP($AF$4,Planning_général!$E$41:$NM$41,((($J$2*7)+2)-5),0) -> 0 | AG12: =VLOOKUP($AG$4,Planning_général!$E$42:$NM$42,((($J$2*7)+2)-5),0) -> 0 | AH12: =VLOOKUP($AH$4,Planning_général!$E$43:$NM$43,((($J$2*7)+2)-5),0) -> 0 | AI12: =VLOOKUP($AI$4,Planning_général!$E$44:$NM$44,((($J$2*7)+2)-5),0) -> 0 | AJ12: =VLOOKUP($AJ$4,Planning_général!$E$40:$NM$40,((($J$2*7)+2)-5),0) -> 0 | AK12: =IF(ISNA(VLOOKUP($AK$4,Planning_général!$E$46:$NM$46,((($J$2*7)+2)-5),0)),0,VLOOKUP($AK$4,Planning_général!$E$46:$NM$46,((($J$2*7)+2)-5),0)) -> 0 | AO12: M.D | AP12: Matin Déc | AQ12: 5 h 30 - 12 h 30 | AR12: 9 h 20 - 9 h 20 | AT12: Form | BD12: 5
P13: =Q8 -> 2019-10-27 | Q13: =DAY(P13) -> 27 | R13: =MONTH(P13) -> 10 | S13: =YEAR(P13) -> 2019 | U13: =Planning_général!I10 -> J | V13: =VLOOKUP(U13,Planning_général!$NV$20:$NW$26,2,0) -> Jeudi | W13: =VLOOKUP($W$4,Planning_général!$E$32:$NM$32,((($J$2*7)+2)-4),0) -> 0 | X13: =VLOOKUP($X$4,Planning_général!$E$33:$NM$33,((($J$2*7)+2)-4),0) -> 0 | Y13: =VLOOKUP($Y$4,Planning_général!$E$34:$NM$34,((($J$2*7)+2)-4),0) -> 0 | Z13: =VLOOKUP($Z$4,Planning_général!$E$35:$NM$35,((($J$2*7)+2)-4),0) -> 0 | AA13: =VLOOKUP($AA$4,Planning_général!$E$36:$NM$36,((($J$2*7)+2)-4),0) -> 0 | AB13: =VLOOKUP($AB$4,Planning_général!$E$37:$NM$37,((($J$2*7)+2)-4),0) -> 0 | AC13: =VLOOKUP($AC$4,Planning_général!$E$38:$NM$38,((($J$2*7)+2)-4),0) -> 0 | AD13: =VLOOKUP($AD$4,Planning_général!$E$39:$NM$39,((($J$2*7)+2)-4),0) -> 0 | AE13: =VLOOKUP($AE$4,Planning_général!#REF!,((($J$2*7)+2)-4),0) ->  | AF13: =VLOOKUP($AF$4,Planning_général!$E$41:$NM$41,((($J$2*7)+2)-4),0) -> 0 | AG13: =VLOOKUP($AG$4,Planning_général!$E$42:$NM$42,((($J$2*7)+2)-4),0) -> 0 | AH13: =VLOOKUP($AH$4,Planning_général!$E$43:$NM$43,((($J$2*7)+2)-4),0) -> 0 | AI13: =VLOOKUP($AI$4,Planning_général!$E$44:$NM$44,((($J$2*7)+2)-4),0) -> 0 | AJ13: =VLOOKUP($AJ$4,Planning_général!$E$40:$NM$40,((($J$2*7)+2)-4),0) -> 0 | AK13: =IF(ISNA(VLOOKUP($AK$4,Planning_général!$E$46:$NM$46,((($J$2*7)+2)-4),0)),0,VLOOKUP($AK$4,Planning_général!$E$46:$NM$46,((($J$2*7)+2)-4),0)) -> 0 | AO13: AM.A | AP13: AP Abat | AQ13: 11 h 30 - 18 h 30 | AR13: 15 h 00 - 15 h 20 | AT13: Modul | BD13: 6
B14: Après-midi | D14: 11 h 30 -18 h 30 | F14: Pause de 15 h 00 à 15 h 20 | G14: =IF(R46="","",R46) ->  | I14: =IF(ISERROR(VLOOKUP(G14,Planning_général!$E$32:$F$46,2,0)),"",VLOOKUP(G14,Planning_général!$E$32:$F$46,2,0)) ->  | J14: =IF(R48="","",R48) ->  | L14: =IF(ISERROR(VLOOKUP(J14,Planning_général!$E$32:$F$46,2,0)),"",VLOOKUP(J14,Planning_général!$E$32:$F$46,2,0)) ->  | U14: =Planning_général!J10 -> V | V14: =VLOOKUP(U14,Planning_général!$NV$20:$NW$26,2,0) -> Vendredi | W14: =VLOOKUP($W$4,Planning_général!$E$32:$NM$32,((($J$2*7)+2)-3),0) -> 0 | X14: =VLOOKUP($X$4,Planning_général!$E$33:$NM$33,((($J$2*7)+2)-3),0) -> 0 | Y14: =VLOOKUP($Y$4,Planning_général!$E$34:$NM$34,((($J$2*7)+2)-3),0) -> 0 | Z14: =VLOOKUP($Z$4,Planning_général!$E$35:$NM$35,((($J$2*7)+2)-3),0) -> 0 | AA14: =VLOOKUP($AA$4,Planning_général!$E$36:$NM$36,((($J$2*7)+2)-3),0) -> 0 | AB14: =VLOOKUP($AB$4,Planning_général!$E$37:$NM$37,((($J$2*7)+2)-3),0) -> 0 | AC14: =VLOOKUP($AC$4,Planning_général!$E$38:$NM$38,((($J$2*7)+2)-3),0) -> 0 | AD14: =VLOOKUP($AD$4,Planning_général!$E$39:$NM$39,((($J$2*7)+2)-3),0) -> 0 | AE14: =VLOOKUP($AE$4,Planning_général!#REF!,((($J$2*7)+2)-3),0) ->  | AF14: =VLOOKUP($AF$4,Planning_général!$E$41:$NM$41,((($J$2*7)+2)-3),0) -> 0 | AG14: =VLOOKUP($AG$4,Planning_général!$E$42:$NM$42,((($J$2*7)+2)-3),0) -> 0 | AH14: =VLOOKUP($AH$4,Planning_général!$E$43:$NM$43,((($J$2*7)+2)-3),0) -> 0 | AI14: =VLOOKUP($AI$4,Planning_général!$E$44:$NM$44,((($J$2*7)+2)-3),0) -> 0 | AJ14: =VLOOKUP($AJ$4,Planning_général!$E$40:$NM$40,((($J$2*7)+2)-3),0) -> 0 | AK14: =IF(ISNA(VLOOKUP($AK$4,Planning_général!$E$46:$NM$46,((($J$2*7)+2)-3),0)),0,VLOOKUP($AK$4,Planning_général!$E$46:$NM$46,((($J$2*7)+2)-3),0)) -> 0 | AO14: AM.D | AP14: AP Decoupe | AQ14: 11 h 30 - 18 h 30 | AR14: 15 h 00 - 15 h 20 | AT14: H.R | BD14: 7
U15: =Planning_général!K10 -> S | V15: =VLOOKUP(U15,Planning_général!$NV$20:$NW$26,2,0) -> Samedi | W15: =VLOOKUP($W$4,Planning_général!$E$32:$NM$32,((($J$2*7)+2)-2),0) -> 0 | X15: =VLOOKUP($X$4,Planning_général!$E$33:$NM$33,((($J$2*7)+2)-2),0) -> 0 | Y15: =VLOOKUP($Y$4,Planning_général!$E$34:$NM$34,((($J$2*7)+2)-2),0) -> 0 | Z15: =VLOOKUP($Z$4,Planning_général!$E$35:$NM$35,((($J$2*7)+2)-2),0) -> 0 | AA15: =VLOOKUP($AA$4,Planning_général!$E$36:$NM$36,((($J$2*7)+2)-2),0) -> 0 | AB15: =VLOOKUP($AB$4,Planning_général!$E$37:$NM$37,((($J$2*7)+2)-2),0) -> 0 | AC15: =VLOOKUP($AC$4,Planning_général!$E$38:$NM$38,((($J$2*7)+2)-2),0) -> 0 | AD15: =VLOOKUP($AD$4,Planning_général!$E$39:$NM$39,((($J$2*7)+2)-2),0) -> 0 | AE15: =VLOOKUP($AE$4,Planning_général!#REF!,((($J$2*7)+2)-2),0) ->  | AF15: =VLOOKUP($AF$4,Planning_général!$E$41:$NM$41,((($J$2*7)+2)-2),0) -> 0 | AG15: =VLOOKUP($AG$4,Planning_général!$E$42:$NM$42,((($J$2*7)+2)-2),0) -> 0 | AH15: =VLOOKUP($AH$4,Planning_général!$E$43:$NM$43,((($J$2*7)+2)-2),0) -> 0 | AI15: =VLOOKUP($AI$4,Planning_général!$E$44:$NM$44,((($J$2*7)+2)-2),0) -> 0 | AJ15: =VLOOKUP($AJ$4,Planning_général!$E$40:$NM$40,((($J$2*7)+2)-2),0) -> 0 | AK15: =IF(ISNA(VLOOKUP($AK$4,Planning_général!$E$46:$NM$46,((($J$2*7)+2)-2),0)),0,VLOOKUP($AK$4,Planning_général!$E$46:$NM$46,((($J$2*7)+2)-2),0)) -> 0 | AO15: N.A | AP15: Nuit abat | AQ15: 23 h 00 - 06 h 00 | AR15: 2 h 00 - 02 h 20 | AT15: HR Nuit | BD15: 8
G16: =IF(R47="","",R47) ->  | I16: =IF(ISERROR(VLOOKUP(G16,Planning_général!$E$32:$F$46,2,0)),"",VLOOKUP(G16,Planning_général!$E$32:$F$46,2,0)) ->  | J16: =IF(R49="","",R49) ->  | L16: =IF(ISERROR(VLOOKUP(J16,Planning_général!$E$32:$F$46,2,0)),"",VLOOKUP(J16,Planning_général!$E$32:$F$46,2,0)) ->  | U16: =Planning_général!L10 -> D | V16: =VLOOKUP(U16,Planning_général!$NV$20:$NW$26,2,0) -> Dimanche | W16: =VLOOKUP($W$4,Planning_général!$E$32:$NM$32,((($J$2*7)+2)-1),0) -> 0 | X16: =VLOOKUP($X$4,Planning_général!$E$33:$NM$33,((($J$2*7)+2)-1),0) -> 0 | Y16: =VLOOKUP($Y$4,Planning_général!$E$34:$NM$34,((($J$2*7)+2)-1),0) -> 0 | Z16: =VLOOKUP($Z$4,Planning_général!$E$35:$NM$35,((($J$2*7)+2)-1),0) -> 0 | AA16: =VLOOKUP($AA$4,Planning_général!$E$36:$NM$36,((($J$2*7)+2)-1),0) -> 0 | AB16: =VLOOKUP($AB$4,Planning_général!$E$37:$NM$37,((($J$2*7)+2)-1),0) -> 0 | AC16: =VLOOKUP($AC$4,Planning_général!$E$38:$NM$38,((($J$2*7)+2)-1),0) -> 0 | AD16: =VLOOKUP($AD$4,Planning_général!$E$39:$NM$39,((($J$2*7)+2)-1),0) -> 0 | AE16: =VLOOKUP($AE$4,Planning_général!#REF!,((($J$2*7)+2)-1),0) ->  | AF16: =VLOOKUP($AF$4,Planning_général!$E$41:$NM$41,((($J$2*7)+2)-1),0) -> 0 | AG16: =VLOOKUP($AG$4,Planning_général!$E$42:$NM$42,((($J$2*7)+2)-1),0) -> 0 | AH16: =VLOOKUP($AH$4,Planning_général!$E$43:$NM$43,((($J$2*7)+2)-1),0) -> 0 | AI16: =VLOOKUP($AI$4,Planning_général!$E$44:$NM$44,((($J$2*7)+2)-1),0) -> 0 | AJ16: =VLOOKUP($AJ$4,Planning_général!$E$40:$NM$40,((($J$2*7)+2)-1),0) -> 0 | AK16: =IF(ISNA(VLOOKUP($AK$4,Planning_général!$E$46:$NM$46,((($J$2*7)+2)-1),0)),0,VLOOKUP($AK$4,Planning_général!$E$46:$NM$46,((($J$2*7)+2)-1),0)) -> 0 | AO16: N.D | AP16: Nuit Decou | AQ16: 23 h 00 - 06 h 00 | AR16: 13 h 30 - 15 h 50 | AT16: RTT | BD16: 9
U17: =Planning_général!M10 -> L | V17: =VLOOKUP(U17,Planning_général!$NV$20:$NW$26,2,0) -> Lundi | W17: =VLOOKUP($W$4,Planning_général!$E$32:$NM$32,((($J$2*7)+2)-0),0) -> 0 | X17: =VLOOKUP($X$4,Planning_général!$E$33:$NM$33,((($J$2*7)+2)-0),0) -> 0 | Y17: =VLOOKUP($Y$4,Planning_général!$E$34:$NM$34,((($J$2*7)+2)-0),0) -> 0 | Z17: =VLOOKUP($Z$4,Planning_général!$E$35:$NM$35,((($J$2*7)+2)-0),0) -> 0 | AA17: =VLOOKUP($AA$4,Planning_général!$E$36:$NM$36,((($J$2*7)+2)-0),0) -> 0 | AB17: =VLOOKUP($AB$4,Planning_général!$E$37:$NM$37,((($J$2*7)+2)-0),0) -> 0 | AC17: =VLOOKUP($AC$4,Planning_général!$E$38:$NM$38,((($J$2*7)+2)-0),0) -> 0 | AD17: =VLOOKUP($AD$4,Planning_général!$E$39:$NM$39,((($J$2*7)+2)-0),0) -> 0 | AE17: =VLOOKUP($AE$4,Planning_général!#REF!,((($J$2*7)+2)-0),0) ->  | AF17: =VLOOKUP($AF$4,Planning_général!$E$41:$NM$41,((($J$2*7)+2)-0),0) -> 0 | AG17: =VLOOKUP($AG$4,Planning_général!$E$42:$NM$42,((($J$2*7)+2)-0),0) -> 0 | AH17: =VLOOKUP($AH$4,Planning_général!$E$43:$NM$43,((($J$2*7)+2)-0),0) -> 0 | AI17: =VLOOKUP($AI$4,Planning_général!$E$44:$NM$44,((($J$2*7)+2)-0),0) -> 0 | AJ17: =VLOOKUP($AJ$4,Planning_général!$E$40:$NM$40,((($J$2*7)+2)-0),0) -> 0 | AK17: =IF(ISNA(VLOOKUP($AK$4,Planning_général!$E$46:$NM$46,((($J$2*7)+2)-0),0)),0,VLOOKUP($AK$4,Planning_général!$E$46:$NM$46,((($J$2*7)+2)-0),0)) -> 0 | AO17: J | AP17: Journée | AQ17: 07 h 00 - 14 h 00 | AR17: 12 h 00 - 12 h 30 | AT17: Mal | BD17: 10
B18: SOIR | D18: 18 h 00 - 01 h 00 | F18: Pause de 22 h 00 à 22 h 20 | G18: =IF(R52="","",R52) ->  | I18: =IF(ISERROR(VLOOKUP(G18,Planning_général!$E$32:$F$46,2,0)),"",VLOOKUP(G18,Planning_général!$E$32:$F$46,2,0)) ->  | J18: =IF(R54="","",R54) ->  | L18: =IF(ISERROR(VLOOKUP(J18,Planning_général!$E$32:$F$46,2,0)),"",VLOOKUP(J18,Planning_général!$E$32:$F$46,2,0)) ->  | AO18: S.A | AP18: Nuit abat | AQ18: 18 h 00 - 01 h 00 | AR18: 22 h 00 - 22 h 20 | AT18: J.A | BD18: 11
AO19: S.D | AP19: Nuit Décou | AQ19: 18 h 00 - 01 h 00 | AR19: 22 h 00 - 22 h 20 | AT19: Ecole | BD19: 12
G20: =IF(R53="","",R53) ->  | I20: =IF(ISERROR(VLOOKUP(G20,Planning_général!$E$32:$F$46,2,0)),"",VLOOKUP(G20,Planning_général!$E$32:$F$46,2,0)) ->  | J20: =IF(R55="","",R55) ->  | L20: =IF(ISERROR(VLOOKUP(J20,Planning_général!$E$32:$F$46,2,0)),"",VLOOKUP(J20,Planning_général!$E$32:$F$46,2,0)) ->  | AO20: SM.A | AP20: Samedi | AQ20: 6 h 00 - 13 h 00 | AR20: 9 h 20 - 9 h 20 | AT20: Dep | BD20: 13
B21: Nuit | D21: 23 h 00 - 06 h 00 | F21: Pause de 02 h 00 à 02 h 20 | G21: =IF(R58="","",R58) ->  | I21: =IF(ISERROR(VLOOKUP(G21,Planning_général!$E$32:$F$46,2,0)),"",VLOOKUP(G21,Planning_général!$E$32:$F$46,2,0)) ->  | J21: =IF(R60="","",R60) ->  | L21: =IF(ISERROR(VLOOKUP(J21,Planning_général!$E$32:$F$46,2,0)),"",VLOOKUP(J21,Planning_général!$E$32:$F$46,2,0)) ->  | V21: =AO11 -> M.A | W21: =IF(COUNTIF($W$11:$W$17,V21)=0,"",COUNTIF($W$11:$W$17,V21)) ->  | X21: =IF(COUNTIF($X$11:$X$17,V21)=0,"",COUNTIF($X$11:$X$17,V21)) ->  | Y21: =IF(COUNTIF($Y$11:$Y$17,V21)=0,"",COUNTIF($Y$11:$Y$17,V21)) ->  | Z21: =IF(COUNTIF($Z$11:$Z$17,V21)=0,"",COUNTIF($Z$11:$Z$17,V21)) ->  | AA21: =IF(COUNTIF($AA$11:$AA$17,V21)=0,"",COUNTIF($AA$11:$AA$17,V21)) ->  | AB21: =IF(COUNTIF($AB$11:$AB$17,V21)=0,"",COUNTIF($AB$11:$AB$17,V21)) ->  | AC21: =IF(COUNTIF($AC$11:$AC$17,V21)=0,"",COUNTIF($AC$11:$AC$17,V21)) ->  | AD21: =IF(COUNTIF($AD$11:$AD$17,$V$21)=0,"",COUNTIF($AD$11:$AD$17,$V$21)) ->  | AE21: =IF(COUNTIF($AE$11:$AE$17,$V$21)=0,"",COUNTIF($AE$11:$AE$17,$V$21)) ->  | AF21: =IF(COUNTIF($AF$11:$AF$17,$V$21)=0,"",COUNTIF($AF$11:$AF$17,$V$21)) ->  | AG21: =IF(COUNTIF($AG$11:$AG$17,$V$21)=0,"",COUNTIF($AG$11:$AG$17,$V$21)) ->  | AH21: =IF(COUNTIF($AH$11:$AH$17,$V$21)=0,"",COUNTIF($AH$11:$AH$17,$V$21)) ->  | AI21: =IF(COUNTIF($AI$11:$AI$17,$V$21)=0,"",COUNTIF($AI$11:$AI$17,$V$21)) ->  | AJ21: =IF(COUNTIF($AJ$11:$AJ$17,$V$21)=0,"",COUNTIF($AJ$11:$AJ$17,$V$21)) ->  | AK21: =IF(COUNTIF($AK$11:$AK$17,$V$21)=0,"",COUNTIF($AK$11:$AK$17,$V$21)) ->  | AO21: SM.D | AQ21: 6 h 00 - 13 h 00 | AR21: 9 h 20 - 9 h 20 | BD21: 16
V22: M.D | W22: =IF(COUNTIF($W$11:$W$17,V22)=0,"",COUNTIF($W$11:$W$17,V22)) ->  | X22: =IF(COUNTIF($X$11:$X$17,V22)=0,"",COUNTIF($X$11:$X$17,V22)) ->  | Y22: =IF(COUNTIF($Y$11:$Y$17,V22)=0,"",COUNTIF($Y$11:$Y$17,V22)) ->  | Z22: =IF(COUNTIF($Z$11:$Z$17,V22)=0,"",COUNTIF($Z$11:$Z$17,V22)) ->  | AA22: =IF(COUNTIF($AA$11:$AA$17,V22)=0,"",COUNTIF($AA$11:$AA$17,V22)) ->  | AB22: =IF(COUNTIF($AB$11:$AB$17,V22)=0,"",COUNTIF($AB$11:$AB$17,V22)) ->  | AC22: =IF(COUNTIF($AC$11:$AC$17,V22)=0,"",COUNTIF($AC$11:$AC$17,V22)) ->  | AD22: =IF(COUNTIF($AD$11:$AD$17,$V$22)=0,"",COUNTIF($AD$11:$AD$17,$V$22)) ->  | AE22: =IF(COUNTIF($AE$11:$AE$17,$V$22)=0,"",COUNTIF($AE$11:$AE$17,$V$22)) ->  | AF22: =IF(COUNTIF($AF$11:$AF$17,$V$22)=0,"",COUNTIF($AF$11:$AF$17,$V$22)) ->  | AG22: =IF(COUNTIF($AG$11:$AG$17,$V$22)=0,"",COUNTIF($AG$11:$AG$17,$V$22)) ->  | AH22: =IF(COUNTIF($AH$11:$AH$17,$V$22)=0,"",COUNTIF($AH$11:$AH$17,$V$22)) ->  | AI22: =IF(COUNTIF($AI$11:$AI$17,$V$22)=0,"",COUNTIF($AI$11:$AI$17,$V$22)) ->  | AJ22: =IF(COUNTIF($AJ$11:$AJ$17,$V$22)=0,"",COUNTIF($AJ$11:$AJ$17,$V$22)) ->  | AK22: =IF(COUNTIF($AK$11:$AK$17,$V$22)=0,"",COUNTIF($AK$11:$AK$17,$V$22)) ->  | BD22: 17
G23: =IF(R59="","",R59) ->  | I23: =IF(ISERROR(VLOOKUP(G23,Planning_général!$E$32:$F$46,2,0)),"",VLOOKUP(G23,Planning_général!$E$32:$F$46,2,0)) ->  | J23: =IF(R61="","",R61) ->  | L23: =IF(ISERROR(VLOOKUP(J23,Planning_général!$E$32:$F$46,2,0)),"",VLOOKUP(J23,Planning_général!$E$32:$F$46,2,0)) ->  | V23: AM.A | W23: =IF(COUNTIF($W$11:$W$17,V23)=0,"",COUNTIF($W$11:$W$17,V23)) ->  | AC23: =IF(COUNTIF($AC$11:$AC$17,V23)=0,"",COUNTIF($AC$11:$AC$17,V23)) ->  | AD23: =IF(COUNTIF($AD$11:$AD$17,V23)=0,"",COUNTIF($AD$11:$AD$17,V23)) ->  | AE23: =IF(COUNTIF($AE$11:$AE$17,$V$23)=0,"",COUNTIF($AE$11:$AE$17,$V$23)) ->  | AF23: =IF(COUNTIF($AF$11:$AF$17,$V$23)=0,"",COUNTIF($AF$11:$AF$17,$V$23)) ->  | AG23: =IF(COUNTIF($AG$11:$AG$17,$V$23)=0,"",COUNTIF($AG$11:$AG$17,$V$23)) ->  | AH23: =IF(COUNTIF($AH$11:$AH$17,$V$23)=0,"",COUNTIF($AH$11:$AH$17,$V$23)) ->  | AI23: =IF(COUNTIF($AI$11:$AI$17,$V$23)=0,"",COUNTIF($AI$11:$AI$17,$V$23)) ->  | AJ23: =IF(COUNTIF($AJ$11:$AJ$17,$V$23)=0,"",COUNTIF($AJ$11:$AJ$17,$V$23)) ->  | AK23: =IF(COUNTIF($AK$11:$AK$17,$V$23)=0,"",COUNTIF($AK$11:$AK$17,$V$23)) ->  | BD23: 18
B24: SAMEDI | D24: 06 h 00 - 13 h 00 | F24: Pause de 09 h 00 à 09 h 20 | G24: =R65 ->  | I24: =IF(ISERROR(VLOOKUP(G24,Planning_général!$E$32:$F$46,2,0)),"",VLOOKUP(G24,Planning_général!$E$32:$F$46,2,0)) ->  | J24: =R67 ->  | L24: =IF(ISERROR(VLOOKUP(J24,Planning_général!$E$32:$F$46,2,0)),"",VLOOKUP(J24,Planning_général!$E$32:$F$46,2,0)) ->  | V24: AM.D | AD24: =IF(COUNTIF($AD$11:$AD$17,$V$24)=0,"",COUNTIF($AD$11:$AD$17,$V$24)) ->  | AE24: =IF(COUNTIF($AE$11:$AE$17,$V$24)=0,"",COUNTIF($AE$11:$AE$17,$V$24)) ->  | AF24: =IF(COUNTIF($AF$11:$AF$17,$V$24)=0,"",COUNTIF($AF$11:$AF$17,$V$24)) ->  | AG24: =IF(COUNTIF($AG$11:$AG$17,$V$24)=0,"",COUNTIF($AG$11:$AG$17,$V$24)) ->  | AH24: =IF(COUNTIF($AH$11:$AH$17,$V$24)=0,"",COUNTIF($AH$11:$AH$17,$V$24)) ->  | AI24: =IF(COUNTIF($AI$11:$AI$17,$V$24)=0,"",COUNTIF($AI$11:$AI$17,$V$24)) ->  | AJ24: =IF(COUNTIF($AJ$11:$AJ$17,$V$24)=0,"",COUNTIF($AJ$11:$AJ$17,$V$24)) ->  | AK24: =IF(COUNTIF($AK$11:$AK$17,$V$24)=0,"",COUNTIF($AK$11:$AK$17,$V$24)) ->  | BD24: 19
V25: N.A | AC25: =IF(COUNTIF($AC$11:$AC$17,$V$25)=0,"",COUNTIF($AC$11:$AC$17,V25)) ->  | AD25: =IF(COUNTIF($AD$11:$AD$17,$V$25)=0,"",COUNTIF($AD$11:$AD$17,$V$25)) ->  | AE25: =IF(COUNTIF($AE$11:$AE$17,$V$25)=0,"",COUNTIF($AE$11:$AE$17,$V$25)) ->  | AF25: =IF(COUNTIF($AF$11:$AF$17,$V$25)=0,"",COUNTIF($AF$11:$AF$17,$V$25)) ->  | AG25: =IF(COUNTIF($AG$11:$AG$17,$V$25)=0,"",COUNTIF($AG$11:$AG$17,$V$25)) ->  | AH25: =IF(COUNTIF($AH$11:$AH$17,$V$25)=0,"",COUNTIF($AH$11:$AH$17,$V$25)) ->  | AI25: =IF(COUNTIF($AI$11:$AI$17,$V$25)=0,"",COUNTIF($AI$11:$AI$17,$V$25)) ->  | AJ25: =IF(COUNTIF($AJ$11:$AJ$17,$V$25)=0,"",COUNTIF($AJ$11:$AJ$17,$V$25)) ->  | AK25: =IF(COUNTIF($AK$11:$AK$17,$V$25)=0,"",COUNTIF($AK$11:$AK$17,$V$25)) ->  | BD25: 20
G26: =R66 ->  | I26: =IF(ISERROR(VLOOKUP(G26,Planning_général!$E$32:$F$46,2,0)),"",VLOOKUP(G26,Planning_général!$E$32:$F$46,2,0)) ->  | J26: =R68 ->  | L26: =IF(ISERROR(VLOOKUP(J26,Planning_général!$E$32:$F$46,2,0)),"",VLOOKUP(J26,Planning_général!$E$32:$F$46,2,0)) ->  | V26: N.D | AC26: =IF(COUNTIF($AC$11:$AC$17,$V$26)=0,"",COUNTIF($AC$11:$AC$17,V26)) ->  | AD26: =IF(COUNTIF($AD$11:$AD$17,$V$26)=0,"",COUNTIF($AD$11:$AD$17,$V$26)) ->  | AE26: =IF(COUNTIF($AE$11:$AE$17,$V$26)=0,"",COUNTIF($AE$11:$AE$17,$V$26)) ->  | AF26: =IF(COUNTIF($AF$11:$AF$17,$V$26)=0,"",COUNTIF($AF$11:$AF$17,$V$26)) ->  | AG26: =IF(COUNTIF($AG$11:$AG$17,$V$26)=0,"",COUNTIF($AG$11:$AG$17,$V$26)) ->  | AH26: =IF(COUNTIF($AH$11:$AH$17,$V$26)=0,"",COUNTIF($AH$11:$AH$17,$V$26)) ->  | AI26: =IF(COUNTIF($AI$11:$AI$17,$V$26)=0,"",COUNTIF($AI$11:$AI$17,$V$26)) ->  | AJ26: =IF(COUNTIF($AJ$11:$AJ$17,$V$26)=0,"",COUNTIF($AJ$11:$AJ$17,$V$26)) ->  | AK26: =IF(COUNTIF($AK$11:$AK$17,$V$26)=0,"",COUNTIF($AK$11:$AK$17,$V$26)) ->  | BD26: 21
B27: Absences (CP/ Modul/ Repos /Formation) | D27: Lundi | E27: =VLOOKUP(D27,O73:S79,3,0) ->  | V27: J | AC27: =IF(COUNTIF($AC$11:$AC$17,$V$27)=0,"",COUNTIF($AC$11:$AC$17,V27)) ->  | AD27: =IF(COUNTIF($AD$11:$AD$17,$V$27)=0,"",COUNTIF($AD$11:$AD$17,$V$27)) ->  | AE27: =IF(COUNTIF($AE$11:$AE$17,$V$27)=0,"",COUNTIF($AE$11:$AE$17,$V$27)) ->  | AF27: =IF(COUNTIF($AF$11:$AF$17,$V$27)=0,"",COUNTIF($AF$11:$AF$17,$V$27)) ->  | AG27: =IF(COUNTIF($AG$11:$AG$17,$V$27)=0,"",COUNTIF($AG$11:$AG$17,$V$27)) ->  | AH27: =IF(COUNTIF($AH$11:$AH$17,$V$27)=0,"",COUNTIF($AH$11:$AH$17,$V$27)) ->  | AI27: =IF(COUNTIF($AI$11:$AI$17,$V$27)=0,"",COUNTIF($AI$11:$AI$17,$V$27)) ->  | AJ27: =IF(COUNTIF($AJ$11:$AJ$17,$V$27)=0,"",COUNTIF($AJ$11:$AJ$17,$V$27)) ->  | AK27: =IF(COUNTIF($AK$11:$AK$17,$V$27)=0,"",COUNTIF($AK$11:$AK$17,$V$27)) ->  | BD27: 22
D28: Mardi | E28: =VLOOKUP(D28,O74:S80,3,0) ->  | V28: S.A | W28: =IF(COUNTIF($W$11:$W$17,V28)=0,"",COUNTIF($W$11:$W$17,V28)) ->  | X28: =IF(COUNTIF($X$11:$X$17,V28)=0,"",COUNTIF($X$11:$X$17,V28)) ->  | AB28: =IF(COUNTIF($AB$11:$AB$17,V28)=0,"",COUNTIF($AB$11:$AB$17,V28)) ->  | AD28: =IF(COUNTIF($AD$11:$AD$17,$V$28)=0,"",COUNTIF($AD$11:$AD$17,$V$28)) ->  | AE28: =IF(COUNTIF($AE$11:$AE$17,$V$28)=0,"",COUNTIF($AE$11:$AE$17,$V$28)) ->  | AF28: =IF(COUNTIF($AF$11:$AF$17,$V$28)=0,"",COUNTIF($AF$11:$AF$17,$V$28)) ->  | AG28: =IF(COUNTIF($AG$11:$AG$17,$V$28)=0,"",COUNTIF($AG$11:$AG$17,$V$28)) ->  | AH28: =IF(COUNTIF($AH$11:$AH$17,$V$28)=0,"",COUNTIF($AH$11:$AH$17,$V$28)) ->  | AI28: =IF(COUNTIF($AI$11:$AI$17,$V$28)=0,"",COUNTIF($AI$11:$AI$17,$V$28)) ->  | AJ28: =IF(COUNTIF($AJ$11:$AJ$17,$V$28)=0,"",COUNTIF($AJ$11:$AJ$17,$V$28)) ->  | AK28: =IF(COUNTIF($AK$11:$AK$17,$V$28)=0,"",COUNTIF($AK$11:$AK$17,$V$28)) ->  | BD28: 23
D29: Mercredi | E29: =VLOOKUP(D29,O75:S81,3,0) ->  | V29: S.D | W29: =IF(COUNTIF($W$11:$W$17,V29)=0,"",COUNTIF($W$11:$W$17,V29)) ->  | X29: =IF(COUNTIF($X$11:$X$17,V29)=0,"",COUNTIF($X$11:$X$17,V29)) ->  | Y29: =IF(COUNTIF($Y$11:$Y$17,V29)=0,"",COUNTIF($Y$11:$Y$17,V29)) ->  | Z29: =IF(COUNTIF($Z$11:$Z$17,V29)=0,"",COUNTIF($Z$11:$Z$17,V29)) ->  | AA29: =IF(COUNTIF($AA$11:$AA$17,V29)=0,"",COUNTIF($AA$11:$AA$17,V29)) ->  | AB29: =IF(COUNTIF($AB$11:$AB$17,V29)=0,"",COUNTIF($AB$11:$AB$17,V29)) ->  | AC29: =IF(COUNTIF($AC$11:$AC$17,V29)=0,"",COUNTIF($AC$11:$AC$17,V29)) ->  | AD29: =IF(COUNTIF($AD$11:$AD$17,$V$29)=0,"",COUNTIF($AD$11:$AD$17,$V$29)) ->  | AE29: =IF(COUNTIF($AE$11:$AE$17,$V$29)=0,"",COUNTIF($AE$11:$AE$17,$V$29)) ->  | AF29: =IF(COUNTIF($AF$11:$AF$17,$V$29)=0,"",COUNTIF($AF$11:$AF$17,$V$29)) ->  | AG29: =IF(COUNTIF($AG$11:$AG$17,$V$29)=0,"",COUNTIF($AG$11:$AG$17,$V$29)) ->  | AH29: =IF(COUNTIF($AH$11:$AH$17,$V$29)=0,"",COUNTIF($AH$11:$AH$17,$V$29)) ->  | AI29: =IF(COUNTIF($AI$11:$AI$17,$V$29)=0,"",COUNTIF($AI$11:$AI$17,$V$29)) ->  | AJ29: =IF(COUNTIF($AJ$11:$AJ$17,$V$29)=0,"",COUNTIF($AJ$11:$AJ$17,$V$29)) ->  | AK29: =IF(COUNTIF($AK$11:$AK$17,$V$29)=0,"",COUNTIF($AK$11:$AK$17,$V$29)) ->  | BD29: 24
D30: Jeudi | E30: =VLOOKUP(D30,O76:S82,3,0) ->  | V30: SM.A | W30: =IF(COUNTIF($W$11:$W$17,V30)=0,"",COUNTIF($W$11:$W$17,V30)) ->  | X30: =IF(COUNTIF($X$11:$X$17,V30)=0,"",COUNTIF($X$11:$X$17,V30)) ->  | Y30: =IF(COUNTIF($Y$11:$Y$17,V30)=0,"",COUNTIF($Y$11:$Y$17,V30)) ->  | Z30: =IF(COUNTIF($Z$11:$Z$17,V30)=0,"",COUNTIF($Z$11:$Z$17,V30)) ->  | AA30: =IF(COUNTIF($AA$11:$AA$17,V30)=0,"",COUNTIF($AA$11:$AA$17,V30)) ->  | AB30: =IF(COUNTIF($AB$11:$AB$17,V30)=0,"",COUNTIF($AB$11:$AB$17,V30)) ->  | AC30: =IF(COUNTIF($AC$11:$AC$17,V30)=0,"",COUNTIF($AC$11:$AC$17,V30)) ->  | AD30: =IF(COUNTIF($AD$11:$AD$17,$V$30)=0,"",COUNTIF($AD$11:$AD$17,$V$30)) ->  | AE30: =IF(COUNTIF($AE$11:$AE$17,$V$30)=0,"",COUNTIF($AE$11:$AE$17,$V$30)) ->  | AF30: =IF(COUNTIF($AF$11:$AF$17,$V$30)=0,"",COUNTIF($AF$11:$AF$17,$V$30)) ->  | AG30: =IF(COUNTIF($AG$11:$AG$17,$V$30)=0,"",COUNTIF($AG$11:$AG$17,$V$30)) ->  | AH30: =IF(COUNTIF($AH$11:$AH$17,$V$30)=0,"",COUNTIF($AH$11:$AH$17,$V$30)) ->  | AI30: =IF(COUNTIF($AI$11:$AI$17,$V$30)=0,"",COUNTIF($AI$11:$AI$17,$V$30)) ->  | AJ30: =IF(COUNTIF($AJ$11:$AJ$17,$V$30)=0,"",COUNTIF($AJ$11:$AJ$17,$V$30)) ->  | AK30: =IF(COUNTIF($AK$11:$AK$17,$V$30)=0,"",COUNTIF($AK$11:$AK$17,$V$30)) -> 
D31: Vendredi | E31: =VLOOKUP(D31,O77:S84,3,0) ->  | V31: SM.D | W31: =IF(COUNTIF($W$11:$W$17,V31)=0,"",COUNTIF($W$11:$W$17,V31)) ->  | X31: =IF(COUNTIF($X$11:$X$17,V31)=0,"",COUNTIF($X$11:$X$17,V31)) ->  | Y31: =IF(COUNTIF($Y$11:$Y$17,V31)=0,"",COUNTIF($Y$11:$Y$17,V31)) ->  | Z31: =IF(COUNTIF($Z$11:$Z$17,V31)=0,"",COUNTIF($Z$11:$Z$17,V31)) ->  | AA31: =IF(COUNTIF($AA$11:$AA$17,V31)=0,"",COUNTIF($AA$11:$AA$17,V31)) ->  | AB31: =IF(COUNTIF($AB$11:$AB$17,V31)=0,"",COUNTIF($AB$11:$AB$17,V31)) ->  | AC31: =IF(COUNTIF($AC$11:$AC$17,V31)=0,"",COUNTIF($AC$11:$AC$17,V31)) ->  | AD31: =IF(COUNTIF($AD$11:$AD$17,$V$31)=0,"",COUNTIF($AD$11:$AD$17,$V$31)) ->  | AE31: =IF(COUNTIF($AE$11:$AE$17,$V$31)=0,"",COUNTIF($AE$11:$AE$17,$V$31)) ->  | AF31: =IF(COUNTIF($AF$11:$AF$17,$V$31)=0,"",COUNTIF($AF$11:$AF$17,$V$31)) ->  | AG31: =IF(COUNTIF($AG$11:$AG$17,$V$31)=0,"",COUNTIF($AG$11:$AG$17,$V$31)) ->  | AH31: =IF(COUNTIF($AH$11:$AH$17,$V$31)=0,"",COUNTIF($AH$11:$AH$17,$V$31)) ->  | AI31: =IF(COUNTIF($AI$11:$AI$17,$V$31)=0,"",COUNTIF($AI$11:$AI$17,$V$31)) ->  | AJ31: =IF(COUNTIF($AJ$11:$AJ$17,$V$31)=0,"",COUNTIF($AJ$11:$AJ$17,$V$31)) ->  | AK31: =IF(COUNTIF($AK$11:$AK$17,$V$31)=0,"",COUNTIF($AK$11:$AK$17,$V$31)) -> 
D32: Samedi | E32: =VLOOKUP(D32,O78:S85,3,0) ->  | V32: Max | W32: =MAX(W21:W31) -> 0 | X32: =MAX(X21:X31) -> 0 | Y32: 0 | Z32: 0 | AA32: 0 | AB32: =MAX(AB21:AB31) -> 0 | AC32: 0 | AD32: 0 | AE32: 0 | AF32: =MAX(AF21:AF31) -> 0 | AG32: 0 | AH32: 0 | AI32: 0 | AJ32: 0 | AK32: 0
V33: Mini | W33: =IF(MIN(W21:W31)=1,1,0) -> 0 | X33: 0 | Y33: 0 | Z33: 0 | AA33: 0 | AB33: 0 | AC33: 0 | AD33: 0 | AE33: 0 | AF33: 0 | AG33: 0 | AH33: 0 | AI33: 0 | AJ33: 0 | AK33: 0
BD34: 25
R35: Techniciens | BD35: 26
W36: =IF(W32=0,"",IF(W21=W32,$V$21,IF(W22=W32,$V$22,IF(W23=W32,$V$23,IF(W24=W32,$V$24,IF(W25=W32,$V$25,IF(W26=W32,$V$26,IF(W27=W32,$V$27,IF(W28=W32,$V$28,IF(W29=W32,$V$29,IF(W30=W32,$V$30,IF(W31=W32,$V$31,"")))))))))))) ->  | X36: =IF(X32=0,"",IF(X21=X32,$V$21,IF(X22=X32,$V$22,IF(X23=X32,$V$23,IF(X24=X32,$V$24,IF(X25=X32,$V$25,IF(X26=X32,$V$26,IF(X27=X32,$V$27,IF(X28=X32,$V$28,IF(X29=X32,$V$29,IF(X30=X32,$V$30,IF(X31=X32,$V$31,"")))))))))))) ->  | Y36: =IF(Y32=0,"",IF(Y21=Y32,$V$21,IF(Y22=Y32,$V$22,IF(Y23=Y32,$V$23,IF(Y24=Y32,$V$24,IF(Y25=Y32,$V$25,IF(Y26=Y32,$V$26,IF(Y27=Y32,$V$27,IF(Y28=Y32,$V$28,IF(Y29=Y32,$V$29,IF(Y30=Y32,$V$30,IF(Y31=Y32,$V$31,"")))))))))))) ->  | Z36: =IF(Z32=0,"",IF(Z21=Z32,$V$21,IF(Z22=Z32,$V$22,IF(Z23=Z32,$V$23,IF(Z24=Z32,$V$24,IF(Z25=Z32,$V$25,IF(Z26=Z32,$V$26,IF(Z27=Z32,$V$27,IF(Z28=Z32,$V$28,IF(Z29=Z32,$V$29,IF(Z30=Z32,$V$30,IF(Z31=Z32,$V$31,"")))))))))))) ->  | AD36: =IF(AD32=0,"",IF(AD21=AD32,$V$21,IF(AD22=AD32,$V$22,IF(AD23=AD32,$V$23,IF(AD24=AD32,$V$24,IF(AD25=AD32,$V$25,IF(AD26=AD32,$V$26,IF(AD27=AD32,$V$27,IF(AD28=AD32,$V$28,IF(AD29=AD32,$V$29,IF(AD30=AD32,$V$30,IF(AD31=AD32,$V$31,"")))))))))))) ->  | AF36: =IF(AF32=0,"",IF(AF21=AF32,$V$21,IF(AF22=AF32,$V$22,IF(AF23=AF32,$V$23,IF(AF24=AF32,$V$24,IF(AF25=AF32,$V$25,IF(AF26=AF32,$V$26,IF(AF27=AF32,$V$27,IF(AF28=AF32,$V$28,IF(AF29=AF32,$V$29,IF(AF30=AF32,$V$30,IF(AF31=AF32,$V$31,"")))))))))))) ->  | AI36: =IF(AI32=0,"",IF(AI21=AI32,$V$21,IF(AI22=AI32,$V$22,IF(AI23=AI32,$V$23,IF(AI24=AI32,$V$24,IF(AI25=AI32,$V$25,IF(AI26=AI32,$V$26,IF(AI27=AI32,$V$27,IF(AI28=AI32,$V$28,IF(AI29=AI32,$V$29,IF(AI30=AI32,$V$30,IF(AI31=AI32,$V$31,"")))))))))))) ->  | AJ36: =IF(AJ32=0,"",IF(AJ21=AJ32,$V$21,IF(AJ22=AJ32,$V$22,IF(AJ23=AJ32,$V$23,IF(AJ24=AJ32,$V$24,IF(AJ25=AJ32,$V$25,IF(AJ26=AJ32,$V$26,IF(AJ27=AJ32,$V$27,IF(AJ28=AJ32,$V$28,IF(AJ29=AJ32,$V$29,IF(AJ30=AJ32,$V$30,IF(AJ31=AJ32,$V$31,"")))))))))))) ->  | BD36: 27
Q37: =IF(R37="","",IF(ISNA(VLOOKUP(R37,Planning_général!$E$17:$F$62,2,0)),"",VLOOKUP(R37,Planning_général!$E$17:$F$62,2,0))) ->  | R37: =IF(W37=1,$W$4,IF(X37=1,$X$4,IF(Y37=1,$Y$4,IF(Z37=1,Z4,IF(AA37=1,$AA$4,IF(AB37=1,$AB$4,IF(AC37=1,$AC$4,IF(AD37=1,$AD$4,IF(AE37=1,$AE$4,IF(AF37=1,$AF$4,IF(AG37=1,$AG$4,IF(AH37=1,AH4,IF(AI37=1,$AI$4,IF(AJ37=1,$AJ$4,IF(AK37=1,$AK$4,""))))))))))))))) ->  | S37: =IF(U37=1,U$10,IF(V37=1,V$10,IF(W37=1,W$10,IF(X37=1,X$10,IF(Y37=1,Y$10,IF(Z37=1,Z$10,IF(AA37=1,AA$10,IF(AB37=1,AB$10,IF(AC37=1,AC$10,IF(AD37=1,AD$10,IF(AE37=1,AE$10,""))))))))))) ->  | T37: Jrnée | V37: J | W37: =IF($V$37=W36,1,"") ->  | X37: =IF(AND($V$37=$X$36,W37=""),1,"") ->  | Y37: =IF(AND($V$37=$Y$36,X37="",W37=""),1,"") ->  | Z37: =IF(AND($V$37=Z36,W37="",X37="",Y37=""),1,"") ->  | AA37: =IF(AND($V$37=AA36,X37="",Y37="",Z37="",W37=""),1,"") ->  | AB37: =IF(AND($V$37=AB36,Y37="",Z37="",AA37="",X37="",W37=""),1,"") ->  | AC37: =IF(AND($V$37=AC36,Z37="",AA37="",AB37="",Y37="",X37="",W37=""),1,"") ->  | AD37: =IF(AND($V$37=AD36,AA37="",AB37="",AC37="",Z37="",Y37="",X37="",W37=""),1,"") ->  | AE37: =IF(AND($V$37=AE36,AB37="",AC37="",AD37="",AA37="",Z37="",Y37="",X37="",W37=""),1,"") ->  | AF37: =IF(AND($V$37=AF36,AC37="",AD37="",AE37="",AB37="",AA37="",Z37="",Y37="",X37="",W37=""),1,"") ->  | AG37: =IF(AND($V$37=AG36,AD37="",AE37="",AF37="",AC37="",AB37="",AA37="",Z37="",Y37="",X37="",W37=""),1,"") ->  | AH37: =IF(AND($V$37=AH36,AE37="",AF37="",AG37="",AD37="",AC37="",AB37="",AA37="",Z37="",Y37="",X37="",W37=""),1,"") ->  | AI37: =IF(AND($V$37=AI36,AF37="",AG37="",AH37="",AE37="",AD37="",AC37="",AB37="",AA37="",Z37="",Y37="",X37="",W37=""),1,"") ->  | AJ37: =IF(AND($V$37=AJ36,AG37="",AH37="",AI37="",AF37="",AE37="",AD37="",AC37="",AB37="",AA37="",Z37="",Y37="",X37="",W37=""),1,"") ->  | AK37: =IF(AND($V$37=AK36,AH37="",AI37="",AJ37="",AG37="",AF37="",AE37="",AD37="",AC37="",AB37="",AA37="",Z37="",Y37="",X37="",W37=""),1,"") ->  | BD37: 28
Q38: =IF(R38="","",IF(ISNA(VLOOKUP(R38,Planning_général!$E$17:$F$62,2,0)),"",VLOOKUP(R38,Planning_général!$E$17:$F$62,2,0))) ->  | R38: =IF(W38=1,$W$4,IF(X38=1,$X$4,IF(Y38=1,$Y$4,IF(Z38=1,Z5,IF(AA38=1,$AA$4,IF(AB38=1,$AB$4,IF(AC38=1,$AC$4,IF(AD38=1,$AD$4,IF(AE38=1,$AE$4,IF(AF38=1,$AF$4,IF(AG38=1,$AG$4,IF(AH38=1,AH5,IF(AI38=1,$AI$4,IF(AJ38=1,$AJ$4,IF(AK38=1,$AK$4,""))))))))))))))) ->  | S38: =IF(U38=1,U$10,IF(V38=1,V$10,IF(W38=1,W$10,IF(X38=1,X$10,IF(Y38=1,Y$10,IF(Z38=1,Z$10,IF(AA38=1,AA$10,IF(AB38=1,AB$10,IF(AC38=1,AC$10,IF(AD38=1,AD$10,IF(AE38=1,AE$10,""))))))))))) ->  | V38: J | X38: =IF(AND(X$36=$V$38,W38="",X37=""),1,"") ->  | Y38: =IF(AND(Y$36=$V$38,X38="",Y37=""),1,"") ->  | Z38: =IF(AND(Z$36=$V$38,Y38="",Z37=""),1,"") ->  | AA38: =IF(AND(AA$36=$V$38,AA37="",SUM($X$38:Z38)=0),1,"") ->  | AB38: =IF(AND(AB$36=$V$38,AB37="",SUM($X$38:AA38)=0),1,"") ->  | AC38: =IF(AND(AC$36=$V$38,AC37="",SUM($X$38:AB38)=0),1,"") ->  | AD38: =IF(AND(AD$36=$V$38,AD37="",SUM($X$38:AC38)=0),1,"") ->  | AE38: =IF(AND(AE$36=$V$38,AE37="",SUM($X$38:AD38)=0),1,"") ->  | AF38: =IF(AND(AF$36=$V$38,AF37="",SUM($X$38:AE38)=0),1,"") ->  | AG38: =IF(AND(AG$36=$V$38,AG37="",SUM($X$38:AF38)=0),1,"") ->  | AH38: =IF(AND(AH$36=$V$38,AH37="",SUM($X$38:AG38)=0),1,"") ->  | AI38: =IF(AND(AI$36=$V$38,AI37="",SUM($X$38:AH38)=0),1,"") ->  | AJ38: =IF(AND(AJ$36=$V$38,AJ37="",SUM($X$38:AI38)=0),1,"") ->  | AK38: =IF(AND(AK$36=$V$38,AK37="",SUM($X$38:AJ38)=0),1,"") ->  | BD38: 29
Q40: =IF(R40="","",IF(ISNA(VLOOKUP(R40,Planning_général!$E$17:$F$62,2,0)),"",VLOOKUP(R40,Planning_général!$E$17:$F$62,2,0))) ->  | R40: =IF(W40=1,$W$4,IF(X40=1,$X$4,IF(Y40=1,$Y$4,IF(Z40=1,Z4,IF(AA40=1,$AA$4,IF(AB40=1,$AB$4,IF(AC40=1,$AC$4,IF(AD40=1,$AD$4,IF(AE40=1,$AE$4,IF(AF40=1,$AF$4,IF(AG40=1,$AG$4,IF(AH40=1,AH8,IF(AI40=1,$AI$4,IF(AJ40=1,$AJ$4,IF(AK40=1,$AK$4,""))))))))))))))) ->  | S40: =IF(U40=1,U$10,IF(V40=1,V$10,IF(W40=1,W$10,IF(X40=1,X$10,IF(Y40=1,Y$10,IF(Z40=1,Z$10,IF(AA40=1,AA$10,IF(AB40=1,AB$10,IF(AC40=1,AC$10,IF(AD40=1,AD$10,IF(AE40=1,AE$10,""))))))))))) ->  | T40: Matin | V40: M.A | W40: =IF($V$40=W36,1,"") ->  | X40: =IF(AND($V$40=$X$36,W40=""),1,"") ->  | Y40: =IF(AND($V$40=$Y$36,X40="",W40=""),1,"") ->  | Z40: =IF(AND($V$40=Z36,W40="",X40="",Y40=""),1,"") ->  | AA40: =IF(AND($V$40=AA36,X40="",Y40="",Z40="",W40=""),1,"") ->  | AB40: =IF(AND($V$40=AB36,Y40="",Z40="",AA40="",X40="",W40=""),1,"") ->  | AC40: =IF(AND($V$40=AC36,Z40="",AA40="",AB40="",Y40="",X40="",W40=""),1,"") ->  | AD40: =IF(AND($V$40=AD36,AA40="",AB40="",AC40="",Z40="",Y40="",X40="",W40=""),1,"") ->  | AE40: =IF(AND($V$40=AE36,AB40="",AC40="",AD40="",AA40="",Z40="",Y40="",X40="",W40=""),1,"") ->  | AF40: =IF(AND($V$40=AF36,AC40="",AD40="",AE40="",AB40="",AA40="",Z40="",Y40="",X40="",W40=""),1,"") ->  | AG40: =IF(AND($V$40=AG36,AD40="",AE40="",AF40="",AC40="",AB40="",AA40="",Z40="",Y40="",X40="",W40=""),1,"") ->  | AH40: =IF(AND($V$40=AH36,AE40="",AF40="",AG40="",AD40="",AC40="",AB40="",AA40="",Z40="",Y40="",X40="",W40=""),1,"") ->  | AI40: =IF(AND($V$40=AI36,AF40="",AG40="",AH40="",AE40="",AD40="",AC40="",AB40="",AA40="",Z40="",Y40="",X40="",W40=""),1,"") ->  | AJ40: =IF(AND($V$40=AJ36,AG40="",AH40="",AI40="",AF40="",AE40="",AD40="",AC40="",AB40="",AA40="",Z40="",Y40="",X40="",W40=""),1,"") ->  | AK40: =IF(AND($V$40=AK36,AH40="",AI40="",AJ40="",AG40="",AF40="",AE40="",AD40="",AC40="",AB40="",AA40="",Z40="",Y40="",X40="",W40=""),1,"") -> 
Q41: =IF(R41="","",IF(ISNA(VLOOKUP(R41,Planning_général!$E$17:$F$62,2,0)),"",VLOOKUP(R41,Planning_général!$E$17:$F$62,2,0))) ->  | R41: =IF(W41=1,$W$4,IF(X41=1,$X$4,IF(Y41=1,$Y$4,IF(Z41=1,Z4,IF(AA41=1,$AA$4,IF(AB41=1,$AB$4,IF(AC41=1,$AC$4,IF(AD41=1,$AD$4,IF(AE41=1,$AE$4,IF(AF41=1,$AF$4,IF(AG41=1,$AG$4,IF(AH41=1,AH4,IF(AI41=1,$AI$4,IF(AJ41=1,$AJ$4,IF(AK41=1,$AK$4,""))))))))))))))) ->  | S41: =IF(U41=1,U$10,IF(V41=1,V$10,IF(W41=1,W$10,IF(X41=1,X$10,IF(Y41=1,Y$10,IF(Z41=1,Z$10,IF(AA41=1,AA$10,IF(AB41=1,AB$10,IF(AC41=1,AC$10,IF(AD41=1,AD$10,IF(AE41=1,AE$10,""))))))))))) ->  | V41: M.A | X41: =IF(AND(X$36=$V$41,W41="",X40=""),1,"") ->  | Y41: =IF(AND(Y$36=$V$41,X41="",Y40=""),1,"") ->  | Z41: =IF(AND(Z$36=$V$41,Z40="",SUM($X$41:Y41)=0),1,"") ->  | AA41: =IF(AND(AA$36=$V$41,AA40="",SUM($X$41:Z41)=0),1,"") ->  | AB41: =IF(AND(AB$36=$V$41,AB40="",SUM($X$41:AA41)=0),1,"") ->  | AC41: =IF(AND(AC$36=$V$41,AC40="",SUM($X$41:AB41)=0),1,"") ->  | AD41: =IF(AND(AD$36=$V$41,AD40="",SUM($X$41:AC41)=0),1,"") ->  | AE41: =IF(AND(AE$36=$V$41,AE40="",SUM($X$41:AD41)=0),1,"") ->  | AF41: =IF(AND(AF$36=$V$41,AF40="",SUM($X$41:AE41)=0),1,"") ->  | AG41: =IF(AND(AG$36=$V$41,AG40="",SUM($X$41:AF41)=0),1,"") ->  | AH41: =IF(AND(AH$36=$V$41,AH40="",SUM($X$41:AG41)=0),1,"") ->  | AI41: =IF(AND(AI$36=$V$41,AI40="",SUM($X$41:AH41)=0),1,"") ->  | AJ41: =IF(AND(AJ$36=$V$41,AJ40="",SUM($X$41:AI41)=0),1,"") ->  | AK41: =IF(AND(AK$36=$V$41,AK40="",SUM($X$41:AJ41)=0),1,"") -> 
Q42: =IF(R42="","",IF(ISNA(VLOOKUP(R42,Planning_général!$E$17:$F$62,2,0)),"",VLOOKUP(R42,Planning_général!$E$17:$F$62,2,0))) ->  | R42: =IF(W42=1,$W$4,IF(X42=1,$X$4,IF(Y42=1,$Y$4,IF(Z42=1,$Z$4,IF(AA42=1,$AA$4,IF(AB42=1,$AB$4,IF(AC42=1,$AC$4,IF(AD42=1,$AD$4,IF(AE42=1,$AE$4,IF(AF42=1,$AF$4,IF(AG42=1,$AG$4,IF(AH42=1,$AH$4,IF(AI42=1,$AI$4,IF(AJ42=1,$AJ$4,IF(AK42=1,$AK$4,""))))))))))))))) ->  | V42: M.D | W42: =IF($V$42=$W$36,1,"") ->  | X42: =IF(AND($V$42=$X$36,W42=""),1,"") ->  | Y42: =IF(AND($V$42=$Y$36,X42="",W42=""),1,"") ->  | Z42: =IF(AND($V$42=Z36,W42="",X42="",Y42=""),1,"") ->  | AA42: =IF(AND($V$42=$AA$36,X42="",Y42="",Z42="",W42=""),1,"") ->  | AB42: =IF(AND($V$42=$AB$36,Y42="",Z42="",AA42="",X42="",W42=""),1,"") ->  | AC42: =IF(AND($V$42=$AC$36,Z42="",AA42="",AB42="",Y42="",X42="",W42=""),1,"") ->  | AD42: =IF(AND($V$42=AD36,AA42="",AB42="",AC42="",Z42="",Y42="",X42="",W42=""),1,"") ->  | AE42: =IF(AND($V$42=$AE$36,AB42="",AC42="",AD42="",AA42="",Z42="",Y42="",X42="",W42=""),1,"") ->  | AF42: =IF(AND($V$42=$AF$36,AC42="",AD42="",AE42="",AB42="",AA42="",Z42="",Y42="",X42="",W42=""),1,"") ->  | AG42: =IF(AND($V$42=$AG$36,AD42="",AE42="",AF42="",AC42="",AB42="",AA42="",Z42="",Y42="",X42="",W42=""),1,"") ->  | AH42: =IF(AND($V$42=$AH$36,AE42="",AF42="",AG42="",AD42="",AC42="",AB42="",AA42="",Z42="",Y42="",X42="",W42=""),1,"") ->  | AI42: =IF(AND($V$42=$AI$36,AF42="",AG42="",AH42="",AE42="",AD42="",AC42="",AB42="",AA42="",Z42="",Y42="",X42="",W42=""),1,"") ->  | AJ42: =IF(AND($V$42=$AJ$36,AG42="",AH42="",AI42="",AF42="",AE42="",AD42="",AC42="",AB42="",AA42="",Z42="",Y42="",X42="",W42=""),1,"") ->  | AK42: =IF(AND($V$42=$AK$36,AH42="",AI42="",AJ42="",AG42="",AF42="",AE42="",AD42="",AC42="",AB42="",AA42="",Z42="",Y42="",X42="",W42=""),1,"") ->  | BD42: 30
Q43: =IF(R43="","",IF(ISNA(VLOOKUP(R43,Planning_général!$E$17:$F$62,2,0)),"",VLOOKUP(R43,Planning_général!$E$17:$F$62,2,0))) ->  | R43: =IF(W43=1,$W$4,IF(X43=1,$X$4,IF(Y43=1,$Y$4,IF(Z43=1,$Z$4,IF(AA43=1,$AA$4,IF(AB43=1,$AB$4,IF(AC43=1,$AC$4,IF(AD43=1,$AD$4,IF(AE43=1,$AE$4,IF(AF43=1,$AF$4,IF(AG43=1,$AG$4,IF(AH43=1,$AH$4,IF(AI43=1,$AI$4,IF(AJ43=1,$AJ$4,IF(AK43=1,$AK$4,""))))))))))))))) ->  | S43: =IF(U43=1,U$10,IF(V43=1,V$10,IF(W43=1,W$10,IF(X43=1,X$10,IF(Y43=1,Y$10,IF(Z43=1,Z$10,IF(AA43=1,AA$10,IF(AB43=1,AB$10,IF(AC43=1,AC$10,IF(AD43=1,AD$10,IF(AE43=1,AE$10,""))))))))))) ->  | V43: M.D | X43: =IF(AND(X$36=$V$43,W43="",X42=""),1,"") ->  | Y43: =IF(AND(Y$36=$V$43,X43="",Y42=""),1,"") ->  | Z43: =IF(AND(Z$36=$V$43,Z42="",SUM($X$43:Y43)=0),1,"") ->  | AA43: =IF(AND(AA$36=$V$43,AA42="",SUM($X$43:Z43)=0),1,"") ->  | AB43: =IF(AND(AB$36=$V$43,AB42="",SUM($X$43:AA43)=0),1,"") ->  | AC43: =IF(AND(AC$36=$V$43,AC42="",SUM($X$43:AB43)=0),1,"") ->  | AD43: =IF(AND(AD$36=$V$43,AD42="",SUM($X$43:AC43)=0),1,"") ->  | AE43: =IF(AND(AE$36=$V$43,AE42="",SUM($X$43:AD43)=0),1,"") ->  | AF43: =IF(AND(AF$36=$V$43,AF42="",SUM($X$43:AE43)=0),1,"") ->  | AG43: =IF(AND(AG$36=$V$43,AG42="",SUM($X$43:AF43)=0),1,"") ->  | AH43: =IF(AND(AH$36=$V$43,AH42="",SUM($X$43:AG43)=0),1,"") ->  | AI43: =IF(AND(AI$36=$V$43,AI42="",SUM($X$43:AH43)=0),1,"") ->  | AJ43: =IF(AND(AJ$36=$V$43,AJ42="",SUM($X$43:AI43)=0),1,"") ->  | AK43: =IF(AND(AK$36=$V$43,AK42="",SUM($X$43:AJ43)=0),1,"") -> 
BD44: 31
BD45: 35
Q46: =IF(R46="","",IF(ISNA(VLOOKUP(R46,Planning_général!$E$17:$F$62,2,0)),"",VLOOKUP(R46,Planning_général!$E$17:$F$62,2,0))) ->  | R46: =IF(W46=1,$W$4,IF(X46=1,$X$4,IF(Y46=1,$Y$4,IF(Z46=1,Z4,IF(AA46=1,$AA$4,IF(AB46=1,$AB$4,IF(AC46=1,$AC$4,IF(AD46=1,$AD$4,IF(AE46=1,$AE$4,IF(AF46=1,$AF$4,IF(AG46=1,$AG$4,IF(AH46=1,AH13,IF(AI46=1,$AI$4,IF(AJ46=1,$AJ$4,IF(AK46=1,$AK$4,""))))))))))))))) ->  | S46: =IF(U46=1,U$10,IF(V46=1,V$10,IF(W46=1,W$10,IF(X46=1,X$10,IF(Y46=1,Y$10,IF(Z46=1,Z$10,IF(AA46=1,AA$10,IF(AB46=1,AB$10,IF(AC46=1,AC$10,IF(AD46=1,AD$10,IF(AE46=1,AE$10,""))))))))))) ->  | T46: Début | V46: AM.A | W46: =IF($V$46=$W$36,1,"") ->  | X46: =IF(AND($V$46=$X$36,W46=""),1,"") ->  | Y46: =IF(AND($V$46=$Y$36,X46="",W46=""),1,"") ->  | Z46: =IF(AND($V$46=Z36,W46="",X46="",Y46=""),1,"") ->  | AA46: =IF(AND($V$46=$AA$36,X46="",Y46="",Z46="",W46=""),1,"") ->  | AB46: =IF(AND($V$46=$AB$36,Y46="",Z46="",AA46="",X46="",W46=""),1,"") ->  | AC46: =IF(AND($V$46=AC36,Z46="",AA46="",AB46="",Y46="",X46="",W46=""),1,"") ->  | AD46: =IF(AND($V$46=AD36,AA46="",AB46="",AC46="",Z46="",Y46="",X46="",W46=""),1,"") ->  | AE46: =IF(AND($V$46=$AE$36,AB46="",AC46="",AD46="",AA46="",Z46="",Y46="",X46="",W46=""),1,"") ->  | AF46: =IF(AND($V$46=$AF$36,AC46="",AD46="",AE46="",AB46="",AA46="",Z46="",Y46="",X46="",W46=""),1,"") ->  | AG46: =IF(AND($V$46=$AG$36,AD46="",AE46="",AF46="",AC46="",AB46="",AA46="",Z46="",Y46="",X46="",W46=""),1,"") ->  | AH46: =IF(AND($V$46=$AH$36,AE46="",AF46="",AG46="",AD46="",AC46="",AB46="",AA46="",Z46="",Y46="",X46="",W46=""),1,"") ->  | AI46: =IF(AND($V$46=$AI$36,AF46="",AG46="",AH46="",AE46="",AD46="",AC46="",AB46="",AA46="",Z46="",Y46="",X46="",W46=""),1,"") ->  | AJ46: =IF(AND($V$46=$AJ$36,AG46="",AH46="",AI46="",AF46="",AE46="",AD46="",AC46="",AB46="",AA46="",Z46="",Y46="",X46="",W46=""),1,"") ->  | AK46: =IF(AND($V$46=$AK$36,AH46="",AI46="",AJ46="",AG46="",AF46="",AE46="",AD46="",AC46="",AB46="",AA46="",Z46="",Y46="",X46="",W46=""),1,"") ->  | BD46: 36
Q47: =IF(R47="","",IF(ISNA(VLOOKUP(R47,Planning_général!$E$17:$F$62,2,0)),"",VLOOKUP(R47,Planning_général!$E$17:$F$62,2,0))) ->  | R47: =IF(W47=1,$W$4,IF(X47=1,$X$4,IF(Y47=1,$Y$4,IF(Z47=1,$Z$4,IF(AA47=1,$AA$4,IF(AB47=1,$AB$4,IF(AC47=1,$AC$4,IF(AD47=1,$AD$4,IF(AE47=1,$AE$4,IF(AF47=1,$AF$4,IF(AG47=1,$AG$4,IF(AH47=1,$AH$4,IF(AI47=1,$AI$4,IF(AJ47=1,$AJ$4,IF(AK47=1,$AK$4,""))))))))))))))) ->  | S47: =IF(U47=1,U$10,IF(V47=1,V$10,IF(W47=1,W$10,IF(X47=1,X$10,IF(Y47=1,Y$10,IF(Z47=1,Z$10,IF(AA47=1,AA$10,IF(AB47=1,AB$10,IF(AC47=1,AC$10,IF(AD47=1,AD$10,IF(AE47=1,AE$10,""))))))))))) ->  | V47: AM.A | X47: =IF(AND(X$36=$V$47,W47="",X46=""),1,"") ->  | Y47: =IF(AND(Y$36=$V$47,X47="",Y46=""),1,"") ->  | Z47: =IF(AND(Z$36=$V$47,Z46="",SUM($X47:Y$47)=0),1,"") ->  | AA47: =IF(AND(AA$36=$V$47,AA46="",SUM($X$47:Z47)=0),1,"") ->  | AB47: =IF(AND(AB$36=$V$47,AB46="",SUM($X$47:AA47)=0),1,"") ->  | AC47: =IF(AND(AC$36=$V$47,AC46="",SUM($X$47:AB47)=0),1,"") ->  | AD47: =IF(AND(AD$36=$V$47,AD46="",SUM($X$47:AC47)=0),1,"") ->  | AE47: =IF(AND(AE$36=$V$47,AE46="",SUM($X$47:AD47)=0),1,"") ->  | AF47: =IF(AND(AF$36=$V$47,AF46="",SUM($X$47:AE47)=0),1,"") ->  | AG47: =IF(AND(AG$36=$V$47,AG46="",SUM($X$47:AF47)=0),1,"") ->  | AH47: =IF(AND(AH$36=$V$47,AH46="",SUM($X$47:AG47)=0),1,"") ->  | AI47: =IF(AND(AI$36=$V$47,AI46="",SUM($X$47:AH47)=0),1,"") ->  | AJ47: =IF(AND(AJ$36=$V$47,AJ46="",SUM($X$47:AI47)=0),1,"") ->  | AK47: =IF(AND(AK$36=$V$47,AK46="",SUM($X$47:AJ47)=0),1,"") ->  | BD47: 37
Q48: =IF(R48="","",IF(ISNA(VLOOKUP(R48,Planning_général!$E$17:$F$62,2,0)),"",VLOOKUP(R48,Planning_général!$E$17:$F$62,2,0))) ->  | R48: =IF(W48=1,$W$4,IF(X48=1,$X$4,IF(Y48=1,$Y$4,IF(Z48=1,Z11,IF(AA48=1,$AA$4,IF(AB48=1,$AB$4,IF(AC48=1,$AC$4,IF(AD48=1,$AD$4,IF(AE48=1,$AE$4,IF(AF48=1,$AF$4,IF(AG48=1,$AG$4,IF(AH48=1,$AH$4,IF(AI48=1,$AI$4,IF(AJ48=1,$AJ$4,IF(AK48=1,$AK$4,""))))))))))))))) ->  | V48: AM.D | W48: =IF($V$48=$W$36,1,"") ->  | X48: =IF(AND($V$48=$X$36,W48=""),1,"") ->  | Y48: =IF(AND($V$48=$Y$36,X48="",W48=""),1,"") ->  | Z48: =IF(AND($V$48=Z36,W48="",X48="",Y48=""),1,"") ->  | AA48: =IF(AND($V$48=$AA$36,X48="",Y48="",Z48="",W48=""),1,"") ->  | AB48: =IF(AND($V$48=$AB$36,Y48="",Z48="",AA48="",X48="",W48=""),1,"") ->  | AC48: =IF(AND($V$48=$AC$36,Z48="",AA48="",AB48="",Y48="",X48="",W48=""),1,"") ->  | AD48: =IF(AND($V$48=AD36,AA48="",AB48="",AC48="",Z48="",Y48="",X48="",W48=""),1,"") ->  | AE48: =IF(AND($V$48=$AE$36,AB48="",AC48="",AD48="",AA48="",Z48="",Y48="",X48="",W48=""),1,"") ->  | AF48: =IF(AND($V$48=$AF$36,AC48="",AD48="",AE48="",AB48="",AA48="",Z48="",Y48="",X48="",W48=""),1,"") ->  | AG48: =IF(AND($V$48=$AG$36,AD48="",AE48="",AF48="",AC48="",AB48="",AA48="",Z48="",Y48="",X48="",W48=""),1,"") ->  | AH48: =IF(AND($V$48=$AH$36,AE48="",AF48="",AG48="",AD48="",AC48="",AB48="",AA48="",Z48="",Y48="",X48="",W48=""),1,"") ->  | AI48: =IF(AND($V$48=$AI$36,AF48="",AG48="",AH48="",AE48="",AD48="",AC48="",AB48="",AA48="",Z48="",Y48="",X48="",W48=""),1,"") ->  | AJ48: =IF(AND($V$48=$AJ$36,AG48="",AH48="",AI48="",AF48="",AE48="",AD48="",AC48="",AB48="",AA48="",Z48="",Y48="",X48="",W48=""),1,"") ->  | AK48: =IF(AND($V$48=$AK$36,AH48="",AI48="",AJ48="",AG48="",AF48="",AE48="",AD48="",AC48="",AB48="",AA48="",Z48="",Y48="",X48="",W48=""),1,"") ->  | BD48: 38
Q49: =IF(R49="","",IF(ISNA(VLOOKUP(R49,Planning_général!$E$17:$F$62,2,0)),"",VLOOKUP(R49,Planning_général!$E$17:$F$62,2,0))) ->  | R49: =IF(W49=1,$W$4,IF(X49=1,$X$4,IF(Y49=1,$Y$4,IF(Z49=1,Z12,IF(AA49=1,$AA$4,IF(AB49=1,$AB$4,IF(AC49=1,$AC$4,IF(AD49=1,$AD$4,IF(AE49=1,$AE$4,IF(AF49=1,$AF$4,IF(AG49=1,$AG$4,IF(AH49=1,$AH$4,IF(AI49=1,$AI$4,IF(AJ49=1,$AJ$4,IF(AK49=1,$AK$4,""))))))))))))))) ->  | S49: =IF(U49=1,U$10,IF(V49=1,V$10,IF(W49=1,W$10,IF(X49=1,X$10,IF(Y49=1,Y$10,IF(Z49=1,Z$10,IF(AA49=1,AA$10,IF(AB49=1,AB$10,IF(AC49=1,AC$10,IF(AD49=1,AD$10,IF(AE49=1,AE$10,""))))))))))) ->  | V49: AM.D | X49: =IF(AND(X$36=$V$49,W49="",X48=""),1,"") ->  | Y49: =IF(AND(Y$36=$V$49,X49="",Y48=""),1,"") ->  | Z49: =IF(AND(Z$36=$V$49,Z48="",SUM($X$49:Y49)=0),1,"") ->  | AA49: =IF(AND(AA$36=$V$49,AA48="",SUM($X$49:Z49)=0),1,"") ->  | AB49: =IF(AND(AB$36=$V$49,AB48="",SUM($X$49:AA49)=0),1,"") ->  | AC49: =IF(AND(AC$36=$V$49,AC48="",SUM($X$49:AB49)=0),1,"") ->  | AD49: =IF(AND(AD$36=$V$49,AD48="",SUM($X$49:AC49)=0),1,"") ->  | AE49: =IF(AND(AE$36=$V$49,AE48="",SUM($X$49:AD49)=0),1,"") ->  | AF49: =IF(AND(AF$36=$V$49,AF48="",SUM($X$49:AE49)=0),1,"") ->  | AG49: =IF(AND(AG$36=$V$49,AG48="",SUM($X$49:AF49)=0),1,"") ->  | AH49: =IF(AND(AH$36=$V$49,AH48="",SUM($X$49:AG49)=0),1,"") ->  | AI49: =IF(AND(AI$36=$V$49,AI48="",SUM($X$49:AH49)=0),1,"") ->  | AJ49: =IF(AND(AJ$36=$V$49,AJ48="",SUM($X$49:AI49)=0),1,"") ->  | AK49: =IF(AND(AK$36=$V$49,AK48="",SUM($X$49:AJ49)=0),1,"") -> 
BD50: 39
BD51: 40
Q52: =IF(R52="","",IF(ISNA(VLOOKUP(R52,Planning_général!$E$17:$F$62,2,0)),"",VLOOKUP(R52,Planning_général!$E$17:$F$62,2,0))) ->  | R52: =IF(W52=1,$W$4,IF(X52=1,$X$4,IF(Y52=1,$Y$4,IF(Z52=1,Z4,IF(AA52=1,$AA$4,IF(AB52=1,$AB$4,IF(AC52=1,$AC$4,IF(AD52=1,$AD$4,IF(AE52=1,$AE$4,IF(AF52=1,$AF$4,IF(AG52=1,$AG$4,IF(AH52=1,AH4,IF(AI52=1,$AI$4,IF(AJ52=1,$AJ$4,IF(AK52=1,$AK$4,""))))))))))))))) ->  | S52: =IF(U52=1,U$10,IF(V52=1,V$10,IF(W52=1,W$10,IF(X52=1,X$10,IF(Y52=1,Y$10,IF(Z52=1,Z$10,IF(AA52=1,AA$10,IF(AB52=1,AB$10,IF(AC52=1,AC$10,IF(AD52=1,AD$10,IF(AE52=1,AE$10,""))))))))))) ->  | T52: Soir | V52: S.A | W52: =IF($V$52=$W$36,1,"") ->  | X52: =IF(AND($V$52=$X$36,W52=""),1,"") ->  | Y52: =IF(AND($V$52=$Y$36,X52="",W52=""),1,"") ->  | Z52: =IF(AND($V$52=$Z$36,W52="",X52="",Y52=""),1,"") ->  | AA52: =IF(AND($V$52=$AA$36,X52="",Y52="",Z52="",W52=""),1,"") ->  | AB52: =IF(AND($V$52=$AB$36,Y52="",Z52="",AA52="",X52="",W52=""),1,"") ->  | AC52: =IF(AND($V$52=AC36,Z52="",AA52="",AB52="",Y52="",X52="",W52=""),1,"") ->  | AD52: =IF(AND($V$52=$AD$36,AA52="",AB52="",AC52="",Z52="",Y52="",X52="",W52=""),1,"") ->  | AE52: =IF(AND($V$52=$AE$36,AB52="",AC52="",AD52="",AA52="",Z52="",Y52="",X52="",W52=""),1,"") ->  | AF52: =IF(AND($V$52=$AF$36,AC52="",AD52="",AE52="",AB52="",AA52="",Z52="",Y52="",X52="",W52=""),1,"") ->  | AG52: =IF(AND($V$52=$AG$36,AD52="",AE52="",AF52="",AC52="",AB52="",AA52="",Z52="",Y52="",X52="",W52=""),1,"") ->  | AH52: =IF(AND($V$52=$AH$36,AE52="",AF52="",AG52="",AD52="",AC52="",AB52="",AA52="",Z52="",Y52="",X52="",W52=""),1,"") ->  | AI52: =IF(AND($V$52=$AI$36,AF52="",AG52="",AH52="",AE52="",AD52="",AC52="",AB52="",AA52="",Z52="",Y52="",X52="",W52=""),1,"") ->  | AJ52: =IF(AND($V$52=$AJ$36,AG52="",AH52="",AI52="",AF52="",AE52="",AD52="",AC52="",AB52="",AA52="",Z52="",Y52="",X52="",W52=""),1,"") ->  | AK52: =IF(AND($V$52=$AK$36,AH52="",AI52="",AJ52="",AG52="",AF52="",AE52="",AD52="",AC52="",AB52="",AA52="",Z52="",Y52="",X52="",W52=""),1,"") ->  | BD52: 41
Q53: =IF(R53="","",IF(ISNA(VLOOKUP(R53,Planning_général!$E$17:$F$62,2,0)),"",VLOOKUP(R53,Planning_général!$E$17:$F$62,2,0))) ->  | R53: =IF(W53=1,$W$4,IF(X53=1,$X$4,IF(Y53=1,$Y$4,IF(Z53=1,$Z$4,IF(AA53=1,$AA$4,IF(AB53=1,$AB$4,IF(AC53=1,$AC$4,IF(AD53=1,$AD$4,IF(AE53=1,$AE$4,IF(AF53=1,$AF$4,IF(AG53=1,$AG$4,IF(AH53=1,$AH$4,IF(AI53=1,$AI$4,IF(AJ53=1,$AJ$4,IF(AK53=1,$AK$4,""))))))))))))))) ->  | S53: =IF(U53=1,U$10,IF(V53=1,V$10,IF(W53=1,W$10,IF(X53=1,X$10,IF(Y53=1,Y$10,IF(Z53=1,Z$10,IF(AA53=1,AA$10,IF(AB53=1,AB$10,IF(AC53=1,AC$10,IF(AD53=1,AD$10,IF(AE53=1,AE$10,""))))))))))) ->  | V53: S.A | X53: =IF(AND(X$36=$V$53,W53="",X52=""),1,"") ->  | Y53: =IF(AND(Y$36=$V$53,X53="",Y52=""),1,"") ->  | Z53: =IF(AND(Z$36=$V$53,Z52="",SUM($X$53:Y53)=0),1,"") ->  | AA53: =IF(AND(AA$36=$V$53,AA52="",SUM($X$53:Z53)=0),1,"") ->  | AB53: =IF(AND(AB$36=$V$53,AB52="",SUM($X$53:AA53)=0),1,"") ->  | AC53: =IF(AND(AC$36=$V$53,AC52="",SUM($X$53:AB53)=0),1,"") ->  | AD53: =IF(AND(AD$36=$V$53,AD52="",SUM($X$53:AC53)=0),1,"") ->  | AE53: =IF(AND(AE$36=$V$53,AE52="",SUM($X$53:AD53)=0),1,"") ->  | AF53: =IF(AND(AF$36=$V$53,AF52="",SUM($X$53:AE53)=0),1,"") ->  | AG53: =IF(AND(AG$36=$V$53,AG52="",SUM($X$53:AF53)=0),1,"") ->  | AH53: =IF(AND(AH$36=$V$53,AH52="",SUM($X$53:AG53)=0),1,"") ->  | AI53: =IF(AND(AI$36=$V$53,AI52="",SUM($X$53:AH53)=0),1,"") ->  | AJ53: =IF(AND(AJ$36=$V$53,AJ52="",SUM($X$53:AI53)=0),1,"") ->  | AK53: =IF(AND(AK$36=$V$53,AK52="",SUM($X$53:AJ53)=0),1,"") ->  | BD53: 42
Q54: =IF(R54="","",IF(ISNA(VLOOKUP(R54,Planning_général!$E$17:$F$62,2,0)),"",VLOOKUP(R54,Planning_général!$E$17:$F$62,2,0))) ->  | R54: =IF(W54=1,$W$4,IF(X54=1,$X$4,IF(Y54=1,$Y$4,IF(Z54=1,$Z$4,IF(AA54=1,$AA$4,IF(AB54=1,$AB$4,IF(AC54=1,$AC$4,IF(AD54=1,$AD$4,IF(AE54=1,$AE$4,IF(AF54=1,$AF$4,IF(AG54=1,$AG$4,IF(AH54=1,$AH$4,IF(AI54=1,$AI$4,IF(AJ54=1,$AJ$4,IF(AK54=1,$AK$4,""))))))))))))))) ->  | V54: S.D | W54: =IF($V$54=$W$36,1,"") ->  | X54: =IF(AND($V$54=$X$36,W54=""),1,"") ->  | Y54: =IF(AND($V$54=$Y$36,X54="",W54=""),1,"") ->  | Z54: =IF(AND($V$54=Z36,W54="",X54="",Y54=""),1,"") ->  | AA54: =IF(AND($V$54=$AA$36,X54="",Y54="",Z54="",W54=""),1,"") ->  | AB54: =IF(AND($V$54=$AB$36,Y54="",Z54="",AA54="",X54="",W54=""),1,"") ->  | AC54: =IF(AND($V$54=AC36,Z54="",AA54="",AB54="",Y54="",X54="",W54=""),1,"") ->  | AD54: =IF(AND($V$54=AD36,AA54="",AB54="",AC54="",Z54="",Y54="",X54="",W54=""),1,"") ->  | AE54: =IF(AND($V$54=$AE$36,AB54="",AC54="",AD54="",AA54="",Z54="",Y54="",X54="",W54=""),1,"") ->  | AF54: =IF(AND($V$54=$AF$36,AC54="",AD54="",AE54="",AB54="",AA54="",Z54="",Y54="",X54="",W54=""),1,"") ->  | AG54: =IF(AND($V$54=$AG$36,AD54="",AE54="",AF54="",AC54="",AB54="",AA54="",Z54="",Y54="",X54="",W54=""),1,"") ->  | AH54: =IF(AND($V$54=$AH$36,AE54="",AF54="",AG54="",AD54="",AC54="",AB54="",AA54="",Z54="",Y54="",X54="",W54=""),1,"") ->  | AI54: =IF(AND($V$54=$AI$36,AF54="",AG54="",AH54="",AE54="",AD54="",AC54="",AB54="",AA54="",Z54="",Y54="",X54="",W54=""),1,"") ->  | AJ54: =IF(AND($V$54=$AJ$36,AG54="",AH54="",AI54="",AF54="",AE54="",AD54="",AC54="",AB54="",AA54="",Z54="",Y54="",X54="",W54=""),1,"") ->  | AK54: =IF(AND($V$54=$AK$36,AH54="",AI54="",AJ54="",AG54="",AF54="",AE54="",AD54="",AC54="",AB54="",AA54="",Z54="",Y54="",X54="",W54=""),1,"") ->  | BD54: 43
Q55: =IF(R55="","",IF(ISNA(VLOOKUP(R55,Planning_général!$E$17:$F$62,2,0)),"",VLOOKUP(R55,Planning_général!$E$17:$F$62,2,0))) ->  | R55: =IF(W55=1,$W$4,IF(X55=1,$X$4,IF(Y55=1,$Y$4,IF(Z55=1,$Z$4,IF(AA55=1,$AA$4,IF(AB55=1,$AB$4,IF(AC55=1,$AC$4,IF(AD55=1,$AD$4,IF(AE55=1,$AE$4,IF(AF55=1,$AF$4,IF(AG55=1,$AG$4,IF(AH55=1,$AH$4,IF(AI55=1,$AI$4,IF(AJ55=1,$AJ$4,IF(AK55=1,$AK$4,""))))))))))))))) ->  | S55: =IF(U55=1,U$10,IF(V55=1,V$10,IF(W55=1,W$10,IF(X55=1,X$10,IF(Y55=1,Y$10,IF(Z55=1,Z$10,IF(AA55=1,AA$10,IF(AB55=1,AB$10,IF(AC55=1,AC$10,IF(AD55=1,AD$10,IF(AE55=1,AE$10,""))))))))))) ->  | V55: S.D | X55: =IF(AND(X$36=$V$55,W55="",X54=""),1,"") ->  | Y55: =IF(AND(Y$36=$V$55,X55="",Y54=""),1,"") ->  | Z55: =IF(AND(Z$36=$V$55,Z54="",SUM($X$55:Y55)=0),1,"") ->  | AA55: =IF(AND(AA$36=$V$55,AA54="",SUM($X$55:Z55)=0),1,"") ->  | AB55: =IF(AND(AB$36=$V$55,AB54="",SUM($X$55:AA55)=0),1,"") ->  | AC55: =IF(AND(AC$36=$V$55,AC54="",SUM($X$55:AB55)=0),1,"") ->  | AD55: =IF(AND(AD$36=$V$55,AD54="",SUM($X$55:AC55)=0),1,"") ->  | AE55: =IF(AND(AE$36=$V$55,AE54="",SUM($X$55:AD55)=0),1,"") ->  | AF55: =IF(AND(AF$36=$V$55,AF54="",SUM($X$55:AE55)=0),1,"") ->  | AG55: =IF(AND(AG$36=$V$55,AG54="",SUM($X$55:AF55)=0),1,"") ->  | AH55: =IF(AND(AH$36=$V$55,AH54="",SUM($X$55:AG55)=0),1,"") ->  | AI55: =IF(AND(AI$36=$V$55,AI54="",SUM($X$55:AH55)=0),1,"") ->  | AJ55: =IF(AND(AJ$36=$V$55,AJ54="",SUM($X$55:AI55)=0),1,"") ->  | AK55: =IF(AND(AK$36=$V$55,AK54="",SUM($X$55:AJ55)=0),1,"") ->  | BD55: 44
BD57: 45
Q58: =IF(R58="","",IF(ISNA(VLOOKUP(R58,Planning_général!$E$17:$F$62,2,0)),"",VLOOKUP(R58,Planning_général!$E$17:$F$62,2,0))) ->  | R58: =IF(W58=1,$W$4,IF(X58=1,$X$4,IF(Y58=1,$Y$4,IF(Z58=1,$Z$4,IF(AA58=1,$AA$4,IF(AB58=1,$AB$4,IF(AC58=1,$AC$4,IF(AD58=1,$AD$4,IF(AE58=1,$AE$4,IF(AF58=1,$AF$4,IF(AG58=1,$AG$4,IF(AH58=1,$AH$4,IF(AI58=1,$AI$4,IF(AJ58=1,$AJ$4,IF(AK58=1,$AK$4,""))))))))))))))) ->  | S58: =IF(U58=1,U$10,IF(V58=1,V$10,IF(W58=1,W$10,IF(X58=1,X$10,IF(Y58=1,Y$10,IF(Z58=1,Z$10,IF(AA58=1,AA$10,IF(AB58=1,AB$10,IF(AC58=1,AC$10,IF(AD58=1,AD$10,IF(AE58=1,AE$10,""))))))))))) ->  | T58: Nuit | V58: N.A | W58: =IF($V$58=$W$36,1,"") ->  | X58: =IF(AND($V$58=$X$36,W58=""),1,"") ->  | Y58: =IF(AND($V$58=$Y$36,X58="",W58=""),1,"") ->  | Z58: =IF(AND($V$58=Z36,W58="",X58="",Y58=""),1,"") ->  | AA58: =IF(AND($V$58=$AA$36,X58="",Y58="",Z58="",W58=""),1,"") ->  | AB58: =IF(AND($V$58=$AB$36,Y58="",Z58="",AA58="",X58="",W58=""),1,"") ->  | AC58: =IF(AND($V$58=AC36,Z58="",AA58="",AB58="",Y58="",X58="",W58=""),1,"") ->  | AD58: =IF(AND($V$58=AD36,AA58="",AB58="",AC58="",Z58="",Y58="",X58="",W58=""),1,"") ->  | AE58: =IF(AND($V$58=$AE$36,AB58="",AC58="",AD58="",AA58="",Z58="",Y58="",X58="",W58=""),1,"") ->  | AF58: =IF(AND($V$58=$AF$36,AC58="",AD58="",AE58="",AB58="",AA58="",Z58="",Y58="",X58="",W58=""),1,"") ->  | AG58: =IF(AND($V$58=$AG$36,AD58="",AE58="",AF58="",AC58="",AB58="",AA58="",Z58="",Y58="",X58="",W58=""),1,"") ->  | AH58: =IF(AND($V$58=$AH$36,AE58="",AF58="",AG58="",AD58="",AC58="",AB58="",AA58="",Z58="",Y58="",X58="",W58=""),1,"") ->  | AI58: =IF(AND($V$58=$AI$36,AF58="",AG58="",AH58="",AE58="",AD58="",AC58="",AB58="",AA58="",Z58="",Y58="",X58="",W58=""),1,"") ->  | AJ58: =IF(AND($V$58=$AJ$36,AG58="",AH58="",AI58="",AF58="",AE58="",AD58="",AC58="",AB58="",AA58="",Z58="",Y58="",X58="",W58=""),1,"") ->  | AK58: =IF(AND($V$58=$AK$36,AH58="",AI58="",AJ58="",AG58="",AF58="",AE58="",AD58="",AC58="",AB58="",AA58="",Z58="",Y58="",X58="",W58=""),1,"") ->  | BD58: 46
Q59: =IF(R59="","",IF(ISNA(VLOOKUP(R59,Planning_général!$E$17:$F$62,2,0)),"",VLOOKUP(R59,Planning_général!$E$17:$F$62,2,0))) ->  | R59: =IF(W59=1,$W$4,IF(X59=1,$X$4,IF(Y59=1,$Y$4,IF(Z59=1,$Z$4,IF(AA59=1,$AA$4,IF(AB59=1,$AB$4,IF(AC59=1,$AC$4,IF(AD59=1,$AD$4,IF(AE59=1,$AE$4,IF(AF59=1,$AF$4,IF(AG59=1,$AG$4,IF(AH59=1,$AH$4,IF(AI59=1,$AI$4,IF(AJ59=1,$AJ$4,IF(AK59=1,$AK$4,""))))))))))))))) ->  | S59: =IF(U59=1,U$10,IF(V59=1,V$10,IF(W59=1,W$10,IF(X59=1,X$10,IF(Y59=1,Y$10,IF(Z59=1,Z$10,IF(AA59=1,AA$10,IF(AB59=1,AB$10,IF(AC59=1,AC$10,IF(AD59=1,AD$10,IF(AE59=1,AE$10,""))))))))))) ->  | V59: N.A | X59: =IF(AND(X$36=$V$59,W59="",X58=""),1,"") ->  | Y59: =IF(AND(Y$36=$V$59,X59="",Y58=""),1,"") ->  | Z59: =IF(AND(Z$36=$V$59,Z58="",SUM($X$59:Y59)=0),1,"") ->  | AA59: =IF(AND(AA$36=$V$59,AA58="",SUM($X$59:Z59)=0),1,"") ->  | AB59: =IF(AND(AB$36=$V$59,AB58="",SUM($X$59:AA59)=0),1,"") ->  | AC59: =IF(AND(AC$36=$V$59,AC58="",SUM($X$59:AB59)=0),1,"") ->  | AD59: =IF(AND(AD$36=$V$59,AD58="",SUM($X$59:AC59)=0),1,"") ->  | AE59: =IF(AND(AE$36=$V$59,AE58="",SUM($X$59:AD59)=0),1,"") ->  | AF59: =IF(AND(AF$36=$V$59,AF58="",SUM($X$59:AE59)=0),1,"") ->  | AG59: =IF(AND(AG$36=$V$59,AG58="",SUM($X$59:AF59)=0),1,"") ->  | AH59: =IF(AND(AH$36=$V$59,AH58="",SUM($X$59:AG59)=0),1,"") ->  | AI59: =IF(AND(AI$36=$V$59,AI58="",SUM($X$59:AH59)=0),1,"") ->  | AJ59: =IF(AND(AJ$36=$V$59,AJ58="",SUM($X$59:AI59)=0),1,"") ->  | AK59: =IF(AND(AK$36=$V$59,AK58="",SUM($X$59:AJ59)=0),1,"") ->  | BD59: 47
Q60: =IF(R60="","",IF(ISNA(VLOOKUP(R60,Planning_général!$E$17:$F$62,2,0)),"",VLOOKUP(R60,Planning_général!$E$17:$F$62,2,0))) ->  | R60: =IF(W60=1,$W$4,IF(X60=1,$X$4,IF(Y60=1,$Y$4,IF(Z60=1,$Z$4,IF(AA60=1,$AA$4,IF(AB60=1,$AB$4,IF(AC60=1,$AC$4,IF(AD60=1,$AD$4,IF(AE60=1,$AE$4,IF(AF60=1,$AF$4,IF(AG60=1,$AG$4,IF(AH60=1,$AH$4,IF(AI60=1,$AI$4,IF(AJ60=1,$AJ$4,IF(AK60=1,$AK$4,""))))))))))))))) ->  | V60: N.D | W60: =IF($V$60=$W$36,1,"") ->  | X60: =IF(AND($V$60=$X$36,W60=""),1,"") ->  | Y60: =IF(AND($V$60=$Y$36,X60="",W60=""),1,"") ->  | Z60: =IF(AND($V$60=Z36,W60="",X60="",Y60=""),1,"") ->  | AA60: =IF(AND($V$60=$AA$36,X60="",Y60="",Z60="",W60=""),1,"") ->  | AB60: =IF(AND($V$60=$AB$36,Y60="",Z60="",AA60="",X60="",W60=""),1,"") ->  | AC60: =IF(AND($V$60=AC36,Z60="",AA60="",AB60="",Y60="",X60="",W60=""),1,"") ->  | AD60: =IF(AND($V$60=AD36,AA60="",AB60="",AC60="",Z60="",Y60="",X60="",W60=""),1,"") ->  | AE60: =IF(AND($V$60=$AE$36,AB60="",AC60="",AD60="",AA60="",Z60="",Y60="",X60="",W60=""),1,"") ->  | AF60: =IF(AND($V$60=$AF$36,AC60="",AD60="",AE60="",AB60="",AA60="",Z60="",Y60="",X60="",W60=""),1,"") ->  | AG60: =IF(AND($V$60=$AG$36,AD60="",AE60="",AF60="",AC60="",AB60="",AA60="",Z60="",Y60="",X60="",W60=""),1,"") ->  | AH60: =IF(AND($V$60=$AH$36,AE60="",AF60="",AG60="",AD60="",AC60="",AB60="",AA60="",Z60="",Y60="",X60="",W60=""),1,"") ->  | AI60: =IF(AND($V$60=$AI$36,AF60="",AG60="",AH60="",AE60="",AD60="",AC60="",AB60="",AA60="",Z60="",Y60="",X60="",W60=""),1,"") ->  | AJ60: =IF(AND($V$60=$AJ$36,AG60="",AH60="",AI60="",AF60="",AE60="",AD60="",AC60="",AB60="",AA60="",Z60="",Y60="",X60="",W60=""),1,"") ->  | AK60: =IF(AND($V$60=$AK$36,AH60="",AI60="",AJ60="",AG60="",AF60="",AE60="",AD60="",AC60="",AB60="",AA60="",Z60="",Y60="",X60="",W60=""),1,"") ->  | BD60: 48
Q61: =IF(R61="","",IF(ISNA(VLOOKUP(R61,Planning_général!$E$17:$F$62,2,0)),"",VLOOKUP(R61,Planning_général!$E$17:$F$62,2,0))) ->  | R61: =IF(W61=1,$W$4,IF(X61=1,$X$4,IF(Y61=1,$Y$4,IF(Z61=1,$Z$4,IF(AA61=1,$AA$4,IF(AB61=1,$AB$4,IF(AC61=1,$AC$4,IF(AD61=1,$AD$4,IF(AE61=1,$AE$4,IF(AF61=1,$AF$4,IF(AG61=1,$AG$4,IF(AH61=1,$AH$4,IF(AI61=1,$AI$4,IF(AJ61=1,$AJ$4,IF(AK61=1,$AK$4,""))))))))))))))) ->  | S61: =IF(U61=1,U$10,IF(V61=1,V$10,IF(W61=1,W$10,IF(X61=1,X$10,IF(Y61=1,Y$10,IF(Z61=1,Z$10,IF(AA61=1,AA$10,IF(AB61=1,AB$10,IF(AC61=1,AC$10,IF(AD61=1,AD$10,IF(AE61=1,AE$10,""))))))))))) ->  | V61: N.D | X61: =IF(AND(X$36=$V$61,W61="",X60=""),1,"") ->  | Y61: =IF(AND(Y$36=$V$61,X61="",Y60=""),1,"") ->  | Z61: =IF(AND(Z$36=$V$61,Z60="",SUM($X$61:Y61)=0),1,"") ->  | AA61: =IF(AND(AA$36=$V$61,AA60="",SUM($X$61:Z61)=0),1,"") ->  | AB61: =IF(AND(AB$36=$V$61,AB60="",SUM($X$61:AA61)=0),1,"") ->  | AC61: =IF(AND(AC$36=$V$61,AC60="",SUM($X$61:AB61)=0),1,"") ->  | AD61: =IF(AND(AD$36=$V$61,AD60="",SUM($X$61:AC61)=0),1,"") ->  | AE61: =IF(AND(AE$36=$V$61,AE60="",SUM($X$61:AD61)=0),1,"") ->  | AF61: =IF(AND(AF$36=$V$61,AF60="",SUM($X$61:AE61)=0),1,"") ->  | AG61: =IF(AND(AG$36=$V$61,AG60="",SUM($X$61:AF61)=0),1,"") ->  | AH61: =IF(AND(AH$36=$V$61,AH60="",SUM($X$61:AG61)=0),1,"") ->  | AI61: =IF(AND(AI$36=$V$61,AI60="",SUM($X$61:AH61)=0),1,"") ->  | AJ61: =IF(AND(AJ$36=$V$61,AJ60="",SUM($X$61:AI61)=0),1,"") ->  | AK61: =IF(AND(AK$36=$V$61,AK60="",SUM($X$61:AJ61)=0),1,"") -> 
BD63: 49
W64: =IF(W33=0,"",IF(W21=W33,$V$21,IF(W22=W33,$V$22,IF(W23=W33,$V$23,IF(W24=W33,$V$24,IF(W25=W33,$V$25,IF(W26=W33,$V$26,IF(W27=W33,$V$27,IF(W28=W33,$V$28,IF(W29=W33,$V$29,IF(W30=W33,$V$30,IF(W31=W33,$V$31,"")))))))))))) ->  | BD64: 50
Q65: =IF(R65="","",IF(ISNA(VLOOKUP(R65,Planning_général!$E$17:$F$62,2,0)),"",VLOOKUP(R65,Planning_général!$E$17:$F$62,2,0))) ->  | R65: =IF(W65=1,$W$4,IF(X65=1,$X$4,IF(Y65=1,$Y$4,IF(Z65=1,$Z$4,IF(AA65=1,$AA$4,IF(AB65=1,$AB$4,IF(AC65=1,$AC$4,IF(AD65=1,$AD$4,IF(AE65=1,$AE$4,IF(AF65=1,$AF$4,IF(AG65=1,$AG$4,IF(AH65=1,$AH$4,IF(AI65=1,$AI$4,IF(AJ65=1,$AJ$4,IF(AK65=1,$AK$4,""))))))))))))))) ->  | S65: =IF(U65=1,U$10,IF(V65=1,V$10,IF(W65=1,W$10,IF(X65=1,X$10,IF(Y65=1,Y$10,IF(Z65=1,Z$10,IF(AA65=1,AA$10,IF(AB65=1,AB$10,IF(AC65=1,AC$10,IF(AD65=1,AD$10,IF(AE65=1,AE$10,""))))))))))) ->  | T65: Samedi matin | V65: SM.A | W65: =IF($V$65=$W$64,1,"") ->  | X65: =IF(AND($V$65=$X$64,W65=""),1,"") ->  | Y65: =IF(AND($V$65=$Y$64,X65="",W65=""),1,"") ->  | Z65: =IF(AND($V$65=Z64,W65="",X65="",Y65=""),1,"") ->  | AA65: =IF(AND($V$65=$AA$64,X65="",Y65="",Z65="",W65=""),1,"") ->  | AB65: =IF(AND($V$65=$AB$64,Y65="",Z65="",AA65="",X65="",W65=""),1,"") ->  | AC65: =IF(AND($V$65=AC64,Z65="",AA65="",AB65="",Y65="",X65="",W65=""),1,"") ->  | AD65: =IF(AND($V$65=AD64,AA65="",AB65="",AC65="",Z65="",Y65="",X65="",W65=""),1,"") ->  | AE65: =IF(AND($V$65=$AE$64,AB65="",AC65="",AD65="",AA65="",Z65="",Y65="",X65="",W65=""),1,"") ->  | AF65: =IF(AND($V$65=$AF$64,AC65="",AD65="",AE65="",AB65="",AA65="",Z65="",Y65="",X65="",W65=""),1,"") ->  | AG65: =IF(AND($V$65=$AG$64,AD65="",AE65="",AF65="",AC65="",AB65="",AA65="",Z65="",Y65="",X65="",W65=""),1,"") ->  | AH65: =IF(AND($V$65=$AH$64,AE65="",AF65="",AG65="",AD65="",AC65="",AB65="",AA65="",Z65="",Y65="",X65="",W65=""),1,"") ->  | AI65: =IF(AND($V$65=$AI$64,AF65="",AG65="",AH65="",AE65="",AD65="",AC65="",AB65="",AA65="",Z65="",Y65="",X65="",W65=""),1,"") ->  | AJ65: =IF(AND($V$65=$AJ$64,AG65="",AH65="",AI65="",AF65="",AE65="",AD65="",AC65="",AB65="",AA65="",Z65="",Y65="",X65="",W65=""),1,"") ->  | AK65: =IF(AND($V$65=$AK$64,AH65="",AI65="",AJ65="",AG65="",AF65="",AE65="",AD65="",AC65="",AB65="",AA65="",Z65="",Y65="",X65="",W65=""),1,"") ->  | BD65: 51
Q66: =IF(R66="","",IF(ISNA(VLOOKUP(R66,Planning_général!$E$17:$F$62,2,0)),"",VLOOKUP(R66,Planning_général!$E$17:$F$62,2,0))) ->  | R66: =IF(W66=1,$W$4,IF(X66=1,$X$4,IF(Y66=1,$Y$4,IF(Z66=1,$Z$4,IF(AA66=1,$AA$4,IF(AB66=1,$AB$4,IF(AC66=1,$AC$4,IF(AD66=1,$AD$4,IF(AE66=1,$AE$4,IF(AF66=1,$AF$4,IF(AG66=1,$AG$4,IF(AH66=1,$AH$4,IF(AI66=1,$AI$4,IF(AJ66=1,$AJ$4,IF(AK66=1,$AK$4,""))))))))))))))) ->  | S66: =IF(U66=1,U$10,IF(V66=1,V$10,IF(W66=1,W$10,IF(X66=1,X$10,IF(Y66=1,Y$10,IF(Z66=1,Z$10,IF(AA66=1,AA$10,IF(AB66=1,AB$10,IF(AC66=1,AC$10,IF(AD66=1,AD$10,IF(AE66=1,AE$10,""))))))))))) ->  | V66: SM.A | X66: =IF(AND(X$64=$V$66,W66="",X65=""),1,"") ->  | Y66: =IF(AND(Y$64=$V$66,X66="",Y65=""),1,"") ->  | Z66: =IF(AND(Z$64=$V$66,Z65="",SUM($X$66:Y66)=0),1,"") ->  | AA66: =IF(AND(AA$64=$V$66,AA65="",SUM($X$66:Z66)=0),1,"") ->  | AB66: =IF(AND(AB$64=$V$66,AB65="",SUM($X$66:AA66)=0),1,"") ->  | AC66: =IF(AND(AC$64=$V$66,AC65="",SUM($X$66:AB66)=0),1,"") ->  | AD66: =IF(AND(AD$64=$V$66,AD65="",SUM($X$66:AC66)=0),1,"") ->  | AE66: =IF(AND(AE$64=$V$66,AE65="",SUM($X$66:AD66)=0),1,"") ->  | AF66: =IF(AND(AF$64=$V$66,AF65="",SUM($X$66:AE66)=0),1,"") ->  | AG66: =IF(AND(AG$64=$V$66,AG65="",SUM($X$66:AF66)=0),1,"") ->  | AH66: =IF(AND(AH$64=$V$66,AH65="",SUM($X$66:AG66)=0),1,"") ->  | AI66: =IF(AND(AI$64=$V$66,AI65="",SUM($X$66:AH66)=0),1,"") ->  | AJ66: =IF(AND(AJ$64=$V$66,AJ65="",SUM($X$66:AI66)=0),1,"") ->  | AK66: =IF(AND(AK$64=$V$66,AK65="",SUM($X$66:AJ66)=0),1,"") ->  | BD66: 52
Q67: =IF(R67="","",IF(ISNA(VLOOKUP(R67,Planning_général!$E$17:$F$62,2,0)),"",VLOOKUP(R67,Planning_général!$E$17:$F$62,2,0))) ->  | R67: =IF(W67=1,$W$4,IF(X67=1,$X$4,IF(Y67=1,$Y$4,IF(Z67=1,$Z$4,IF(AA67=1,$AA$4,IF(AB67=1,$AB$4,IF(AC67=1,$AC$4,IF(AD67=1,$AD$4,IF(AE67=1,$AE$4,IF(AF67=1,$AF$4,IF(AG67=1,$AG$4,IF(AH67=1,$AH$4,IF(AI67=1,$AI$4,IF(AJ67=1,$AJ$4,IF(AK67=1,$AK$4,""))))))))))))))) ->  | S67: =IF(U67=1,U$10,IF(V67=1,V$10,IF(W67=1,W$10,IF(X67=1,X$10,IF(Y67=1,Y$10,IF(Z67=1,Z$10,IF(AA67=1,AA$10,IF(AB67=1,AB$10,IF(AC67=1,AC$10,IF(AD67=1,AD$10,IF(AE67=1,AE$10,""))))))))))) ->  | V67: SM.D | W67: =IF($V$67=$W$64,1,"") ->  | X67: =IF(AND($V$67=$X$64,W67=""),1,"") ->  | Y67: =IF(AND($V$67=$Y$64,X67="",W67=""),1,"") ->  | Z67: =IF(AND($V$67=Z66,W67="",X67="",Y67=""),1,"") ->  | AA67: =IF(AND($V$67=$AA$64,X67="",Y67="",Z67="",W67=""),1,"") ->  | AB67: =IF(AND($V$67=$AB$64,Y67="",Z67="",AA67="",X67="",W67=""),1,"") ->  | AC67: =IF(AND($V$67=AC64,Z67="",AA67="",AB67="",Y67="",X67="",W67=""),1,"") ->  | AD67: =IF(AND($V$67=AD64,AA67="",AB67="",AC67="",Z67="",Y67="",X67="",W67=""),1,"") ->  | AE67: =IF(AND($V$67=$AE$64,AB67="",AC67="",AD67="",AA67="",Z67="",Y67="",X67="",W67=""),1,"") ->  | AF67: =IF(AND($V$67=$AF$64,AC67="",AD67="",AE67="",AB67="",AA67="",Z67="",Y67="",X67="",W67=""),1,"") ->  | AG67: =IF(AND($V$67=$AG$64,AD67="",AE67="",AF67="",AC67="",AB67="",AA67="",Z67="",Y67="",X67="",W67=""),1,"") ->  | AH67: =IF(AND($V$67=$AH$64,AE67="",AF67="",AG67="",AD67="",AC67="",AB67="",AA67="",Z67="",Y67="",X67="",W67=""),1,"") ->  | AI67: =IF(AND($V$67=$AI$64,AF67="",AG67="",AH67="",AE67="",AD67="",AC67="",AB67="",AA67="",Z67="",Y67="",X67="",W67=""),1,"") ->  | AJ67: =IF(AND($V$67=$AJ$64,AG67="",AH67="",AI67="",AF67="",AE67="",AD67="",AC67="",AB67="",AA67="",Z67="",Y67="",X67="",W67=""),1,"") ->  | AK67: =IF(AND($V$67=$AK$64,AH67="",AI67="",AJ67="",AG67="",AF67="",AE67="",AD67="",AC67="",AB67="",AA67="",Z67="",Y67="",X67="",W67=""),1,"") ->  | BD67: 53
Q68: =IF(R68="","",IF(ISNA(VLOOKUP(R68,Planning_général!$E$17:$F$62,2,0)),"",VLOOKUP(R68,Planning_général!$E$17:$F$62,2,0))) ->  | R68: =IF(W68=1,$W$4,IF(X68=1,$X$4,IF(Y68=1,$Y$4,IF(Z68=1,$Z$4,IF(AA68=1,$AA$4,IF(AB68=1,$AB$4,IF(AC68=1,$AC$4,IF(AD68=1,$AD$4,IF(AE68=1,$AE$4,IF(AF68=1,$AF$4,IF(AG68=1,$AG$4,IF(AH68=1,$AH$4,IF(AI68=1,$AI$4,IF(AJ68=1,$AJ$4,IF(AK68=1,$AK$4,""))))))))))))))) ->  | S68: =IF(U68=1,U$10,IF(V68=1,V$10,IF(W68=1,W$10,IF(X68=1,X$10,IF(Y68=1,Y$10,IF(Z68=1,Z$10,IF(AA68=1,AA$10,IF(AB68=1,AB$10,IF(AC68=1,AC$10,IF(AD68=1,AD$10,IF(AE68=1,AE$10,""))))))))))) ->  | V68: SM.D | X68: =IF(AND(X$64=$V$68,W68="",X67=""),1,"") ->  | Y68: =IF(AND(Y$64=$V$68,X68="",Y67=""),1,"") ->  | Z68: =IF(AND(Z$64=$V$68,Z67="",SUM($X$68:Y68)=0),1,"") ->  | AA68: =IF(AND(AA$64=$V$68,AA67="",SUM($X$68:Z68)=0),1,"") ->  | AB68: =IF(AND(AB$64=$V$68,AB67="",SUM($X$68:AA68)=0),1,"") ->  | AC68: =IF(AND(AC$64=$V$68,AC67="",SUM($X$68:AB68)=0),1,"") ->  | AD68: =IF(AND(AD$64=$V$68,AD67="",SUM($X$68:AC68)=0),1,"") ->  | AE68: =IF(AND(AE$64=$V$68,AE67="",SUM($X$68:AD68)=0),1,"") ->  | AF68: =IF(AND(AF$64=$V$68,AF67="",SUM($X$68:AE68)=0),1,"") ->  | AG68: =IF(AND(AG$64=$V$68,AG67="",SUM($X$68:AF68)=0),1,"") ->  | AH68: =IF(AND(AH$64=$V$68,AH67="",SUM($X$68:AG68)=0),1,"") ->  | AI68: =IF(AND(AI$64=$V$68,AI67="",SUM($X$68:AH68)=0),1,"") ->  | AJ68: =IF(AND(AJ$64=$V$68,AJ67="",SUM($X$68:AI68)=0),1,"") ->  | AK68: =IF(AND(AK$64=$V$68,AK67="",SUM($X$68:AJ68)=0),1,"") -> 
O73: =V73 -> Mardi | P73: =LEN(Q73) -> 0 | Q73: =(CONCATENATE(IF(W73=1,CONCATENATE("-",W$4,"(",W11,")"),""),IF(X73=1,CONCATENATE("-",X$4,"(",X11,")"),""),IF(Y73=1,CONCATENATE("-",Y$4,"(",Y11,")"),""),IF(Z73=1,CONCATENATE("-",Z$4,"(",Z11,")"),""),IF(AA73=1,CONCATENATE("-",AA$4,"(",AA11,")"),""),IF(AB73=1,CONCATENATE("-",AB$4,"(",AB11,")"),""),IF(AC73=1,CONCATENATE("-",AC$4,"(",AC11,")"),""),IF(AD73=1,CONCATENATE("-",AD$4,"(",AD11,")"),""),IF(AE73=1,CONCATENATE("-",AE$4,"(",AE11,")"),""),IF(AF73=1,CONCATENATE("-",AF$4,"(",AF11,")"),""),IF(AG73=1,CONCATENATE("-",AG$4,"(",AG11,")"),""),IF(AH73=1,CONCATENATE("-",AH$4,"(",AH11,")"),""),IF(AI73=1,CONCATENATE("-",AI$4,"(",AI11,")"),""),IF(AJ73=1,CONCATENATE("-",AJ$4,"(",AJ11,")"),""),IF(AK73=1,CONCATENATE("-",AK$4,"(",AK11,")"),""))) ->  | V73: =V11 -> Mardi | W73: =IF((COUNTIF(W11,$AM$73)+COUNTIF(W11,$AM$74)+COUNTIF(W11,$AM$75)+COUNTIF(W11,$AM$76)+COUNTIF(W11,$AM$77)+COUNTIF(W11,$AM$78)+COUNTIF(W11,$AM$79)+COUNTIF(W11,$AM$80)+COUNTIF(W11,$AM$81)+COUNTIF(W11,$AM$82)+COUNTIF(W11,$AM$83))=0,"",COUNTIF(W11,$AM$73)+COUNTIF(W11,$AM$74)+COUNTIF(W11,$AM$75)+COUNTIF(W11,$AM$76)+COUNTIF(W11,$AM$77)+COUNTIF(W11,$AM$78)+COUNTIF(W11,$AM$79)+COUNTIF(W11,$AM$80)+COUNTIF(W11,$AM$81)+COUNTIF(W11,$AM$82)+COUNTIF(W11,$AM$83)) ->  | AM73: CP
O74: =V74 -> Mercredi | P74: =LEN(Q74) -> 0 | V74: Mercredi | W74: =IF((COUNTIF(W12,$AM$73)+COUNTIF(W12,$AM$74)+COUNTIF(W12,$AM$75)+COUNTIF(W12,$AM$76)+COUNTIF(W12,$AM$77)+COUNTIF(W12,$AM$78)+COUNTIF(W12,$AM$79)+COUNTIF(W12,$AM$80)+COUNTIF(W12,$AM$81)+COUNTIF(W12,$AM$82)+COUNTIF(W12,$AM$83))=0,"",COUNTIF(W12,$AM$73)+COUNTIF(W12,$AM$74)+COUNTIF(W12,$AM$75)+COUNTIF(W12,$AM$76)+COUNTIF(W12,$AM$77)+COUNTIF(W12,$AM$78)+COUNTIF(W12,$AM$79)+COUNTIF(W12,$AM$80)+COUNTIF(W12,$AM$81)+COUNTIF(W12,$AM$82)+COUNTIF(W12,$AM$83)) ->  | AK74: =IF((COUNTIF(AK12,$AM$73)+COUNTIF(AK12,$AM$74)+COUNTIF(AK12,$AM$75)+COUNTIF(AK12,$AM$76)+COUNTIF(AK12,$AM$77)+COUNTIF(AK12,$AM$78)+COUNTIF(AK12,$AM$79)+COUNTIF(AK12,$AM$80)+COUNTIF(AK12,$AM$81)+COUNTIF(AK12,$AM$82))=0,"",COUNTIF(AK12,$AM$73)+COUNTIF(AK12,$AM$74)+COUNTIF(AK12,$AM$75)+COUNTIF(AK12,$AM$76)+COUNTIF(AK12,$AM$77)+COUNTIF(AK12,$AM$78)+COUNTIF(AK12,$AM$79)+COUNTIF(AK12,$AM$80)+COUNTIF(AK12,$AM$81)+COUNTIF(AK12,$AM$82)) ->  | AM74: Recup
O75: Jeudi | P75: 0 | V75: Jeudi | AK75: =IF((COUNTIF(AK13,$AM$73)+COUNTIF(AK13,$AM$74)+COUNTIF(AK13,$AM$75)+COUNTIF(AK13,$AM$76)+COUNTIF(AK13,$AM$77)+COUNTIF(AK13,$AM$78)+COUNTIF(AK13,$AM$79)+COUNTIF(AK13,$AM$80)+COUNTIF(AK13,$AM$81)+COUNTIF(AK13,$AM$82))=0,"",COUNTIF(AK13,$AM$73)+COUNTIF(AK13,$AM$74)+COUNTIF(AK13,$AM$75)+COUNTIF(AK13,$AM$76)+COUNTIF(AK13,$AM$77)+COUNTIF(AK13,$AM$78)+COUNTIF(AK13,$AM$79)+COUNTIF(AK13,$AM$80)+COUNTIF(AK13,$AM$81)+COUNTIF(AK13,$AM$82)) ->  | AM75: Form
O76: Vendredi | P76: 0 | V76: Vendredi | AK76: =IF((COUNTIF(AK14,$AM$73)+COUNTIF(AK14,$AM$74)+COUNTIF(AK14,$AM$75)+COUNTIF(AK14,$AM$76)+COUNTIF(AK14,$AM$77)+COUNTIF(AK14,$AM$78)+COUNTIF(AK14,$AM$79)+COUNTIF(AK14,$AM$80)+COUNTIF(AK14,$AM$81)+COUNTIF(AK14,$AM$82))=0,"",COUNTIF(AK14,$AM$73)+COUNTIF(AK14,$AM$74)+COUNTIF(AK14,$AM$75)+COUNTIF(AK14,$AM$76)+COUNTIF(AK14,$AM$77)+COUNTIF(AK14,$AM$78)+COUNTIF(AK14,$AM$79)+COUNTIF(AK14,$AM$80)+COUNTIF(AK14,$AM$81)+COUNTIF(AK14,$AM$82)) ->  | AM76: Modul
O77: Samedi | P77: 0 | V77: Samedi | AK77: =IF((COUNTIF(AK15,$AM$73)+COUNTIF(AK15,$AM$74)+COUNTIF(AK15,$AM$75)+COUNTIF(AK15,$AM$76)+COUNTIF(AK15,$AM$77)+COUNTIF(AK15,$AM$78)+COUNTIF(AK15,$AM$79)+COUNTIF(AK15,$AM$80)+COUNTIF(AK15,$AM$81)+COUNTIF(AK15,$AM$82))=0,"",COUNTIF(AK15,$AM$73)+COUNTIF(AK15,$AM$74)+COUNTIF(AK15,$AM$75)+COUNTIF(AK15,$AM$76)+COUNTIF(AK15,$AM$77)+COUNTIF(AK15,$AM$78)+COUNTIF(AK15,$AM$79)+COUNTIF(AK15,$AM$80)+COUNTIF(AK15,$AM$81)+COUNTIF(AK15,$AM$82)) ->  | AM77: H.R
O78: Dimanche | P78: 0 | V78: Dimanche | AK78: =IF((COUNTIF(AK16,$AM$73)+COUNTIF(AK16,$AM$74)+COUNTIF(AK16,$AM$75)+COUNTIF(AK16,$AM$76)+COUNTIF(AK16,$AM$77)+COUNTIF(AK16,$AM$78)+COUNTIF(AK16,$AM$79)+COUNTIF(AK16,$AM$80)+COUNTIF(AK16,$AM$81)+COUNTIF(AK16,$AM$82))=0,"",COUNTIF(AK16,$AM$73)+COUNTIF(AK16,$AM$74)+COUNTIF(AK16,$AM$75)+COUNTIF(AK16,$AM$76)+COUNTIF(AK16,$AM$77)+COUNTIF(AK16,$AM$78)+COUNTIF(AK16,$AM$79)+COUNTIF(AK16,$AM$80)+COUNTIF(AK16,$AM$81)+COUNTIF(AK16,$AM$82)) ->  | AM78: HR Nuit
O79: Lundi | P79: 0 | V79: Lundi | AK79: =IF((COUNTIF(AK17,$AM$73)+COUNTIF(AK17,$AM$74)+COUNTIF(AK17,$AM$75)+COUNTIF(AK17,$AM$76)+COUNTIF(AK17,$AM$77)+COUNTIF(AK17,$AM$78)+COUNTIF(AK17,$AM$79)+COUNTIF(AK17,$AM$80)+COUNTIF(AK17,$AM$81)+COUNTIF(AK17,$AM$82))=0,"",COUNTIF(AK17,$AM$73)+COUNTIF(AK17,$AM$74)+COUNTIF(AK17,$AM$75)+COUNTIF(AK17,$AM$76)+COUNTIF(AK17,$AM$77)+COUNTIF(AK17,$AM$78)+COUNTIF(AK17,$AM$79)+COUNTIF(AK17,$AM$80)+COUNTIF(AK17,$AM$81)+COUNTIF(AK17,$AM$82)) ->  | AM79: RTT
AM80: Mal
AM81: J.A
AM82: Ecole
AM83: Dep

Sheet Magasin
B2: =CONCATENATE("Du ",Q11,"/",R11,"/",S11," au ",Q12,"/",R12,"/",S12) -> Du 16/9/2019 au 22/9/2019 | J2: Semaine : | K2: 37 | L2: =Planning_général!C2 -> 2019 | W2: 1
B3: Équipes | E3: Horaires | G3: Pause | I3: NOM et Prénom | L3: Matricul | W3: =Planning_général!$E55 -> Resp Equipe 4 | X3: =Planning_général!$E56 -> Equipe 4_Tech 1 | Y3: =Planning_général!$E57 -> Equipe 4_Tech 2 | Z3: =Planning_général!$E58 -> Equipe 4_Tech 3 | AA3: =Planning_général!$E59 -> Equipe 4_Tech 4 | AB3: =Planning_général!$E60 -> 0 | AC3: =Planning_général!$E61 -> 0 | AD3: =Planning_général!$E62 -> 
B5: Matin | D5: M1 | E5: 7 h 00 - 11 h 30 sauf mercredi et de 07 h00 à 11h 00 le vendredi | G5: - | I5: =IF(R31="","",R31) ->  | L5: =IF(I5="","",VLOOKUP(I5,Planning_général!$E$55:$F$62,2,0)) ->  | P5: Initial | Q5: =DATE(L2,1,1) -> 2019-01-01 | R5: =Q5 -> 43466
I6: =IF(R32="","",R32) ->  | L6: =IF(I6="","",VLOOKUP(I6,Planning_général!$E$55:$F$62,2,0)) ->  | P6: Du | Q6: =(R5)+($K$2)*7-WEEKDAY(Q5,2)+1 -> 2019-09-16 | BD6: Semaines
D7: M2 | E7: 7 h 00 - 14 h 10 | G7: 12 h 40 - 13 h 00 | I7: =IF(R35="","",R35) ->  | L7: =IF(I7="","",VLOOKUP(I7,Planning_général!$E$55:$F$62,2,0)) ->  | P7: Au | Q7: =Q6+6 -> 2019-09-22 | BD7: 1
I8: =IF(R36="","",R36) ->  | L8: =IF(I8="","",VLOOKUP(I8,Planning_général!$E$55:$F$62,2,0)) ->  | BD8: 2
B9: Journée | D9: J1 | E9: 09 h 00 - 16 h 10 | G9: 12 h 20 - 12 h 40 | I9: =IF(R40="","",R40) ->  | L9: =IF(I9="","",VLOOKUP(I9,Planning_général!$E$55:$F$62,2,0)) ->  | V9: Code | W9: =IF(VLOOKUP(W3,Planning_général!$E$17:$F$62,2,0)=0,"Cde abs",VLOOKUP(W3,Planning_général!$E$17:$F$62,2,0)) -> 5234 | X9: =IF(VLOOKUP(X3,Planning_général!$E$17:$F$62,2,0)=0,"Cde abs",VLOOKUP(X3,Planning_général!$E$17:$F$62,2,0)) -> 8638 | Y9: =IF(VLOOKUP(Y3,Planning_général!$E$17:$F$62,2,0)=0,"Cde abs",VLOOKUP(Y3,Planning_général!$E$17:$F$62,2,0)) -> 3575 | Z9: =IF(VLOOKUP(Z3,Planning_général!$E$17:$F$62,2,0)=0,"Cde abs",VLOOKUP(Z3,Planning_général!$E$17:$F$62,2,0)) -> 6793 | AA9: =IF(VLOOKUP(AA3,Planning_général!$E$17:$F$62,2,0)=0,"Cde abs",VLOOKUP(AA3,Planning_général!$E$17:$F$62,2,0)) -> 6647 | AB9: =IF(VLOOKUP(AB3,Planning_général!$E$17:$F$62,2,0)=0,"Cde abs",VLOOKUP(AB3,Planning_général!$E$17:$F$62,2,0)) ->  | AC9: =IF(VLOOKUP(AC3,Planning_général!$E$17:$F$62,2,0)=0,"Cde abs",VLOOKUP(AC3,Planning_général!$E$17:$F$62,2,0)) ->  | AD9: =IF(VLOOKUP(AD3,Planning_général!$E$17:$F$62,2,0)=0,"Cde abs",VLOOKUP(AD3,Planning_général!$E$17:$F$62,2,0)) -> Cde abs | AE9: =IF(VLOOKUP(AE3,Planning_général!$E$17:$F$62,2,0)=0,"Cde abs",VLOOKUP(AE3,Planning_général!$E$17:$F$62,2,0)) ->  | AF9: =IF(VLOOKUP(AF3,Planning_général!$E$17:$F$62,2,0)=0,"Cde abs",VLOOKUP(AF3,Planning_général!$E$17:$F$62,2,0)) ->  | AG9: =IF(VLOOKUP(AG3,Planning_général!$E$17:$F$62,2,0)=0,"Cde abs",VLOOKUP(AG3,Planning_général!$E$17:$F$62,2,0)) ->  | AH9: =IF(VLOOKUP(AH3,Planning_général!$E$17:$F$62,2,0)=0,"Cde abs",VLOOKUP(AH3,Planning_général!$E$17:$F$62,2,0)) ->  | AI9: =IF(VLOOKUP(AI3,Planning_général!$E$17:$F$62,2,0)=0,"Cde abs",VLOOKUP(AI3,Planning_général!$E$17:$F$62,2,0)) ->  | AJ9: =IF(VLOOKUP(AJ3,Planning_général!$E$17:$F$62,2,0)=0,"Cde abs",VLOOKUP(AJ3,Planning_général!$E$17:$F$62,2,0)) ->  | AK9: =IF(AK3=0,"",IF(VLOOKUP(AK3,Planning_général!$E$17:$F$62,2,0)=0,"Cde abs",VLOOKUP(AK3,Planning_général!$E$17:$F$62,2,0))) ->  | AO9: Code | AP9: Descriptif | AQ9: Horaires | AR9: Pause | BD9: 3
I10: =IF(R41="","",R41) ->  | L10: =IF(I10="","",VLOOKUP(I10,Planning_général!$E$55:$F$62,2,0)) ->  | U10: =Planning_général!G10 -> M | V10: =VLOOKUP(U10,Planning_général!$NV$20:$NW$26,2,0) -> Mardi | W10: =VLOOKUP(W3,Planning_général!$E$55:$NM$55,((($K$2*7)+2)-6),0) -> 0 | X10: =IF(ISNA(VLOOKUP(X3,Planning_général!$E$56:$NM$56,((($K$2*7)+2)-6),0)),0,VLOOKUP(X3,Planning_général!$E$56:$NM$56,((($K$2*7)+2)-6),0)) -> 0 | Y10: =VLOOKUP(Y3,Planning_général!$E$57:$NM$57,((($K$2*7)+2)-6),0) -> 0 | Z10: =VLOOKUP(Z3,Planning_général!$E$58:$NM$58,((($K$2*7)+2)-6),0) -> 0 | AA10: =VLOOKUP(AA3,Planning_général!$E$59:$NM$59,((($K$2*7)+2)-6),0) -> 0 | AB10: =VLOOKUP(AB3,Planning_général!$E$60:$NM$60,((($K$2*7)+2)-6),0) ->  | AC10: =VLOOKUP($AC$3,Planning_général!$E$61:$NM$61,((($K$2*7)+2)-6),0) ->  | AD10: =VLOOKUP($AD$3,Planning_général!$E$62:$NM$62,((($K$2*7)+2)-6),0) -> 0 | AE10: =VLOOKUP($AE$3,Planning_général!$E$25:$NM$25,((($K$2*7)+2)-6),0) ->  | AF10: =VLOOKUP($AF$3,Planning_général!$E$26:$NM$26,((($K$2*7)+2)-6),0) ->  | AG10: =VLOOKUP($AG$3,Planning_général!$E$27:$NM$27,((($K$2*7)+2)-6),0) ->  | AH10: =VLOOKUP($AH$3,Planning_général!$E$28:$NM$28,((($K$2*7)+2)-6),0) ->  | AI10: =VLOOKUP($AI$3,Planning_général!$E$29:$NM$29,((($K$2*7)+2)-6),0) ->  | AJ10: =VLOOKUP($AJ$3,Planning_général!$E$30:$NM$30,((($K$2*7)+2)-6),0) ->  | AK10: =IF(ISNA(VLOOKUP($AK$3,Planning_général!$E$31:$NM$31,((($K$2*7)+2)-6),0)),0,VLOOKUP($AK$3,Planning_général!$E$31:$NM$31,((($K$2*7)+2)-6),0)) -> 0 | AO10: M1 | AP10: Matin | AQ10: 7 h 00 - 11 h 30 sauf mercredi | AR10: - | BD10: 4
D11: J2 | E11: 9 h 00 - 13 h 00 / 14 h 00 - 17 h 00 | G11: 10 h 00 -10 h 10 / 15 h 00 -15 h 10 | I11: =IF(R45="","",R45) ->  | L11: =IF(I11="","",VLOOKUP(I11,Planning_général!$E$55:$F$62,2,0)) ->  | P11: =Q6 -> 2019-09-16 | Q11: =DAY(P11) -> 16 | R11: =MONTH(P11) -> 9 | S11: =YEAR(P11) -> 2019 | U11: =Planning_général!H10 -> Me | V11: =VLOOKUP(U11,Planning_général!$NV$20:$NW$26,2,0) -> Mercredi | W11: =VLOOKUP($W$3,Planning_général!$E$55:$NM$55,((($K$2*7)+2)-5),0) -> 0 | X11: =VLOOKUP($X$3,Planning_général!$E$56:$NM$56,((($K$2*7)+2)-5),0) -> 0 | Y11: =VLOOKUP($Y$3,Planning_général!$E$57:$NM$57,((($K$2*7)+2)-5),0) -> 0 | Z11: =VLOOKUP($Z$3,Planning_général!$E$58:$NM$58,((($K$2*7)+2)-5),0) -> 0 | AA11: =VLOOKUP($AA$3,Planning_général!$E$59:$NM$59,((($K$2*7)+2)-5),0) -> 0 | AB11: =VLOOKUP($AB$3,Planning_général!$E$60:$NM$60,((($K$2*7)+2)-5),0) ->  | AC11: =VLOOKUP($AC$3,Planning_général!$E$61:$NM$61,((($K$2*7)+2)-5),0) ->  | AD11: =VLOOKUP($AD$3,Planning_général!$E$62:$NM$62,((($K$2*7)+2)-5),0) -> 0 | AE11: =VLOOKUP($AE$3,Planning_général!$E$25:$NM$25,((($K$2*7)+2)-5),0) ->  | AF11: =VLOOKUP($AF$3,Planning_général!$E$26:$NM$26,((($K$2*7)+2)-5),0) ->  | AG11: =VLOOKUP($AG$3,Planning_général!$E$27:$NM$27,((($K$2*7)+2)-5),0) ->  | AH11: =VLOOKUP($AH$3,Planning_général!$E$28:$NM$28,((($K$2*7)+2)-5),0) ->  | AI11: =VLOOKUP($AI$3,Planning_général!$E$29:$NM$29,((($K$2*7)+2)-5),0) ->  | AJ11: =VLOOKUP($AJ$3,Planning_général!$E$30:$NM$30,((($K$2*7)+2)-5),0) ->  | AK11: =IF(ISNA(VLOOKUP($AK$3,Planning_général!$E$31:$NM$31,((($K$2*7)+2)-5),0)),0,VLOOKUP($AK$3,Planning_général!$E$31:$NM$31,((($K$2*7)+2)-5),0)) -> 0 | AO11: M2 | AP11: Matin | AQ11: 7 h 00 - 14 h 10 | AR11: 12 h 40 - 13 h 00 | BD11: 5
I12: =IF(R46="","",R46) ->  | L12: =IF(I12="","",VLOOKUP(I12,Planning_général!$E$55:$F$62,2,0)) ->  | P12: =Q7 -> 2019-09-22 | Q12: =DAY(P12) -> 22 | R12: =MONTH(P12) -> 9 | S12: =YEAR(P12) -> 2019 | U12: =Planning_général!I10 -> J | V12: =VLOOKUP(U12,Planning_général!$NV$20:$NW$26,2,0) -> Jeudi | W12: =VLOOKUP($W$3,Planning_général!$E$55:$NM$55,((($K$2*7)+2)-4),0) -> 0 | X12: =VLOOKUP($X$3,Planning_général!$E$56:$NM$56,((($K$2*7)+2)-4),0) -> 0 | Y12: =VLOOKUP($Y$3,Planning_général!$E$57:$NM$57,((($K$2*7)+2)-4),0) -> 0 | Z12: =VLOOKUP($Z$3,Planning_général!$E$58:$NM$58,((($K$2*7)+2)-4),0) -> 0 | AA12: =VLOOKUP($AA$3,Planning_général!$E$59:$NM$59,((($K$2*7)+2)-4),0) -> 0 | AB12: =VLOOKUP($AB$3,Planning_général!$E$60:$NM$60,((($K$2*7)+2)-4),0) ->  | AC12: =VLOOKUP($AC$3,Planning_général!$E$61:$NM$61,((($K$2*7)+2)-4),0) ->  | AD12: =VLOOKUP($AD$3,Planning_général!$E$62:$NM$62,((($K$2*7)+2)-4),0) -> 0 | AE12: =VLOOKUP($AE$3,Planning_général!$E$25:$NM$25,((($K$2*7)+2)-4),0) ->  | AF12: =VLOOKUP($AF$3,Planning_général!$E$26:$NM$26,((($K$2*7)+2)-4),0) ->  | AG12: =VLOOKUP($AG$3,Planning_général!$E$27:$NM$27,((($K$2*7)+2)-4),0) ->  | AH12: =VLOOKUP($AH$3,Planning_général!$E$28:$NM$28,((($K$2*7)+2)-4),0) ->  | AI12: =VLOOKUP($AI$3,Planning_général!$E$29:$NM$29,((($K$2*7)+2)-4),0) ->  | AJ12: =VLOOKUP($AJ$3,Planning_général!$E$30:$NM$30,((($K$2*7)+2)-4),0) ->  | AK12: =IF(ISNA(VLOOKUP($AK$3,Planning_général!$E$31:$NM$31,((($K$2*7)+2)-4),0)),0,VLOOKUP($AK$3,Planning_général!$E$31:$NM$31,((($K$2*7)+2)-4),0)) -> 0 | AO12: J4 | AP12: Journée 4 | AQ12: 09 h 30 - 16 h 40 | AR12: 12 h 20 - 12 h 40 | BD12: 6
D13: J3 | E13: 8 h 00 - 12 h 00 / 13 h 30 - 17 h 30 | G13: 10 h 00 -10 h 10 / 15 h 00 -15 h 10 | I13: =IF(R50="","",R50) ->  | L13: =IF(I13="","",VLOOKUP(I13,Planning_général!$E$55:$F$62,2,0)) ->  | U13: =Planning_général!J10 -> V | V13: =VLOOKUP(U13,Planning_général!$NV$20:$NW$26,2,0) -> Vendredi | W13: =VLOOKUP($W$3,Planning_général!$E$55:$NM$55,((($K$2*7)+2)-3),0) -> 0 | X13: =VLOOKUP($X$3,Planning_général!$E$56:$NM$56,((($K$2*7)+2)-3),0) -> 0 | Y13: =VLOOKUP($Y$3,Planning_général!$E$57:$NM$57,((($K$2*7)+2)-3),0) -> 0 | Z13: =VLOOKUP($Z$3,Planning_général!$E$58:$NM$58,((($K$2*7)+2)-3),0) -> 0 | AA13: =VLOOKUP($AA$3,Planning_général!$E$59:$NM$59,((($K$2*7)+2)-3),0) -> 0 | AB13: =VLOOKUP($AB$3,Planning_général!$E$60:$NM$60,((($K$2*7)+2)-3),0) ->  | AC13: =VLOOKUP($AC$3,Planning_général!$E$61:$NM$61,((($K$2*7)+2)-3),0) ->  | AD13: =VLOOKUP($AD$3,Planning_général!$E$62:$NM$62,((($K$2*7)+2)-3),0) -> 0 | AE13: =VLOOKUP($AE$3,Planning_général!$E$25:$NM$25,((($K$2*7)+2)-3),0) ->  | AF13: =VLOOKUP($AF$3,Planning_général!$E$26:$NM$26,((($K$2*7)+2)-3),0) ->  | AG13: =VLOOKUP($AG$3,Planning_général!$E$27:$NM$27,((($K$2*7)+2)-3),0) ->  | AH13: =VLOOKUP($AH$3,Planning_général!$E$28:$NM$28,((($K$2*7)+2)-3),0) ->  | AI13: =VLOOKUP($AI$3,Planning_général!$E$29:$NM$29,((($K$2*7)+2)-3),0) ->  | AJ13: =VLOOKUP($AJ$3,Planning_général!$E$30:$NM$30,((($K$2*7)+2)-3),0) ->  | AK13: =IF(ISNA(VLOOKUP($AK$3,Planning_général!$E$31:$NM$31,((($K$2*7)+2)-3),0)),0,VLOOKUP($AK$3,Planning_général!$E$31:$NM$31,((($K$2*7)+2)-3),0)) -> 0 | AO13: J1 | AP13: Journée 1 | AQ13: 09 h 00 - 16 h 10 | AR13: 12 h 20 - 12 h 40 | BD13: 7
I14: =IF(R51="","",R51) ->  | L14: =IF(I14="","",VLOOKUP(I14,Planning_général!$E$55:$F$62,2,0)) ->  | U14: =Planning_général!K10 -> S | V14: =VLOOKUP(U14,Planning_général!$NV$20:$NW$26,2,0) -> Samedi | W14: =VLOOKUP($W$3,Planning_général!$E$55:$NM$55,((($K$2*7)+2)-2),0) -> 0 | X14: =VLOOKUP($X$3,Planning_général!$E$56:$NM$56,((($K$2*7)+2)-2),0) -> 0 | Y14: =VLOOKUP($Y$3,Planning_général!$E$57:$NM$57,((($K$2*7)+2)-2),0) -> 0 | Z14: =VLOOKUP($Z$3,Planning_général!$E$58:$NM58,((($K$2*7)+2)-2),0) -> 0 | AA14: =VLOOKUP($AA$3,Planning_général!$E$59:$NM$59,((($K$2*7)+2)-2),0) -> 0 | AB14: =VLOOKUP($AB$3,Planning_général!$E$60:$NM$60,((($K$2*7)+2)-2),0) ->  | AC14: =VLOOKUP($AC$3,Planning_général!$E$61:$NM$61,((($K$2*7)+2)-2),0) ->  | AD14: =VLOOKUP($AD$3,Planning_général!$E$62:$NM$62,((($K$2*7)+2)-2),0) -> 0 | AE14: =VLOOKUP($AE$3,Planning_général!$E$25:$NM$25,((($K$2*7)+2)-2),0) ->  | AF14: =VLOOKUP($AF$3,Planning_général!$E$26:$NM$26,((($K$2*7)+2)-2),0) ->  | AG14: =VLOOKUP($AG$3,Planning_général!$E$27:$NM$27,((($K$2*7)+2)-2),0) ->  | AH14: =VLOOKUP($AH$3,Planning_général!$E$28:$NM$28,((($K$2*7)+2)-2),0) ->  | AI14: =VLOOKUP($AI$3,Planning_général!$E$29:$NM$29,((($K$2*7)+2)-2),0) ->  | AJ14: =VLOOKUP($AJ$3,Planning_général!$E$30:$NM$30,((($K$2*7)+2)-2),0) ->  | AK14: =IF(ISNA(VLOOKUP($AK$3,Planning_général!$E$31:$NM$31,((($K$2*7)+2)-2),0)),0,VLOOKUP($AK$3,Planning_général!$E$31:$NM$31,((($K$2*7)+2)-2),0)) -> 0 | AO14: J2 | AP14: Journée 2 | AQ14: 9 h 00 - 13 h 00 / 14 h 00 - 17 h 00 | AR14: 11 h 00 - 11 h 10 | BD14: 8
D15: J4 | E15: 09 h 30 - 16 h 40 | G15: 12 h 20 - 12 h 40 | I15: =IF(R55="","",R55) ->  | L15: =IF(I15="","",VLOOKUP(I15,Planning_général!$E$55:$F$62,2,0)) ->  | U15: =Planning_général!L10 -> D | V15: =VLOOKUP(U15,Planning_général!$NV$20:$NW$26,2,0) -> Dimanche | W15: =VLOOKUP($W$3,Planning_général!$E$55:$NM$55,((($K$2*7)+2)-1),0) -> 0 | X15: =VLOOKUP($X$3,Planning_général!$E$56:$NM$56,((($K$2*7)+2)-1),0) -> 0 | Y15: =VLOOKUP($Y$3,Planning_général!$E$57:$NM$57,((($K$2*7)+2)-1),0) -> 0 | Z15: =VLOOKUP($Z$3,Planning_général!$E$58:$NM$58,((($K$2*7)+2)-1),0) -> 0 | AA15: =VLOOKUP($AA$3,Planning_général!$E$59:$NM$59,((($K$2*7)+2)-1),0) -> 0 | AB15: =VLOOKUP($AB$3,Planning_général!$E$60:$NM60,((($K$2*7)+2)-1),0) ->  | AC15: =VLOOKUP($AC$3,Planning_général!$E$61:$NM$61,((($K$2*7)+2)-1),0) ->  | AD15: =VLOOKUP($AD$3,Planning_général!$E$62:$NM$62,((($K$2*7)+2)-1),0) -> 0 | AE15: =VLOOKUP($AE$3,Planning_général!$E$25:$NM$25,((($K$2*7)+2)-1),0) ->  | AF15: =VLOOKUP($AF$3,Planning_général!$E$26:$NM$26,((($K$2*7)+2)-1),0) ->  | AG15: =VLOOKUP($AG$3,Planning_général!$E$27:$NM$27,((($K$2*7)+2)-1),0) ->  | AH15: =VLOOKUP($AH$3,Planning_général!$E$28:$NM$28,((($K$2*7)+2)-1),0) ->  | AI15: =VLOOKUP($AI$3,Planning_général!$E$29:$NM$29,((($K$2*7)+2)-1),0) ->  | AJ15: =VLOOKUP($AJ$3,Planning_général!$E$30:$NM$30,((($K$2*7)+2)-1),0) ->  | AK15: =IF(ISNA(VLOOKUP($AK$3,Planning_général!$E$31:$NM$31,((($K$2*7)+2)-1),0)),0,VLOOKUP($AK$3,Planning_général!$E$31:$NM$31,((($K$2*7)+2)-1),0)) -> 0 | AO15: J3 | AP15: Journée 3 | AQ15: 8 h 00 - 12 h 00 / 13 h 30 - 17 h 30 | AR15: 10 h 00 -10 h 10 / 15 h 00 -15 h 10 | BD15: 9
I16: =IF(R56="","",R56) ->  | L16: =IF(I16="","",VLOOKUP(I16,Planning_général!$E$55:$F$62,2,0)) ->  | U16: =Planning_général!M10 -> L | V16: =VLOOKUP(U16,Planning_général!$NV$20:$NW$26,2,0) -> Lundi | W16: =VLOOKUP($W$3,Planning_général!$E$55:$NM$55,((($K$2*7)+2)-0),0) -> 0 | X16: =VLOOKUP($X$3,Planning_général!$E$56:$NM$56,((($K$2*7)+2)-0),0) -> 0 | Y16: =VLOOKUP($Y$3,Planning_général!$E$57:$NM$57,((($K$2*7)+2)-0),0) -> 0 | Z16: =VLOOKUP($Z$3,Planning_général!$E$58:$NM$58,((($K$2*7)+2)-0),0) -> 0 | AA16: =VLOOKUP($AA$3,Planning_général!$E$59:$NM$59,((($K$2*7)+2)-0),0) -> 0 | AB16: =VLOOKUP($AB$3,Planning_général!$E$60:$NM$60,((($K$2*7)+2)-0),0) ->  | AC16: =VLOOKUP($AC$3,Planning_général!$E$61:$NM$61,((($K$2*7)+2)-0),0) ->  | AD16: =VLOOKUP($AD$3,Planning_général!$E$62:$NM$62,((($K$2*7)+2)-0),0) -> 0 | AE16: =VLOOKUP($AE$3,Planning_général!$E$25:$NM$25,((($K$2*7)+2)-0),0) ->  | AF16: =VLOOKUP($AF$3,Planning_général!$E$26:$NM$26,((($K$2*7)+2)-0),0) ->  | AG16: =VLOOKUP($AG$3,Planning_général!$E$27:$NM$27,((($K$2*7)+2)-0),0) ->  | AH16: =VLOOKUP($AH$3,Planning_général!$E$28:$NM$28,((($K$2*7)+2)-0),0) ->  | AI16: =VLOOKUP($AI$3,Planning_général!$E$29:$NM$29,((($K$2*7)+2)-0),0) ->  | AJ16: =VLOOKUP($AJ$3,Planning_général!$E$30:$NM$30,((($K$2*7)+2)-0),0) ->  | AK16: =IF(ISNA(VLOOKUP($AK$3,Planning_général!$E$31:$NM$31,((($K$2*7)+2)-0),0)),0,VLOOKUP($AK$3,Planning_général!$E$31:$NM$31,((($K$2*7)+2)-0),0)) -> 0 | BD16: 10
BD17: 12
B18: Absences (CP/ Modul/ Repos /Formation) | E18: Lundi | F18: =VLOOKUP(E18,$O$71:$S$77,3,0) ->  | BD18: 13
E19: Mardi | F19: =VLOOKUP(E19,$O$71:$S$77,3,0) ->  | V19: =AO10 -> M1 | W19: =IF(COUNTIF($W$10:$W$16,V19)=0,"",COUNTIF($W$10:$W$16,V19)) ->  | X19: =IF(COUNTIF($X$10:$X$16,V19)=0,"",COUNTIF($X$10:$X$16,V19)) ->  | Y19: =IF(COUNTIF($Y$10:$Y$16,V19)=0,"",COUNTIF($Y$10:$Y$16,V19)) ->  | Z19: =IF(COUNTIF($Z$10:$Z$16,V19)=0,"",COUNTIF($Z$10:$Z$16,V19)) ->  | AA19: =IF(COUNTIF($AA$10:$AA$16,V19)=0,"",COUNTIF($AA$10:$AA$16,V19)) ->  | AB19: =IF(COUNTIF($AB$10:$AB$16,V19)=0,"",COUNTIF($AB$10:$AB$16,V19)) ->  | AC19: =IF(COUNTIF($AC$10:$AC$16,V19)=0,"",COUNTIF($AC$10:$AC$16,V19)) ->  | AD19: =IF(COUNTIF($AD$10:$AD$16,$V$19)=0,"",COUNTIF($AD$10:$AD$16,$V$19)) ->  | AE19: =IF(COUNTIF($AE$10:$AE$16,$V$19)=0,"",COUNTIF($AE$10:$AE$16,$V$19)) ->  | AF19: =IF(COUNTIF($AF$10:$AF$16,$V$19)=0,"",COUNTIF($AF$10:$AF$16,$V$19)) ->  | AG19: =IF(COUNTIF($AG$10:$AG$16,$V$19)=0,"",COUNTIF($AG$10:$AG$16,$V$19)) ->  | AH19: =IF(COUNTIF($AH$10:$AH$16,$V$19)=0,"",COUNTIF($AH$10:$AH$16,$V$19)) ->  | AI19: =IF(COUNTIF($AI$10:$AI$16,$V$19)=0,"",COUNTIF($AI$10:$AI$16,$V$19)) ->  | AJ19: =IF(COUNTIF($AJ$10:$AJ$16,$V$19)=0,"",COUNTIF($AJ$10:$AJ$16,$V$19)) ->  | AK19: =IF(COUNTIF($AK$10:$AK$16,$V$19)=0,"",COUNTIF($AK$10:$AK$16,$V$19)) ->  | AO19: Code | BD19: 16
E20: Mercredi | V20: =AO11 -> M2 | AC20: =IF(COUNTIF($AC$10:$AC$16,V20)=0,"",COUNTIF($AC$10:$AC$16,V20)) ->  | AD20: =IF(COUNTIF($AD$10:$AD$16,$V$20)=0,"",COUNTIF($AD$10:$AD$16,$V$20)) ->  | AE20: =IF(COUNTIF($AE$10:$AE$16,$V$20)=0,"",COUNTIF($AE$10:$AE$16,$V$20)) ->  | AF20: =IF(COUNTIF($AF$10:$AF$16,$V$20)=0,"",COUNTIF($AF$10:$AF$16,$V$20)) ->  | AG20: =IF(COUNTIF($AG$10:$AG$16,$V$20)=0,"",COUNTIF($AG$10:$AG$16,$V$20)) ->  | AH20: =IF(COUNTIF($AH$10:$AH$16,$V$20)=0,"",COUNTIF($AH$10:$AH$16,$V$20)) ->  | AI20: =IF(COUNTIF($AI$10:$AI$16,$V$20)=0,"",COUNTIF($AI$10:$AI$16,$V$20)) ->  | AJ20: =IF(COUNTIF($AJ$10:$AJ$16,$V$20)=0,"",COUNTIF($AJ$10:$AJ$16,$V$20)) ->  | AK20: =IF(COUNTIF($AK$10:$AK$16,$V$20)=0,"",COUNTIF($AK$10:$AK$16,$V$20)) ->  | AO20: CP | BD20: 17
E21: Jeudi | V21: =AO12 -> J4 | AC21: =IF(COUNTIF($AC$10:$AC$16,V21)=0,"",COUNTIF($AC$10:$AC$16,V21)) ->  | AD21: =IF(COUNTIF($AC$10:$AC$16,V21)=0,"",COUNTIF($AC$10:$AC$16,V21)) ->  | AE21: =IF(COUNTIF($AE$10:$AE$16,$V$21)=0,"",COUNTIF($AE$10:$AE$16,$V$21)) ->  | AF21: =IF(COUNTIF($AF$10:$AF$16,$V$21)=0,"",COUNTIF($AF$10:$AF$16,$V$21)) ->  | AG21: =IF(COUNTIF($AG$10:$AG$16,$V$21)=0,"",COUNTIF($AG$10:$AG$16,$V$21)) ->  | AH21: =IF(COUNTIF($AH$10:$AH$16,$V$21)=0,"",COUNTIF($AH$10:$AH$16,$V$21)) ->  | AI21: =IF(COUNTIF($AI$10:$AI$16,$V$21)=0,"",COUNTIF($AI$10:$AI$16,$V$21)) ->  | AJ21: =IF(COUNTIF($AJ$10:$AJ$16,$V$21)=0,"",COUNTIF($AJ$10:$AJ$16,$V$21)) ->  | AK21: =IF(COUNTIF($AK$10:$AK$16,$V$21)=0,"",COUNTIF($AK$10:$AK$16,$V$21)) ->  | AO21: Recup | BD21: 18
E22: Vendredi | V22: =AO13 -> J1 | AC22: =IF(COUNTIF($AC$10:$AC$16,V22)=0,"",COUNTIF($AC$10:$AC$16,V22)) ->  | AD22: =IF(COUNTIF($AD$10:$AD$16,$V$22)=0,"",COUNTIF($AD$10:$AD$16,$V$22)) ->  | AE22: =IF(COUNTIF($AE$10:$AE$16,$V$22)=0,"",COUNTIF($AE$10:$AE$16,$V$22)) ->  | AF22: =IF(COUNTIF($AF$10:$AF$16,$V$22)=0,"",COUNTIF($AF$10:$AF$16,$V$22)) ->  | AG22: =IF(COUNTIF($AG$10:$AG$16,$V$22)=0,"",COUNTIF($AG$10:$AG$16,$V$22)) ->  | AH22: =IF(COUNTIF($AH$10:$AH$16,$V$22)=0,"",COUNTIF($AH$10:$AH$16,$V$22)) ->  | AI22: =IF(COUNTIF($AI$10:$AI$16,$V$22)=0,"",COUNTIF($AI$10:$AI$16,$V$22)) ->  | AJ22: =IF(COUNTIF($AJ$10:$AJ$16,$V$22)=0,"",COUNTIF($AJ$10:$AJ$16,$V$22)) ->  | AK22: =IF(COUNTIF($AK$10:$AK$16,$V$22)=0,"",COUNTIF($AK$10:$AK$16,$V$22)) ->  | AO22: Form | BD22: 19
E23: Samedi | V23: J2 | AC23: =IF(COUNTIF($AC$10:$AC$16,$V$23)=0,"",COUNTIF($AC$10:$AC$16,V23)) ->  | AD23: =IF(COUNTIF($AD$10:$AD$16,$V$23)=0,"",COUNTIF($AD$10:$AD$16,$V$23)) ->  | AE23: =IF(COUNTIF($AE$10:$AE$16,$V$23)=0,"",COUNTIF($AE$10:$AE$16,$V$23)) ->  | AF23: =IF(COUNTIF($AF$10:$AF$16,$V$23)=0,"",COUNTIF($AF$10:$AF$16,$V$23)) ->  | AG23: =IF(COUNTIF($AG$10:$AG$16,$V$23)=0,"",COUNTIF($AG$10:$AG$16,$V$23)) ->  | AH23: =IF(COUNTIF($AH$10:$AH$16,$V$23)=0,"",COUNTIF($AH$10:$AH$16,$V$23)) ->  | AI23: =IF(COUNTIF($AI$10:$AI$16,$V$23)=0,"",COUNTIF($AI$10:$AI$16,$V$23)) ->  | AJ23: =IF(COUNTIF($AJ$10:$AJ$16,$V$23)=0,"",COUNTIF($AJ$10:$AJ$16,$V$23)) ->  | AK23: =IF(COUNTIF($AK$10:$AK$16,$V$23)=0,"",COUNTIF($AK$10:$AK$16,$V$23)) ->  | AO23: Modul | BD23: 20
V24: J3 | AC24: =IF(COUNTIF($AC$10:$AC$16,$V$24)=0,"",COUNTIF($AC$10:$AC$16,V24)) ->  | AD24: =IF(COUNTIF($AD$10:$AD$16,$V$24)=0,"",COUNTIF($AD$10:$AD$16,$V$24)) ->  | AE24: =IF(COUNTIF($AE$10:$AE$16,$V$24)=0,"",COUNTIF($AE$10:$AE$16,$V$24)) ->  | AF24: =IF(COUNTIF($AF$10:$AF$16,$V$24)=0,"",COUNTIF($AF$10:$AF$16,$V$24)) ->  | AG24: =IF(COUNTIF($AG$10:$AG$16,$V$24)=0,"",COUNTIF($AG$10:$AG$16,$V$24)) ->  | AH24: =IF(COUNTIF($AH$10:$AH$16,$V$24)=0,"",COUNTIF($AH$10:$AH$16,$V$24)) ->  | AI24: =IF(COUNTIF($AI$10:$AI$16,$V$24)=0,"",COUNTIF($AI$10:$AI$16,$V$24)) ->  | AJ24: =IF(COUNTIF($AJ$10:$AJ$16,$V$24)=0,"",COUNTIF($AJ$10:$AJ$16,$V$24)) ->  | AK24: =IF(COUNTIF($AK$10:$AK$16,$V$24)=0,"",COUNTIF($AK$10:$AK$16,$V$24)) ->  | AO24: H.R | BD24: 21
V25: - | AC25: =IF(COUNTIF($AC$10:$AC$16,$V$25)=0,"",COUNTIF($AC$10:$AC$16,V25)) ->  | AD25: =IF(COUNTIF($AD$10:$AD$16,$V$25)=0,"",COUNTIF($AD$10:$AD$16,$V$25)) ->  | AE25: =IF(COUNTIF($AE$10:$AE$16,$V$25)=0,"",COUNTIF($AE$10:$AE$16,$V$25)) ->  | AF25: =IF(COUNTIF($AF$10:$AF$16,$V$25)=0,"",COUNTIF($AF$10:$AF$16,$V$25)) ->  | AG25: =IF(COUNTIF($AG$10:$AG$16,$V$25)=0,"",COUNTIF($AG$10:$AG$16,$V$25)) ->  | AH25: =IF(COUNTIF($AH$10:$AH$16,$V$25)=0,"",COUNTIF($AH$10:$AH$16,$V$25)) ->  | AI25: =IF(COUNTIF($AI$10:$AI$16,$V$25)=0,"",COUNTIF($AI$10:$AI$16,$V$25)) ->  | AJ25: =IF(COUNTIF($AJ$10:$AJ$16,$V$25)=0,"",COUNTIF($AJ$10:$AJ$16,$V$25)) ->  | AK25: =IF(COUNTIF($AK$10:$AK$16,$V$25)=0,"",COUNTIF($AK$10:$AK$16,$V$25)) ->  | AO25: HR Nuit | BD25: 22
V26: - | AC26: =IF(COUNTIF($AC$10:$AC$16,V26)=0,"",COUNTIF($AC$10:$AC$16,V26)) ->  | AD26: =IF(COUNTIF($AD$10:$AD$16,$V$26)=0,"",COUNTIF($AD$10:$AD$16,$V$26)) ->  | AE26: =IF(COUNTIF($AE$10:$AE$16,$V$26)=0,"",COUNTIF($AE$10:$AE$16,$V$26)) ->  | AF26: =IF(COUNTIF($AF$10:$AF$16,$V$26)=0,"",COUNTIF($AF$10:$AF$16,$V$26)) ->  | AG26: =IF(COUNTIF($AG$10:$AG$16,$V$26)=0,"",COUNTIF($AG$10:$AG$16,$V$26)) ->  | AH26: =IF(COUNTIF($AH$10:$AH$16,$V$26)=0,"",COUNTIF($AH$10:$AH$16,$V$26)) ->  | AI26: =IF(COUNTIF($AI$10:$AI$16,$V$26)=0,"",COUNTIF($AI$10:$AI$16,$V$26)) ->  | AJ26: =IF(COUNTIF($AJ$10:$AJ$16,$V$26)=0,"",COUNTIF($AJ$10:$AJ$16,$V$26)) ->  | AK26: =IF(COUNTIF($AK$10:$AK$16,$V$26)=0,"",COUNTIF($AK$10:$AK$16,$V$26)) ->  | AO26: RTT | BD26: 23
V27: Max | W27: =MAX(W19:W23) -> 0 | X27: =MAX(X19:X23) -> 0 | Y27: 0 | Z27: =MAX(Z19:Z26) -> 0 | AA27: 0 | AB27: 0 | AC27: 0 | AD27: 0 | AE27: 0 | AF27: 0 | AG27: 0 | AH27: 0 | AI27: 0 | AJ27: 0 | AK27: =MAX(AK19:AK23) -> 0 | AO27: Mal | BD27: 24
AO28: J.A | BD28: 25
R29: Techniciens | AO29: Ecole | BD29: 26
W30: =IF(W27=0,"",IF(W19=W27,$V$19,IF(W20=W27,$V$20,IF(W21=W27,$V$21,IF(W22=W27,$V$22,IF(W23=W27,$V$23,IF(W24=W27,$V$24,IF(W25=W27,$V$25,IF(W26=W27,$V$26,""))))))))) ->  | Y30: =IF(Y27=0,"",IF(Y19=Y27,$V$19,IF(Y20=Y27,$V$20,IF(Y21=Y27,$V$21,IF(Y22=Y27,$V$22,IF(Y23=Y27,$V$23,IF(Y24=Y27,$V$24,IF(Y25=Y27,$V$25,IF(Y26=Y27,$V$26,""))))))))) ->  | Z30: =IF(Z27=0,"",IF(Z19=Z27,$V$19,IF(Z20=Z27,$V$20,IF(Z21=Z27,$V$21,IF(Z22=Z27,$V$22,IF(Z23=Z27,$V$23,IF(Z24=Z27,$V$24,IF(Z25=Z27,$V$25,IF(Z26=Z27,$V$26,""))))))))) ->  | BD30: 27
Q31: =IF(R31="","",VLOOKUP(R31,Planning_général!$E$55:$F$62,2,0)) ->  | R31: =IF(W31=1,$W$3,IF(X31=1,$X$3,IF(Y31=1,$Y$3,IF(Z31=1,Z3,IF(AA31=1,$AA$3,IF(AB31=1,$AB$3,IF(AC31=1,$AC$3,IF(AD31=1,$AD$3,IF(AE31=1,$AE$3,IF(AF31=1,$AF$3,IF(AG31=1,$AG$3,IF(AH31=1,AH3,IF(AI31=1,$AI$3,IF(AJ31=1,$AJ$3,IF(AK31=1,$AK$3,""))))))))))))))) ->  | S31: =IF(U31=1,U$9,IF(V31=1,V$9,IF(W31=1,W$9,IF(X31=1,X$9,IF(Y31=1,Y$9,IF(Z31=1,Z$9,IF(AA31=1,AA$9,IF(AB31=1,AB$9,IF(AC31=1,AC$9,IF(AD31=1,AD$9,IF(AE31=1,AE$9,""))))))))))) ->  | T31: Matin 1 | V31: M1 | W31: =IF($V$31=W30,1,"") ->  | X31: =IF(AND($V$31=$X$30,W31=""),1,"") ->  | Y31: =IF(AND($V$31=$Y$30,X31="",W31=""),1,"") ->  | Z31: =IF(AND($V$31=Z30,W31="",X31="",Y31=""),1,"") ->  | AA31: =IF(AND($V$31=AA30,X31="",Y31="",Z31="",W31=""),1,"") ->  | AB31: =IF(AND($V$31=AB30,Y31="",Z31="",AA31="",X31="",W31=""),1,"") ->  | AC31: =IF(AND($V$31=AC30,Z31="",AA31="",AB31="",Y31="",X31="",W31=""),1,"") ->  | AD31: =IF(AND($V$31=AD30,AA31="",AB31="",AC31="",Z31="",Y31="",X31="",W31=""),1,"") ->  | AE31: =IF(AND($V$31=AE30,AB31="",AC31="",AD31="",AA31="",Z31="",Y31="",X31="",W31=""),1,"") ->  | AF31: =IF(AND($V$31=AF30,AC31="",AD31="",AE31="",AB31="",AA31="",Z31="",Y31="",X31="",W31=""),1,"") ->  | AG31: =IF(AND($V$31=AG30,AD31="",AE31="",AF31="",AC31="",AB31="",AA31="",Z31="",Y31="",X31="",W31=""),1,"") ->  | AH31: =IF(AND($V$31=AH30,AE31="",AF31="",AG31="",AD31="",AC31="",AB31="",AA31="",Z31="",Y31="",X31="",W31=""),1,"") ->  | AI31: =IF(AND($V$31=AI30,AF31="",AG31="",AH31="",AE31="",AD31="",AC31="",AB31="",AA31="",Z31="",Y31="",X31="",W31=""),1,"") ->  | AJ31: =IF(AND($V$31=AJ30,AG31="",AH31="",AI31="",AF31="",AE31="",AD31="",AC31="",AB31="",AA31="",Z31="",Y31="",X31="",W31=""),1,"") ->  | AK31: =IF(AND($V$31=AK30,AH31="",AI31="",AJ31="",AG31="",AF31="",AE31="",AD31="",AC31="",AB31="",AA31="",Z31="",Y31="",X31="",W31=""),1,"") ->  | BD31: 28
Q32: =IF(R32="","",VLOOKUP(R32,Planning_général!$E$55:$F$62,2,0)) ->  | R32: =IF(W32=1,$W$3,IF(X32=1,$X$3,IF(Y32=1,$Y$3,IF(Z32=1,Z4,IF(AA32=1,$AA$3,IF(AB32=1,$AB$3,IF(AC32=1,$AC$3,IF(AD32=1,$AD$3,IF(AE32=1,$AE$3,IF(AF32=1,$AF$3,IF(AG32=1,$AG$3,IF(AH32=1,AH4,IF(AI32=1,$AI$3,IF(AJ32=1,$AJ$3,IF(AK32=1,$AK$3,""))))))))))))))) ->  | S32: =IF(U32=1,U$9,IF(V32=1,V$9,IF(W32=1,W$9,IF(X32=1,X$9,IF(Y32=1,Y$9,IF(Z32=1,Z$9,IF(AA32=1,AA$9,IF(AB32=1,AB$9,IF(AC32=1,AC$9,IF(AD32=1,AD$9,IF(AE32=1,AE$9,""))))))))))) ->  | V32: M1 | X32: =IF(AND(X$30=$V$32,W32="",X31=""),1,"") ->  | Y32: =IF(AND(Y$30=$V$32,X32="",Y31=""),1,"") ->  | AA32: =IF(AND(AA$30=$V$32,AA31="",SUM($X$32:Z32)=0),1,"") ->  | AB32: =IF(AND(AB$30=$V$32,AB31="",SUM($X$32:AA32)=0),1,"") ->  | AC32: =IF(AND(AC$30=$V$32,AC31="",SUM($X$32:AB32)=0),1,"") ->  | AD32: =IF(AND(AD$30=$V$32,AD31="",SUM($X$32:AC32)=0),1,"") ->  | AE32: =IF(AND(AE$30=$V$32,AE31="",SUM($X$32:AD32)=0),1,"") ->  | AF32: =IF(AND(AF$30=$V$32,AF31="",SUM($X$32:AE32)=0),1,"") ->  | AG32: =IF(AND(AG$30=$V$32,AG31="",SUM($X$32:AF32)=0),1,"") ->  | AH32: =IF(AND(AH$30=$V$32,AH31="",SUM($X$32:AG32)=0),1,"") ->  | AI32: =IF(AND(AI$30=$V$32,AI31="",SUM($X$32:AH32)=0),1,"") ->  | AJ32: =IF(AND(AJ$30=$V$32,AJ31="",SUM($X$32:AI32)=0),1,"") ->  | AK32: =IF(AND(AK$30=$V$32,AK31="",SUM($X$32:AJ32)=0),1,"") ->  | BD32: 29
Q33: =IF(R33="","",VLOOKUP(R33,Planning_général!$E$55:$F$62,2,0)) ->  | R33: =IF(W33=1,$W$3,IF(X33=1,$X$3,IF(Y33=1,$Y$3,IF(Z33=1,Z3,IF(AA33=1,$AA$3,IF(AB33=1,$AB$3,IF(AC33=1,$AC$3,IF(AD33=1,$AD$3,IF(AE33=1,$AE$3,IF(AF33=1,$AF$3,IF(AG33=1,$AG$3,IF(AH33=1,AH3,IF(AI33=1,$AI$3,IF(AJ33=1,$AJ$3,IF(AK33=1,$AK$3,""))))))))))))))) ->  | S33: =IF(U33=1,U$9,IF(V33=1,V$9,IF(W33=1,W$9,IF(X33=1,X$9,IF(Y33=1,Y$9,IF(Z33=1,Z$9,IF(AA33=1,AA$9,IF(AB33=1,AB$9,IF(AC33=1,AC$9,IF(AD33=1,AD$9,IF(AE33=1,AE$9,""))))))))))) ->  | V33: - | Y33: =IF(AND(Y$30=V33,X33="",Y32="",Y31=""),1,"") ->  | Z33: =IF(AND(Z$30=V33,Y33="",Z32="",Z31=""),1,"") ->  | AA33: =IF(AND(AA$30=$V$33,AA31="",AA32="",SUM($Y$33:Z33)=0),1,"") ->  | AB33: =IF(AND(AB$30=$V$33,AB31="",AB32="",SUM($Y$33:AA33)=0),1,"") ->  | AC33: =IF(AND(AC$30=$V$33,AC31="",AC32="",SUM($Y$33:AB33)=0),1,"") ->  | AD33: =IF(AND(AD$30=$V$33,AD31="",AD32="",SUM($Y$33:AC33)=0),1,"") ->  | AE33: =IF(AND(AE$30=$V$33,AE31="",AE32="",SUM($Y$33:AD33)=0),1,"") ->  | AF33: =IF(AND(AF$30=$V$33,AF31="",AF32="",SUM($Y$33:AE33)=0),1,"") ->  | AG33: =IF(AND(AG$30=$V$33,AG31="",AG32="",SUM($Y$33:AF33)=0),1,"") ->  | AH33: =IF(AND(AH$30=$V$33,AH31="",AH32="",SUM($Y$33:AG33)=0),1,"") ->  | AI33: =IF(AND(AI$30=$V$33,AI31="",AI32="",SUM($Y$33:AH33)=0),1,"") ->  | AJ33: =IF(AND(AJ$30=$V$33,AJ31="",AJ32="",SUM($Y$33:AI33)=0),1,"") ->  | AK33: =IF(AND(AK$30=$V$33,AK31="",AK32="",SUM($Y$33:AJ33)=0),1,"") -> 
Q35: =IF(R35="","",VLOOKUP(R35,Planning_général!$E$55:$F$62,2,0)) ->  | R35: =IF(W35=1,$W$3,IF(X35=1,$X$3,IF(Y35=1,$Y$3,IF(Z35=1,Z3,IF(AA35=1,$AA$3,IF(AB35=1,$AB$3,IF(AC35=1,$AC$3,IF(AD35=1,$AD$3,IF(AE35=1,$AE$3,IF(AF35=1,$AF$3,IF(AG35=1,$AG$3,IF(AH35=1,AH7,IF(AI35=1,$AI$3,IF(AJ35=1,$AJ$3,IF(AK35=1,$AK$3,""))))))))))))))) ->  | S35: =IF(U35=1,U$9,IF(V35=1,V$9,IF(W35=1,W$9,IF(X35=1,X$9,IF(Y35=1,Y$9,IF(Z35=1,Z$9,IF(AA35=1,AA$9,IF(AB35=1,AB$9,IF(AC35=1,AC$9,IF(AD35=1,AD$9,IF(AE35=1,AE$9,""))))))))))) ->  | T35: Matin 2 | V35: M2 | W35: =IF($V$35=W30,1,"") ->  | X35: =IF(AND($V$35=$X$30,W35=""),1,"") ->  | Y35: =IF(AND($V$35=$Y$30,X35="",W35=""),1,"") ->  | Z35: =IF(AND($V$35=Z30,W35="",X35="",Y35=""),1,"") ->  | AA35: =IF(AND($V$35=AA30,X35="",Y35="",Z35="",W35=""),1,"") ->  | AB35: =IF(AND($V$35=AB30,Y35="",Z35="",AA35="",X35="",W35=""),1,"") ->  | AC35: =IF(AND($V$35=AC30,Z35="",AA35="",AB35="",Y35="",X35="",W35=""),1,"") ->  | AD35: =IF(AND($V$35=AD30,AA35="",AB35="",AC35="",Z35="",Y35="",X35="",W35=""),1,"") ->  | AE35: =IF(AND($V$35=AE30,AB35="",AC35="",AD35="",AA35="",Z35="",Y35="",X35="",W35=""),1,"") ->  | AF35: =IF(AND($V$35=AF30,AC35="",AD35="",AE35="",AB35="",AA35="",Z35="",Y35="",X35="",W35=""),1,"") ->  | AG35: =IF(AND($V$35=AG34,AD35="",AE35="",AF35="",AC35="",AB35="",AA35="",Z35="",Y35="",X35="",W35=""),1,"") ->  | AH35: =IF(AND($V$35=AH34,AE35="",AF35="",AG35="",AD35="",AC35="",AB35="",AA35="",Z35="",Y35="",X35="",W35=""),1,"") ->  | AI35: =IF(AND($V$35=AI30,AF35="",AG35="",AH35="",AE35="",AD35="",AC35="",AB35="",AA35="",Z35="",Y35="",X35="",W35=""),1,"") ->  | AJ35: =IF(AND($V$35=AJ34,AG35="",AH35="",AI35="",AF35="",AE35="",AD35="",AC35="",AB35="",AA35="",Z35="",Y35="",X35="",W35=""),1,"") ->  | AK35: =IF(AND($V$35=AK34,AH35="",AI35="",AJ35="",AG35="",AF35="",AE35="",AD35="",AC35="",AB35="",AA35="",Z35="",Y35="",X35="",W35=""),1,"") -> 
Q36: =IF(R36="","",VLOOKUP(R36,Planning_général!$E$55:$F$62,2,0)) ->  | R36: =IF(W36=1,$W$3,IF(X36=1,$X$3,IF(Y36=1,$Y$3,IF(Z36=1,Z3,IF(AA36=1,$AA$3,IF(AB36=1,$AB$3,IF(AC36=1,$AC$3,IF(AD36=1,$AD$3,IF(AE36=1,$AE$3,IF(AF36=1,$AF$3,IF(AG36=1,$AG$3,IF(AH36=1,AH3,IF(AI36=1,$AI$3,IF(AJ36=1,$AJ$3,IF(AK36=1,$AK$3,""))))))))))))))) ->  | S36: =IF(U36=1,U$9,IF(V36=1,V$9,IF(W36=1,W$9,IF(X36=1,X$9,IF(Y36=1,Y$9,IF(Z36=1,Z$9,IF(AA36=1,AA$9,IF(AB36=1,AB$9,IF(AC36=1,AC$9,IF(AD36=1,AD$9,IF(AE36=1,AE$9,""))))))))))) ->  | V36: M2 | X36: =IF(AND(X$30=$V$36,W36="",X35=""),1,"") ->  | Y36: =IF(AND(Y$30=$V$36,X36="",Y35=""),1,"") ->  | Z36: =IF(AND(Z$30=$V$36,Y36="",Z35=""),1,"") ->  | AA36: =IF(AND(AA$30=$V$36,AA35="",SUM($X$36:Z36)=0),1,"") ->  | AB36: =IF(AND(AB$30=$V$36,AB35="",SUM($X$36:AA36)=0),1,"") ->  | AC36: =IF(AND(AC$30=$V$36,AC35="",SUM($X$36:AB36)=0),1,"") ->  | AD36: =IF(AND(AD$30=$V$36,AD35="",SUM($X$36:AC36)=0),1,"") ->  | AE36: =IF(AND(AE$30=$V$36,AE35="",SUM($X$36:AD36)=0),1,"") ->  | AF36: =IF(AND(AF$30=$V$36,AF35="",SUM($X$36:AE36)=0),1,"") ->  | AG36: =IF(AND(AG$30=$V$36,AG35="",SUM($X$36:AF36)=0),1,"") ->  | AH36: =IF(AND(AH$30=$V$36,AH35="",SUM($X$36:AG36)=0),1,"") ->  | AI36: =IF(AND(AI$30=$V$36,AI35="",SUM($X$36:AH36)=0),1,"") ->  | AJ36: =IF(AND(AJ$30=$V$36,AJ35="",SUM($X$36:AI36)=0),1,"") ->  | AK36: =IF(AND(AK$30=$V$36,AK35="",SUM($X$36:AJ36)=0),1,"") -> 
Q37: =IF(R37="","",VLOOKUP(R37,Planning_général!$E$55:$F$62,2,0)) ->  | R37: =IF(W37=1,$W$3,IF(X37=1,$X$3,IF(Y37=1,$Y$3,IF(Z37=1,$Z$3,IF(AA37=1,$AA$3,IF(AB37=1,$AB$3,IF(AC37=1,$AC$3,IF(AD37=1,$AD$3,IF(AE37=1,$AE$3,IF(AF37=1,$AF$3,IF(AG37=1,$AG$3,IF(AH37=1,$AH$3,IF(AI37=1,$AI$3,IF(AJ37=1,$AJ$3,IF(AK37=1,$AK$3,""))))))))))))))) ->  | S37: =IF(U37=1,U$9,IF(V37=1,V$9,IF(W37=1,W$9,IF(X37=1,X$9,IF(Y37=1,Y$9,IF(Z37=1,Z$9,IF(AA37=1,AA$9,IF(AB37=1,AB$9,IF(AC37=1,AC$9,IF(AD37=1,AD$9,IF(AE37=1,AE$9,""))))))))))) ->  | V37: - | Y37: =IF(AND(Y$30=V37,X37="",Y36="",Y35=""),1,"") ->  | Z37: =IF(AND(Z$30=V37,Y37="",Z36="",Z35=""),1,"") ->  | AA37: =IF(AND(AA$30=$V$37,AA35="",AA36="",SUM($Y$37:Z37)=0),1,"") ->  | AB37: =IF(AND(AB$30=$V$37,AB35="",AB36="",SUM($Y$37:AA37)=0),1,"") ->  | AC37: =IF(AND(AC$30=$V$37,AC35="",AC36="",SUM($Y$37:AB37)=0),1,"") ->  | AD37: =IF(AND(AD$30=$V$37,AD35="",AD36="",SUM($Y$37:AC37)=0),1,"") ->  | AE37: =IF(AND(AE$30=$V$37,AE35="",AE36="",SUM($Y$37:AD37)=0),1,"") ->  | AF37: =IF(AND(AF$30=$V$37,AF35="",AF36="",SUM($Y$37:AE37)=0),1,"") ->  | AG37: =IF(AND(AG$30=$V$37,AG35="",AG36="",SUM($Y$37:AF37)=0),1,"") ->  | AH37: =IF(AND(AH$30=$V$37,AH35="",AH36="",SUM($Y$37:AG37)=0),1,"") ->  | AI37: =IF(AND(AI$30=$V$37,AI35="",AI36="",SUM($Y$37:AH37)=0),1,"") ->  | AJ37: =IF(AND(AJ$30=$V$37,AJ35="",AJ36="",SUM($Y$37:AI37)=0),1,"") ->  | AK37: =IF(AND(AK$30=$V$37,AK35="",AK36="",SUM($Y$37:AJ37)=0),1,"") ->  | BD37: 30
BD38: 31
BD39: 35
Q40: =IF(R40="","",VLOOKUP(R40,Planning_général!$E$55:$F$62,2,0)) ->  | R40: =IF(W40=1,$W$3,IF(X40=1,$X$3,IF(Y40=1,$Y$3,IF(Z40=1,Z3,IF(AA40=1,$AA$3,IF(AB40=1,$AB$3,IF(AC40=1,$AC$3,IF(AD40=1,$AD$3,IF(AE40=1,$AE$3,IF(AF40=1,$AF$3,IF(AG40=1,$AG$3,IF(AH40=1,AH12,IF(AI40=1,$AI$3,IF(AJ40=1,$AJ$3,IF(AK40=1,$AK$3,""))))))))))))))) ->  | S40: =IF(U40=1,U$9,IF(V40=1,V$9,IF(W40=1,W$9,IF(X40=1,X$9,IF(Y40=1,Y$9,IF(Z40=1,Z$9,IF(AA40=1,AA$9,IF(AB40=1,AB$9,IF(AC40=1,AC$9,IF(AD40=1,AD$9,IF(AE40=1,AE$9,""))))))))))) ->  | T40: Jrnée 1 | V40: J1 | W40: =IF($V$40=$W$30,1,"") ->  | X40: =IF(AND($V$40=$X$30,W40=""),1,"") ->  | Y40: =IF(AND($V$40=$Y$30,X40="",W40=""),1,"") ->  | Z40: =IF(AND($V$40=Z30,W40="",X40="",Y40=""),1,"") ->  | AA40: =IF(AND($V$40=$AA$30,X40="",Y40="",Z40="",W40=""),1,"") ->  | AB40: =IF(AND($V$40=$AB$30,Y40="",Z40="",AA40="",X40="",W40=""),1,"") ->  | AC40: =IF(AND($V$40=AC30,Z40="",AA40="",AB40="",Y40="",X40="",W40=""),1,"") ->  | AD40: =IF(AND($V$40=AD30,AA40="",AB40="",AC40="",Z40="",Y40="",X40="",W40=""),1,"") ->  | AE40: =IF(AND($V$40=$AE$30,AB40="",AC40="",AD40="",AA40="",Z40="",Y40="",X40="",W40=""),1,"") ->  | AF40: =IF(AND($V$40=$AF$30,AC40="",AD40="",AE40="",AB40="",AA40="",Z40="",Y40="",X40="",W40=""),1,"") ->  | AG40: =IF(AND($V$40=$AG$30,AD40="",AE40="",AF40="",AC40="",AB40="",AA40="",Z40="",Y40="",X40="",W40=""),1,"") ->  | AH40: =IF(AND($V$40=$AH$30,AE40="",AF40="",AG40="",AD40="",AC40="",AB40="",AA40="",Z40="",Y40="",X40="",W40=""),1,"") ->  | AI40: =IF(AND($V$40=$AI$30,AF40="",AG40="",AH40="",AE40="",AD40="",AC40="",AB40="",AA40="",Z40="",Y40="",X40="",W40=""),1,"") ->  | AJ40: =IF(AND($V$40=$AJ$30,AG40="",AH40="",AI40="",AF40="",AE40="",AD40="",AC40="",AB40="",AA40="",Z40="",Y40="",X40="",W40=""),1,"") ->  | AK40: =IF(AND($V$40=$AK$30,AH40="",AI40="",AJ40="",AG40="",AF40="",AE40="",AD40="",AC40="",AB40="",AA40="",Z40="",Y40="",X40="",W40=""),1,"") ->  | BD40: 36
Q41: =IF(R41="","",VLOOKUP(R41,Planning_général!$E$55:$F$62,2,0)) ->  | R41: =IF(W41=1,$W$3,IF(X41=1,$X$3,IF(Y41=1,$Y$3,IF(Z41=1,$Z$3,IF(AA41=1,$AA$3,IF(AB41=1,$AB$3,IF(AC41=1,$AC$3,IF(AD41=1,$AD$3,IF(AE41=1,$AE$3,IF(AF41=1,$AF$3,IF(AG41=1,$AG$3,IF(AH41=1,$AH$3,IF(AI41=1,$AI$3,IF(AJ41=1,$AJ$3,IF(AK41=1,$AK$3,""))))))))))))))) ->  | S41: =IF(U41=1,U$9,IF(V41=1,V$9,IF(W41=1,W$9,IF(X41=1,X$9,IF(Y41=1,Y$9,IF(Z41=1,Z$9,IF(AA41=1,AA$9,IF(AB41=1,AB$9,IF(AC41=1,AC$9,IF(AD41=1,AD$9,IF(AE41=1,AE$9,""))))))))))) ->  | V41: J1 | X41: =IF(AND(X$30=$V$41,W41="",X40=""),1,"") ->  | Y41: =IF(AND(Y$30=$V$41,X41="",Y40=""),1,"") ->  | Z41: =IF(AND(Z$30=$V$41,Y41="",Z40=""),1,"") ->  | AA41: =IF(AND(AA$30=$V$41,AA40="",SUM($X$41:Z41)=0),1,"") ->  | AB41: =IF(AND(AB$30=$V$41,AB40="",SUM($X$41:AA41)=0),1,"") ->  | AC41: =IF(AND(AC$30=$V$41,AC40="",SUM($X$41:AB41)=0),1,"") ->  | AD41: =IF(AND(AD$30=$V$41,AD40="",SUM($X$41:AC41)=0),1,"") ->  | AE41: =IF(AND(AE$30=$V$41,AE40="",SUM($X$41:AD41)=0),1,"") ->  | AF41: =IF(AND(AF$30=$V$41,AF40="",SUM($X$41:AE41)=0),1,"") ->  | AG41: =IF(AND(AG$30=$V$41,AG40="",SUM($X$41:AF41)=0),1,"") ->  | AH41: =IF(AND(AH$30=$V$41,AH40="",SUM($X$41:AG41)=0),1,"") ->  | AI41: =IF(AND(AI$30=$V$41,AI40="",SUM($X$41:AH41)=0),1,"") ->  | AJ41: =IF(AND(AJ$30=$V$41,AJ40="",SUM($X$41:AI41)=0),1,"") ->  | AK41: =IF(AND(AK$30=$V$41,AK40="",SUM($X$41:AJ41)=0),1,"") ->  | BD41: 37
Q42: =IF(R42="","",VLOOKUP(R42,Planning_général!$E$55:$F$62,2,0)) ->  | R42: =IF(W42=1,$W$3,IF(X42=1,$X$3,IF(Y42=1,$Y$3,IF(Z42=1,Z10,IF(AA42=1,$AA$3,IF(AB42=1,$AB$3,IF(AC42=1,$AC$3,IF(AD42=1,$AD$3,IF(AE42=1,$AE$3,IF(AF42=1,$AF$3,IF(AG42=1,$AG$3,IF(AH42=1,$AH$3,IF(AI42=1,$AI$3,IF(AJ42=1,$AJ$3,IF(AK42=1,$AK$3,""))))))))))))))) ->  | S42: =IF(U42=1,U$9,IF(V42=1,V$9,IF(W42=1,W$9,IF(X42=1,X$9,IF(Y42=1,Y$9,IF(Z42=1,Z$9,IF(AA42=1,AA$9,IF(AB42=1,AB$9,IF(AC42=1,AC$9,IF(AD42=1,AD$9,IF(AE42=1,AE$9,""))))))))))) ->  | V42: - | Y42: =IF(AND(Y$30=V42,X42="",Y41="",Y40=""),1,"") ->  | Z42: =IF(AND(Z$30=V42,Y42="",Z41="",Z40=""),1,"") ->  | AA42: =IF(AND(AA$30=$V$42,AA40="",AA41="",SUM($Y$42:Z42)=0),1,"") ->  | AB42: =IF(AND(AB$30=$V$42,AB40="",AB41="",SUM($Y$42:AA42)=0),1,"") ->  | AC42: =IF(AND(AC$30=$V$42,AC40="",AC41="",SUM($Y$42:AB42)=0),1,"") ->  | AD42: =IF(AND(AD$30=$V$42,AD40="",AD41="",SUM($Y$42:AC42)=0),1,"") ->  | AE42: =IF(AND(AE$30=$V$42,AE40="",AE41="",SUM($Y$42:AD42)=0),1,"") ->  | AF42: =IF(AND(AF$30=$V$42,AF40="",AF41="",SUM($Y$42:AE42)=0),1,"") ->  | AG42: =IF(AND(AG$30=$V$42,AG40="",AG41="",SUM($Y$42:AF42)=0),1,"") ->  | AH42: =IF(AND(AH$30=$V$42,AH40="",AH41="",SUM($Y$42:AG42)=0),1,"") ->  | AI42: =IF(AND(AI$30=$V$42,AI40="",AI41="",SUM($Y$42:AH42)=0),1,"") ->  | AJ42: =IF(AND(AJ$30=$V$42,AJ40="",AJ41="",SUM($Y$42:AI42)=0),1,"") ->  | AK42: =IF(AND(AK$30=$V$42,AK40="",AK41="",SUM($Y$42:AJ42)=0),1,"") ->  | BD42: 38
BD43: 39
BD44: 40
Q45: =IF(R45="","",VLOOKUP(R45,Planning_général!$E$55:$F$62,2,0)) ->  | R45: =IF(W45=1,$W$3,IF(X45=1,$X$3,IF(Y45=1,$Y$3,IF(Z45=1,Z3,IF(AA45=1,$AA$3,IF(AB45=1,$AB$3,IF(AC45=1,$AC$3,IF(AD45=1,$AD$3,IF(AE45=1,$AE$3,IF(AF45=1,$AF$3,IF(AG45=1,$AG$3,IF(AH45=1,AH3,IF(AI45=1,$AI$3,IF(AJ45=1,$AJ$3,IF(AK45=1,$AK$3,""))))))))))))))) ->  | S45: =IF(U45=1,U$9,IF(V45=1,V$9,IF(W45=1,W$9,IF(X45=1,X$9,IF(Y45=1,Y$9,IF(Z45=1,Z$9,IF(AA45=1,AA$9,IF(AB45=1,AB$9,IF(AC45=1,AC$9,IF(AD45=1,AD$9,IF(AE45=1,AE$9,""))))))))))) ->  | T45: Jrnée 2 | V45: J2 | W45: =IF($V$45=$W$30,1,"") ->  | X45: =IF(AND($V$45=$X$30,W45=""),1,"") ->  | Y45: =IF(AND($V$45=$Y$30,X45="",W45=""),1,"") ->  | Z45: =IF(AND($V$45=Z30,W45="",X45="",Y45=""),1,"") ->  | AA45: =IF(AND($V$45=$AA$30,X45="",Y45="",Z45="",W45=""),1,"") ->  | AB45: =IF(AND($V$45=$AB$30,Y45="",Z45="",AA45="",X45="",W45=""),1,"") ->  | AC45: =IF(AND($V$45=AC35,Z45="",AA45="",AB45="",Y45="",X45="",W45=""),1,"") ->  | AD45: =IF(AND($V$45=AD35,AA45="",AB45="",AC45="",Z45="",Y45="",X45="",W45=""),1,"") ->  | AE45: =IF(AND($V$45=$AE$30,AB45="",AC45="",AD45="",AA45="",Z45="",Y45="",X45="",W45=""),1,"") ->  | AF45: =IF(AND($V$45=$AF$30,AC45="",AD45="",AE45="",AB45="",AA45="",Z45="",Y45="",X45="",W45=""),1,"") ->  | AG45: =IF(AND($V$45=$AG$30,AD45="",AE45="",AF45="",AC45="",AB45="",AA45="",Z45="",Y45="",X45="",W45=""),1,"") ->  | AH45: =IF(AND($V$45=$AH$30,AE45="",AF45="",AG45="",AD45="",AC45="",AB45="",AA45="",Z45="",Y45="",X45="",W45=""),1,"") ->  | AI45: =IF(AND($V$45=$AI$30,AF45="",AG45="",AH45="",AE45="",AD45="",AC45="",AB45="",AA45="",Z45="",Y45="",X45="",W45=""),1,"") ->  | AJ45: =IF(AND($V$45=$AJ$30,AG45="",AH45="",AI45="",AF45="",AE45="",AD45="",AC45="",AB45="",AA45="",Z45="",Y45="",X45="",W45=""),1,"") ->  | AK45: =IF(AND($V$45=$AK$30,AH45="",AI45="",AJ45="",AG45="",AF45="",AE45="",AD45="",AC45="",AB45="",AA45="",Z45="",Y45="",X45="",W45=""),1,"") ->  | BD45: 41
Q46: =IF(R46="","",VLOOKUP(R46,Planning_général!$E$55:$F$62,2,0)) ->  | R46: =IF(W46=1,$W$3,IF(X46=1,$X$3,IF(Y46=1,$Y$3,IF(Z46=1,$Z$3,IF(AA46=1,$AA$3,IF(AB46=1,$AB$3,IF(AC46=1,$AC$3,IF(AD46=1,$AD$3,IF(AE46=1,$AE$3,IF(AF46=1,$AF$3,IF(AG46=1,$AG$3,IF(AH46=1,$AH$3,IF(AI46=1,$AI$3,IF(AJ46=1,$AJ$3,IF(AK46=1,$AK$3,""))))))))))))))) ->  | S46: =IF(U46=1,U$9,IF(V46=1,V$9,IF(W46=1,W$9,IF(X46=1,X$9,IF(Y46=1,Y$9,IF(Z46=1,Z$9,IF(AA46=1,AA$9,IF(AB46=1,AB$9,IF(AC46=1,AC$9,IF(AD46=1,AD$9,IF(AE46=1,AE$9,""))))))))))) ->  | V46: J2 | X46: =IF(AND(X$30=$V$46,W46="",X45=""),1,"") ->  | Y46: =IF(AND(Y$30=$V$46,X46="",Y45=""),1,"") ->  | Z46: =IF(AND(Z$30=$V$46,Y46="",Z45=""),1,"") ->  | AA46: =IF(AND(AA$30=$V$46,AA45="",SUM($X$46:Z46)=0),1,"") ->  | AB46: =IF(AND(AB$30=$V$46,AB45="",SUM($X$46:AA46)=0),1,"") ->  | AC46: =IF(AND(AC$30=$V$46,AC45="",SUM($X$46:AB46)=0),1,"") ->  | AD46: =IF(AND(AD$30=$V$46,AD45="",SUM($X$46:AC46)=0),1,"") ->  | AE46: =IF(AND(AE$30=$V$46,AE45="",SUM($X$46:AD46)=0),1,"") ->  | AF46: =IF(AND(AF$30=$V$46,AF45="",SUM($X$46:AE46)=0),1,"") ->  | AG46: =IF(AND(AG$30=$V$46,AG45="",SUM($X$46:AF46)=0),1,"") ->  | AH46: =IF(AND(AH$30=$V$46,AH45="",SUM($X$46:AG46)=0),1,"") ->  | AI46: =IF(AND(AI$30=$V$46,AI45="",SUM($X$46:AH46)=0),1,"") ->  | AJ46: =IF(AND(AJ$30=$V$46,AJ45="",SUM($X$46:AI46)=0),1,"") ->  | AK46: =IF(AND(AK$30=$V$46,AK45="",SUM($X$46:AJ46)=0),1,"") ->  | BD46: 42
Q47: =IF(R47="","",VLOOKUP(R47,Planning_général!$E$55:$F$62,2,0)) ->  | R47: =IF(W47=1,$W$3,IF(X47=1,$X$3,IF(Y47=1,$Y$3,IF(Z47=1,$Z$3,IF(AA47=1,$AA$3,IF(AB47=1,$AB$3,IF(AC47=1,$AC$3,IF(AD47=1,$AD$3,IF(AE47=1,$AE$3,IF(AF47=1,$AF$3,IF(AG47=1,$AG$3,IF(AH47=1,$AH$3,IF(AI47=1,$AI$3,IF(AJ47=1,$AJ$3,IF(AK47=1,$AK$3,""))))))))))))))) ->  | S47: =IF(U47=1,U$9,IF(V47=1,V$9,IF(W47=1,W$9,IF(X47=1,X$9,IF(Y47=1,Y$9,IF(Z47=1,Z$9,IF(AA47=1,AA$9,IF(AB47=1,AB$9,IF(AC47=1,AC$9,IF(AD47=1,AD$9,IF(AE47=1,AE$9,""))))))))))) ->  | V47: - | Y47: =IF(AND(Y$30=V47,X47="",Y46="",Y45=""),1,"") ->  | Z47: =IF(AND(Z$30=V47,Y47="",Z46="",Z45=""),1,"") ->  | AA47: =IF(AND(AA$30=$V$47,AA45="",AA46="",SUM($Y$47:Z47)=0),1,"") ->  | AB47: =IF(AND(AB$30=$V$47,AB45="",AB46="",SUM($Y$47:AA47)=0),1,"") ->  | AC47: =IF(AND(AC$30=$V$47,AC45="",AC46="",SUM($Y$47:AB47)=0),1,"") ->  | AD47: =IF(AND(AD$30=$V$47,AD45="",AD46="",SUM($Y$47:AC47)=0),1,"") ->  | AE47: =IF(AND(AE$30=$V$47,AE45="",AE46="",SUM($Y$47:AD47)=0),1,"") ->  | AF47: =IF(AND(AF$30=$V$47,AF45="",AF46="",SUM($Y$47:AE47)=0),1,"") ->  | AG47: =IF(AND(AG$30=$V$47,AG45="",AG46="",SUM($Y$47:AF47)=0),1,"") ->  | AH47: =IF(AND(AH$30=$V$47,AH45="",AH46="",SUM($Y$47:AG47)=0),1,"") ->  | AI47: =IF(AND(AI$30=$V$47,AI45="",AI46="",SUM($Y$47:AH47)=0),1,"") ->  | AJ47: =IF(AND(AJ$30=$V$47,AJ45="",AJ46="",SUM($Y$47:AI47)=0),1,"") ->  | AK47: =IF(AND(AK$30=$V$47,AK45="",AK46="",SUM($Y$47:AJ47)=0),1,"") ->  | BD47: 43
BD48: 44
BD49: 45
Q50: =IF(R50="","",VLOOKUP(R50,Planning_général!$E$55:$F$62,2,0)) ->  | R50: =IF(W50=1,$W$3,IF(X50=1,$X$3,IF(Y50=1,$Y$3,IF(Z50=1,$Z$3,IF(AA50=1,$AA$3,IF(AB50=1,$AB$3,IF(AC50=1,$AC$3,IF(AD50=1,$AD$3,IF(AE50=1,$AE$3,IF(AF50=1,$AF$3,IF(AG50=1,$AG$3,IF(AH50=1,$AH$3,IF(AI50=1,$AI$3,IF(AJ50=1,$AJ$3,IF(AK50=1,$AK$3,""))))))))))))))) ->  | S50: =IF(U50=1,U$9,IF(V50=1,V$9,IF(W50=1,W$9,IF(X50=1,X$9,IF(Y50=1,Y$9,IF(Z50=1,Z$9,IF(AA50=1,AA$9,IF(AB50=1,AB$9,IF(AC50=1,AC$9,IF(AD50=1,AD$9,IF(AE50=1,AE$9,""))))))))))) ->  | T50: Jrnée 3 | V50: J3 | W50: =IF($V$50=$W$30,1,"") ->  | X50: =IF(AND($V$50=$X$30,W50=""),1,"") ->  | Y50: =IF(AND($V$50=$Y$30,X50="",W50=""),1,"") ->  | Z50: =IF(AND($V$50=Z30,W50="",X50="",Y50=""),1,"") ->  | AA50: =IF(AND($V$50=$AA$30,X50="",Y50="",Z50="",W50=""),1,"") ->  | AB50: =IF(AND($V$50=$AB$30,Y50="",Z50="",AA50="",X50="",W50=""),1,"") ->  | AC50: =IF(AND($V$50=AC40,Z50="",AA50="",AB50="",Y50="",X50="",W50=""),1,"") ->  | AD50: =IF(AND($V$50=AD40,AA50="",AB50="",AC50="",Z50="",Y50="",X50="",W50=""),1,"") ->  | AE50: =IF(AND($V$50=$AE$30,AB50="",AC50="",AD50="",AA50="",Z50="",Y50="",X50="",W50=""),1,"") ->  | AF50: =IF(AND($V$50=$AF$30,AC50="",AD50="",AE50="",AB50="",AA50="",Z50="",Y50="",X50="",W50=""),1,"") ->  | AG50: =IF(AND($V$50=$AG$30,AD50="",AE50="",AF50="",AC50="",AB50="",AA50="",Z50="",Y50="",X50="",W50=""),1,"") ->  | AH50: =IF(AND($V$50=$AH$30,AE50="",AF50="",AG50="",AD50="",AC50="",AB50="",AA50="",Z50="",Y50="",X50="",W50=""),1,"") ->  | AI50: =IF(AND($V$50=$AI$30,AF50="",AG50="",AH50="",AE50="",AD50="",AC50="",AB50="",AA50="",Z50="",Y50="",X50="",W50=""),1,"") ->  | AJ50: =IF(AND($V$50=$AJ$30,AG50="",AH50="",AI50="",AF50="",AE50="",AD50="",AC50="",AB50="",AA50="",Z50="",Y50="",X50="",W50=""),1,"") ->  | AK50: =IF(AND($V$50=$AK$30,AH50="",AI50="",AJ50="",AG50="",AF50="",AE50="",AD50="",AC50="",AB50="",AA50="",Z50="",Y50="",X50="",W50=""),1,"") ->  | BD50: 46
Q51: =IF(R51="","",VLOOKUP(R51,Planning_général!$E$55:$F$62,2,0)) ->  | R51: =IF(W51=1,$W$3,IF(X51=1,$X$3,IF(Y51=1,$Y$3,IF(Z51=1,$Z$3,IF(AA51=1,$AA$3,IF(AB51=1,$AB$3,IF(AC51=1,$AC$3,IF(AD51=1,$AD$3,IF(AE51=1,$AE$3,IF(AF51=1,$AF$3,IF(AG51=1,$AG$3,IF(AH51=1,$AH$3,IF(AI51=1,$AI$3,IF(AJ51=1,$AJ$3,IF(AK51=1,$AK$3,""))))))))))))))) ->  | S51: =IF(U51=1,U$9,IF(V51=1,V$9,IF(W51=1,W$9,IF(X51=1,X$9,IF(Y51=1,Y$9,IF(Z51=1,Z$9,IF(AA51=1,AA$9,IF(AB51=1,AB$9,IF(AC51=1,AC$9,IF(AD51=1,AD$9,IF(AE51=1,AE$9,""))))))))))) ->  | V51: J3 | X51: =IF(AND(X$30=$V$51,W51="",X50=""),1,"") ->  | Y51: =IF(AND(Y$30=$V$51,X51="",Y50=""),1,"") ->  | Z51: =IF(AND(Z$30=$V$51,Y51="",Z50=""),1,"") ->  | AA51: =IF(AND(AA$30=$V$51,AA50="",SUM($X$51:Z51)=0),1,"") ->  | AB51: =IF(AND(AB$30=$V$51,AB50="",SUM($X$51:AA51)=0),1,"") ->  | AC51: =IF(AND(AC$30=$V$51,AC50="",SUM($X$51:AB51)=0),1,"") ->  | AD51: =IF(AND(AD$30=$V$51,AD50="",SUM($X$51:AC51)=0),1,"") ->  | AE51: =IF(AND(AE$30=$V$51,AE50="",SUM($X$51:AD51)=0),1,"") ->  | AF51: =IF(AND(AF$30=$V$51,AF50="",SUM($X$51:AE51)=0),1,"") ->  | AG51: =IF(AND(AG$30=$V$51,AG50="",SUM($X$51:AF51)=0),1,"") ->  | AH51: =IF(AND(AH$30=$V$51,AH50="",SUM($X$51:AG51)=0),1,"") ->  | AI51: =IF(AND(AI$30=$V$51,AI50="",SUM($X$51:AH51)=0),1,"") ->  | AJ51: =IF(AND(AJ$30=$V$51,AJ50="",SUM($X$51:AI51)=0),1,"") ->  | AK51: =IF(AND(AK$30=$V$51,AK50="",SUM($X$51:AJ51)=0),1,"") ->  | BD51: 47
Q52: =IF(R52="","",VLOOKUP(R52,Planning_général!$E$55:$F$62,2,0)) ->  | R52: =IF(W52=1,$W$3,IF(X52=1,$X$3,IF(Y52=1,$Y$3,IF(Z52=1,$Z$3,IF(AA52=1,$AA$3,IF(AB52=1,$AB$3,IF(AC52=1,$AC$3,IF(AD52=1,$AD$3,IF(AE52=1,$AE$3,IF(AF52=1,$AF$3,IF(AG52=1,$AG$3,IF(AH52=1,$AH$3,IF(AI52=1,$AI$3,IF(AJ52=1,$AJ$3,IF(AK52=1,$AK$3,""))))))))))))))) ->  | S52: =IF(U52=1,U$9,IF(V52=1,V$9,IF(W52=1,W$9,IF(X52=1,X$9,IF(Y52=1,Y$9,IF(Z52=1,Z$9,IF(AA52=1,AA$9,IF(AB52=1,AB$9,IF(AC52=1,AC$9,IF(AD52=1,AD$9,IF(AE52=1,AE$9,""))))))))))) ->  | V52: - | Y52: =IF(AND(Y$30=V52,X52="",Y51="",Y50=""),1,"") ->  | Z52: =IF(AND(Z$30=V52,Y52="",Z51="",Z50=""),1,"") ->  | AA52: =IF(AND(AA$30=$V$52,AA50="",AA51="",SUM($Y$52:Z52)=0),1,"") ->  | AB52: =IF(AND(AB$30=$V$52,AB50="",AB51="",SUM($Y$52:AA52)=0),1,"") ->  | AC52: =IF(AND(AC$30=$V$52,AC50="",AC51="",SUM($Y$52:AB52)=0),1,"") ->  | AD52: =IF(AND(AD$30=$V$52,AD50="",AD51="",SUM($Y$52:AC52)=0),1,"") ->  | AE52: =IF(AND(AE$30=$V$52,AE50="",AE51="",SUM($Y$52:AD52)=0),1,"") ->  | AF52: =IF(AND(AF$30=$V$52,AF50="",AF51="",SUM($Y$52:AE52)=0),1,"") ->  | AG52: =IF(AND(AG$30=$V$52,AG50="",AG51="",SUM($Y$52:AF52)=0),1,"") ->  | AH52: =IF(AND(AH$30=$V$52,AH50="",AH51="",SUM($Y$52:AG52)=0),1,"") ->  | AI52: =IF(AND(AI$30=$V$52,AI50="",AI51="",SUM($Y$52:AH52)=0),1,"") ->  | AJ52: =IF(AND(AJ$30=$V$52,AJ50="",AJ51="",SUM($Y$52:AI52)=0),1,"") ->  | AK52: =IF(AND(AK$30=$V$52,AK50="",AK51="",SUM($Y$52:AJ52)=0),1,"") ->  | BD52: 48
BD53: 49
BD54: 50
Q55: =IF(R55="","",VLOOKUP(R55,Planning_général!$E$17:$F$62,2,0)) ->  | R55: =IF(W55=1,$W$3,IF(X55=1,$X$3,IF(Y55=1,$Y$3,IF(Z55=1,$Z$3,IF(AA55=1,$AA$3,IF(AB55=1,$AB$3,IF(AC55=1,$AC$3,IF(AD55=1,$AD$3,IF(AE55=1,$AE$3,IF(AF55=1,$AF$3,IF(AG55=1,$AG$3,IF(AH55=1,$AH$3,IF(AI55=1,$AI$3,IF(AJ55=1,$AJ$3,IF(AK55=1,$AK$3,""))))))))))))))) ->  | S55: =IF(U55=1,U$9,IF(V55=1,V$9,IF(W55=1,W$9,IF(X55=1,X$9,IF(Y55=1,Y$9,IF(Z55=1,Z$9,IF(AA55=1,AA$9,IF(AB55=1,AB$9,IF(AC55=1,AC$9,IF(AD55=1,AD$9,IF(AE55=1,AE$9,""))))))))))) ->  | T55: Après-midi | V55: J4 | W55: =IF($V$55=$W$30,1,"") ->  | X55: =IF(AND($V$55=$X$30,W55=""),1,"") ->  | Y55: =IF(AND($V$55=$Y$30,X55="",W55=""),1,"") ->  | Z55: =IF(AND($V$55=Z45,W55="",X55="",Y55=""),1,"") ->  | AA55: =IF(AND($V$55=$AA$30,X55="",Y55="",Z55="",W55=""),1,"") ->  | AB55: =IF(AND($V$55=$AB$30,Y55="",Z55="",AA55="",X55="",W55=""),1,"") ->  | AC55: =IF(AND($V$55=AC45,Z55="",AA55="",AB55="",Y55="",X55="",W55=""),1,"") ->  | AD55: =IF(AND($V$55=AD45,AA55="",AB55="",AC55="",Z55="",Y55="",X55="",W55=""),1,"") ->  | AE55: =IF(AND($V$55=$AE$30,AB55="",AC55="",AD55="",AA55="",Z55="",Y55="",X55="",W55=""),1,"") ->  | AF55: =IF(AND($V$55=$AF$30,AC55="",AD55="",AE55="",AB55="",AA55="",Z55="",Y55="",X55="",W55=""),1,"") ->  | AG55: =IF(AND($V$55=$AG$30,AD55="",AE55="",AF55="",AC55="",AB55="",AA55="",Z55="",Y55="",X55="",W55=""),1,"") ->  | AH55: =IF(AND($V$55=$AH$30,AE55="",AF55="",AG55="",AD55="",AC55="",AB55="",AA55="",Z55="",Y55="",X55="",W55=""),1,"") ->  | AI55: =IF(AND($V$55=$AI$30,AF55="",AG55="",AH55="",AE55="",AD55="",AC55="",AB55="",AA55="",Z55="",Y55="",X55="",W55=""),1,"") ->  | AJ55: =IF(AND($V$55=$AJ$30,AG55="",AH55="",AI55="",AF55="",AE55="",AD55="",AC55="",AB55="",AA55="",Z55="",Y55="",X55="",W55=""),1,"") ->  | AK55: =IF(AND($V$55=$AK$30,AH55="",AI55="",AJ55="",AG55="",AF55="",AE55="",AD55="",AC55="",AB55="",AA55="",Z55="",Y55="",X55="",W55=""),1,"") ->  | BD55: 51
Q56: =IF(R56="","",VLOOKUP(R56,Planning_général!$E$17:$F$62,2,0)) ->  | R56: =IF(W56=1,$W$3,IF(X56=1,$X$3,IF(Y56=1,$Y$3,IF(Z56=1,$Z$3,IF(AA56=1,$AA$3,IF(AB56=1,$AB$3,IF(AC56=1,$AC$3,IF(AD56=1,$AD$3,IF(AE56=1,$AE$3,IF(AF56=1,$AF$3,IF(AG56=1,$AG$3,IF(AH56=1,$AH$3,IF(AI56=1,$AI$3,IF(AJ56=1,$AJ$3,IF(AK56=1,$AK$3,""))))))))))))))) ->  | S56: =IF(U56=1,U$9,IF(V56=1,V$9,IF(W56=1,W$9,IF(X56=1,X$9,IF(Y56=1,Y$9,IF(Z56=1,Z$9,IF(AA56=1,AA$9,IF(AB56=1,AB$9,IF(AC56=1,AC$9,IF(AD56=1,AD$9,IF(AE56=1,AE$9,""))))))))))) ->  | V56: J4 | X56: =IF(AND(X$30=$V$56,W56="",X55=""),1,"") ->  | Y56: =IF(AND(Y$30=$V$56,X56="",Y55=""),1,"") ->  | Z56: =IF(AND(Z$30=$V$56,Y56="",Z55=""),1,"") ->  | AA56: =IF(AND(AA$30=$V$56,AA55="",SUM($X$56:Z56)=0),1,"") ->  | AB56: =IF(AND(AB$30=$V$56,AB55="",SUM($X$56:AA56)=0),1,"") ->  | AC56: =IF(AND(AC$30=$V$56,AC55="",SUM($X$56:AB56)=0),1,"") ->  | AD56: =IF(AND(AD$30=$V$56,AD55="",SUM($X$56:AC56)=0),1,"") ->  | AE56: =IF(AND(AE$30=$V$56,AE55="",SUM($X$56:AD56)=0),1,"") ->  | AF56: =IF(AND(AF$30=$V$56,AF55="",SUM($X$56:AE56)=0),1,"") ->  | AG56: =IF(AND(AG$30=$V$56,AG55="",SUM($X$56:AF56)=0),1,"") ->  | AH56: =IF(AND(AH$30=$V$56,AH55="",SUM($X$56:AG56)=0),1,"") ->  | AI56: =IF(AND(AI$30=$V$56,AI55="",SUM($X$56:AH56)=0),1,"") ->  | AJ56: =IF(AND(AJ$30=$V$56,AJ55="",SUM($X$56:AI56)=0),1,"") ->  | AK56: =IF(AND(AK$30=$V$56,AK55="",SUM($X$56:AJ56)=0),1,"") ->  | BD56: 52
Q57: =IF(R57="","",VLOOKUP(R57,Planning_général!$E$17:$F$62,2,0)) ->  | R57: =IF(W57=1,$W$3,IF(X57=1,$X$3,IF(Y57=1,$Y$3,IF(Z57=1,$Z$3,IF(AA57=1,$AA$3,IF(AB57=1,$AB$3,IF(AC57=1,$AC$3,IF(AD57=1,$AD$3,IF(AE57=1,$AE$3,IF(AF57=1,$AF$3,IF(AG57=1,$AG$3,IF(AH57=1,$AH$3,IF(AI57=1,$AI$3,IF(AJ57=1,$AJ$3,IF(AK57=1,$AK$3,""))))))))))))))) ->  | S57: =IF(U57=1,U$9,IF(V57=1,V$9,IF(W57=1,W$9,IF(X57=1,X$9,IF(Y57=1,Y$9,IF(Z57=1,Z$9,IF(AA57=1,AA$9,IF(AB57=1,AB$9,IF(AC57=1,AC$9,IF(AD57=1,AD$9,IF(AE57=1,AE$9,""))))))))))) ->  | V57: J4 | Y57: =IF(AND(Y$30=V57,X57="",Y56="",Y55=""),1,"") ->  | Z57: =IF(AND(Z$30=V57,Y57="",Z56="",Z55=""),1,"") ->  | AA57: =IF(AND(AA$30=$V$57,AA55="",AA56="",SUM($Y$52:Z57)=0),1,"") ->  | AB57: =IF(AND(AB$30=$V$57,AB55="",AB56="",SUM($Y$57:AA57)=0),1,"") ->  | AC57: =IF(AND(AC$30=$V$57,AC55="",AC56="",SUM($Y$57:AB57)=0),1,"") ->  | AD57: =IF(AND(AD$30=$V$57,AD55="",AD56="",SUM($Y$57:AC57)=0),1,"") ->  | AE57: =IF(AND(AE$30=$V$57,AE55="",AE56="",SUM($Y$57:AD57)=0),1,"") ->  | AF57: =IF(AND(AF$30=$V$57,AF55="",AF56="",SUM($Y$57:AE57)=0),1,"") ->  | AG57: =IF(AND(AG$30=$V$57,AG55="",AG56="",SUM($Y$57:AF57)=0),1,"") ->  | AH57: =IF(AND(AH$30=$V$57,AH55="",AH56="",SUM($Y$57:AG57)=0),1,"") ->  | AI57: =IF(AND(AI$30=$V$57,AI55="",AI56="",SUM($Y$57:AH57)=0),1,"") ->  | AJ57: =IF(AND(AJ$30=$V$57,AJ55="",AJ56="",SUM($Y$57:AI57)=0),1,"") ->  | AK57: =IF(AND(AK$30=$V$57,AK55="",AK56="",SUM($Y$57:AJ57)=0),1,"") ->  | BD57: 53
Q60: =IF(R60="","",VLOOKUP(R60,Planning_général!$E$17:$F$62,2,0)) ->  | R60: =IF(W60=1,$W$3,IF(X60=1,$X$3,IF(Y60=1,$Y$3,IF(Z60=1,$Z$3,IF(AA60=1,$AA$3,IF(AB60=1,$AB$3,IF(AC60=1,$AC$3,IF(AD60=1,$AD$3,IF(AE60=1,$AE$3,IF(AF60=1,$AF$3,IF(AG60=1,$AG$3,IF(AH60=1,$AH$3,IF(AI60=1,$AI$3,IF(AJ60=1,$AJ$3,IF(AK60=1,$AK$3,""))))))))))))))) ->  | S60: =IF(U60=1,U$9,IF(V60=1,V$9,IF(W60=1,W$9,IF(X60=1,X$9,IF(Y60=1,Y$9,IF(Z60=1,Z$9,IF(AA60=1,AA$9,IF(AB60=1,AB$9,IF(AC60=1,AC$9,IF(AD60=1,AD$9,IF(AE60=1,AE$9,""))))))))))) ->  | T60: Soir | V60: M3 | W60: =IF($V$60=$W$30,1,"") ->  | X60: =IF(AND($V$60=$X$30,W60=""),1,"") ->  | Y60: =IF(AND($V$60=$Y$30,X60="",W60=""),1,"") ->  | Z60: =IF(AND($V$60=$Z$30,W60="",X60="",Y60=""),1,"") ->  | AA60: =IF(AND($V$60=$AA$30,X60="",Y60="",Z60="",W60=""),1,"") ->  | AB60: =IF(AND($V$60=$AB$30,Y60="",Z60="",AA60="",X60="",W60=""),1,"") ->  | AC60: =IF(AND($V$60=AC50,Z60="",AA60="",AB60="",Y60="",X60="",W60=""),1,"") ->  | AD60: =IF(AND($V$60=AD50,AA60="",AB60="",AC60="",Z60="",Y60="",X60="",W60=""),1,"") ->  | AE60: =IF(AND($V$60=$AE$30,AB60="",AC60="",AD60="",AA60="",Z60="",Y60="",X60="",W60=""),1,"") ->  | AF60: =IF(AND($V$60=$AF$30,AC60="",AD60="",AE60="",AB60="",AA60="",Z60="",Y60="",X60="",W60=""),1,"") ->  | AG60: =IF(AND($V$60=$AG$30,AD60="",AE60="",AF60="",AC60="",AB60="",AA60="",Z60="",Y60="",X60="",W60=""),1,"") ->  | AH60: =IF(AND($V$60=$AH$30,AE60="",AF60="",AG60="",AD60="",AC60="",AB60="",AA60="",Z60="",Y60="",X60="",W60=""),1,"") ->  | AI60: =IF(AND($V$60=$AI$30,AF60="",AG60="",AH60="",AE60="",AD60="",AC60="",AB60="",AA60="",Z60="",Y60="",X60="",W60=""),1,"") ->  | AJ60: =IF(AND($V$60=$AJ$30,AG60="",AH60="",AI60="",AF60="",AE60="",AD60="",AC60="",AB60="",AA60="",Z60="",Y60="",X60="",W60=""),1,"") ->  | AK60: =IF(AND($V$60=$AK$30,AH60="",AI60="",AJ60="",AG60="",AF60="",AE60="",AD60="",AC60="",AB60="",AA60="",Z60="",Y60="",X60="",W60=""),1,"") -> 
Q61: =IF(R61="","",VLOOKUP(R61,Planning_général!$E$17:$F$62,2,0)) ->  | R61: =IF(W61=1,$W$3,IF(X61=1,$X$3,IF(Y61=1,$Y$3,IF(Z61=1,$Z$3,IF(AA61=1,$AA$3,IF(AB61=1,$AB$3,IF(AC61=1,$AC$3,IF(AD61=1,$AD$3,IF(AE61=1,$AE$3,IF(AF61=1,$AF$3,IF(AG61=1,$AG$3,IF(AH61=1,$AH$3,IF(AI61=1,$AI$3,IF(AJ61=1,$AJ$3,IF(AK61=1,$AK$3,""))))))))))))))) ->  | S61: =IF(U61=1,U$9,IF(V61=1,V$9,IF(W61=1,W$9,IF(X61=1,X$9,IF(Y61=1,Y$9,IF(Z61=1,Z$9,IF(AA61=1,AA$9,IF(AB61=1,AB$9,IF(AC61=1,AC$9,IF(AD61=1,AD$9,IF(AE61=1,AE$9,""))))))))))) ->  | V61: M3 | X61: =IF(AND(X$30=$V$61,W61="",X60=""),1,"") ->  | Y61: =IF(AND(Y$30=$V$61,X61="",Y60=""),1,"") ->  | Z61: =IF(AND(Z$30=$V$61,Y61="",Z60=""),1,"") ->  | AA61: =IF(AND(AA$30=$V$61,AA60="",SUM($X$61:Z61)=0),1,"") ->  | AB61: =IF(AND(AB$30=$V$61,AB60="",SUM($X$61:AA61)=0),1,"") ->  | AC61: =IF(AND(AC$30=$V$61,AC60="",SUM($X$61:AB61)=0),1,"") ->  | AD61: =IF(AND(AD$30=$V$61,AD60="",SUM($X$61:AC61)=0),1,"") ->  | AE61: =IF(AND(AE$30=$V$61,AE60="",SUM($X$61:AD61)=0),1,"") ->  | AF61: =IF(AND(AF$30=$V$61,AF60="",SUM($X$61:AE61)=0),1,"") ->  | AG61: =IF(AND(AG$30=$V$61,AG60="",SUM($X$61:AF61)=0),1,"") ->  | AH61: =IF(AND(AH$30=$V$61,AH60="",SUM($X$61:AG61)=0),1,"") ->  | AI61: =IF(AND(AI$30=$V$61,AI60="",SUM($X$61:AH61)=0),1,"") ->  | AJ61: =IF(AND(AJ$30=$V$61,AJ60="",SUM($X$61:AI61)=0),1,"") ->  | AK61: =IF(AND(AK$30=$V$61,AK60="",SUM($X$61:AJ61)=0),1,"") -> 
